Workbook

Sheet PORTADA
D2: DEPARTAMENTO DE CUNDINAMARCA
D3: SECRETARIA DE PLANEACION
C5: PLAN DE DESARROLLO DEPARTAMENTAL
C6: "UNIDOS PODEMOS MÁS"
C8: 2016 - 2020
L14: CONSULTAS
L15: OBJETIVOS
L16: PROGRAMAS
L17: ENTIDADES
L18: M. RESULTADO
L19: M. PRODUCTO
E58: EJE ESTRATEGICO | F58: No. Programas | G58: No. Metas | H58: Inv.Millones $ | I58: Programado Cuatrienio | J58: Pogramado 21016 | K58: Ejecutado 2016 | L58: % Ejec.
E59: 1. CUNDINAMARCA 2036 | F59: 8 | G59: 99 | H59: 4543393.884 | I59: =+Ejes!C27 -> 39.72 | J59: =+Ejes!C23 -> 5.632473397 | K59: =+Ejes!D23 -> 3.640243593 | L59: =+K59/J59 -> 0.6462957455
E60: 2. TEJIDO SOCIAL | F60: 13 | G60: 155 | H60: 1511911.386 | I60: =+Ejes!C43 -> 24.84 | J60: =+Ejes!C39 -> 4.898720186 | K60: =+Ejes!D39 -> 4.250105877 | L60: =+K60/J60 -> 0.8675951506
E61: 3. COMPETITIVIDAD SOSTENIBLE | F61: 8 | G61: 121 | H61: 3038299.657 | I61: =+Ejes!C59 -> 23.36 | J61: =+Ejes!C55 -> 3.422435453 | K61: =+Ejes!D55 -> 2.736866983 | L61: =+K61/J61 -> 0.7996840322
E62: 4. INTEGRACIÓN Y GOBERNANZA | F62: 9 | G62: 152 | H62: 596731.2562 | I62: =+Ejes!C75 -> 12.08 | J62: =+Ejes!C71 -> 2.176387801 | K62: =+Ejes!D71 -> 2.045397957 | L62: =+K62/J62 -> 0.9398131878
E63: TOTAL | F63: =SUM(F59:F62) -> 38 | G63: =SUM(G59:G62) -> 527 | H63: =SUM(H59:H62) -> 9690336.183 | I63: =SUM(I59:I62) -> 100 | J63: =SUM(J59:J62) -> 16.13001684 | K63: =SUM(K59:K62) -> 12.67261441 | L63: =+K63/J63 -> 0.785654134

Sheet Ejes
B1: DEPARTAMENTO DE CUNDINAMARCA
B2: SECRETARIA DE PLANEACIÓN
F5: =IF(C5=X6,Y6,IF(C5=X8,Y8,IF(C5=X9,Y9,IF(C5=X10,Y10,"PLAN DE DESARROLLO")))) -> PLAN DE DESARROLLO
X6: EJE_1 | Y6: DESARROLLO INTEGRAL DEL SER HUMANO
B8: COMPORTAMIENTO DE LOS EJES ESTRATEGICOS | S8: Volver | X8: EJE_2 | Y8: SOSTENIBILIDAD Y RURALIDAD
X9: EJE_3 | Y9: COMPETITIVIDAD, INNOVACIÓN, MOVILIDAD Y REGIÓN
D10: Programado Cuatrienio | E10: Pogramado 21016 | F10: Ejecutado 2016 | G10: % Ejec. | X10: EJE_4 | Y10: FORTALECIMIENTO INSTITUCIONAL PARA GENERAR VALOR DE LO PÚBLICO
C11: =+B19 -> 1-CUNDINAMARCA 2036 | D11: =+C27 -> 39.72 | E11: =+C23 -> 5.632473397 | F11: =+D23 -> 3.640243593 | G11: =+F11/E11 -> 0.6462957455 | X11: PDD | AC11: PDD
C12: =+B35 -> 2-TEJIDO SOCIAL | D12: =+C43 -> 24.84 | E12: =+C39 -> 4.898720186 | F12: =+D39 -> 4.250105877 | G12: =+F12/E12 -> 0.8675951506
C13: =+B51 -> 3-COMPETITIVIDAD SOSTENIBLE | D13: =+C59 -> 23.36 | E13: =+C55 -> 3.422435453 | F13: =+D55 -> 2.736866983 | G13: 0.7996840322
C14: =+B67 -> 4-INTEGRACIÓN Y GOBERNANZA | D14: =+C75 -> 12.08 | E14: =+C71 -> 2.176387801 | F14: =+D71 -> 2.045397957 | G14: 0.9398131878
C16: PDD | D16: =SUM(D11:D15) -> 100 | E16: =SUM(E11:E15) -> 16.13001684 | F16: =SUM(F11:F15) -> 12.67261441 | G16: 0.785654134
B18: Fuente: SPC, calculo dirección seguimiento y evaluación | L18: Fuente: Sec. Hacienda, calculo dirección Dinanciera SPC
B19: =VLOOKUP($X$6,Datos_Prog!B6:C10,2,FALSE) -> 1-CUNDINAMARCA 2036
G21: EJECUCIÓN FÍSICA | N21: EJECUCIÓN FINANCIERA (En Millones $)
B22: AÑO | C22: Programado | D22: Ejecutado | E22: % Ejecutado | F22: Ejec. Mlls de $
B23: 2016 | C23: =VLOOKUP($X$6,Datos_Prog!B6:Z10,5,FALSE) -> 5.632473397 | D23: =VLOOKUP($X$6,Datos_Prog!B6:Z10,6,FALSE) -> 3.640243593 | E23: =IFERROR(+IF((D23/C23)<1, (D23/C23), 100%)," ") -> 0.6462957455 | F23: =VLOOKUP($X$6,Datos_Prog!B6:Z10,14,FALSE) -> 0
B24: 2017 | C24: =VLOOKUP($X$6,Datos_Prog!B6:Z10,7,FALSE) -> 13.82940127 | D24: =VLOOKUP($X$6,Datos_Prog!B6:Z10,8,FALSE) -> 0 | E24: =IFERROR(+IF((D24/C24)<1, (D24/C24), 100%)," ") -> 0 | F24: =VLOOKUP($X$6,Datos_Prog!B6:Z10,15,FALSE) -> 0
B25: 2018 | C25: =VLOOKUP($X$6,Datos_Prog!B6:Z10,9,FALSE) -> 11.2964773 | D25: =VLOOKUP($X$6,Datos_Prog!B6:Z10,10,FALSE) -> 0 | E25: =IFERROR(+IF((D25/C25)<1, (D25/C25), 100%)," ") -> 0 | F25: =VLOOKUP($X$6,Datos_Prog!B6:Z10,16,FALSE) -> 0
B26: 2019 | C26: =VLOOKUP($X$6,Datos_Prog!B6:Z10,11,FALSE) -> 8.96164803 | D26: =VLOOKUP($X$6,Datos_Prog!B6:Z10,12,FALSE) -> 0 | E26: =IFERROR(+IF((D26/C26)<1, (D26/C26), 100%)," ") -> 0 | F26: =VLOOKUP($X$6,Datos_Prog!B6:Z10,17,FALSE) -> 0
B27: Cuatrienio | C27: =SUM(C23:C26) -> 39.72 | D27: =VLOOKUP($X$8,Datos_Prog!B6:Z10,13,FALSE) -> 4.250105877 | E27: =IFERROR(+IF((D27/C27)<1, (D27/C27), 100%)," ") -> 0.1070016585 | F27: =SUM(F23:F26) -> 0
B28: LOGROS RELEVANTES
B29: =VLOOKUP($X6,Datos_Prog!B6:Z10,19,FALSE) -> LOGRO 1
B30: =VLOOKUP($X6,Datos_Prog!B6:Z10,20,FALSE) -> LOGRO 2
B31: =VLOOKUP($X$6,Datos_Prog!B6:Z10,21,FALSE) -> LOGRO 3
B32: =VLOOKUP($X$6,Datos_Prog!B6:Z10,22,FALSE) -> LOGRO 4
B33: =VLOOKUP($X$6,Datos_Prog!B6:Z10,23,FALSE) -> LOGRO 5
B35: =VLOOKUP($X$8,Datos_Prog!B6:C10,2,FALSE) -> 2-TEJIDO SOCIAL
G37: EJECUCIÓN FÍSICA | N37: EJECUCIÓN FINANCIERA (En Millones $)
B38: AÑO | C38: Programado | D38: Ejecutado | E38: % Ejecutado | F38: Ejec. Mlls de $
B39: 2016 | C39: =VLOOKUP($X$8,Datos_Prog!B6:Z10,5,FALSE) -> 4.898720186 | D39: =VLOOKUP($X$8,Datos_Prog!B6:Z10,6,FALSE) -> 4.250105877 | E39: =IFERROR(+IF((D39/C39)<1, (D39/C39), 100%)," ") -> 0.8675951506 | F39: =VLOOKUP($X$8,Datos_Prog!B6:Z10,14,FALSE) -> 0
B40: 2017 | C40: =VLOOKUP($X$8,Datos_Prog!B6:Z10,7,FALSE) -> 7.44110817 | D40: =VLOOKUP($X$8,Datos_Prog!B6:Z10,8,FALSE) -> 0 | E40: =IFERROR(+IF((D40/C40)<1, (D40/C40), 100%)," ") -> 0 | F40: =VLOOKUP($X$8,Datos_Prog!B6:Z10,15,FALSE) -> 0
B41: 2018 | C41: =VLOOKUP($X$8,Datos_Prog!B6:Z10,9,FALSE) -> 6.774015917 | D41: =VLOOKUP($X$8,Datos_Prog!B6:Z10,10,FALSE) -> 0 | E41: =IFERROR(+IF((D41/C41)<1, (D41/C41), 100%)," ") -> 0 | F41: =VLOOKUP($X$8,Datos_Prog!B6:Z10,16,FALSE) -> 0
B42: 2019 | C42: =VLOOKUP($X$8,Datos_Prog!B6:Z10,11,FALSE) -> 5.726155728 | D42: =VLOOKUP($X$8,Datos_Prog!B6:Z10,12,FALSE) -> 0 | E42: =IFERROR(+IF((D42/C42)<1, (D42/C42), 100%)," ") -> 0 | F42: =VLOOKUP($X$8,Datos_Prog!B6:Z10,17,FALSE) -> 0
B43: Cuatrienio | C43: =SUM(C39:C42) -> 24.84 | D43: =VLOOKUP($X$8,Datos_Prog!B6:Z10,13,FALSE) -> 4.250105877 | E43: =IFERROR(+IF((D43/C43)<1, (D43/C43), 100%)," ") -> 0.1710992704 | F43: =SUM(F39:F42) -> 0
B44: LOGROS ALCANZADOS
B45: =VLOOKUP($X$8,Datos_Prog!B6:Z10,19,FALSE) -> LOGRO 2
B46: =VLOOKUP($X$8,Datos_Prog!B6:Z10,20,FALSE) -> LOGRO 3
B47: =VLOOKUP($X$8,Datos_Prog!B6:Z10,21,FALSE) -> LOGRO 4
B48: =VLOOKUP($X$8,Datos_Prog!B6:Z10,22,FALSE) -> LOGRO 5
B49: =VLOOKUP($X$8,Datos_Prog!B6:Z10,23,FALSE) -> LOGRO 6
B51: =VLOOKUP($X$9,Datos_Prog!B6:C10,2,FALSE) -> 3-COMPETITIVIDAD SOSTENIBLE
G53: EJECUCIÓN FÍSICA | N53: EJECUCIÓN FINANCIERA (En Millones $)
B54: AÑO | C54: Programado | D54: Ejecutado | E54: % Ejecutado | F54: $_Prog
B55: 2016 | C55: =VLOOKUP($X$9,Datos_Prog!B6:Z10,5,FALSE) -> 3.422435453 | D55: =VLOOKUP($X$9,Datos_Prog!B6:Z10,6,FALSE) -> 2.736866983 | E55: =IFERROR(+IF((D55/C55)<1, (D55/C55), 100%)," ") -> 0.7996840322 | F55: =VLOOKUP($X$9,Datos_Prog!B6:Z10,14,FALSE) -> 0
B56: 2017 | C56: =VLOOKUP($X$9,Datos_Prog!B6:Z10,7,FALSE) -> 6.531897229 | D56: =VLOOKUP($X$9,Datos_Prog!B6:Z10,8,FALSE) -> 0 | E56: =IFERROR(+IF((D56/C56)<1, (D56/C56), 100%)," ") -> 0 | F56: =VLOOKUP($X$9,Datos_Prog!B6:Z10,15,FALSE) -> 0
B57: 2018 | C57: =VLOOKUP($X$9,Datos_Prog!B6:Z10,9,FALSE) -> 6.853457486 | D57: =VLOOKUP($X$9,Datos_Prog!B6:Z10,10,FALSE) -> 0 | E57: =IFERROR(+IF((D57/C57)<1, (D57/C57), 100%)," ") -> 0 | F57: =VLOOKUP($X$9,Datos_Prog!B6:Z10,16,FALSE) -> 0
B58: 2019 | C58: =VLOOKUP($X$9,Datos_Prog!B6:Z10,11,FALSE) -> 6.552209831 | D58: =VLOOKUP($X$9,Datos_Prog!B6:Z10,12,FALSE) -> 0 | E58: =IFERROR(+IF((D58/C58)<1, (D58/C58), 100%)," ") -> 0 | F58: =VLOOKUP($X$9,Datos_Prog!B6:Z10,17,FALSE) -> 0
B59: Cuatrienio | C59: =SUM(C55:C58) -> 23.36 | D59: =VLOOKUP($X$9,Datos_Prog!B6:Z10,13,FALSE) -> 2.736866983 | E59: =IFERROR(+IF((D59/C59)<1, (D59/C59), 100%)," ") -> 0.1171604017 | F59: =SUM(F55:F58) -> 0
B60: LOGROS ALCANZADOS
B61: =VLOOKUP($X$9,Datos_Prog!B6:Z10,19,FALSE) -> LOGRO 3
B62: =VLOOKUP($X$9,Datos_Prog!B6:Z10,20,FALSE) -> LOGRO 4
B63: =VLOOKUP($X$9,Datos_Prog!B6:Z10,21,FALSE) -> LOGRO 5
B64: =VLOOKUP($X$9,Datos_Prog!B6:Z10,22,FALSE) -> LOGRO 6
B65: =VLOOKUP($X$9,Datos_Prog!B6:Z10,23,FALSE) -> LOGRO 7
B67: =VLOOKUP($X$10,Datos_Prog!B6:C10,2,FALSE) -> 4-INTEGRACIÓN Y GOBERNANZA
G69: EJECUCIÓN FÍSICA | N69: EJECUCIÓN FINANCIERA (En Millones $)
B70: AÑO | C70: Programado | D70: Ejecutado | E70: % Ejecutado | F70: $_Prog
B71: 2016 | C71: =VLOOKUP($X$10,Datos_Prog!B6:Z10,5,FALSE) -> 2.176387801 | D71: =VLOOKUP($X$10,Datos_Prog!B6:Z10,6,FALSE) -> 2.045397957 | E71: =IFERROR(+IF((D71/C71)<1, (D71/C71), 100%)," ") -> 0.9398131878 | F71: =VLOOKUP($X$10,Datos_Prog!B6:Z10,14,FALSE) -> 0
B72: 2017 | C72: =VLOOKUP($X$10,Datos_Prog!B6:Z10,7,FALSE) -> 3.507131341 | D72: =VLOOKUP($X$10,Datos_Prog!B6:Z10,8,FALSE) -> 0 | E72: =IFERROR(+IF((D72/C72)<1, (D72/C72), 100%)," ") -> 0 | F72: =VLOOKUP($X$10,Datos_Prog!B6:Z10,15,FALSE) -> 0
B73: 2018 | C73: =VLOOKUP($X$10,Datos_Prog!B6:Z10,9,FALSE) -> 3.407113176 | D73: =VLOOKUP($X$10,Datos_Prog!B6:Z10,10,FALSE) -> 0 | E73: =IFERROR(+IF((D73/C73)<1, (D73/C73), 100%)," ") -> 0 | F73: =VLOOKUP($X$10,Datos_Prog!B6:Z10,16,FALSE) -> 0
B74: 2019 | C74: =VLOOKUP($X$10,Datos_Prog!B6:Z10,11,FALSE) -> 2.989367681 | D74: =VLOOKUP($X$10,Datos_Prog!B6:Z10,12,FALSE) -> 0 | E74: =IFERROR(+IF((D74/C74)<1, (D74/C74), 100%)," ") -> 0 | F74: =VLOOKUP($X$10,Datos_Prog!B6:Z10,17,FALSE) -> 0
B75: CUATRIENIO | C75: =SUM(C71:C74) -> 12.08 | D75: =VLOOKUP($X$10,Datos_Prog!B6:Z10,13,FALSE) -> 2.045397957 | E75: =IFERROR(+IF((D75/C75)<1, (D75/C75), 100%)," ") -> 0.169321023 | F75: =SUM(F71:F74) -> 0
B76: LOGROS ALCANZADOS
B77: =VLOOKUP($X$10,Datos_Prog!B6:Z10,19,FALSE) -> LOGRO 4
B78: =VLOOKUP($X$10,Datos_Prog!B6:Z10,20,FALSE) -> LOGRO 5
B79: =VLOOKUP($X$10,Datos_Prog!B6:Z10,21,FALSE) -> LOGRO 6
B80: =VLOOKUP($X$10,Datos_Prog!B6:Z10,22,FALSE) -> LOGRO 7
B81: =VLOOKUP($X$10,Datos_Prog!B6:Z10,23,FALSE) -> LOGRO 8
A83: =VLOOKUP($X$11,Datos_Prog!B6:C11,2,FALSE) -> PDD
G85: EJECUCIÓN FÍSICA | N85: EJECUCIÓN FINANCIERA (En Millones $)
B86: AÑO | C86: Programado | D86: Ejecutado | E86: % Ejecutado | F86: $_Prog
B87: 2016 | C87: =VLOOKUP($X$11,Datos_Prog!B6:Z11,5,FALSE) -> 16.13001684 | D87: =VLOOKUP($X$11,Datos_Prog!B6:Z11,6,FALSE) -> 12.67261441 | E87: =IFERROR(+IF((D87/C87)<1, (D87/C87), 100%)," ") -> 0.785654134 | F87: =VLOOKUP($X$11,Datos_Prog!B6:Z11,14,FALSE) -> 0
B88: 2017 | C88: =VLOOKUP($X$11,Datos_Prog!B6:Z11,7,FALSE) -> 31.30953801 | D88: =VLOOKUP($X$11,Datos_Prog!B6:Z11,8,FALSE) -> 0 | E88: =IFERROR(+IF((D88/C88)<1, (D88/C88), 100%)," ") -> 0 | F88: =VLOOKUP($X$11,Datos_Prog!B6:Z11,15,FALSE) -> 0
B89: 2018 | C89: =VLOOKUP($X$11,Datos_Prog!B6:Z11,9,FALSE) -> 28.33106388 | D89: =VLOOKUP($X$11,Datos_Prog!B6:Z11,10,FALSE) -> 0 | E89: =IFERROR(+IF((D89/C89)<1, (D89/C89), 100%)," ") -> 0 | F89: =VLOOKUP($X$11,Datos_Prog!B6:Z11,16,FALSE) -> 0
B90: 2019 | C90: =VLOOKUP($X$11,Datos_Prog!B6:Z11,11,FALSE) -> 24.22938127 | D90: =VLOOKUP($X$11,Datos_Prog!B6:Z11,12,FALSE) -> 0 | E90: =IFERROR(+IF((D90/C90)<1, (D90/C90), 100%)," ") -> 0 | F90: =VLOOKUP($X$11,Datos_Prog!B6:Z11,17,FALSE) -> 0
B91: CUATRIENIO | C91: =SUM(C87:C90) -> 100 | D91: =VLOOKUP($X$11,Datos_Prog!B6:Z11,13,FALSE) -> 12.67261441 | E91: =IFERROR(+IF((D91/C91)<1, (D91/C91), 100%)," ") -> 0.1267261441 | F91: =SUM(F87:F90) -> 0
B92: LOGROS ALCANZADOS
B95: 2012 | C95: =+C87 -> 16.13001684 | D95: =+D87/$C$98 -> 0.1267261441 | E95: =+D95 -> 0.1267261441 | G95: =+F87 -> 0
B96: 2013 | C96: =+C95+C88 -> 47.43955485 | D96: =+D88/$C$98 -> 0 | E96: =+E95+D96 -> 0.1267261441 | G96: =+G95+F88 -> 0
B97: 2014 | C97: =+C96+C89 -> 75.77061873 | D97: =+D89/$C$98 -> 0 | E97: =+E96+D97 -> 0.1267261441 | G97: =+G96+F89 -> 0
B98: 2015 | C98: =+C97+C90 -> 100 | D98: =+D90/$C$98 -> 0 | E98: =+D91/100 -> 0.1267261441 | G98: =+G97+F90 -> 0

Sheet Programas
B1: DEPARTAMENTO DE CUNDINAMARCA
B2: SECRETARIA DE PLANEACIÓN
C5: =IF(D5=S8,R8,IF(D5=S9,R9,IF(D5=S10,R10,IF(D5=S11,R11,"PLAN DE DESARROLLO")))) -> EJE_3 | D5: 3-COMPETITIVIDAD SOSTENIBLE | P5: Volver
D8: 3.1. VÍA A LA COMPETITIVIDAD | R8: EJE_1 | S8: 1-CUNDINAMARCA 2036
R9: EJE_2 | S9: 2-TEJIDO SOCIAL
B10: Objetivo del Programa | C10: =VLOOKUP($D$8,Datos_Prog!$B$23:$DM$61,2,FALSE) -> Priorizar e intervenir la infraestructura requerida como sustento a la apuesta de desarrollo del departamento acercándolo a la modernidad, la innovación y el desarrollo integral sostenible | R10: EJE_3 | S10: 3-COMPETITIVIDAD SOSTENIBLE
B11: M. Resultado 1 | C11: =VLOOKUP($D$8,Datos_Prog!$B$23:$DM$61,3,FALSE) -> Intervenir el 25% de la infraestructura vial del departamento, garantizando la continua prestación del servicio vial (En Cundinamarca hay un total de 21,600 Km de vía) | K11: Sub-programas | N11: No. Metas | O11: Inversión | R11: EJE_4 | S11: 4-INTEGRACIÓN Y GOBERNANZA
B12: M. Resultado 2 | C12: =VLOOKUP($D$8,Datos_Prog!$B$23:$DM$61,4,FALSE) -> Optimizar las condiciones de transporte en 3 corredores viales en el departamento | K12: =(+D43) -> 3.1.1. INFRAESTRUCTURA LOGISTICA Y DE TRANSPORTE | N12: =COUNTIF(B45:B61,">0") -> 14 | O12: =+O62 -> 580160173898
B13: M. Resultado 3 | C13: =VLOOKUP($D$8,Datos_Prog!$B$23:$DM$61,5,FALSE) -> Reducir en un 10% la mortalidad en accidentes de tránsito durante el periodo de Gobierno. | K13: =(+D64) -> 3.1.2. VIDAS SEGURAS | N13: =COUNTIF(B65:B87,">0") -> 3 | O13: =+O88 -> 25329227789
B14: M. Resultado 4 | C14: =VLOOKUP($D$8,Datos_Prog!$B$23:$DM$61,6,FALSE) -> 0 | K14: =(+D90) -> 0 | N14: =COUNTIF(B91:B104,">0") -> 0 | O14: =+O105 -> 0
B15: M. Resultado 5 | C15: =VLOOKUP($D$8,Datos_Prog!$B$23:$DM$61,7,FALSE) -> 0 | K15: =(+D107) -> 0 | N15: =COUNTIF(B108:B115,">0") -> 0 | O15: =+O116 -> 0
B16: Entidades Aportantes | C16: =VLOOKUP($D$8,Datos_Prog!$B$23:$AP$61,10,FALSE) -> ICCU | E16: =VLOOKUP($D$8,Datos_Prog!$B$23:$AP$61,11,FALSE) -> MOVILIADAD | G16: =VLOOKUP($D$8,Datos_Prog!$B$23:$AP$61,12,FALSE) -> 0 | I16: =VLOOKUP($D$8,Datos_Prog!$B$23:$AP$61,13,FALSE) -> 0 | K16: =(+D118) -> 0 | N16: =COUNTIF(B119:B120,">0") -> 0 | O16: =+O121 -> 0
C17: =VLOOKUP($D$8,Datos_Prog!$B$23:$AP$61,14,FALSE) -> 0 | E17: =VLOOKUP($D$8,Datos_Prog!$B$23:$AP$61,15,FALSE) -> 0 | G17: =VLOOKUP($D$8,Datos_Prog!$B$23:$AP$61,16,FALSE) -> 0 | K17: TOTALES | N17: =SUM(N12:N16) -> 17 | O17: =SUM(O12:O16) -> 605489401687
B20: INFORMACIÓN DE LA EJECUCIÓN FÍSICA
B22: Programa: | C22: =VLOOKUP($D$8,Datos_Prog!$B$23:$DZ$61,1,FALSE) -> 3.1. VÍA A LA COMPETITIVIDAD
B23: AÑO | C23: Programado | D23: Ac. Programado | E23: Ejecutado | F23: Ejec. Acumulado | G23: % Ejecutado | H23: Ejec. Mlls de $
B24: 2016 | C24: =VLOOKUP($D$8,Datos_Prog!$B$23:$DZ$61,96,FALSE) -> 0.5890642502 | D24: =+C24 -> 0.5890642502 | E24: =VLOOKUP($D$8,Datos_Prog!$B$23:$DZ$61,97,FALSE) -> 0.4844678749 | F24: =+E24 -> 0.4844678749 | G24: =IFERROR(+IF((E24/C24)<1, (E24/C24), 100%)," ") -> 0.8224363891 | H24: =+C24/$C$28 -> 0.1646027263
B25: 2017 | C25: =VLOOKUP($D$8,Datos_Prog!$B$23:$DZ$61,98,FALSE) -> 0.7964686846 | D25: =+D24+C25 -> 1.385532935 | E25: =VLOOKUP($D$8,Datos_Prog!$B$23:$DZ$61,99,FALSE) -> 0 | F25: =+F24+E25 -> 0.4844678749 | G25: =IFERROR(+IF((E25/C25)<1, (E25/C25), 100%)," ") -> 0
B26: 2018 | C26: =VLOOKUP($D$8,Datos_Prog!$B$23:$DZ$61,100,FALSE) -> 1.032279501 | D26: =+D25+C26 -> 2.417812436 | E26: =VLOOKUP($D$8,Datos_Prog!$B$23:$DZ$61,101,FALSE) -> 0 | F26: =+F25+E26 -> 0.4844678749 | G26: =IFERROR(+IF((E26/C26)<1, (E26/C26), 100%)," ") -> 0
B27: 2019 | C27: =VLOOKUP($D$8,Datos_Prog!$B$23:$DZ$61,102,FALSE) -> 1.160890441 | D27: =+D26+C27 -> 3.578702877 | E27: =VLOOKUP($D$8,Datos_Prog!$B$23:$DZ$61,103,FALSE) -> 0 | F27: =+F26+E27 -> 0.4844678749 | G27: =IFERROR(+IF((E27/C27)<1, (E27/C27), 100%)," ") -> 0
B28: CUATRIENIO | C28: =SUM(C24:C27) -> 3.578702877 | E28: =SUM(E24:E27) -> 0.4844678749 | G28: =IFERROR(+IF((E28/C28)<1, (E28/C28), 100%)," ") -> 0.1353752719
B30: LOGROS ALCANZADOS
B31: =UPPER(IFERROR(VLOOKUP($D$8,Datos_Prog!$B$23:$DZ$61,117,FALSE),"")) -> 
B32: =UPPER(IFERROR(VLOOKUP($D$8,Datos_Prog!$B$23:$DZ$61,118,FALSE),"")) -> 
B33: =UPPER(IFERROR(VLOOKUP($D$8,Datos_Prog!$B$23:$DZ$61,119,FALSE),"")) -> 
B34: =UPPER(IFERROR(VLOOKUP($D$8,Datos_Prog!$B$23:$DZ$61,120,FALSE),"")) -> 
B35: =UPPER(IFERROR(VLOOKUP($D$8,Datos_Prog!$B$23:$DZ$61,121,FALSE),"")) -> 
B36: =UPPER(IFERROR(VLOOKUP($D$8,Datos_Prog!$B$23:$DZ$61,122,FALSE),"")) -> 
B37: =UPPER(IFERROR(VLOOKUP($D$8,Datos_Prog!$B$23:$DZ$61,123,FALSE),"")) -> 
B38: =UPPER(IFERROR(VLOOKUP($D$8,Datos_Prog!$B$23:$DZ$61,124,FALSE),"")) -> 
B39: =UPPER(IFERROR(VLOOKUP($D$8,Datos_Prog!$B$23:$DZ$61,125,FALSE),"")) -> 
B40: =UPPER(IFERROR(VLOOKUP($D$8,Datos_Prog!$B$23:$DZ$61,126,FALSE),"")) -> 
B43: Sub-Programa: | D43: =VLOOKUP($D$8,Datos_Prog!$B$23:$DM$61,19,FALSE) -> 3.1.1. INFRAESTRUCTURA LOGISTICA Y DE TRANSPORTE | P43: Inicio
B44: No. META | C44: ENTIDAD | D44: NOMBRE DE META | L44: Línea Base | M44: Programado | N44: Meta 2019 | O44: V/Total
B45: =IFERROR(VLOOKUP($D$8,Datos_Prog!$B$23:$DM$61,20,FALSE)," ") -> 354 | C45: =IFERROR(VLOOKUP($B45,Datos_Producto!$D$4:$IP$531,2,FALSE)," ") -> ICCU | D45: =IFERROR(VLOOKUP($B45,Datos_Producto!$D$4:$IP$531,15,FALSE)," ") -> PARTICIPAR EN LOS PROCESOS DE ESTRUCTURACIÓN Y VIABILIZACIÓN DE LAS APP VIALES ALO Y PERIMETRAL DEL SUR. | L45: =IFERROR(VLOOKUP($B45,Datos_Producto!$D$4:$IP$531,19,FALSE)," ") -> 0 | M45: =IFERROR(VLOOKUP($B45,Datos_Producto!$D$4:$IP$531,20,FALSE)," ") -> 2 | N45: =IFERROR(VLOOKUP($B45,Datos_Producto!$D$4:$IP$531,21,FALSE)," ") ->  | O45: =IFERROR(VLOOKUP($B45,Datos_Producto!$D$4:$IP$531,196,FALSE)," ") -> 200000000
B46: =IFERROR(VLOOKUP($D$8,Datos_Prog!$B$23:$DM$61,21,FALSE)," ") -> 355 | C46: =IFERROR(VLOOKUP($B46,Datos_Producto!$D$6:$DZ$533,2,FALSE)," ") -> ICCU | D46: =IFERROR(VLOOKUP($B46,Datos_Producto!$D$4:$IP$531,15,FALSE)," ") -> MEJORAR 550 KM DE VÍAS DE PRIMER Y SEGUNDO ORDEN DURANTE EL PERIODO DE GOBIERNO. | L46: =IFERROR(VLOOKUP($B46,Datos_Producto!$D$4:$IP$531,19,FALSE)," ") -> 0 | M46: =IFERROR(VLOOKUP($B46,Datos_Producto!$D$4:$IP$531,20,FALSE)," ") -> 550 | N46: =IFERROR(VLOOKUP($B46,Datos_Producto!$D$4:$IP$531,21,FALSE)," ") ->  | O46: =IFERROR(VLOOKUP($B46,Datos_Producto!$D$4:$IP$531,196,FALSE)," ") -> 86683000000
B47: =IFERROR(VLOOKUP($D$8,Datos_Prog!$B$23:$DM$61,22,FALSE)," ") -> 356 | C47: =IFERROR(VLOOKUP($B47,Datos_Producto!$D$4:$IP$531,2,FALSE)," ") -> ICCU | D47: =IFERROR(VLOOKUP($B47,Datos_Producto!$D$4:$IP$531,15,FALSE)," ") -> REHABILITACIÓN Y MANTENIMIENTO PERIÓDICO DE 1.200 KM DE VÍAS DE SEGUNDO ORDEN DURANTE EL CUATRIENIO. | L47: =IFERROR(VLOOKUP($B47,Datos_Producto!$D$4:$IP$531,19,FALSE)," ") -> 901 | M47: =IFERROR(VLOOKUP($B47,Datos_Producto!$D$4:$IP$531,20,FALSE)," ") -> 1200 | N47: =IFERROR(VLOOKUP($B47,Datos_Producto!$D$4:$IP$531,21,FALSE)," ") ->  | O47: =IFERROR(VLOOKUP($B47,Datos_Producto!$D$4:$IP$531,196,FALSE)," ") -> 103853173898
B48: =IFERROR(VLOOKUP($D$8,Datos_Prog!$B$23:$DM$61,23,FALSE)," ") -> 357 | C48: =IFERROR(VLOOKUP($B48,Datos_Producto!$D$4:$IP$531,2,FALSE)," ") -> ICCU | D48: =IFERROR(VLOOKUP($B48,Datos_Producto!$D$4:$IP$531,15,FALSE)," ") -> REALIZAR MANTENIMIENTO RUTINARIO A 1.000 KM DE VÍAS DE SEGUNDO ORDEN DURANTE EL CUATRIENIO. | L48: =IFERROR(VLOOKUP($B48,Datos_Producto!$D$4:$IP$531,19,FALSE)," ") -> 0 | M48: =IFERROR(VLOOKUP($B48,Datos_Producto!$D$4:$IP$531,20,FALSE)," ") -> 1000 | N48: =IFERROR(VLOOKUP($B48,Datos_Producto!$D$4:$IP$531,21,FALSE)," ") ->  | O48: =IFERROR(VLOOKUP($B48,Datos_Producto!$D$4:$IP$531,196,FALSE)," ") -> 8000000000
B49: =IFERROR(VLOOKUP($D$8,Datos_Prog!$B$23:$DM$61,24,FALSE)," ") -> 358 | C49: =IFERROR(VLOOKUP($B49,Datos_Producto!$D$4:$IP$531,2,FALSE)," ") -> ICCU | D49: =IFERROR(VLOOKUP($B49,Datos_Producto!$D$4:$IP$531,15,FALSE)," ") -> REALIZAR MANTENIMIENTO PERIÓDICO A 6.000 KM DE VÍAS EN AFIRMADO DE SEGUNDO Y TERCER ORDEN DURANTE EL CUATRIENIO. | L49: =IFERROR(VLOOKUP($B49,Datos_Producto!$D$4:$IP$531,19,FALSE)," ") -> 0 | M49: =IFERROR(VLOOKUP($B49,Datos_Producto!$D$4:$IP$531,20,FALSE)," ") -> 6000 | N49: =IFERROR(VLOOKUP($B49,Datos_Producto!$D$4:$IP$531,21,FALSE)," ") ->  | O49: =IFERROR(VLOOKUP($B49,Datos_Producto!$D$4:$IP$531,196,FALSE)," ") -> 27000000000
B50: =IFERROR(VLOOKUP($D$8,Datos_Prog!$B$23:$DM$61,25,FALSE)," ") -> 359 | C50: =IFERROR(VLOOKUP($B50,Datos_Producto!$D$4:$IP$531,2,FALSE)," ") -> ICCU | D50: =IFERROR(VLOOKUP($B50,Datos_Producto!$D$4:$IP$531,15,FALSE)," ") -> CREAR E IMPLEMENTAR UN MODELO DE ATENCIÓN INTEGRAL Y PERMANENTE PARA EL MANTENIMIENTO DE LA RED VIAL DE SEGUNDO Y TERCER ORDEN. | L50: =IFERROR(VLOOKUP($B50,Datos_Producto!$D$4:$IP$531,19,FALSE)," ") -> 0 | M50: =IFERROR(VLOOKUP($B50,Datos_Producto!$D$4:$IP$531,20,FALSE)," ") -> 100 | N50: =IFERROR(VLOOKUP($B50,Datos_Producto!$D$4:$IP$531,21,FALSE)," ") ->  | O50: =IFERROR(VLOOKUP($B50,Datos_Producto!$D$4:$IP$531,196,FALSE)," ") -> 9250000000
B51: =IFERROR(VLOOKUP($D$8,Datos_Prog!$B$23:$DM$61,26,FALSE)," ") -> 360 | C51: =IFERROR(VLOOKUP($B51,Datos_Producto!$D$4:$IP$531,2,FALSE)," ") -> ICCU | D51: =IFERROR(VLOOKUP($B51,Datos_Producto!$D$4:$IP$531,15,FALSE)," ") -> MEJORAR 350.000 M2 DE VÍAS DE TERCER ORDEN DURANTE EL CUATRIENIO. | L51: =IFERROR(VLOOKUP($B51,Datos_Producto!$D$4:$IP$531,19,FALSE)," ") -> 714029 | M51: =IFERROR(VLOOKUP($B51,Datos_Producto!$D$4:$IP$531,20,FALSE)," ") -> 350000 | N51: =IFERROR(VLOOKUP($B51,Datos_Producto!$D$4:$IP$531,21,FALSE)," ") ->  | O51: =IFERROR(VLOOKUP($B51,Datos_Producto!$D$4:$IP$531,196,FALSE)," ") -> 45500000000
B52: =IFERROR(VLOOKUP($D$8,Datos_Prog!$B$23:$DM$61,27,FALSE)," ") -> 361 | C52: =IFERROR(VLOOKUP($B52,Datos_Producto!$D$4:$IP$531,2,FALSE)," ") -> ICCU | D52: =IFERROR(VLOOKUP($B52,Datos_Producto!$D$4:$IP$531,15,FALSE)," ") -> CONSTRUCCIÓN DE 20 ESTRUCTURAS DE PUENTES EN EL DEPARTAMENTO DENTRO DEL CUATRIENIO. | L52: =IFERROR(VLOOKUP($B52,Datos_Producto!$D$4:$IP$531,19,FALSE)," ") -> 0 | M52: =IFERROR(VLOOKUP($B52,Datos_Producto!$D$4:$IP$531,20,FALSE)," ") -> 20 | N52: =IFERROR(VLOOKUP($B52,Datos_Producto!$D$4:$IP$531,21,FALSE)," ") ->  | O52: =IFERROR(VLOOKUP($B52,Datos_Producto!$D$4:$IP$531,196,FALSE)," ") -> 3000000000
B53: =IFERROR(VLOOKUP($D$8,Datos_Prog!$B$23:$DM$61,28,FALSE)," ") -> 362 | C53: =IFERROR(VLOOKUP($B53,Datos_Producto!$D$4:$IP$531,2,FALSE)," ") -> ICCU | D53: =IFERROR(VLOOKUP($B53,Datos_Producto!$D$4:$IP$531,15,FALSE)," ") -> REHABILITACIÓN O MEJORAMIENTO O REPARACIÓN DE 50 ESTRUCTURAS DE PUENTES EN EL DEPARTAMENTO DENTRO DEL CUATRIENIO. | L53: =IFERROR(VLOOKUP($B53,Datos_Producto!$D$4:$IP$531,19,FALSE)," ") -> 172 | M53: =IFERROR(VLOOKUP($B53,Datos_Producto!$D$4:$IP$531,20,FALSE)," ") -> 50 | N53: =IFERROR(VLOOKUP($B53,Datos_Producto!$D$4:$IP$531,21,FALSE)," ") ->  | O53: =IFERROR(VLOOKUP($B53,Datos_Producto!$D$4:$IP$531,196,FALSE)," ") -> 17716000000
B54: =IFERROR(VLOOKUP($D$8,Datos_Prog!$B$23:$DM$61,29,FALSE)," ") -> 363 | C54: =IFERROR(VLOOKUP($B54,Datos_Producto!$D$4:$IP$531,2,FALSE)," ") -> ICCU | D54: =IFERROR(VLOOKUP($B54,Datos_Producto!$D$4:$IP$531,15,FALSE)," ") -> ATENDER EL 100% DE LAS EMERGENCIAS VIALES QUE SE PRESENTEN EN LAS VÍAS DEL DEPARTAMENTO. | L54: =IFERROR(VLOOKUP($B54,Datos_Producto!$D$4:$IP$531,19,FALSE)," ") -> 100 | M54: =IFERROR(VLOOKUP($B54,Datos_Producto!$D$4:$IP$531,20,FALSE)," ") -> 100 | N54: =IFERROR(VLOOKUP($B54,Datos_Producto!$D$4:$IP$531,21,FALSE)," ") ->  | O54: =IFERROR(VLOOKUP($B54,Datos_Producto!$D$4:$IP$531,196,FALSE)," ") -> 26000000000
B55: =IFERROR(VLOOKUP($D$8,Datos_Prog!$B$23:$DM$61,30,FALSE)," ") -> 364 | C55: =IFERROR(VLOOKUP($B55,Datos_Producto!$D$4:$IP$531,2,FALSE)," ") -> ICCU | D55: =IFERROR(VLOOKUP($B55,Datos_Producto!$D$4:$IP$531,15,FALSE)," ") -> EFECTUAR ANUALMENTE EL PAGO DE LAS GARANTÍAS COMERCIALES QUE SE CAUSEN EN LOS 3 CONTRATOS DE CONCESIÓN VIGENTES. | L55: =IFERROR(VLOOKUP($B55,Datos_Producto!$D$4:$IP$531,19,FALSE)," ") -> 3 | M55: =IFERROR(VLOOKUP($B55,Datos_Producto!$D$4:$IP$531,20,FALSE)," ") -> 3 | N55: =IFERROR(VLOOKUP($B55,Datos_Producto!$D$4:$IP$531,21,FALSE)," ") ->  | O55: =IFERROR(VLOOKUP($B55,Datos_Producto!$D$4:$IP$531,196,FALSE)," ") -> 241358000000
B56: =IFERROR(VLOOKUP($D$8,Datos_Prog!$B$23:$DM$61,31,FALSE)," ") -> 365 | C56: =IFERROR(VLOOKUP($B56,Datos_Producto!$D$4:$IP$531,2,FALSE)," ") -> SECRETARIA DE TRANSPORTE Y MOVILIDAD | D56: =IFERROR(VLOOKUP($B56,Datos_Producto!$D$4:$IP$531,15,FALSE)," ") -> DESARROLLAR EL 100% DE LAS ACCIONES ANUALES PARA EL AVANCE DE MACRO PROYECTOS DE TRANSPORTE MASIVO. | L56: =IFERROR(VLOOKUP($B56,Datos_Producto!$D$4:$IP$531,19,FALSE)," ") -> 0 | M56: =IFERROR(VLOOKUP($B56,Datos_Producto!$D$4:$IP$531,20,FALSE)," ") -> 100 | N56: =IFERROR(VLOOKUP($B56,Datos_Producto!$D$4:$IP$531,21,FALSE)," ") ->  | O56: =IFERROR(VLOOKUP($B56,Datos_Producto!$D$4:$IP$531,196,FALSE)," ") -> 8120000000
B57: =IFERROR(VLOOKUP($D$8,Datos_Prog!$B$23:$DM$61,32,FALSE)," ") -> 366 | C57: =IFERROR(VLOOKUP($B57,Datos_Producto!$D$4:$IP$531,2,FALSE)," ") -> SECRETARIA DE TRANSPORTE Y MOVILIDAD | D57: =IFERROR(VLOOKUP($B57,Datos_Producto!$D$4:$IP$531,15,FALSE)," ") -> CONTRIBUIR FINANCIERAMENTE CON LA CONSTRUCCIÓN DE LAS FASES II Y III DEL TRANSMILENIO A SOACHA. | L57: =IFERROR(VLOOKUP($B57,Datos_Producto!$D$4:$IP$531,19,FALSE)," ") -> 1 | M57: =IFERROR(VLOOKUP($B57,Datos_Producto!$D$4:$IP$531,20,FALSE)," ") -> 2 | N57: =IFERROR(VLOOKUP($B57,Datos_Producto!$D$4:$IP$531,21,FALSE)," ") ->  | O57: =IFERROR(VLOOKUP($B57,Datos_Producto!$D$4:$IP$531,196,FALSE)," ") -> 180000000
B58: =IFERROR(VLOOKUP($D$8,Datos_Prog!$B$23:$DM$61,33,FALSE)," ") -> 367 | C58: =IFERROR(VLOOKUP($B58,Datos_Producto!$D$4:$IP$531,2,FALSE)," ") -> SECRETARIA DE TRANSPORTE Y MOVILIDAD | D58: =IFERROR(VLOOKUP($B58,Datos_Producto!$D$4:$IP$531,15,FALSE)," ") -> IMPLEMENTAR LA PRIMERA FASE DEL SISTEMA INTEGRADO DE TRANSPORTE REGIONAL (INCLUYE DISEÑO). | L58: =IFERROR(VLOOKUP($B58,Datos_Producto!$D$4:$IP$531,19,FALSE)," ") -> 0 | M58: =IFERROR(VLOOKUP($B58,Datos_Producto!$D$4:$IP$531,20,FALSE)," ") -> 1 | N58: =IFERROR(VLOOKUP($B58,Datos_Producto!$D$4:$IP$531,21,FALSE)," ") ->  | O58: =IFERROR(VLOOKUP($B58,Datos_Producto!$D$4:$IP$531,196,FALSE)," ") -> 3300000000
B59: =IFERROR(VLOOKUP($D$8,Datos_Prog!$B$23:$DM$61,34,FALSE)," ") -> 0 | C59: =IFERROR(VLOOKUP($B59,Datos_Producto!$D$4:$IP$531,2,FALSE)," ") ->  | D59: =IFERROR(VLOOKUP($B59,Datos_Producto!$D$4:$IP$531,15,FALSE)," ") ->  | L59: =IFERROR(VLOOKUP($B59,Datos_Producto!$D$4:$IP$531,19,FALSE)," ") ->  | M59: =IFERROR(VLOOKUP($B59,Datos_Producto!$D$4:$IP$531,20,FALSE)," ") ->  | N59: =IFERROR(VLOOKUP($B59,Datos_Producto!$D$4:$IP$531,21,FALSE)," ") ->  | O59: =IFERROR(VLOOKUP($B59,Datos_Producto!$D$4:$IP$531,196,FALSE)," ") -> 
B60: =IFERROR(VLOOKUP($D$8,Datos_Prog!$B$23:$DM$61,35,FALSE)," ") -> 0 | C60: =IFERROR(VLOOKUP($B60,Datos_Producto!$D$4:$IP$531,2,FALSE)," ") ->  | D60: =IFERROR(VLOOKUP($B60,Datos_Producto!$D$4:$IP$531,15,FALSE)," ") ->  | L60: =IFERROR(VLOOKUP($B60,Datos_Producto!$D$4:$IP$531,19,FALSE)," ") ->  | M60: =IFERROR(VLOOKUP($B60,Datos_Producto!$D$4:$IP$531,20,FALSE)," ") ->  | N60: =IFERROR(VLOOKUP($B60,Datos_Producto!$D$4:$IP$531,21,FALSE)," ") ->  | O60: =IFERROR(VLOOKUP($B60,Datos_Producto!$D$4:$IP$531,196,FALSE)," ") -> 
B61: =IFERROR(VLOOKUP($D$8,Datos_Prog!$B$23:$DM$61,36,FALSE)," ") -> 0 | C61: =IFERROR(VLOOKUP($B61,Datos_Producto!$D$4:$IP$531,2,FALSE)," ") ->  | D61: =IFERROR(VLOOKUP($B61,Datos_Producto!$D$4:$IP$531,15,FALSE)," ") ->  | L61: =IFERROR(VLOOKUP($B61,Datos_Producto!$D$4:$IP$531,19,FALSE)," ") ->  | M61: =IFERROR(VLOOKUP($B61,Datos_Producto!$D$4:$IP$531,20,FALSE)," ") ->  | N61: =IFERROR(VLOOKUP($B61,Datos_Producto!$D$4:$IP$531,21,FALSE)," ") ->  | O61: =IFERROR(VLOOKUP($B61,Datos_Producto!$D$4:$IP$531,196,FALSE)," ") -> 
B62: Sub-Total | O62: =SUM(O45:O61) -> 580160173898
B63: No. META | C63: ENTIDAD | D63: NOMBRE DE META | L63: Línea Base | M63: Programado | N63: Meta 2019 | O63: V/Total
B64: Sub-Programa: | D64: =IFERROR(VLOOKUP($D$8,Datos_Prog!$B$23:$DGQ$61,38,FALSE)," ") -> 3.1.2. VIDAS SEGURAS | P64: Inicio
B65: =IFERROR(VLOOKUP($D$8,Datos_Prog!$B$23:$DM$61,39,FALSE)," ") -> 368 | C65: =IFERROR(VLOOKUP($B65,Datos_Producto!$D$4:$IP$531,2,FALSE)," ") -> SECRETARIA DE TRANSPORTE Y MOVILIDAD | D65: =IFERROR(VLOOKUP($B65,Datos_Producto!$D$4:$IP$531,15,FALSE)," ") -> CONECTAR 70 KM DE RED DE CICLO RUTAS Y SENDEROS PEATONALES EN EL DEPARTAMENTO. | L65: =IFERROR(VLOOKUP($B65,Datos_Producto!$D$4:$IP$531,19,FALSE)," ") -> 0 | M65: =IFERROR(VLOOKUP($B65,Datos_Producto!$D$4:$IP$531,20,FALSE)," ") -> 70 | N65: =IFERROR(VLOOKUP($B65,Datos_Producto!$D$4:$IP$531,21,FALSE)," ") ->  | O65: =IFERROR(VLOOKUP($B65,Datos_Producto!$D$4:$IP$531,196,FALSE)," ") -> 4420000000
B66: =IFERROR(VLOOKUP($D$8,Datos_Prog!$B$23:$DM$61,40,FALSE)," ") -> 369 | C66: =IFERROR(VLOOKUP($B66,Datos_Producto!$D$4:$IP$531,2,FALSE)," ") -> SECRETARIA DE TRANSPORTE Y MOVILIDAD | D66: =IFERROR(VLOOKUP($B66,Datos_Producto!$D$4:$IP$531,15,FALSE)," ") -> DISEÑAR Y EJECUTAR LA PRIMERA FASE DEL PLAN VIAL DEPARTAMENTAL. | L66: =IFERROR(VLOOKUP($B66,Datos_Producto!$D$4:$IP$531,19,FALSE)," ") -> 0 | M66: =IFERROR(VLOOKUP($B66,Datos_Producto!$D$4:$IP$531,20,FALSE)," ") -> 1 | N66: =IFERROR(VLOOKUP($B66,Datos_Producto!$D$4:$IP$531,21,FALSE)," ") ->  | O66: =IFERROR(VLOOKUP($B66,Datos_Producto!$D$4:$IP$531,196,FALSE)," ") -> 1409227789
B67: =IFERROR(VLOOKUP($D$8,Datos_Prog!$B$23:$DM$61,41,FALSE)," ") -> 370 | C67: =IFERROR(VLOOKUP($B67,Datos_Producto!$D$4:$IP$531,2,FALSE)," ") -> SECRETARIA DE TRANSPORTE Y MOVILIDAD | D67: =IFERROR(VLOOKUP($B67,Datos_Producto!$D$4:$IP$531,15,FALSE)," ") -> ADOPTAR Y EJECUTAR EL PLAN DEPARTAMENTAL DE SEGURIDAD VIAL. | L67: =IFERROR(VLOOKUP($B67,Datos_Producto!$D$4:$IP$531,19,FALSE)," ") -> 0 | M67: =IFERROR(VLOOKUP($B67,Datos_Producto!$D$4:$IP$531,20,FALSE)," ") -> 1 | N67: =IFERROR(VLOOKUP($B67,Datos_Producto!$D$4:$IP$531,21,FALSE)," ") ->  | O67: =IFERROR(VLOOKUP($B67,Datos_Producto!$D$4:$IP$531,196,FALSE)," ") -> 19500000000
B68: =IFERROR(VLOOKUP($D$8,Datos_Prog!$B$23:$DM$61,42,FALSE)," ") -> 0 | C68: =IFERROR(VLOOKUP($B68,Datos_Producto!$D$4:$IP$531,2,FALSE)," ") ->  | D68: =IFERROR(VLOOKUP($B68,Datos_Producto!$D$4:$IP$531,15,FALSE)," ") ->  | L68: =IFERROR(VLOOKUP($B68,Datos_Producto!$D$4:$IP$531,19,FALSE)," ") ->  | M68: =IFERROR(VLOOKUP($B68,Datos_Producto!$D$4:$IP$531,20,FALSE)," ") ->  | N68: =IFERROR(VLOOKUP($B68,Datos_Producto!$D$4:$IP$531,21,FALSE)," ") ->  | O68: =IFERROR(VLOOKUP($B68,Datos_Producto!$D$4:$IP$531,196,FALSE)," ") -> 
B69: =IFERROR(VLOOKUP($D$8,Datos_Prog!$B$23:$DM$61,43,FALSE)," ") -> 0 | C69: =IFERROR(VLOOKUP($B69,Datos_Producto!$D$4:$IP$531,2,FALSE)," ") ->  | D69: =IFERROR(VLOOKUP($B69,Datos_Producto!$D$4:$IP$531,15,FALSE)," ") ->  | L69: =IFERROR(VLOOKUP($B69,Datos_Producto!$D$4:$IP$531,19,FALSE)," ") ->  | M69: =IFERROR(VLOOKUP($B69,Datos_Producto!$D$4:$IP$531,20,FALSE)," ") ->  | N69: =IFERROR(VLOOKUP($B69,Datos_Producto!$D$4:$IP$531,21,FALSE)," ") ->  | O69: =IFERROR(VLOOKUP($B69,Datos_Producto!$D$4:$IP$531,196,FALSE)," ") -> 
B70: =IFERROR(VLOOKUP($D$8,Datos_Prog!$B$23:$DM$61,44,FALSE)," ") -> 0 | C70: =IFERROR(VLOOKUP($B70,Datos_Producto!$D$4:$IP$531,2,FALSE)," ") ->  | D70: =IFERROR(VLOOKUP($B70,Datos_Producto!$D$4:$IP$531,15,FALSE)," ") ->  | L70: =IFERROR(VLOOKUP($B70,Datos_Producto!$D$4:$IP$531,19,FALSE)," ") ->  | M70: =IFERROR(VLOOKUP($B70,Datos_Producto!$D$4:$IP$531,20,FALSE)," ") ->  | N70: =IFERROR(VLOOKUP($B70,Datos_Producto!$D$4:$IP$531,21,FALSE)," ") ->  | O70: =IFERROR(VLOOKUP($B70,Datos_Producto!$D$4:$IP$531,196,FALSE)," ") -> 
B71: =IFERROR(VLOOKUP($D$8,Datos_Prog!$B$23:$DM$61,45,FALSE)," ") -> 0 | C71: =IFERROR(VLOOKUP($B71,Datos_Producto!$D$4:$IP$531,2,FALSE)," ") ->  | D71: =IFERROR(VLOOKUP($B71,Datos_Producto!$D$4:$IP$531,15,FALSE)," ") ->  | L71: =IFERROR(VLOOKUP($B71,Datos_Producto!$D$4:$IP$531,19,FALSE)," ") ->  | M71: =IFERROR(VLOOKUP($B71,Datos_Producto!$D$4:$IP$531,20,FALSE)," ") ->  | N71: =IFERROR(VLOOKUP($B71,Datos_Producto!$D$4:$IP$531,21,FALSE)," ") ->  | O71: =IFERROR(VLOOKUP($B71,Datos_Producto!$D$4:$IP$531,196,FALSE)," ") -> 
B72: =IFERROR(VLOOKUP($D$8,Datos_Prog!$B$23:$DM$61,46,FALSE)," ") -> 0 | C72: =IFERROR(VLOOKUP($B72,Datos_Producto!$D$4:$IP$531,2,FALSE)," ") ->  | D72: =IFERROR(VLOOKUP($B72,Datos_Producto!$D$4:$IP$531,15,FALSE)," ") ->  | L72: =IFERROR(VLOOKUP($B72,Datos_Producto!$D$4:$IP$531,19,FALSE)," ") ->  | M72: =IFERROR(VLOOKUP($B72,Datos_Producto!$D$4:$IP$531,20,FALSE)," ") ->  | N72: =IFERROR(VLOOKUP($B72,Datos_Producto!$D$4:$IP$531,21,FALSE)," ") ->  | O72: =IFERROR(VLOOKUP($B72,Datos_Producto!$D$4:$IP$531,196,FALSE)," ") -> 
B73: =IFERROR(VLOOKUP($D$8,Datos_Prog!$B$23:$DM$61,47,FALSE)," ") -> 0 | C73: =IFERROR(VLOOKUP($B73,Datos_Producto!$D$4:$IP$531,2,FALSE)," ") ->  | D73: =IFERROR(VLOOKUP($B73,Datos_Producto!$D$4:$IP$531,15,FALSE)," ") ->  | L73: =IFERROR(VLOOKUP($B73,Datos_Producto!$D$4:$IP$531,19,FALSE)," ") ->  | M73: =IFERROR(VLOOKUP($B73,Datos_Producto!$D$4:$IP$531,20,FALSE)," ") ->  | N73: =IFERROR(VLOOKUP($B73,Datos_Producto!$D$4:$IP$531,21,FALSE)," ") ->  | O73: =IFERROR(VLOOKUP($B73,Datos_Producto!$D$4:$IP$531,196,FALSE)," ") -> 
B74: =IFERROR(VLOOKUP($D$8,Datos_Prog!$B$23:$DM$61,48,FALSE)," ") -> 0 | C74: =IFERROR(VLOOKUP($B74,Datos_Producto!$D$4:$IP$531,2,FALSE)," ") ->  | D74: =IFERROR(VLOOKUP($B74,Datos_Producto!$D$4:$IP$531,15,FALSE)," ") ->  | L74: =IFERROR(VLOOKUP($B74,Datos_Producto!$D$4:$IP$531,19,FALSE)," ") ->  | M74: =IFERROR(VLOOKUP($B74,Datos_Producto!$D$4:$IP$531,20,FALSE)," ") ->  | N74: =IFERROR(VLOOKUP($B74,Datos_Producto!$D$4:$IP$531,21,FALSE)," ") ->  | O74: =IFERROR(VLOOKUP($B74,Datos_Producto!$D$4:$IP$531,196,FALSE)," ") -> 
B75: =IFERROR(VLOOKUP($D$8,Datos_Prog!$B$23:$DM$61,49,FALSE)," ") -> 0 | C75: =IFERROR(VLOOKUP($B75,Datos_Producto!$D$4:$IP$531,2,FALSE)," ") ->  | D75: =IFERROR(VLOOKUP($B75,Datos_Producto!$D$4:$IP$531,15,FALSE)," ") ->  | L75: =IFERROR(VLOOKUP($B75,Datos_Producto!$D$4:$IP$531,19,FALSE)," ") ->  | M75: =IFERROR(VLOOKUP($B75,Datos_Producto!$D$4:$IP$531,20,FALSE)," ") ->  | N75: =IFERROR(VLOOKUP($B75,Datos_Producto!$D$4:$IP$531,21,FALSE)," ") ->  | O75: =IFERROR(VLOOKUP($B75,Datos_Producto!$D$4:$IP$531,196,FALSE)," ") -> 
B76: =IFERROR(VLOOKUP($D$8,Datos_Prog!$B$23:$DM$61,50,FALSE)," ") -> 0 | C76: =IFERROR(VLOOKUP($B76,Datos_Producto!$D$4:$IP$531,2,FALSE)," ") ->  | D76: =IFERROR(VLOOKUP($B76,Datos_Producto!$D$4:$IP$531,15,FALSE)," ") ->  | L76: =IFERROR(VLOOKUP($B76,Datos_Producto!$D$4:$IP$531,19,FALSE)," ") ->  | M76: =IFERROR(VLOOKUP($B76,Datos_Producto!$D$4:$IP$531,20,FALSE)," ") ->  | N76: =IFERROR(VLOOKUP($B76,Datos_Producto!$D$4:$IP$531,21,FALSE)," ") ->  | O76: =IFERROR(VLOOKUP($B76,Datos_Producto!$D$4:$IP$531,196,FALSE)," ") -> 
B77: =IFERROR(VLOOKUP($D$8,Datos_Prog!$B$23:$DM$61,51,FALSE)," ") -> 0 | C77: =IFERROR(VLOOKUP($B77,Datos_Producto!$D$4:$IP$531,2,FALSE)," ") ->  | D77: =IFERROR(VLOOKUP($B77,Datos_Producto!$D$4:$IP$531,15,FALSE)," ") ->  | L77: =IFERROR(VLOOKUP($B77,Datos_Producto!$D$4:$IP$531,19,FALSE)," ") ->  | M77: =IFERROR(VLOOKUP($B77,Datos_Producto!$D$4:$IP$531,20,FALSE)," ") ->  | N77: =IFERROR(VLOOKUP($B77,Datos_Producto!$D$4:$IP$531,21,FALSE)," ") ->  | O77: =IFERROR(VLOOKUP($B77,Datos_Producto!$D$4:$IP$531,196,FALSE)," ") -> 
B78: =IFERROR(VLOOKUP($D$8,Datos_Prog!$B$23:$DM$61,52,FALSE)," ") -> 0 | C78: =IFERROR(VLOOKUP($B78,Datos_Producto!$D$4:$IP$531,2,FALSE)," ") ->  | D78: =IFERROR(VLOOKUP($B78,Datos_Producto!$D$4:$IP$531,15,FALSE)," ") ->  | L78: =IFERROR(VLOOKUP($B78,Datos_Producto!$D$4:$IP$531,19,FALSE)," ") ->  | M78: =IFERROR(VLOOKUP($B78,Datos_Producto!$D$4:$IP$531,20,FALSE)," ") ->  | N78: =IFERROR(VLOOKUP($B78,Datos_Producto!$D$4:$IP$531,21,FALSE)," ") ->  | O78: =IFERROR(VLOOKUP($B78,Datos_Producto!$D$4:$IP$531,196,FALSE)," ") -> 
B79: =IFERROR(VLOOKUP($D$8,Datos_Prog!$B$23:$DM$61,53,FALSE)," ") -> 0 | C79: =IFERROR(VLOOKUP($B79,Datos_Producto!$D$4:$IP$531,2,FALSE)," ") ->  | D79: =IFERROR(VLOOKUP($B79,Datos_Producto!$D$4:$IP$531,15,FALSE)," ") ->  | L79: =IFERROR(VLOOKUP($B79,Datos_Producto!$D$4:$IP$531,19,FALSE)," ") ->  | M79: =IFERROR(VLOOKUP($B79,Datos_Producto!$D$4:$IP$531,20,FALSE)," ") ->  | N79: =IFERROR(VLOOKUP($B79,Datos_Producto!$D$4:$IP$531,21,FALSE)," ") ->  | O79: =IFERROR(VLOOKUP($B79,Datos_Producto!$D$4:$IP$531,196,FALSE)," ") -> 
B80: =IFERROR(VLOOKUP($D$8,Datos_Prog!$B$23:$DM$61,54,FALSE)," ") -> 0 | C80: =IFERROR(VLOOKUP($B80,Datos_Producto!$D$4:$IP$531,2,FALSE)," ") ->  | D80: =IFERROR(VLOOKUP($B80,Datos_Producto!$D$4:$IP$531,15,FALSE)," ") ->  | L80: =IFERROR(VLOOKUP($B80,Datos_Producto!$D$4:$IP$531,19,FALSE)," ") ->  | M80: =IFERROR(VLOOKUP($B80,Datos_Producto!$D$4:$IP$531,20,FALSE)," ") ->  | N80: =IFERROR(VLOOKUP($B80,Datos_Producto!$D$4:$IP$531,21,FALSE)," ") ->  | O80: =IFERROR(VLOOKUP($B80,Datos_Producto!$D$4:$IP$531,196,FALSE)," ") -> 
B81: =IFERROR(VLOOKUP($D$8,Datos_Prog!$B$23:$DM$61,55,FALSE)," ") -> 0 | C81: =IFERROR(VLOOKUP($B81,Datos_Producto!$D$4:$IP$531,2,FALSE)," ") ->  | D81: =IFERROR(VLOOKUP($B81,Datos_Producto!$D$4:$IP$531,15,FALSE)," ") ->  | L81: =IFERROR(VLOOKUP($B81,Datos_Producto!$D$4:$IP$531,19,FALSE)," ") ->  | M81: =IFERROR(VLOOKUP($B81,Datos_Producto!$D$4:$IP$531,20,FALSE)," ") ->  | N81: =IFERROR(VLOOKUP($B81,Datos_Producto!$D$4:$IP$531,21,FALSE)," ") ->  | O81: =IFERROR(VLOOKUP($B81,Datos_Producto!$D$4:$IP$531,196,FALSE)," ") -> 
B82: =IFERROR(VLOOKUP($D$8,Datos_Prog!$B$23:$DM$61,56,FALSE)," ") -> 0 | C82: =IFERROR(VLOOKUP($B82,Datos_Producto!$D$4:$IP$531,2,FALSE)," ") ->  | D82: =IFERROR(VLOOKUP($B82,Datos_Producto!$D$4:$IP$531,15,FALSE)," ") ->  | L82: =IFERROR(VLOOKUP($B82,Datos_Producto!$D$4:$IP$531,19,FALSE)," ") ->  | M82: =IFERROR(VLOOKUP($B82,Datos_Producto!$D$4:$IP$531,20,FALSE)," ") ->  | N82: =IFERROR(VLOOKUP($B82,Datos_Producto!$D$4:$IP$531,21,FALSE)," ") ->  | O82: =IFERROR(VLOOKUP($B82,Datos_Producto!$D$4:$IP$531,196,FALSE)," ") -> 
B83: =IFERROR(VLOOKUP($D$8,Datos_Prog!$B$23:$DM$61,57,FALSE)," ") -> 0 | C83: =IFERROR(VLOOKUP($B83,Datos_Producto!$D$4:$IP$531,2,FALSE)," ") ->  | D83: =IFERROR(VLOOKUP($B83,Datos_Producto!$D$4:$IP$531,15,FALSE)," ") ->  | L83: =IFERROR(VLOOKUP($B83,Datos_Producto!$D$4:$IP$531,19,FALSE)," ") ->  | M83: =IFERROR(VLOOKUP($B83,Datos_Producto!$D$4:$IP$531,20,FALSE)," ") ->  | N83: =IFERROR(VLOOKUP($B83,Datos_Producto!$D$4:$IP$531,21,FALSE)," ") ->  | O83: =IFERROR(VLOOKUP($B83,Datos_Producto!$D$4:$IP$531,196,FALSE)," ") -> 
B84: =IFERROR(VLOOKUP($D$8,Datos_Prog!$B$23:$DM$61,58,FALSE)," ") -> 0 | C84: =IFERROR(VLOOKUP($B84,Datos_Producto!$D$4:$IP$531,2,FALSE)," ") ->  | D84: =IFERROR(VLOOKUP($B84,Datos_Producto!$D$4:$IP$531,15,FALSE)," ") ->  | L84: =IFERROR(VLOOKUP($B84,Datos_Producto!$D$4:$IP$531,19,FALSE)," ") ->  | M84: =IFERROR(VLOOKUP($B84,Datos_Producto!$D$4:$IP$531,20,FALSE)," ") ->  | N84: =IFERROR(VLOOKUP($B84,Datos_Producto!$D$4:$IP$531,21,FALSE)," ") ->  | O84: =IFERROR(VLOOKUP($B84,Datos_Producto!$D$4:$IP$531,196,FALSE)," ") -> 
B85: =IFERROR(VLOOKUP($D$8,Datos_Prog!$B$23:$DM$61,59,FALSE)," ") -> 0 | C85: =IFERROR(VLOOKUP($B85,Datos_Producto!$D$4:$IP$531,2,FALSE)," ") ->  | D85: =IFERROR(VLOOKUP($B85,Datos_Producto!$D$4:$IP$531,15,FALSE)," ") ->  | L85: =IFERROR(VLOOKUP($B85,Datos_Producto!$D$4:$IP$531,19,FALSE)," ") ->  | M85: =IFERROR(VLOOKUP($B85,Datos_Producto!$D$4:$IP$531,20,FALSE)," ") ->  | N85: =IFERROR(VLOOKUP($B85,Datos_Producto!$D$4:$IP$531,21,FALSE)," ") ->  | O85: =IFERROR(VLOOKUP($B85,Datos_Producto!$D$4:$IP$531,196,FALSE)," ") -> 
B86: =IFERROR(VLOOKUP($D$8,Datos_Prog!$B$23:$DM$61,60,FALSE)," ") -> 0 | C86: =IFERROR(VLOOKUP($B86,Datos_Producto!$D$4:$IP$531,2,FALSE)," ") ->  | D86: =IFERROR(VLOOKUP($B86,Datos_Producto!$D$4:$IP$531,15,FALSE)," ") ->  | L86: =IFERROR(VLOOKUP($B86,Datos_Producto!$D$4:$IP$531,19,FALSE)," ") ->  | M86: =IFERROR(VLOOKUP($B86,Datos_Producto!$D$4:$IP$531,20,FALSE)," ") ->  | N86: =IFERROR(VLOOKUP($B86,Datos_Producto!$D$4:$IP$531,21,FALSE)," ") ->  | O86: =IFERROR(VLOOKUP($B86,Datos_Producto!$D$4:$IP$531,196,FALSE)," ") -> 
B87: =IFERROR(VLOOKUP($D$8,Datos_Prog!$B$23:$DM$61,62,FALSE)," ") -> 0 | C87: =IFERROR(VLOOKUP($B87,Datos_Producto!$D$4:$IP$531,2,FALSE)," ") ->  | D87: =IFERROR(VLOOKUP($B87,Datos_Producto!$D$4:$IP$531,15,FALSE)," ") ->  | L87: =IFERROR(VLOOKUP($B87,Datos_Producto!$D$4:$IP$531,19,FALSE)," ") ->  | M87: =IFERROR(VLOOKUP($B87,Datos_Producto!$D$4:$IP$531,20,FALSE)," ") ->  | N87: =IFERROR(VLOOKUP($B87,Datos_Producto!$D$4:$IP$531,21,FALSE)," ") ->  | O87: =IFERROR(VLOOKUP($B87,Datos_Producto!$D$4:$IP$531,196,FALSE)," ") -> 
B88: Sub-Total | O88: =SUM(O65:O87) -> 25329227789
B89: No. META | C89: ENTIDAD | D89: NOMBRE DE META | L89: Línea Base | M89: Programado | N89: Meta 2019 | O89: V/Total
B90: Sub-Programa: | D90: =VLOOKUP($D$8,Datos_Prog!$B$23:$DM$62,63,FALSE) -> 0 | P90: Inicio
B91: =IFERROR(VLOOKUP($D$8,Datos_Prog!$B$23:$DM$61,64,FALSE)," ") -> 0 | C91: =IFERROR(VLOOKUP($B91,Datos_Producto!$D$4:$IP$531,2,FALSE)," ") ->  | D91: =IFERROR(VLOOKUP($B91,Datos_Producto!$D$4:$IP$531,15,FALSE)," ") ->  | L91: =IFERROR(VLOOKUP($B91,Datos_Producto!$D$4:$IP$531,19,FALSE)," ") ->  | M91: =IFERROR(VLOOKUP($B91,Datos_Producto!$D$4:$IP$531,20,FALSE)," ") ->  | N91: =IFERROR(VLOOKUP($B91,Datos_Producto!$D$4:$IP$531,21,FALSE)," ") ->  | O91: =IFERROR(VLOOKUP($B91,Datos_Producto!$D$4:$IP$531,196,FALSE)," ") -> 
B92: =IFERROR(VLOOKUP($D$8,Datos_Prog!$B$23:$DM$61,65,FALSE)," ") -> 0 | C92: =IFERROR(VLOOKUP($B92,Datos_Producto!$D$4:$IP$531,2,FALSE)," ") ->  | D92: =IFERROR(VLOOKUP($B92,Datos_Producto!$D$4:$IP$531,15,FALSE)," ") ->  | L92: =IFERROR(VLOOKUP($B92,Datos_Producto!$D$4:$IP$531,19,FALSE)," ") ->  | M92: =IFERROR(VLOOKUP($B92,Datos_Producto!$D$4:$IP$531,20,FALSE)," ") ->  | N92: =IFERROR(VLOOKUP($B92,Datos_Producto!$D$4:$IP$531,21,FALSE)," ") ->  | O92: =IFERROR(VLOOKUP($B92,Datos_Producto!$D$4:$IP$531,196,FALSE)," ") -> 
B93: =IFERROR(VLOOKUP($D$8,Datos_Prog!$B$23:$DM$61,66,FALSE)," ") -> 0 | C93: =IFERROR(VLOOKUP($B93,Datos_Producto!$D$4:$IP$531,2,FALSE)," ") ->  | D93: =IFERROR(VLOOKUP($B93,Datos_Producto!$D$4:$IP$531,15,FALSE)," ") ->  | L93: =IFERROR(VLOOKUP($B93,Datos_Producto!$D$4:$IP$531,19,FALSE)," ") ->  | M93: =IFERROR(VLOOKUP($B93,Datos_Producto!$D$4:$IP$531,20,FALSE)," ") ->  | N93: =IFERROR(VLOOKUP($B93,Datos_Producto!$D$4:$IP$531,21,FALSE)," ") ->  | O93: =IFERROR(VLOOKUP($B93,Datos_Producto!$D$4:$IP$531,196,FALSE)," ") -> 
B94: =IFERROR(VLOOKUP($D$8,Datos_Prog!$B$23:$DM$61,67,FALSE)," ") -> 0 | C94: =IFERROR(VLOOKUP($B94,Datos_Producto!$D$4:$IP$531,2,FALSE)," ") ->  | D94: =IFERROR(VLOOKUP($B94,Datos_Producto!$D$4:$IP$531,15,FALSE)," ") ->  | L94: =IFERROR(VLOOKUP($B94,Datos_Producto!$D$4:$IP$531,19,FALSE)," ") ->  | M94: =IFERROR(VLOOKUP($B94,Datos_Producto!$D$4:$IP$531,20,FALSE)," ") ->  | N94: =IFERROR(VLOOKUP($B94,Datos_Producto!$D$4:$IP$531,21,FALSE)," ") ->  | O94: =IFERROR(VLOOKUP($B94,Datos_Producto!$D$4:$IP$531,196,FALSE)," ") -> 
B95: =IFERROR(VLOOKUP($D$8,Datos_Prog!$B$23:$DM$61,68,FALSE)," ") -> 0 | C95: =IFERROR(VLOOKUP($B95,Datos_Producto!$D$4:$IP$531,2,FALSE)," ") ->  | D95: =IFERROR(VLOOKUP($B95,Datos_Producto!$D$4:$IP$531,15,FALSE)," ") ->  | L95: =IFERROR(VLOOKUP($B95,Datos_Producto!$D$4:$IP$531,19,FALSE)," ") ->  | M95: =IFERROR(VLOOKUP($B95,Datos_Producto!$D$4:$IP$531,20,FALSE)," ") ->  | N95: =IFERROR(VLOOKUP($B95,Datos_Producto!$D$4:$IP$531,21,FALSE)," ") ->  | O95: =IFERROR(VLOOKUP($B95,Datos_Producto!$D$4:$IP$531,196,FALSE)," ") -> 
B96: =IFERROR(VLOOKUP($D$8,Datos_Prog!$B$23:$DM$61,69,FALSE)," ") -> 0 | C96: =IFERROR(VLOOKUP($B96,Datos_Producto!$D$4:$IP$531,2,FALSE)," ") ->  | D96: =IFERROR(VLOOKUP($B96,Datos_Producto!$D$4:$IP$531,15,FALSE)," ") ->  | L96: =IFERROR(VLOOKUP($B96,Datos_Producto!$D$4:$IP$531,19,FALSE)," ") ->  | M96: =IFERROR(VLOOKUP($B96,Datos_Producto!$D$4:$IP$531,20,FALSE)," ") ->  | N96: =IFERROR(VLOOKUP($B96,Datos_Producto!$D$4:$IP$531,21,FALSE)," ") ->  | O96: =IFERROR(VLOOKUP($B96,Datos_Producto!$D$4:$IP$531,196,FALSE)," ") -> 
B97: =IFERROR(VLOOKUP($D$8,Datos_Prog!$B$23:$DM$61,70,FALSE)," ") -> 0 | C97: =IFERROR(VLOOKUP($B97,Datos_Producto!$D$4:$IP$531,2,FALSE)," ") ->  | D97: =IFERROR(VLOOKUP($B97,Datos_Producto!$D$4:$IP$531,15,FALSE)," ") ->  | L97: =IFERROR(VLOOKUP($B97,Datos_Producto!$D$4:$IP$531,19,FALSE)," ") ->  | M97: =IFERROR(VLOOKUP($B97,Datos_Producto!$D$4:$IP$531,20,FALSE)," ") ->  | N97: =IFERROR(VLOOKUP($B97,Datos_Producto!$D$4:$IP$531,21,FALSE)," ") ->  | O97: =IFERROR(VLOOKUP($B97,Datos_Producto!$D$4:$IP$531,196,FALSE)," ") -> 
B98: =IFERROR(VLOOKUP($D$8,Datos_Prog!$B$23:$DM$61,71,FALSE)," ") -> 0 | C98: =IFERROR(VLOOKUP($B98,Datos_Producto!$D$4:$IP$531,2,FALSE)," ") ->  | D98: =IFERROR(VLOOKUP($B98,Datos_Producto!$D$4:$IP$531,15,FALSE)," ") ->  | L98: =IFERROR(VLOOKUP($B98,Datos_Producto!$D$4:$IP$531,19,FALSE)," ") ->  | M98: =IFERROR(VLOOKUP($B98,Datos_Producto!$D$4:$IP$531,20,FALSE)," ") ->  | N98: =IFERROR(VLOOKUP($B98,Datos_Producto!$D$4:$IP$531,21,FALSE)," ") ->  | O98: =IFERROR(VLOOKUP($B98,Datos_Producto!$D$4:$IP$531,196,FALSE)," ") -> 
B99: =IFERROR(VLOOKUP($D$8,Datos_Prog!$B$23:$DM$61,72,FALSE)," ") -> 0 | C99: =IFERROR(VLOOKUP($B99,Datos_Producto!$D$4:$IP$531,2,FALSE)," ") ->  | D99: =IFERROR(VLOOKUP($B99,Datos_Producto!$D$4:$IP$531,15,FALSE)," ") ->  | L99: =IFERROR(VLOOKUP($B99,Datos_Producto!$D$4:$IP$531,19,FALSE)," ") ->  | M99: =IFERROR(VLOOKUP($B99,Datos_Producto!$D$4:$IP$531,20,FALSE)," ") ->  | N99: =IFERROR(VLOOKUP($B99,Datos_Producto!$D$4:$IP$531,21,FALSE)," ") ->  | O99: =IFERROR(VLOOKUP($B99,Datos_Producto!$D$4:$IP$531,196,FALSE)," ") -> 
B100: =IFERROR(VLOOKUP($D$8,Datos_Prog!$B$23:$DM$61,73,FALSE)," ") -> 0 | C100: =IFERROR(VLOOKUP($B100,Datos_Producto!$D$4:$IP$531,2,FALSE)," ") ->  | D100: =IFERROR(VLOOKUP($B100,Datos_Producto!$D$4:$IP$531,15,FALSE)," ") ->  | L100: =IFERROR(VLOOKUP($B100,Datos_Producto!$D$4:$IP$531,19,FALSE)," ") ->  | M100: =IFERROR(VLOOKUP($B100,Datos_Producto!$D$4:$IP$531,20,FALSE)," ") ->  | N100: =IFERROR(VLOOKUP($B100,Datos_Producto!$D$4:$IP$531,21,FALSE)," ") ->  | O100: =IFERROR(VLOOKUP($B100,Datos_Producto!$D$4:$IP$531,196,FALSE)," ") -> 
B101: =IFERROR(VLOOKUP($D$8,Datos_Prog!$B$23:$DM$61,74,FALSE)," ") -> 0 | C101: =IFERROR(VLOOKUP($B101,Datos_Producto!$D$4:$IP$531,2,FALSE)," ") ->  | D101: =IFERROR(VLOOKUP($B101,Datos_Producto!$D$4:$IP$531,15,FALSE)," ") ->  | L101: =IFERROR(VLOOKUP($B101,Datos_Producto!$D$4:$IP$531,19,FALSE)," ") ->  | M101: =IFERROR(VLOOKUP($B101,Datos_Producto!$D$4:$IP$531,20,FALSE)," ") ->  | N101: =IFERROR(VLOOKUP($B101,Datos_Producto!$D$4:$IP$531,21,FALSE)," ") ->  | O101: =IFERROR(VLOOKUP($B101,Datos_Producto!$D$4:$IP$531,196,FALSE)," ") -> 
B102: =IFERROR(VLOOKUP($D$8,Datos_Prog!$B$23:$DM$61,75,FALSE)," ") -> 0 | C102: =IFERROR(VLOOKUP($B102,Datos_Producto!$D$4:$IP$531,2,FALSE)," ") ->  | D102: =IFERROR(VLOOKUP($B102,Datos_Producto!$D$4:$IP$531,15,FALSE)," ") ->  | L102: =IFERROR(VLOOKUP($B102,Datos_Producto!$D$4:$IP$531,19,FALSE)," ") ->  | M102: =IFERROR(VLOOKUP($B102,Datos_Producto!$D$4:$IP$531,20,FALSE)," ") ->  | N102: =IFERROR(VLOOKUP($B102,Datos_Producto!$D$4:$IP$531,21,FALSE)," ") ->  | O102: =IFERROR(VLOOKUP($B102,Datos_Producto!$D$4:$IP$531,196,FALSE)," ") -> 
B103: =IFERROR(VLOOKUP($D$8,Datos_Prog!$B$23:$DM$61,76,FALSE)," ") -> 0 | C103: =IFERROR(VLOOKUP($B103,Datos_Producto!$D$4:$IP$531,2,FALSE)," ") ->  | D103: =IFERROR(VLOOKUP($B103,Datos_Producto!$D$4:$IP$531,15,FALSE)," ") ->  | L103: =IFERROR(VLOOKUP($B103,Datos_Producto!$D$4:$IP$531,19,FALSE)," ") ->  | M103: =IFERROR(VLOOKUP($B103,Datos_Producto!$D$4:$IP$531,20,FALSE)," ") ->  | N103: =IFERROR(VLOOKUP($B103,Datos_Producto!$D$4:$IP$531,21,FALSE)," ") ->  | O103: =IFERROR(VLOOKUP($B103,Datos_Producto!$D$4:$IP$531,196,FALSE)," ") -> 
B104: =IFERROR(VLOOKUP($D$8,Datos_Prog!$B$23:$DM$61,77,FALSE)," ") -> 0 | C104: =IFERROR(VLOOKUP($B104,Datos_Producto!$D$4:$IP$531,2,FALSE)," ") ->  | D104: =IFERROR(VLOOKUP($B104,Datos_Producto!$D$4:$IP$531,15,FALSE)," ") ->  | L104: =IFERROR(VLOOKUP($B104,Datos_Producto!$D$4:$IP$531,19,FALSE)," ") ->  | M104: =IFERROR(VLOOKUP($B104,Datos_Producto!$D$4:$IP$531,20,FALSE)," ") ->  | N104: =IFERROR(VLOOKUP($B104,Datos_Producto!$D$4:$IP$531,21,FALSE)," ") ->  | O104: =IFERROR(VLOOKUP($B104,Datos_Producto!$D$4:$IP$531,196,FALSE)," ") -> 
B105: Sub-Total | O105: =SUM(O91:O104) -> 0
B106: No. META | C106: ENTIDAD | D106: NOMBRE DE META | L106: Línea Base | M106: Programado | N106: Meta 2019 | O106: V/Total
B107: Sub-Programa: | D107: =VLOOKUP($D$8,Datos_Prog!$B$23:$DM$61,78,FALSE) -> 0
B108: =IFERROR(VLOOKUP($D$8,Datos_Prog!$B$23:$DM$61,79,FALSE)," ") -> 0 | C108: =IFERROR(VLOOKUP($B108,Datos_Producto!$D$4:$IP$531,2,FALSE)," ") ->  | D108: =IFERROR(VLOOKUP($B108,Datos_Producto!$D$4:$IP$531,15,FALSE)," ") ->  | L108: =IFERROR(VLOOKUP($B108,Datos_Producto!$D$4:$IP$531,19,FALSE)," ") ->  | M108: =IFERROR(VLOOKUP($B108,Datos_Producto!$D$4:$IP$531,20,FALSE)," ") ->  | N108: =IFERROR(VLOOKUP($B108,Datos_Producto!$D$4:$IP$531,21,FALSE)," ") ->  | O108: =IFERROR(VLOOKUP($B108,Datos_Producto!$D$4:$IP$531,196,FALSE)," ") -> 
B109: =IFERROR(VLOOKUP($D$8,Datos_Prog!$B$23:$DM$61,80,FALSE)," ") -> 0 | C109: =IFERROR(VLOOKUP($B109,Datos_Producto!$D$4:$IP$531,2,FALSE)," ") ->  | D109: =IFERROR(VLOOKUP($B109,Datos_Producto!$D$4:$IP$531,15,FALSE)," ") ->  | L109: =IFERROR(VLOOKUP($B109,Datos_Producto!$D$4:$IP$531,19,FALSE)," ") ->  | M109: =IFERROR(VLOOKUP($B109,Datos_Producto!$D$4:$IP$531,20,FALSE)," ") ->  | N109: =IFERROR(VLOOKUP($B109,Datos_Producto!$D$4:$IP$531,21,FALSE)," ") ->  | O109: =IFERROR(VLOOKUP($B109,Datos_Producto!$D$4:$IP$531,196,FALSE)," ") -> 
B110: =IFERROR(VLOOKUP($D$8,Datos_Prog!$B$23:$DM$61,81,FALSE)," ") -> 0 | C110: =IFERROR(VLOOKUP($B110,Datos_Producto!$D$4:$IP$531,2,FALSE)," ") ->  | D110: =IFERROR(VLOOKUP($B110,Datos_Producto!$D$4:$IP$531,15,FALSE)," ") ->  | L110: =IFERROR(VLOOKUP($B110,Datos_Producto!$D$4:$IP$531,19,FALSE)," ") ->  | M110: =IFERROR(VLOOKUP($B110,Datos_Producto!$D$4:$IP$531,20,FALSE)," ") ->  | N110: =IFERROR(VLOOKUP($B110,Datos_Producto!$D$4:$IP$531,21,FALSE)," ") ->  | O110: =IFERROR(VLOOKUP($B110,Datos_Producto!$D$4:$IP$531,196,FALSE)," ") -> 
B111: =IFERROR(VLOOKUP($D$8,Datos_Prog!$B$23:$DM$61,82,FALSE)," ") -> 0 | C111: =IFERROR(VLOOKUP($B111,Datos_Producto!$D$4:$IP$531,2,FALSE)," ") ->  | D111: =IFERROR(VLOOKUP($B111,Datos_Producto!$D$4:$IP$531,15,FALSE)," ") ->  | L111: =IFERROR(VLOOKUP($B111,Datos_Producto!$D$4:$IP$531,19,FALSE)," ") ->  | M111: =IFERROR(VLOOKUP($B111,Datos_Producto!$D$4:$IP$531,20,FALSE)," ") ->  | N111: =IFERROR(VLOOKUP($B111,Datos_Producto!$D$4:$IP$531,21,FALSE)," ") ->  | O111: =IFERROR(VLOOKUP($B111,Datos_Producto!$D$4:$IP$531,196,FALSE)," ") -> 
B112: =IFERROR(VLOOKUP($D$8,Datos_Prog!$B$23:$DM$61,83,FALSE)," ") -> 0 | C112: =IFERROR(VLOOKUP($B112,Datos_Producto!$D$4:$IP$531,2,FALSE)," ") ->  | D112: =IFERROR(VLOOKUP($B112,Datos_Producto!$D$4:$IP$531,15,FALSE)," ") ->  | L112: =IFERROR(VLOOKUP($B112,Datos_Producto!$D$4:$IP$531,19,FALSE)," ") ->  | M112: =IFERROR(VLOOKUP($B112,Datos_Producto!$D$4:$IP$531,20,FALSE)," ") ->  | N112: =IFERROR(VLOOKUP($B112,Datos_Producto!$D$4:$IP$531,21,FALSE)," ") ->  | O112: =IFERROR(VLOOKUP($B112,Datos_Producto!$D$4:$IP$531,196,FALSE)," ") -> 
B113: =IFERROR(VLOOKUP($D$8,Datos_Prog!$B$23:$DM$61,84,FALSE)," ") -> 0 | C113: =IFERROR(VLOOKUP($B113,Datos_Producto!$D$4:$IP$531,2,FALSE)," ") ->  | D113: =IFERROR(VLOOKUP($B113,Datos_Producto!$D$4:$IP$531,15,FALSE)," ") ->  | L113: =IFERROR(VLOOKUP($B113,Datos_Producto!$D$4:$IP$531,19,FALSE)," ") ->  | M113: =IFERROR(VLOOKUP($B113,Datos_Producto!$D$4:$IP$531,20,FALSE)," ") ->  | N113: =IFERROR(VLOOKUP($B113,Datos_Producto!$D$4:$IP$531,21,FALSE)," ") ->  | O113: =IFERROR(VLOOKUP($B1181,Datos_Producto!$D$4:$IP$531,196,FALSE)," ") -> 
B114: =IFERROR(VLOOKUP($D$8,Datos_Prog!$B$23:$DM$61,85,FALSE)," ") -> 0 | C114: =IFERROR(VLOOKUP($B114,Datos_Producto!$D$4:$IP$531,2,FALSE)," ") ->  | D114: =IFERROR(VLOOKUP($B114,Datos_Producto!$D$4:$IP$531,15,FALSE)," ") ->  | L114: =IFERROR(VLOOKUP($B114,Datos_Producto!$D$4:$IP$531,19,FALSE)," ") ->  | M114: =IFERROR(VLOOKUP($B114,Datos_Producto!$D$4:$IP$531,20,FALSE)," ") ->  | N114: =IFERROR(VLOOKUP($B114,Datos_Producto!$D$4:$IP$531,21,FALSE)," ") ->  | O114: =IFERROR(VLOOKUP($B114,Datos_Producto!$D$4:$IP$531,196,FALSE)," ") -> 
B115: =IFERROR(VLOOKUP($D$8,Datos_Prog!$B$23:$DM$61,86,FALSE)," ") -> 0 | C115: =IFERROR(VLOOKUP($B115,Datos_Producto!$D$4:$IP$531,2,FALSE)," ") ->  | D115: =IFERROR(VLOOKUP($B115,Datos_Producto!$D$4:$IP$531,15,FALSE)," ") ->  | L115: =IFERROR(VLOOKUP($B115,Datos_Producto!$D$4:$IP$531,19,FALSE)," ") ->  | M115: =IFERROR(VLOOKUP($B115,Datos_Producto!$D$4:$IP$531,20,FALSE)," ") ->  | N115: =IFERROR(VLOOKUP($B115,Datos_Producto!$D$4:$IP$531,21,FALSE)," ") ->  | O115: =IFERROR(VLOOKUP($B115,Datos_Producto!$D$4:$IP$531,196,FALSE)," ") -> 
B116: Sub-Total | O116: =SUM(O108:O115) -> 0
B117: No. META | C117: ENTIDAD | D117: NOMBRE DE META | L117: Línea Base | M117: Programado | N117: Meta 2019 | O117: V/Total
B118: Sub-Programa: | D118: =VLOOKUP($D$8,Datos_Prog!$B$23:$DM$61,88,FALSE) -> 0 | P118: Inicio
B119: =IFERROR(VLOOKUP($D$8,Datos_Prog!$B$23:$DM$61,89,FALSE)," ") -> 0 | C119: =IFERROR(VLOOKUP($B119,Datos_Producto!$D$4:$IP$531,2,FALSE)," ") ->  | D119: =IFERROR(VLOOKUP($B119,Datos_Producto!$D$4:$IP$531,15,FALSE)," ") ->  | L119: =IFERROR(VLOOKUP($B119,Datos_Producto!$D$4:$IP$531,19,FALSE)," ") ->  | M119: =IFERROR(VLOOKUP($B119,Datos_Producto!$D$4:$IP$531,20,FALSE)," ") ->  | N119: =IFERROR(VLOOKUP($B119,Datos_Producto!$D$4:$IP$531,21,FALSE)," ") ->  | O119: =IFERROR(VLOOKUP($B119,Datos_Producto!$D$4:$IP$531,196,FALSE)," ") -> 
B121: Sub-Total | C121: =IFERROR(VLOOKUP($B121,Datos_Producto!$D$4:$IP$531,2,FALSE)," ") ->  | D121: =IFERROR(VLOOKUP($B121,Datos_Producto!$D$4:$IP$531,15,FALSE)," ") ->  | L121: =IFERROR(VLOOKUP($B121,Datos_Producto!$D$4:$IP$531,19,FALSE)," ") ->  | M121: =IFERROR(VLOOKUP($B121,Datos_Producto!$D$4:$IP$531,20,FALSE)," ") ->  | N121: =IFERROR(VLOOKUP($B121,Datos_Producto!$D$4:$IP$531,21,FALSE)," ") ->  | O121: =SUM(O119:O120) -> 0

Sheet Entidades
B1: DEPARTAMENTO DE CUNDINAMARCA
B2: SECRETARIA DE PLANEACIÓN
C8: Entidad: | E8: SECRETARIA DE PLANEACIÓN
B11: INFORMACIÓN DE LA EJECUCIÓN FÍSICA | R11: Volver
B12: AÑO | C12: Programado | D12: Prog. Acumulado | E12: Ejecutado | F12: Ejec. Acumulado | G12: % Ejecutado | P12: $ Programados Cuatrienio
B13: 2016 | C13: =VLOOKUP($E$8,Datos_Prog!$B$117:$L$147,3,FALSE) -> 0.6144717354 | D13: =+C13 -> 0.6144717354 | E13: =VLOOKUP($E$8,Datos_Prog!$B$117:$L$147,4,FALSE) -> 0.5073183289 | F13: =+E13 -> 0.5073183289 | G13: =IFERROR(+IF((E13/C13)<1, (E13/C13), 100%)," ") -> 0.8256170294
B14: 2017 | C14: =VLOOKUP($E$8,Datos_Prog!$B$117:$L$147,5,FALSE) -> 1.949555542 | D14: =+D13+C14 -> 2.564027278 | E14: =VLOOKUP($E$8,Datos_Prog!$B$117:$L$147,6,FALSE) -> 0 | F14: =+F13+E14 -> 0.5073183289 | G14: =IFERROR(+IF((E14/C14)<1, (E14/C14), 100%)," ") -> 0
B15: 2018 | C15: =VLOOKUP($E$8,Datos_Prog!$B$117:$L$147,7,FALSE) -> 1.617193152 | D15: =+D14+C15 -> 4.181220429 | E15: =VLOOKUP($E$8,Datos_Prog!$B$117:$L$147,8,FALSE) -> 0 | F15: =+F14+E15 -> 0.5073183289 | G15: =IFERROR(+IF((E15/C15)<1, (E15/C15), 100%)," ") -> 0
B16: 2019 | C16: =VLOOKUP($E$8,Datos_Prog!$B$117:$L$147,9,FALSE) -> 1.052004486 | D16: =+D15+C16 -> 5.233224915 | E16: =VLOOKUP($E$8,Datos_Prog!$B$117:$L$147,10,FALSE) -> 0 | F16: =+F15+E16 -> 0.5073183289 | G16: =IFERROR(+IF((E16/C16)<1, (E16/C16), 100%)," ") -> 0
B17: CUATRIENIO | C17: =SUM(C13:C16) -> 5.233224915 | E17: =SUM(E13:E16) -> 0.5073183289 | G17: =IFERROR(+IF((E17/C17)<1, (E17/C17), 100%)," ") -> 0.09694181639
H18: =IFERROR(+IF((#REF!/#REF!)<1, (#REF!/#REF!), 100%)," ") -> 
A19: SEMAFORIZACIÓN DE METAS
B20: =VLOOKUP($E$8,Datos_Prog!$B$162:$C$193,2,FALSE) -> PLANEACION.
B21: Ejecución >= 90% | D21: =COUNTIF($Q$32:$Q$90,">=90%") -> 11
B22: Ejecución >= 60% y < 90% | D22: =COUNTIFS(Q32:Q90,"<90%",Q32:Q90,">=60%") -> 1
B23: Ejecución < 60% | D23: =COUNTIF($Q$32:$Q$90,"<60%") -> 4
B24: Sin Programar | D24: =COUNTIF($R$32:$R$90,"=1") -> 14
B25: TOTAL DE METAS | D25: =SUM(D21:D24) -> 30
B29: EJECUCIÓN DE METAS
B31: No. META | C31: NOMBRE | M31: V/Inicial | N31: Progr. | O31: Progr.16 | P31: Ejecutado | Q31: % EJEC.
B32: =HLOOKUP($B$20,Datos_Producto!$H$538:$AL$597,2,FALSE) -> 160 | C32: =IFERROR(VLOOKUP($B32,Datos_Producto!$D$4:$IP$531,15,FALSE)," ") -> ADOPTAR LAS DIRECTRICES DE ORDENAMIENTO TERRITORIAL DEPARTAMENTAL DURANTE EL PERIODO DE GOBIERNO. | M32: =IFERROR(VLOOKUP($B32,Datos_Producto!$D$4:IO530,19,FALSE), " ") -> 0 | N32: =IFERROR(VLOOKUP($B32,Datos_Producto!$D$4:IP530,20,FALSE), " ") -> 1 | O32: =IFERROR(VLOOKUP($B32,Datos_Producto!$D$4:IQ530,52,FALSE), " ") -> 0 | P32: =IFERROR(VLOOKUP($B32,Datos_Producto!$D$4:IQ530,54,FALSE), " ") -> 0 | Q32: =IFERROR(IF((P32/O32)<1,(P32/O32),1),"") ->  | R32: =+IF(AND(C32>0,O32=0),"1","") -> 1
B33: =HLOOKUP($B$20,Datos_Producto!$H$538:$AL$597,3,FALSE) -> 161 | C33: =IFERROR(VLOOKUP(B33,Datos_Producto!$D$4:$IP$531,15,FALSE)," ") -> CONSTRUIR LA PROPUESTA DEL PLAN DE ORDENAMIENTO TERRITORIAL DEPARTAMENTAL - POTD - DURANTE EL PERIODO DE GOBIERNO. | M33: =IFERROR(VLOOKUP($B33,Datos_Producto!$D$4:IO531,19,FALSE), " ") -> 0 | N33: =IFERROR(VLOOKUP($B33,Datos_Producto!$D$4:IP531,20,FALSE), " ") -> 1 | O33: =IFERROR(VLOOKUP($B33,Datos_Producto!$D$4:IQ531,52,FALSE), " ") -> 0 | P33: =IFERROR(VLOOKUP($B33,Datos_Producto!$D$4:IQ531,54,FALSE), " ") -> 0 | Q33: =IFERROR(IF((P33/O33)<1,(P33/O33),1),"") ->  | R33: =+IF(AND(C33>0,O33=0),"1","") -> 1
B34: =HLOOKUP($B$20,Datos_Producto!$H$538:$AL$597,4,FALSE) -> 162 | C34: =IFERROR(VLOOKUP(B34,Datos_Producto!$D$4:$IP$531,15,FALSE)," ") -> PROMOVER UN ESQUEMA CON DETERMINANTES AMBIENTALES ARMONIZADAS ENTRE LAS 3 AUTORIDADES AMBIENTALES, EN EL CUATRIENIO. | M34: =IFERROR(VLOOKUP($B34,Datos_Producto!$D$4:IO532,19,FALSE), " ") -> 0 | N34: =IFERROR(VLOOKUP($B34,Datos_Producto!$D$4:IP532,20,FALSE), " ") -> 1 | O34: =IFERROR(VLOOKUP($B34,Datos_Producto!$D$4:IQ532,52,FALSE), " ") -> 0 | P34: =IFERROR(VLOOKUP($B34,Datos_Producto!$D$4:IQ532,54,FALSE), " ") -> 0 | R34: 1
B35: =HLOOKUP($B$20,Datos_Producto!$H$538:$AL$597,5,FALSE) -> 163 | C35: =IFERROR(VLOOKUP(B35,Datos_Producto!$D$4:$IP$531,15,FALSE)," ") -> APOYAR DURANTE EL CUATRIENIO LA REALIZACIÓN DE LOS ESTUDIOS DE AMENAZA Y RIESGO PARA INCORPORACIÓN EN LOS POT DE 643.543 HECTÁREAS UBICADAS EN LOS MUNICIPIOS QUE NO CUENTAN CON DICHOS ESTUDIOS. | M35: =IFERROR(VLOOKUP($B35,Datos_Producto!$D$4:IO533,19,FALSE), " ") -> 0 | N35: =IFERROR(VLOOKUP($B35,Datos_Producto!$D$4:IP533,20,FALSE), " ") -> 643543 | O35: =IFERROR(VLOOKUP($B35,Datos_Producto!$D$4:IQ533,52,FALSE), " ") -> 148762 | P35: =IFERROR(VLOOKUP($B35,Datos_Producto!$D$4:IQ533,54,FALSE), " ") -> 108000 | Q35: 0.7259918528
B36: =HLOOKUP($B$20,Datos_Producto!$H$538:$AL$597,6,FALSE) -> 164 | C36: =IFERROR(VLOOKUP(B36,Datos_Producto!$D$4:$IP$531,15,FALSE)," ") -> FORTALECER TÉCNICAMENTE A LOS 116 MUNICIPIOS DE CUNDINAMARCA PARA LA INCLUSIÓN DE LAS DIRECTRICES DE ORDENAMIENTO TERRITORIAL DEPARTAMENTAL EN SUS INSTRUMENTOS DE PLANIFICACIÓN TERRITORIAL DURANTE EL CUATRIENIO. | M36: =IFERROR(VLOOKUP($B36,Datos_Producto!$D$4:IO534,19,FALSE), " ") -> 0 | N36: =IFERROR(VLOOKUP($B36,Datos_Producto!$D$4:IP534,20,FALSE), " ") -> 116 | O36: =IFERROR(VLOOKUP($B36,Datos_Producto!$D$4:IQ534,52,FALSE), " ") -> 0 | P36: =IFERROR(VLOOKUP($B36,Datos_Producto!$D$4:IQ534,54,FALSE), " ") -> 0 | R36: 1
B37: =HLOOKUP($B$20,Datos_Producto!$H$538:$AL$597,7,FALSE) -> 165 | C37: =IFERROR(VLOOKUP(B37,Datos_Producto!$D$4:$IP$531,15,FALSE)," ") -> FORTALECER DURANTE EL PERIODO DE GOBIERNO A 113 ENTES TERRITORIALES DEL DEPARTAMENTO, EN LOS PROCESOS DE REVISIÓN Y AJUSTE DE SUS POT, PBOT Y EOT, CON PRIORIDAD EN LOS 37 MUNICIPIOS QUE CUENTAN CON ESTUDIOS DE AMENAZA Y RIESGO Y LOS QUE SE ENCUENTRAN DENTRO DE LA CUENCA DEL RÍO BOGOTÁ. | M37: =IFERROR(VLOOKUP($B37,Datos_Producto!$D$4:IO535,19,FALSE), " ") -> 3 | N37: =IFERROR(VLOOKUP($B37,Datos_Producto!$D$4:IP535,20,FALSE), " ") -> 113 | O37: =IFERROR(VLOOKUP($B37,Datos_Producto!$D$4:IQ535,52,FALSE), " ") -> 41 | P37: =IFERROR(VLOOKUP($B37,Datos_Producto!$D$4:IQ535,54,FALSE), " ") -> 37 | Q37: 0.9024390244
B38: =HLOOKUP($B$20,Datos_Producto!$H$538:$AL$597,8,FALSE) -> 166 | C38: =IFERROR(VLOOKUP(B38,Datos_Producto!$D$4:$IP$531,15,FALSE)," ") -> OBTENER EL 100% DE LA CARTOGRAFÍA BÁSICA DEL DEPARTAMENTO DE CUNDINAMARCA EN EL CUATRIENIO. | M38: =IFERROR(VLOOKUP($B38,Datos_Producto!$D$4:IO536,19,FALSE), " ") -> 70 | N38: =IFERROR(VLOOKUP($B38,Datos_Producto!$D$4:IP536,20,FALSE), " ") -> 30 | O38: =IFERROR(VLOOKUP($B38,Datos_Producto!$D$4:IQ536,52,FALSE), " ") -> 0 | P38: =IFERROR(VLOOKUP($B38,Datos_Producto!$D$4:IQ536,54,FALSE), " ") -> 0 | R38: 1
B39: =HLOOKUP($B$20,Datos_Producto!$H$538:$AL$597,9,FALSE) -> 167 | C39: =IFERROR(VLOOKUP(B39,Datos_Producto!$D$4:$IP$531,15,FALSE)," ") -> ACTUALIZAR EL 100% DEL SISTEMA DE INFORMACIÓN GEOGRÁFICO REGIONAL SIGR, CON LAS COBERTURAS TEMÁTICAS DISPONIBLES EN EL CUATRIENIO. | M39: =IFERROR(VLOOKUP($B39,Datos_Producto!$D$4:IO537,19,FALSE), " ") -> 30 | N39: =IFERROR(VLOOKUP($B39,Datos_Producto!$D$4:IP537,20,FALSE), " ") -> 70 | O39: =IFERROR(VLOOKUP($B39,Datos_Producto!$D$4:IQ537,52,FALSE), " ") -> 10 | P39: =IFERROR(VLOOKUP($B39,Datos_Producto!$D$4:IQ537,54,FALSE), " ") -> 10 | Q39: 1
B40: =HLOOKUP($B$20,Datos_Producto!$H$538:$AL$597,10,FALSE) -> 168 | C40: =IFERROR(VLOOKUP(B40,Datos_Producto!$D$4:$IP$531,15,FALSE)," ") -> CONFORMAR E IMPLEMENTAR EN EL CUATRIENIO EL SIG DE ORDENAMIENTO TERRITORIAL COMO INSUMO PARA FORTALECER EL SIG DEPARTAMENTAL Y APOYO A LA GESTIÓN DE LOS ENTES TERRITORIALES DEL DEPARTAMENTO. | M40: =IFERROR(VLOOKUP($B40,Datos_Producto!$D$4:IO538,19,FALSE), " ") -> 0 | N40: =IFERROR(VLOOKUP($B40,Datos_Producto!$D$4:IP538,20,FALSE), " ") -> 1 | O40: =IFERROR(VLOOKUP($B40,Datos_Producto!$D$4:IQ538,52,FALSE), " ") -> 0 | P40: =IFERROR(VLOOKUP($B40,Datos_Producto!$D$4:IQ538,54,FALSE), " ") -> 0 | R40: 1
B41: =HLOOKUP($B$20,Datos_Producto!$H$538:$AL$597,11,FALSE) -> 483 | C41: =IFERROR(VLOOKUP(B41,Datos_Producto!$D$4:$IP$531,15,FALSE)," ") -> COOPERAR TÉCNICA Y LOGÍSTICAMENTE CON LAS SECRETARIAS DE PLANEACIÓN DEPARTAMENTAL Y MUNICIPAL EN LA CONFORMACIÓN Y FUNCIONAMIENTO DE SUS CONSEJOS TERRITORIALES DE PLANEACIÓN, DURANTE EL CUATRIENIO. | M41: =IFERROR(VLOOKUP($B41,Datos_Producto!$D$4:IO539,19,FALSE), " ") -> 117 | N41: =IFERROR(VLOOKUP($B41,Datos_Producto!$D$4:IP539,20,FALSE), " ") -> 117 | O41: =IFERROR(VLOOKUP($B41,Datos_Producto!$D$4:IQ539,52,FALSE), " ") -> 117 | P41: =IFERROR(VLOOKUP($B41,Datos_Producto!$D$4:IQ539,54,FALSE), " ") -> 117 | Q41: 1
B42: =HLOOKUP($B$20,Datos_Producto!$H$538:$AL$597,12,FALSE) -> 484 | C42: =IFERROR(VLOOKUP(B42,Datos_Producto!$D$4:$IP$531,15,FALSE)," ") -> COOPERAR TÉCNICA Y LOGÍSTICAMENTE CON LAS SECRETARIAS DE PLANEACIÓN DEPARTAMENTAL Y MUNICIPAL EN LA CONFORMACIÓN Y FUNCIONAMIENTO DE SUS COMISIONES DE ORDENAMIENTO TERRITORIAL, DURANTE EL CUATRIENIO. | M42: =IFERROR(VLOOKUP($B42,Datos_Producto!$D$4:IO540,19,FALSE), " ") -> 117 | N42: =IFERROR(VLOOKUP($B42,Datos_Producto!$D$4:IP540,20,FALSE), " ") -> 117 | O42: =IFERROR(VLOOKUP($B42,Datos_Producto!$D$4:IQ540,52,FALSE), " ") -> 117 | P42: =IFERROR(VLOOKUP($B42,Datos_Producto!$D$4:IQ540,54,FALSE), " ") -> 13 | Q42: 0.1111111111
B43: =HLOOKUP($B$20,Datos_Producto!$H$538:$AL$597,13,FALSE) -> 495 | C43: =IFERROR(VLOOKUP(B43,Datos_Producto!$D$4:$IP$531,15,FALSE)," ") -> IMPLEMENTAR UN (1) SISTEMA DE MONITOREO, SEGUIMIENTO, CONTROL Y EVALUACIÓN A LOS PROYECTOS FINANCIADOS CON RECURSOS DEL SGR, EN EL DEPARTAMENTO DE CUNDINAMARCA. | M43: =IFERROR(VLOOKUP($B43,Datos_Producto!$D$4:IO541,19,FALSE), " ") -> 0 | N43: =IFERROR(VLOOKUP($B43,Datos_Producto!$D$4:IP541,20,FALSE), " ") -> 1 | O43: =IFERROR(VLOOKUP($B43,Datos_Producto!$D$4:IQ541,52,FALSE), " ") -> 0 | P43: =IFERROR(VLOOKUP($B43,Datos_Producto!$D$4:IQ541,54,FALSE), " ") -> 0 | R43: 1
B44: =HLOOKUP($B$20,Datos_Producto!$H$538:$AL$597,14,FALSE) -> 496 | C44: =IFERROR(VLOOKUP(B44,Datos_Producto!$D$4:$IP$531,15,FALSE)," ") -> APOYAR TÉCNICAMENTE EN EL DISEÑO DE POLÍTICAS PÚBLICAS EN DIEZ (10) MUNICIPIOS CON INDICADORES SOCIALES MÁS CRÍTICOS FOCALIZADOS POR LA SECRETARIA DE PLANEACIÓN, DURANTE EL CUATRIENIO. | M44: =IFERROR(VLOOKUP($B44,Datos_Producto!$D$4:IO542,19,FALSE), " ") -> 0 | N44: =IFERROR(VLOOKUP($B44,Datos_Producto!$D$4:IP542,20,FALSE), " ") -> 10 | O44: =IFERROR(VLOOKUP($B44,Datos_Producto!$D$4:IQ542,52,FALSE), " ") -> 0 | P44: =IFERROR(VLOOKUP($B44,Datos_Producto!$D$4:IQ542,54,FALSE), " ") -> 0 | R44: 1
B45: =HLOOKUP($B$20,Datos_Producto!$H$538:$AL$597,15,FALSE) -> 497 | C45: =IFERROR(VLOOKUP(B45,Datos_Producto!$D$4:$IP$531,15,FALSE)," ") -> IMPLEMENTAR ANUALMENTE UN PROGRAMA DE ASISTENCIA TÉCNICA PARA EL DEPARTAMENTO Y LOS 116 MUNICIPIOS ORIENTADO AL MEJORAMIENTO DE LAS CAPACIDADES INSTITUCIONALES. | M45: =IFERROR(VLOOKUP($B45,Datos_Producto!$D$4:IO543,19,FALSE), " ") -> 117 | N45: =IFERROR(VLOOKUP($B45,Datos_Producto!$D$4:IP543,20,FALSE), " ") -> 117 | O45: =IFERROR(VLOOKUP($B45,Datos_Producto!$D$4:IQ543,52,FALSE), " ") -> 117 | P45: =IFERROR(VLOOKUP($B45,Datos_Producto!$D$4:IQ543,54,FALSE), " ") -> 117 | Q45: 1
B46: =HLOOKUP($B$20,Datos_Producto!$H$538:$AL$597,16,FALSE) -> 498 | C46: =IFERROR(VLOOKUP(B46,Datos_Producto!$D$4:$IP$531,15,FALSE)," ") -> ASISTIR TÉCNICAMENTE A 53 MUNICIPIOS EN LA IMPLEMENTACIÓN DE INSTRUMENTOS QUE OPTIMICEN EL RECAUDO DE INGRESOS PROPIOS, LA GESTIÓN FISCAL Y PRESUPUESTAL, DURANTE EL CUATRIENIO. | M46: =IFERROR(VLOOKUP($B46,Datos_Producto!$D$4:IO544,19,FALSE), " ") -> 0 | N46: =IFERROR(VLOOKUP($B46,Datos_Producto!$D$4:IP544,20,FALSE), " ") -> 53 | O46: =IFERROR(VLOOKUP($B46,Datos_Producto!$D$4:IQ544,52,FALSE), " ") -> 53 | P46: =IFERROR(VLOOKUP($B46,Datos_Producto!$D$4:IQ544,54,FALSE), " ") -> 49 | Q46: 0.9245283019
B47: =HLOOKUP($B$20,Datos_Producto!$H$538:$AL$597,17,FALSE) -> 499 | C47: =IFERROR(VLOOKUP(B47,Datos_Producto!$D$4:$IP$531,15,FALSE)," ") -> CONTRIBUIR CON EL FORTALECIMIENTO FISCAL DE LOS MUNICIPIOS A TRAVÉS DE LA ACTUALIZACIÓN DE LAS BASES CATASTRALES DE 400 MIL PREDIOS DEL DEPARTAMENTO. | M47: =IFERROR(VLOOKUP($B47,Datos_Producto!$D$4:IO545,19,FALSE), " ") -> 171000 | N47: =IFERROR(VLOOKUP($B47,Datos_Producto!$D$4:IP545,20,FALSE), " ") -> 400000 | O47: =IFERROR(VLOOKUP($B47,Datos_Producto!$D$4:IQ545,52,FALSE), " ") -> 0 | P47: =IFERROR(VLOOKUP($B47,Datos_Producto!$D$4:IQ545,54,FALSE), " ") -> 0 | R47: 1
B48: =HLOOKUP($B$20,Datos_Producto!$H$538:$AL$597,18,FALSE) -> 500 | C48: =IFERROR(VLOOKUP(B48,Datos_Producto!$D$4:$IP$531,15,FALSE)," ") -> REALIZAR EL ESTUDIO TÉCNICO PARA DETERMINAR LA FACTIBILIDAD DE LA CONFORMACIÓN DE LA UNIDAD DE CATASTRO DE CUNDINAMARCA. | M48: =IFERROR(VLOOKUP($B48,Datos_Producto!$D$4:IO546,19,FALSE), " ") -> 0 | N48: =IFERROR(VLOOKUP($B48,Datos_Producto!$D$4:IP546,20,FALSE), " ") -> 1 | O48: =IFERROR(VLOOKUP($B48,Datos_Producto!$D$4:IQ546,52,FALSE), " ") -> 0 | P48: =IFERROR(VLOOKUP($B48,Datos_Producto!$D$4:IQ546,54,FALSE), " ") -> 0 | R48: 1
B49: =HLOOKUP($B$20,Datos_Producto!$H$538:$AL$597,19,FALSE) -> 501 | C49: =IFERROR(VLOOKUP(B49,Datos_Producto!$D$4:$IP$531,15,FALSE)," ") -> GENERAR CAPACIDADES TÉCNICAS A LOS 116 MUNICIPIOS DEL DEPARTAMENTO EN LA FORMULACIÓN E IMPLEMENTACIÓN DE INSTRUMENTOS DE PLANIFICACIÓN. (PLUSVALÍA, CARGAS Y BENEFICIOS, PLANES PARCIALES Y UPR). | M49: =IFERROR(VLOOKUP($B49,Datos_Producto!$D$4:IO547,19,FALSE), " ") -> 0 | N49: =IFERROR(VLOOKUP($B49,Datos_Producto!$D$4:IP547,20,FALSE), " ") -> 116 | O49: =IFERROR(VLOOKUP($B49,Datos_Producto!$D$4:IQ547,52,FALSE), " ") -> 29 | P49: =IFERROR(VLOOKUP($B49,Datos_Producto!$D$4:IQ547,54,FALSE), " ") -> 15 | Q49: 0.5172413793
B50: =HLOOKUP($B$20,Datos_Producto!$H$538:$AL$597,20,FALSE) -> 502 | C50: =IFERROR(VLOOKUP(B50,Datos_Producto!$D$4:$IP$531,15,FALSE)," ") -> CONTRIBUIR CON EL FORTALECIMIENTO FISCAL DE LOS MUNICIPIOS A TRAVÉS DE LA CONSERVACIÓN DE LAS BASES CATASTRALES DE 32 MUNICIPIOS DEL DEPARTAMENTO. | M50: =IFERROR(VLOOKUP($B50,Datos_Producto!$D$4:IO548,19,FALSE), " ") -> 0 | N50: =IFERROR(VLOOKUP($B50,Datos_Producto!$D$4:IP548,20,FALSE), " ") -> 32 | O50: =IFERROR(VLOOKUP($B50,Datos_Producto!$D$4:IQ548,52,FALSE), " ") -> 0 | P50: =IFERROR(VLOOKUP($B50,Datos_Producto!$D$4:IQ548,54,FALSE), " ") -> 0 | R50: 1
B51: =HLOOKUP($B$20,Datos_Producto!$H$538:$AL$597,21,FALSE) -> 503 | C51: =IFERROR(VLOOKUP(B51,Datos_Producto!$D$4:$IP$531,15,FALSE)," ") -> GENERAR CAPACIDADES A LOS 116 MUNICIPIOS DE CUNDINAMARCA EN LA ACTUALIZACIÓN DE LA ENCUESTA Y METODOLOGÍA SISBEN, A TRAVÉS DE LA DOTACIÓN DE DISPOSITIVOS MÓVILES DE CAPTURA DE INFORMACIÓN Y CAPACITACIÓN EN EL USO DE LOS MISMOS. | M51: =IFERROR(VLOOKUP($B51,Datos_Producto!$D$4:IO549,19,FALSE), " ") -> 0 | N51: =IFERROR(VLOOKUP($B51,Datos_Producto!$D$4:IP549,20,FALSE), " ") -> 116 | O51: =IFERROR(VLOOKUP($B51,Datos_Producto!$D$4:IQ549,52,FALSE), " ") -> 0 | P51: =IFERROR(VLOOKUP($B51,Datos_Producto!$D$4:IQ549,54,FALSE), " ") -> 0 | R51: 1
B52: =HLOOKUP($B$20,Datos_Producto!$H$538:$AL$597,22,FALSE) -> 565 | C52: =IFERROR(VLOOKUP(B52,Datos_Producto!$D$4:$IP$531,15,FALSE)," ") -> ELABORAR 1 PLAN DE GESTIÓN INTEGRAL PARA CADA POLÍTICA PÚBLICA DEPARTAMENTAL APROBADA CON LAS ENTIDADES RESPONSABLES Y HACER SU RESPECTIVO SEGUIMIENTO, DURANTE EL CUATRIENIO. | M52: =IFERROR(VLOOKUP($B52,Datos_Producto!$D$4:IO550,19,FALSE), " ") -> 0 | N52: =IFERROR(VLOOKUP($B52,Datos_Producto!$D$4:IP550,20,FALSE), " ") -> 1 | O52: =IFERROR(VLOOKUP($B52,Datos_Producto!$D$4:IQ550,52,FALSE), " ") -> 0 | P52: =IFERROR(VLOOKUP($B52,Datos_Producto!$D$4:IQ550,54,FALSE), " ") -> 0 | R52: 1
B53: =HLOOKUP($B$20,Datos_Producto!$H$538:$AL$597,23,FALSE) -> 566 | C53: =IFERROR(VLOOKUP(B53,Datos_Producto!$D$4:$IP$531,15,FALSE)," ") -> DISEÑAR E IMPLEMENTAR UN MODELO INTEGRAL DE BUEN GOBIERNO Y TRANSPARENCIA QUE PROMUEVA LA EFICACIA, LA RENDICIÓN DE CUENTAS Y LA CULTURA DE LA LEGALIDAD. | M53: =IFERROR(VLOOKUP($B53,Datos_Producto!$D$4:IO551,19,FALSE), " ") -> 0 | N53: =IFERROR(VLOOKUP($B53,Datos_Producto!$D$4:IP551,20,FALSE), " ") -> 1 | O53: =IFERROR(VLOOKUP($B53,Datos_Producto!$D$4:IQ551,52,FALSE), " ") -> 0.25 | P53: =IFERROR(VLOOKUP($B53,Datos_Producto!$D$4:IQ551,54,FALSE), " ") -> 0.25 | Q53: 1
B54: =HLOOKUP($B$20,Datos_Producto!$H$538:$AL$597,24,FALSE) -> 567 | C54: =IFERROR(VLOOKUP(B54,Datos_Producto!$D$4:$IP$531,15,FALSE)," ") -> DAR ASESORÍA Y ACOMPAÑAMIENTO AL 100% DE ENTIDADES DE LA ADMINISTRACIÓN DEPARTAMENTAL ENCARGADAS DE FORMULAR NUEVAS POLÍTICAS PÚBLICAS EN CUNDINAMARCA, DURANTE EL CUATRIENIO. | M54: =IFERROR(VLOOKUP($B54,Datos_Producto!$D$4:IO552,19,FALSE), " ") -> 0 | N54: =IFERROR(VLOOKUP($B54,Datos_Producto!$D$4:IP552,20,FALSE), " ") -> 100 | O54: =IFERROR(VLOOKUP($B54,Datos_Producto!$D$4:IQ552,52,FALSE), " ") -> 10 | P54: =IFERROR(VLOOKUP($B54,Datos_Producto!$D$4:IQ552,54,FALSE), " ") -> 10 | Q54: 1
B55: =HLOOKUP($B$20,Datos_Producto!$H$538:$AL$597,25,FALSE) -> 617 | C55: =IFERROR(VLOOKUP(B55,Datos_Producto!$D$4:$IP$531,15,FALSE)," ") -> REALIZAR DOS (2) ENCUESTAS EN EL DEPARTAMENTO, UNA A LOS HOGARES DE CARÁCTER MULTIPROPÓSITO Y OTRA A LOS ESTABLECIMIENTOS ECONÓMICOS, CON EL FIN DE OBTENER INFORMACIÓN ESTRATÉGICA PARA TOMA DE DECISIONES. | M55: =IFERROR(VLOOKUP($B55,Datos_Producto!$D$4:IO553,19,FALSE), " ") -> 0 | N55: =IFERROR(VLOOKUP($B55,Datos_Producto!$D$4:IP553,20,FALSE), " ") -> 2 | O55: =IFERROR(VLOOKUP($B55,Datos_Producto!$D$4:IQ553,52,FALSE), " ") -> 0 | P55: =IFERROR(VLOOKUP($B55,Datos_Producto!$D$4:IQ553,54,FALSE), " ") -> 0 | R55: 1
B56: =HLOOKUP($B$20,Datos_Producto!$H$538:$AL$597,26,FALSE) -> 618 | C56: =IFERROR(VLOOKUP(B56,Datos_Producto!$D$4:$IP$531,15,FALSE)," ") -> CREAR E IMPLEMENTAR UN (1) OBSERVATORIO DE DINÁMICAS TERRITORIALES Y POLÍTICAS PÚBLICAS, QUE CONTRIBUYA A LA GENERACIÓN DE INFORMACIÓN PARA LA TOMA DE DECISIONES EN EL CUATRIENIO | M56: =IFERROR(VLOOKUP($B56,Datos_Producto!$D$4:IO554,19,FALSE), " ") -> 0 | N56: =IFERROR(VLOOKUP($B56,Datos_Producto!$D$4:IP554,20,FALSE), " ") -> 1 | O56: =IFERROR(VLOOKUP($B56,Datos_Producto!$D$4:IQ554,52,FALSE), " ") -> 0.15 | P56: =IFERROR(VLOOKUP($B56,Datos_Producto!$D$4:IQ554,54,FALSE), " ") -> 0.05 | Q56: 0.3333333333
B57: =HLOOKUP($B$20,Datos_Producto!$H$538:$AL$597,27,FALSE) -> 619 | C57: =IFERROR(VLOOKUP(B57,Datos_Producto!$D$4:$IP$531,15,FALSE)," ") -> REALIZAR 25 PUBLICACIONES ANÁLOGAS O DIGITALES QUE CONTENGAN INFORMACIÓN GENERADA EN LA SECRETARIA DE PLANEACIÓN DURANTE EL CUATRIENIO. | M57: =IFERROR(VLOOKUP($B57,Datos_Producto!$D$4:IO555,19,FALSE), " ") -> 0 | N57: =IFERROR(VLOOKUP($B57,Datos_Producto!$D$4:IP555,20,FALSE), " ") -> 25 | O57: =IFERROR(VLOOKUP($B57,Datos_Producto!$D$4:IQ555,52,FALSE), " ") -> 5 | P57: =IFERROR(VLOOKUP($B57,Datos_Producto!$D$4:IQ555,54,FALSE), " ") -> 5 | Q57: 1
B58: =HLOOKUP($B$20,Datos_Producto!$H$538:$AL$597,28,FALSE) -> 624 | C58: =IFERROR(VLOOKUP(B58,Datos_Producto!$D$4:$IP$531,15,FALSE)," ") -> REALIZAR AL 100% EL PROCESO DE SEGUIMIENTO Y EVALUACIÓN A LA GESTIÓN DEL DEPARTAMENTO. | M58: =IFERROR(VLOOKUP($B58,Datos_Producto!$D$4:IO556,19,FALSE), " ") -> 0 | N58: =IFERROR(VLOOKUP($B58,Datos_Producto!$D$4:IP556,20,FALSE), " ") -> 100 | O58: =IFERROR(VLOOKUP($B58,Datos_Producto!$D$4:IQ556,52,FALSE), " ") -> 100 | P58: =IFERROR(VLOOKUP($B58,Datos_Producto!$D$4:IQ556,54,FALSE), " ") -> 100 | Q58: 1
B59: =HLOOKUP($B$20,Datos_Producto!$H$538:$AL$597,29,FALSE) -> 625 | C59: =IFERROR(VLOOKUP(B59,Datos_Producto!$D$4:$IP$531,15,FALSE)," ") -> REALIZAR 4 RENDICIONES DE CUENTAS SOBRE NIÑOS, NIÑAS Y ADOLESCENTES EN EL DEPARTAMENTO. | M59: =IFERROR(VLOOKUP($B59,Datos_Producto!$D$4:IO557,19,FALSE), " ") -> 0 | N59: =IFERROR(VLOOKUP($B59,Datos_Producto!$D$4:IP557,20,FALSE), " ") -> 4 | O59: =IFERROR(VLOOKUP($B59,Datos_Producto!$D$4:IQ557,52,FALSE), " ") -> 1 | P59: =IFERROR(VLOOKUP($B59,Datos_Producto!$D$4:IQ557,54,FALSE), " ") -> 0 | Q59: 0
B60: =HLOOKUP($B$20,Datos_Producto!$H$538:$AL$597,30,FALSE) -> 626 | C60: =IFERROR(VLOOKUP(B60,Datos_Producto!$D$4:$IP$531,15,FALSE)," ") -> REALIZAR 4 RENDICIONES DE CUENTAS DE LA GESTIÓN DE LA GOBERNACIÓN DURANTE EL PERIODO DE GOBIERNO. | M60: =IFERROR(VLOOKUP($B60,Datos_Producto!$D$4:IO558,19,FALSE), " ") -> 0 | N60: =IFERROR(VLOOKUP($B60,Datos_Producto!$D$4:IP558,20,FALSE), " ") -> 4 | O60: =IFERROR(VLOOKUP($B60,Datos_Producto!$D$4:IQ558,52,FALSE), " ") -> 1 | P60: =IFERROR(VLOOKUP($B60,Datos_Producto!$D$4:IQ558,54,FALSE), " ") -> 1 | Q60: 1
B61: =HLOOKUP($B$20,Datos_Producto!$H$538:$AL$597,31,FALSE) -> 627 | C61: =IFERROR(VLOOKUP(B61,Datos_Producto!$D$4:$IP$531,15,FALSE)," ") -> REALIZAR 4 EVALUACIONES EXTERNAS SOBRE LOS RESULTADOS DE LA GESTIÓN DE LA ADMINISTRACIÓN DEPARTAMENTAL. | M61: =IFERROR(VLOOKUP($B61,Datos_Producto!$D$4:IO559,19,FALSE), " ") -> 0 | N61: =IFERROR(VLOOKUP($B61,Datos_Producto!$D$4:IP559,20,FALSE), " ") -> 4 | O61: =IFERROR(VLOOKUP($B61,Datos_Producto!$D$4:IQ559,52,FALSE), " ") -> 1 | P61: =IFERROR(VLOOKUP($B61,Datos_Producto!$D$4:IQ559,54,FALSE), " ") -> 1 | Q61: 1
B62: =HLOOKUP($B$20,Datos_Producto!$H$538:$AL$597,32,FALSE) -> 0 | C62: =IFERROR(VLOOKUP(B62,Datos_Producto!$D$4:$IP$531,15,FALSE)," ") ->  | M62: =IFERROR(VLOOKUP($B62,Datos_Producto!$D$4:IO560,19,FALSE), " ") ->  | N62: =IFERROR(VLOOKUP($B62,Datos_Producto!$D$4:IP560,20,FALSE), " ") ->  | O62: =IFERROR(VLOOKUP($B62,Datos_Producto!$D$4:IQ560,52,FALSE), " ") ->  | P62: =IFERROR(VLOOKUP($B62,Datos_Producto!$D$4:IQ560,54,FALSE), " ") -> 
B63: =HLOOKUP($B$20,Datos_Producto!$H$538:$AL$597,33,FALSE) -> 0 | C63: =IFERROR(VLOOKUP(B63,Datos_Producto!$D$4:$IP$531,15,FALSE)," ") ->  | M63: =IFERROR(VLOOKUP($B63,Datos_Producto!$D$4:IO561,19,FALSE), " ") ->  | N63: =IFERROR(VLOOKUP($B63,Datos_Producto!$D$4:IP561,20,FALSE), " ") ->  | O63: =IFERROR(VLOOKUP($B63,Datos_Producto!$D$4:IQ561,52,FALSE), " ") ->  | P63: =IFERROR(VLOOKUP($B63,Datos_Producto!$D$4:IQ561,54,FALSE), " ") -> 
B64: =HLOOKUP($B$20,Datos_Producto!$H$538:$AL$597,34,FALSE) -> 0 | C64: =IFERROR(VLOOKUP(B64,Datos_Producto!$D$4:$IP$531,15,FALSE)," ") ->  | M64: =IFERROR(VLOOKUP($B64,Datos_Producto!$D$4:IO562,19,FALSE), " ") ->  | N64: =IFERROR(VLOOKUP($B64,Datos_Producto!$D$4:IP562,20,FALSE), " ") ->  | O64: =IFERROR(VLOOKUP($B64,Datos_Producto!$D$4:IQ562,52,FALSE), " ") ->  | P64: =IFERROR(VLOOKUP($B64,Datos_Producto!$D$4:IQ562,54,FALSE), " ") -> 
B65: =HLOOKUP($B$20,Datos_Producto!$H$538:$AL$597,35,FALSE) -> 0 | C65: =IFERROR(VLOOKUP(B65,Datos_Producto!$D$4:$IP$531,15,FALSE)," ") ->  | M65: =IFERROR(VLOOKUP($B65,Datos_Producto!$D$4:IO563,19,FALSE), " ") ->  | N65: =IFERROR(VLOOKUP($B65,Datos_Producto!$D$4:IP563,20,FALSE), " ") ->  | O65: =IFERROR(VLOOKUP($B65,Datos_Producto!$D$4:IQ563,52,FALSE), " ") ->  | P65: =IFERROR(VLOOKUP($B65,Datos_Producto!$D$4:IQ563,54,FALSE), " ") -> 
B66: =HLOOKUP($B$20,Datos_Producto!$H$538:$AL$597,36,FALSE) -> 0 | C66: =IFERROR(VLOOKUP(B66,Datos_Producto!$D$4:$IP$531,15,FALSE)," ") ->  | M66: =IFERROR(VLOOKUP($B66,Datos_Producto!$D$4:IO564,19,FALSE), " ") ->  | N66: =IFERROR(VLOOKUP($B66,Datos_Producto!$D$4:IP564,20,FALSE), " ") ->  | O66: =IFERROR(VLOOKUP($B66,Datos_Producto!$D$4:IQ564,52,FALSE), " ") ->  | P66: =IFERROR(VLOOKUP($B66,Datos_Producto!$D$4:IQ564,54,FALSE), " ") -> 
B67: =HLOOKUP($B$20,Datos_Producto!$H$538:$AL$597,37,FALSE) -> 0 | C67: =IFERROR(VLOOKUP(B67,Datos_Producto!$D$4:$IP$531,15,FALSE)," ") ->  | M67: =IFERROR(VLOOKUP($B67,Datos_Producto!$D$4:IO565,19,FALSE), " ") ->  | N67: =IFERROR(VLOOKUP($B67,Datos_Producto!$D$4:IP565,20,FALSE), " ") ->  | O67: =IFERROR(VLOOKUP($B67,Datos_Producto!$D$4:IQ565,52,FALSE), " ") ->  | P67: =IFERROR(VLOOKUP($B67,Datos_Producto!$D$4:IQ565,54,FALSE), " ") -> 
B68: =HLOOKUP($B$20,Datos_Producto!$H$538:$AL$597,38,FALSE) -> 0 | C68: =IFERROR(VLOOKUP(B68,Datos_Producto!$D$4:$IP$531,15,FALSE)," ") ->  | M68: =IFERROR(VLOOKUP($B68,Datos_Producto!$D$4:IO566,19,FALSE), " ") ->  | N68: =IFERROR(VLOOKUP($B68,Datos_Producto!$D$4:IP566,20,FALSE), " ") ->  | O68: =IFERROR(VLOOKUP($B68,Datos_Producto!$D$4:IQ566,52,FALSE), " ") ->  | P68: =IFERROR(VLOOKUP($B68,Datos_Producto!$D$4:IQ566,54,FALSE), " ") -> 
B69: =HLOOKUP($B$20,Datos_Producto!$H$538:$AL$597,39,FALSE) -> 0 | C69: =IFERROR(VLOOKUP(B69,Datos_Producto!$D$4:$IP$531,15,FALSE)," ") ->  | M69: =IFERROR(VLOOKUP($B69,Datos_Producto!$D$4:IO567,19,FALSE), " ") ->  | N69: =IFERROR(VLOOKUP($B69,Datos_Producto!$D$4:IP567,20,FALSE), " ") ->  | O69: =IFERROR(VLOOKUP($B69,Datos_Producto!$D$4:IQ567,52,FALSE), " ") ->  | P69: =IFERROR(VLOOKUP($B69,Datos_Producto!$D$4:IQ567,54,FALSE), " ") -> 
B70: =HLOOKUP($B$20,Datos_Producto!$H$538:$AL$597,40,FALSE) -> 0 | C70: =IFERROR(VLOOKUP(B70,Datos_Producto!$D$4:$IP$531,15,FALSE)," ") ->  | M70: =IFERROR(VLOOKUP($B70,Datos_Producto!$D$4:IO568,19,FALSE), " ") ->  | N70: =IFERROR(VLOOKUP($B70,Datos_Producto!$D$4:IP568,20,FALSE), " ") ->  | O70: =IFERROR(VLOOKUP($B70,Datos_Producto!$D$4:IQ568,52,FALSE), " ") ->  | P70: =IFERROR(VLOOKUP($B70,Datos_Producto!$D$4:IQ568,54,FALSE), " ") -> 
B71: =HLOOKUP($B$20,Datos_Producto!$H$538:$AL$597,41,FALSE) -> 0 | C71: =IFERROR(VLOOKUP(B71,Datos_Producto!$D$4:$IP$531,15,FALSE)," ") ->  | M71: =IFERROR(VLOOKUP($B71,Datos_Producto!$D$4:IO569,19,FALSE), " ") ->  | N71: =IFERROR(VLOOKUP($B71,Datos_Producto!$D$4:IP569,20,FALSE), " ") ->  | O71: =IFERROR(VLOOKUP($B71,Datos_Producto!$D$4:IQ569,52,FALSE), " ") ->  | P71: =IFERROR(VLOOKUP($B71,Datos_Producto!$D$4:IQ569,54,FALSE), " ") -> 
B72: =HLOOKUP($B$20,Datos_Producto!$H$538:$AL$597,42,FALSE) -> 0 | C72: =IFERROR(VLOOKUP(B72,Datos_Producto!$D$4:$IP$531,15,FALSE)," ") ->  | M72: =IFERROR(VLOOKUP($B72,Datos_Producto!$D$4:IO570,19,FALSE), " ") ->  | N72: =IFERROR(VLOOKUP($B72,Datos_Producto!$D$4:IP570,20,FALSE), " ") ->  | O72: =IFERROR(VLOOKUP($B72,Datos_Producto!$D$4:IQ570,52,FALSE), " ") ->  | P72: =IFERROR(VLOOKUP($B72,Datos_Producto!$D$4:IQ570,54,FALSE), " ") -> 
B73: =HLOOKUP($B$20,Datos_Producto!$H$538:$AL$597,43,FALSE) -> 0 | C73: =IFERROR(VLOOKUP(B73,Datos_Producto!$D$4:$IP$531,15,FALSE)," ") ->  | M73: =IFERROR(VLOOKUP($B73,Datos_Producto!$D$4:IO571,19,FALSE), " ") ->  | N73: =IFERROR(VLOOKUP($B73,Datos_Producto!$D$4:IP571,20,FALSE), " ") ->  | O73: =IFERROR(VLOOKUP($B73,Datos_Producto!$D$4:IQ571,52,FALSE), " ") ->  | P73: =IFERROR(VLOOKUP($B73,Datos_Producto!$D$4:IQ571,54,FALSE), " ") -> 
B74: =HLOOKUP($B$20,Datos_Producto!$H$538:$AL$597,44,FALSE) -> 0 | C74: =IFERROR(VLOOKUP(B74,Datos_Producto!$D$4:$IP$531,15,FALSE)," ") ->  | M74: =IFERROR(VLOOKUP($B74,Datos_Producto!$D$4:IO572,19,FALSE), " ") ->  | N74: =IFERROR(VLOOKUP($B74,Datos_Producto!$D$4:IP572,20,FALSE), " ") ->  | O74: =IFERROR(VLOOKUP($B74,Datos_Producto!$D$4:IQ572,52,FALSE), " ") ->  | P74: =IFERROR(VLOOKUP($B74,Datos_Producto!$D$4:IQ572,54,FALSE), " ") -> 
B75: =HLOOKUP($B$20,Datos_Producto!$H$538:$AL$597,45,FALSE) -> 0 | C75: =IFERROR(VLOOKUP(B75,Datos_Producto!$D$4:$IP$531,15,FALSE)," ") ->  | M75: =IFERROR(VLOOKUP($B75,Datos_Producto!$D$4:IO573,19,FALSE), " ") ->  | N75: =IFERROR(VLOOKUP($B75,Datos_Producto!$D$4:IP573,20,FALSE), " ") ->  | O75: =IFERROR(VLOOKUP($B75,Datos_Producto!$D$4:IQ573,52,FALSE), " ") ->  | P75: =IFERROR(VLOOKUP($B75,Datos_Producto!$D$4:IQ573,54,FALSE), " ") -> 
B76: =HLOOKUP($B$20,Datos_Producto!$H$538:$AL$597,46,FALSE) -> 0 | C76: =IFERROR(VLOOKUP(B76,Datos_Producto!$D$4:$IP$531,15,FALSE)," ") ->  | M76: =IFERROR(VLOOKUP($B76,Datos_Producto!$D$4:IO574,19,FALSE), " ") ->  | N76: =IFERROR(VLOOKUP($B76,Datos_Producto!$D$4:IP574,20,FALSE), " ") ->  | O76: =IFERROR(VLOOKUP($B76,Datos_Producto!$D$4:IQ574,52,FALSE), " ") ->  | P76: =IFERROR(VLOOKUP($B76,Datos_Producto!$D$4:IQ574,54,FALSE), " ") -> 
B77: =HLOOKUP($B$20,Datos_Producto!$H$538:$AL$597,47,FALSE) -> 0 | C77: =IFERROR(VLOOKUP(B77,Datos_Producto!$D$4:$IP$531,15,FALSE)," ") ->  | M77: =IFERROR(VLOOKUP($B77,Datos_Producto!$D$4:IO575,19,FALSE), " ") ->  | N77: =IFERROR(VLOOKUP($B77,Datos_Producto!$D$4:IP575,20,FALSE), " ") ->  | O77: =IFERROR(VLOOKUP($B77,Datos_Producto!$D$4:IQ575,52,FALSE), " ") ->  | P77: =IFERROR(VLOOKUP($B77,Datos_Producto!$D$4:IQ575,54,FALSE), " ") -> 
B78: =HLOOKUP($B$20,Datos_Producto!$H$538:$AL$597,48,FALSE) -> 0 | C78: =IFERROR(VLOOKUP(B78,Datos_Producto!$D$4:$IP$531,15,FALSE)," ") ->  | M78: =IFERROR(VLOOKUP($B78,Datos_Producto!$D$4:IO576,19,FALSE), " ") ->  | N78: =IFERROR(VLOOKUP($B78,Datos_Producto!$D$4:IP576,20,FALSE), " ") ->  | O78: =IFERROR(VLOOKUP($B78,Datos_Producto!$D$4:IQ576,52,FALSE), " ") ->  | P78: =IFERROR(VLOOKUP($B78,Datos_Producto!$D$4:IQ576,54,FALSE), " ") -> 
B79: =HLOOKUP($B$20,Datos_Producto!$H$538:$AL$597,49,FALSE) -> 0 | C79: =IFERROR(VLOOKUP(B79,Datos_Producto!$D$4:$IP$531,15,FALSE)," ") ->  | M79: =IFERROR(VLOOKUP($B79,Datos_Producto!$D$4:IO577,19,FALSE), " ") ->  | N79: =IFERROR(VLOOKUP($B79,Datos_Producto!$D$4:IP577,20,FALSE), " ") ->  | O79: =IFERROR(VLOOKUP($B79,Datos_Producto!$D$4:IQ577,52,FALSE), " ") ->  | P79: =IFERROR(VLOOKUP($B79,Datos_Producto!$D$4:IQ577,54,FALSE), " ") -> 
B80: =HLOOKUP($B$20,Datos_Producto!$H$538:$AL$597,50,FALSE) -> 0 | C80: =IFERROR(VLOOKUP(B80,Datos_Producto!$D$4:$IP$531,15,FALSE)," ") ->  | M80: =IFERROR(VLOOKUP($B80,Datos_Producto!$D$4:IO578,19,FALSE), " ") ->  | N80: =IFERROR(VLOOKUP($B80,Datos_Producto!$D$4:IP578,20,FALSE), " ") ->  | O80: =IFERROR(VLOOKUP($B80,Datos_Producto!$D$4:IQ578,52,FALSE), " ") ->  | P80: =IFERROR(VLOOKUP($B80,Datos_Producto!$D$4:IQ578,54,FALSE), " ") -> 
B81: =HLOOKUP($B$20,Datos_Producto!$H$538:$AL$597,51,FALSE) -> 0 | C81: =IFERROR(VLOOKUP(B81,Datos_Producto!$D$4:$IP$531,15,FALSE)," ") ->  | M81: =IFERROR(VLOOKUP($B81,Datos_Producto!$D$4:IO579,19,FALSE), " ") ->  | N81: =IFERROR(VLOOKUP($B81,Datos_Producto!$D$4:IP579,20,FALSE), " ") ->  | O81: =IFERROR(VLOOKUP($B81,Datos_Producto!$D$4:IQ579,52,FALSE), " ") ->  | P81: =IFERROR(VLOOKUP($B81,Datos_Producto!$D$4:IQ579,54,FALSE), " ") -> 
B82: =HLOOKUP($B$20,Datos_Producto!$H$538:$AL$597,52,FALSE) -> 0 | C82: =IFERROR(VLOOKUP(B82,Datos_Producto!$D$4:$IP$531,15,FALSE)," ") ->  | M82: =IFERROR(VLOOKUP($B82,Datos_Producto!$D$4:IO580,19,FALSE), " ") ->  | N82: =IFERROR(VLOOKUP($B82,Datos_Producto!$D$4:IP580,20,FALSE), " ") ->  | O82: =IFERROR(VLOOKUP($B82,Datos_Producto!$D$4:IQ580,52,FALSE), " ") ->  | P82: =IFERROR(VLOOKUP($B82,Datos_Producto!$D$4:IQ580,54,FALSE), " ") -> 
B83: =HLOOKUP($B$20,Datos_Producto!$H$538:$AL$597,53,FALSE) -> 0 | C83: =IFERROR(VLOOKUP(B83,Datos_Producto!$D$4:$IP$531,15,FALSE)," ") ->  | M83: =IFERROR(VLOOKUP($B83,Datos_Producto!$D$4:IO581,19,FALSE), " ") ->  | N83: =IFERROR(VLOOKUP($B83,Datos_Producto!$D$4:IP581,20,FALSE), " ") ->  | O83: =IFERROR(VLOOKUP($B83,Datos_Producto!$D$4:IQ581,52,FALSE), " ") ->  | P83: =IFERROR(VLOOKUP($B83,Datos_Producto!$D$4:IQ581,54,FALSE), " ") -> 
B84: =HLOOKUP($B$20,Datos_Producto!$H$538:$AL$597,54,FALSE) -> 0 | C84: =IFERROR(VLOOKUP(B84,Datos_Producto!$D$4:$IP$531,15,FALSE)," ") ->  | M84: =IFERROR(VLOOKUP($B84,Datos_Producto!$D$4:IO582,19,FALSE), " ") ->  | N84: =IFERROR(VLOOKUP($B84,Datos_Producto!$D$4:IP582,20,FALSE), " ") ->  | O84: =IFERROR(VLOOKUP($B84,Datos_Producto!$D$4:IQ582,52,FALSE), " ") ->  | P84: =IFERROR(VLOOKUP($B84,Datos_Producto!$D$4:IQ582,54,FALSE), " ") -> 
B85: =HLOOKUP($B$20,Datos_Producto!$H$538:$AL$597,55,FALSE) -> 0 | C85: =IFERROR(VLOOKUP(B85,Datos_Producto!$D$4:$IP$531,15,FALSE)," ") ->  | M85: =IFERROR(VLOOKUP($B85,Datos_Producto!$D$4:IO583,19,FALSE), " ") ->  | N85: =IFERROR(VLOOKUP($B85,Datos_Producto!$D$4:IP583,20,FALSE), " ") ->  | O85: =IFERROR(VLOOKUP($B85,Datos_Producto!$D$4:IQ583,52,FALSE), " ") ->  | P85: =IFERROR(VLOOKUP($B85,Datos_Producto!$D$4:IQ583,54,FALSE), " ") -> 
B86: =HLOOKUP($B$20,Datos_Producto!$H$538:$AL$597,56,FALSE) -> 0 | C86: =IFERROR(VLOOKUP(B86,Datos_Producto!$D$4:$IP$531,15,FALSE)," ") ->  | M86: =IFERROR(VLOOKUP($B86,Datos_Producto!$D$4:IO584,19,FALSE), " ") ->  | N86: =IFERROR(VLOOKUP($B86,Datos_Producto!$D$4:IP584,20,FALSE), " ") ->  | O86: =IFERROR(VLOOKUP($B86,Datos_Producto!$D$4:IQ584,52,FALSE), " ") ->  | P86: =IFERROR(VLOOKUP($B86,Datos_Producto!$D$4:IQ584,54,FALSE), " ") -> 
B87: =HLOOKUP($B$20,Datos_Producto!$H$538:$AL$597,57,FALSE) -> 0 | C87: =IFERROR(VLOOKUP(B87,Datos_Producto!$D$4:$IP$531,15,FALSE)," ") ->  | M87: =IFERROR(VLOOKUP($B87,Datos_Producto!$D$4:IO585,19,FALSE), " ") ->  | N87: =IFERROR(VLOOKUP($B87,Datos_Producto!$D$4:IP585,20,FALSE), " ") ->  | O87: =IFERROR(VLOOKUP($B87,Datos_Producto!$D$4:IQ585,52,FALSE), " ") ->  | P87: =IFERROR(VLOOKUP($B87,Datos_Producto!$D$4:IQ585,54,FALSE), " ") -> 
B88: =HLOOKUP($B$20,Datos_Producto!$H$538:$AL$597,58,FALSE) -> 0 | C88: =IFERROR(VLOOKUP(B88,Datos_Producto!$D$4:$IP$531,15,FALSE)," ") ->  | M88: =IFERROR(VLOOKUP($B88,Datos_Producto!$D$4:IO586,19,FALSE), " ") ->  | N88: =IFERROR(VLOOKUP($B88,Datos_Producto!$D$4:IP586,20,FALSE), " ") ->  | O88: =IFERROR(VLOOKUP($B88,Datos_Producto!$D$4:IQ586,52,FALSE), " ") ->  | P88: =IFERROR(VLOOKUP($B88,Datos_Producto!$D$4:IQ586,54,FALSE), " ") -> 
B89: =HLOOKUP($B$20,Datos_Producto!$H$538:$AL$597,59,FALSE) -> 0 | C89: =IFERROR(VLOOKUP(B89,Datos_Producto!$D$4:$IP$531,15,FALSE)," ") ->  | M89: =IFERROR(VLOOKUP($B89,Datos_Producto!$D$4:IO587,19,FALSE), " ") ->  | N89: =IFERROR(VLOOKUP($B89,Datos_Producto!$D$4:IP587,20,FALSE), " ") ->  | O89: =IFERROR(VLOOKUP($B89,Datos_Producto!$D$4:IQ587,52,FALSE), " ") ->  | P89: =IFERROR(VLOOKUP($B89,Datos_Producto!$D$4:IQ587,54,FALSE), " ") -> 
B90: =HLOOKUP($B$20,Datos_Producto!$H$538:$AL$597,60,FALSE) -> 0 | C90: =IFERROR(VLOOKUP(B90,Datos_Producto!$D$4:$IP$531,15,FALSE)," ") ->  | M90: =IFERROR(VLOOKUP($B90,Datos_Producto!$D$4:IO588,19,FALSE), " ") ->  | N90: =IFERROR(VLOOKUP($B90,Datos_Producto!$D$4:IP588,20,FALSE), " ") ->  | O90: =IFERROR(VLOOKUP($B90,Datos_Producto!$D$4:IQ588,52,FALSE), " ") ->  | P90: =IFERROR(VLOOKUP($B90,Datos_Producto!$D$4:IQ588,54,FALSE), " ") -> 
O91: =IFERROR(VLOOKUP($B91,Datos_Producto!$D$4:IQ589,52,FALSE), " ") -> 
O92: =IFERROR(VLOOKUP($B92,Datos_Producto!$D$4:IQ590,52,FALSE), " ") -> 
O93: =IFERROR(VLOOKUP($B93,Datos_Producto!$D$4:IQ591,52,FALSE), " ") -> 
O94: =IFERROR(VLOOKUP($B94,Datos_Producto!$D$4:IQ592,52,FALSE), " ") -> 
O95: =IFERROR(VLOOKUP($B95,Datos_Producto!$D$4:IQ593,52,FALSE), " ") -> 
O96: =IFERROR(VLOOKUP($B96,Datos_Producto!$D$4:IQ594,52,FALSE), " ") -> 
O97: =IFERROR(VLOOKUP($B97,Datos_Producto!$D$4:IQ595,52,FALSE), " ") ->  | Q97: =IFERROR(IF((P97/O97)<1,(P97/O97),1),"") ->  | R97: =+IF(AND(C97>0,O97=0),"1","") -> 
O98: =IFERROR(VLOOKUP($B98,Datos_Producto!$D$4:IQ596,52,FALSE), " ") -> 
O99: =IFERROR(VLOOKUP($B99,Datos_Producto!$D$4:IQ597,52,FALSE), " ") -> 

Sheet calculo_esp (hidden)
A2: EJES ESTRATEGICOS
A4: 1 | B4: 2 | C4: 3 | D4: 4 | E4: 5 | F4: 6 | G4: 7 | H4: 8 | I4: 9 | J4: 10 | K4: 11
A5: Eje estrategico | B5: Suma de Ponderador Meta | C5: Suma de Ponderador 2016_aj | D5: Suma de Avance Ponderado 2016 | E5: Suma de Ponderador 2017_aj | F5: Suma de Avance Ponderado 2017 | G5: Suma de Ponderador 2018_aj | H5: Suma de Avance Ponderado 2018 | I5: Suma de Ponderador 2019_aj | J5: Suma de Avance Ponderado 2019 | K5: Suma de Avance Ponderado 2016-2019
A6: 1. CUNDINAMARCA 2036 | B6: 39.72 | C6: 5.632473397 | D6: 3.640243593 | E6: 13.82940127 | F6: 0 | G6: 11.2964773 | H6: 0 | I6: 8.96164803 | J6: 0 | K6: 3.640243593
A7: 2. TEJIDO SOCIAL | B7: 24.84 | C7: 4.898720186 | D7: 4.250105877 | E7: 7.44110817 | F7: 0 | G7: 6.774015917 | H7: 0 | I7: 5.726155728 | J7: 0 | K7: 4.250105877
A8: 3. COMPETITIVIDAD SOSTENIBLE | B8: 23.36 | C8: 3.422435453 | D8: 2.736866983 | E8: 6.531897229 | F8: 0 | G8: 6.853457486 | H8: 0 | I8: 6.552209831 | J8: 0 | K8: 2.736866983
A9: 4. INTEGRACIÓN Y GOBERNANZA | B9: 12.08 | C9: 2.176387801 | D9: 2.045397957 | E9: 3.507131341 | F9: 0 | G9: 3.407113176 | H9: 0 | I9: 2.989367681 | J9: 0 | K9: 2.045397957
A10: Total general | B10: 100 | C10: 16.13001684 | D10: 12.67261441 | E10: 31.30953801 | F10: 0 | G10: 28.33106388 | H10: 0 | I10: 24.22938127 | J10: 0 | K10: 12.67261441
A17: PROGRAMAS
A19: Programas | B19: Suma de Ponderador Meta | C19: Suma de Ponderador 2016_aj | D19: Suma de Avance Ponderado 2016 | E19: Suma de Ponderador 2017_aj | F19: Suma de Avance Ponderado 2017 | G19: Suma de Ponderador 2018_aj | H19: Suma de Avance Ponderado 2018 | I19: Suma de Ponderador 2019_aj | J19: Suma de Avance Ponderado 2019 | K19: Suma de Avance Ponderado 2016-2019
A20: 1.1. GENERACION 2036 | B20: 1.911490063 | C20: 0.1612223252 | D20: 0 | E20: 0.5846623278 | F20: 0 | G20: 0.604067927 | H20: 0 | I20: 0.5615374827 | J20: 0 | K20: 0
A21: 1.2. CALIDAD 10 | B21: 5.461789723 | C21: 0.5171474231 | D21: 0 | E21: 2.450313223 | F21: 0 | G21: 1.338877153 | H21: 0 | I21: 1.155451923 | J21: 0 | K21: 0
A22: 1.3. CUNDINAMARCA MÁS PROFESIONAL | B22: 4.684650396 | C22: 0.3252688409 | D22: 0.1267964164 | E22: 1.486781315 | F22: 0 | G22: 1.647446033 | H22: 0 | I22: 1.225154208 | J22: 0 | K22: 0.1267964164
A23: 1.4. UNIDOS PODEMOS LOGRAR MÁS EDUCACIÓN | B23: 11.78388631 | C23: 2.659638304 | D23: 1.621928066 | E23: 3.521944859 | F23: 0 | G23: 3.009648235 | H23: 0 | I23: 2.592654917 | J23: 0 | K23: 1.621928066
A24: 1.5. CUNDINAMARCA AVANZADA E INNOVADORA | B24: 2.294606117 | C24: 0.1791900202 | D24: 0.08238845492 | E24: 1.063940745 | F24: 0 | G24: 0.5772061138 | H24: 0 | I24: 0.4742692381 | J24: 0 | K24: 0.08238845492
A25: 1.6. CUNDINAMARCA ORDENADA Y SOTENIBLE | B25: 3.660735249 | C25: 0.398601143 | D25: 0.3441333724 | E25: 1.429846514 | F25: 0 | G25: 1.122802881 | H25: 0 | I25: 0.7094847105 | J25: 0 | K25: 0.3441333724
A26: 1.7. ESFUERZOS UNIDOS RIESGOS REDUCIDOS | B26: 2.931315004 | C26: 0.4090583093 | D26: 0.2402596984 | E26: 0.9521578729 | F26: 0 | G26: 0.9233900838 | H26: 0 | I26: 0.6467087377 | J26: 0 | K26: 0.2402596984
A27: 1.8. CUNDINAMARCA OFERTA NATURAL EN ALIANZA POR EL AGUA - GOBERNANZA VITAL | B27: 6.991527134 | C27: 0.9823470316 | D27: 0.906174205 | E27: 2.339754416 | F27: 0 | G27: 2.073038874 | H27: 0 | I27: 1.596386813 | J27: 0 | K27: 0.906174205
A28: 2.1. FAMILIAS UNIDAS Y FELICES | B28: 4.088218807 | C28: 0.6630854782 | D28: 0.6077522067 | E28: 1.233831137 | F28: 0 | G28: 1.170648001 | H28: 0 | I28: 1.020654191 | J28: 0 | K28: 0.6077522067
A29: 2.2. MUJER | B29: 2.249674503 | C29: 0.3037874606 | D29: 0.2785207337 | E29: 0.698947843 | F29: 0 | G29: 0.6796512632 | H29: 0 | I29: 0.5672879359 | J29: 0 | K29: 0.2785207337
A30: 2.3. MIS PRIMEROS PASOS | B30: 1.843535262 | C30: 0.3702748967 | D30: 0.3181787827 | E30: 0.5359806575 | F30: 0 | G30: 0.5368280806 | H30: 0 | I30: 0.4004516275 | J30: 0 | K30: 0.3181787827
A31: 2.4. TEMPRANAS SONRISAS | B31: 1.451121157 | C31: 0.271242679 | D31: 0.2555094625 | E31: 0.4312670757 | F31: 0 | G31: 0.3959105545 | H31: 0 | I31: 0.352700848 | J31: 0 | K31: 0.2555094625
A32: 2.5. ADOLESCENTES CAMBIOS CON SEGURIDAD | B32: 1.867866184 | C32: 0.5653724092 | D32: 0.4147610793 | E32: 0.4535749409 | F32: 0 | G32: 0.4509930797 | H32: 0 | I32: 0.3979257546 | J32: 0 | K32: 0.4147610793
A33: 2.6. JOVENES POR CUNDINAMARCA | B33: 1.897188065 | C33: 0.289975414 | D33: 0.2497562489 | E33: 0.6713779693 | F33: 0 | G33: 0.5492725158 | H33: 0 | I33: 0.386562166 | J33: 0 | K33: 0.2497562489
A34: 2.7. ADULTEZ Y PLENITUD | B34: 0.4710216998 | C34: 0.05150045208 | D34: 0.05150045208 | E34: 0.1544202532 | F34: 0 | G34: 0.1552905515 | H34: 0 | I34: 0.109810443 | J34: 0 | K34: 0.05150045208
A35: 2.8. ENVEJECIMIENTO ACTIVO Y VEJEZ | B35: 1.766799277 | C35: 0.3730211121 | D35: 0.2625025769 | E35: 0.5157937161 | F35: 0 | G35: 0.4598294756 | H35: 0 | I35: 0.4181549729 | J35: 0 | K35: 0.2625025769
A36: 2.9. LOS MÁS CAPACES¡ | B36: 1.617070524 | C36: 0.4097809908 | D36: 0.351803587 | E36: 0.4403366278 | F36: 0 | G36: 0.4089629087 | H36: 0 | I36: 0.3579899971 | J36: 0 | K36: 0.351803587
A37: 2.10. PREVENCIÓN DE CONSUMO DE SUSTANCIAS PSICOACTIVAS | B37: 0.6906238698 | C37: 0.1512099052 | D37: 0.1105344518 | E37: 0.2143648906 | F37: 0 | G37: 0.2332681455 | H37: 0 | I37: 0.09178092848 | J37: 0 | K37: 0.1105344518
A38: 2.11. VÍCTIMAS DEL CONFLICTO ARMADO: OPORTUNIDADES PARA LA PAZ | B38: 2.899746835 | C38: 0.6286334926 | D38: 0.6286334926 | E38: 1.03804805 | F38: 0 | G38: 0.6082641436 | H38: 0 | I38: 0.6248011496 | J38: 0 | K38: 0.6286334926
A39: 2.12. CUNDINAMARCA DIVERSA | B39: 1.188471971 | C39: 0.2304367089 | D39: 0.1263232369 | E39: 0.3938905967 | F39: 0 | G39: 0.3719927667 | H39: 0 | I39: 0.1921518987 | J39: 0 | K39: 0.1263232369
A40: 2.13. CULTURA PARA EL NUEVO LIDERAZGO | B40: 2.808661844 | C40: 0.5903991863 | D40: 0.5816026221 | E40: 0.6592744123 | F40: 0 | G40: 0.7531044304 | H40: 0 | I40: 0.8058838156 | J40: 0 | K40: 0.5816026221
A41: 3.1. VÍA A LA COMPETITIVIDAD | B41: 3.578702877 | C41: 0.5890642502 | D41: 0.4844678749 | E41: 0.7964686846 | F41: 0 | G41: 1.032279501 | H41: 0 | I41: 1.160890441 | J41: 0 | K41: 0.4844678749
A42: 3.3. RURALIDAD CON ENFOQUE TERRITORIAL | B42: 2.696832484 | C42: 0.2619122464 | D42: 0.2330308367 | E42: 0.831556992 | F42: 0 | G42: 0.9350464847 | H42: 0 | I42: 0.6683167605 | J42: 0 | K42: 0.2330308367
A43: 3.4. DESARROLLO AGROPECUARIO CON TRANSFORMACIÓN | B43: 2.258057221 | C43: 0.2184798709 | D43: 0.2184798709 | E43: 0.7584164727 | F43: 0 | G43: 0.7184466647 | H43: 0 | I43: 0.562714213 | J43: 0 | K43: 0.2184798709
A44: 3.5. CUNDINAMARCA HACIA LAS CADENAS GLOBALES DE VALOR | B44: 0.5554117243 | C44: 0.09639479037 | D44: 0.09639479037 | E44: 0.1552684331 | F44: 0 | G44: 0.1953815021 | H44: 0 | I44: 0.1083669987 | J44: 0 | K44: 0.09639479037
A45: 3.6. DE TOUR POR CUNDINAMARCA | B45: 1.842115552 | C45: 0.289010205 | D45: 0.2561792008 | E45: 0.4123712631 | F45: 0 | G45: 0.5210481952 | H45: 0 | I45: 0.619685889 | J45: 0 | K45: 0.2561792008
A46: 3.7. INNOVACIÓN VERDE | B46: 0.710309883 | C46: 0.07448688347 | D46: 0.05017219243 | E46: 0.3337715901 | F46: 0 | G46: 0.2128461152 | H46: 0 | I46: 0.08920529416 | J46: 0 | K46: 0.05017219243
A47: 3.8. CUNDINAMARCA, HÁBITAT AMABLE | B47: 8.795253216 | C47: 1.385964005 | D47: 0.9019421121 | E47: 2.374034583 | F47: 0 | G47: 2.46608069 | H47: 0 | I47: 2.569173939 | J47: 0 | K47: 0.9019421121
A48: 4.1. NUEVO LIDERAZGO | B48: 0.3898862071 | C48: 0.1324534368 | D48: 0.1324534368 | E48: 0.1094917589 | F48: 0 | G48: 0.08599071286 | H48: 0 | I48: 0.06195029852 | J48: 0 | K48: 0.1324534368
A49: 4.2. REDES DE LA PARTICIPACIÓN CIUDADANA PARA LA GESTIÓN LOCAL | B49: 1.302805531 | C49: 0.227798294 | D49: 0.1926616979 | E49: 0.4249427392 | F49: 0 | G49: 0.3476929331 | H49: 0 | I49: 0.3023715652 | J49: 0 | K49: 0.1926616979
A50: 4.3. MUNICIPIOS MODELO | B50: 0.8907281727 | C50: 0.07861215492 | D50: 0.06658803747 | E50: 0.2900737572 | F50: 0 | G50: 0.3030840505 | H50: 0 | I50: 0.2189582101 | J50: 0 | K50: 0.06658803747
A51: 4.4. CON TODA SEGURIDAD | B51: 2.668794203 | C51: 0.6680325723 | D51: 0.6569678175 | E51: 0.6783623902 | F51: 0 | G51: 0.6799039352 | H51: 0 | I51: 0.6424953055 | J51: 0 | K51: 0.6569678175
A52: 4.5. CUNDINAMARCA INTEGRADA PUEDE MÁS | B52: 0.7048772771 | C52: 0.152447048 | D52: 0.1397980915 | E52: 0.1785668555 | F52: 0 | G52: 0.1811630147 | H52: 0 | I52: 0.1927003589 | J52: 0 | K52: 0.1397980915
A53: 4.6. CUNDINAMARCA A SU SERVICIO | B53: 2.958820228 | C53: 0.4372603734 | D53: 0.3778538384 | E53: 0.9803609184 | F53: 0 | G53: 0.8751217187 | H53: 0 | I53: 0.666077217 | J53: 0 | K53: 0.3778538384
A54: 4.7. CUNDINAMARCA: REVOLUCIÓN DIGITAL | B54: 1.754950247 | C54: 0.257029963 | D54: 0.2509428068 | E54: 0.428005712 | F54: 0 | G54: 0.5108708661 | H54: 0 | I54: 0.5590437064 | J54: 0 | K54: 0.2509428068
A55: 4.8. FINANZAS SANAS TERRITORIOS VIABLES | B55: 0.4829657601 | C55: 0.1044833393 | D55: 0.09730203603 | E55: 0.1152552942 | F55: 0 | G55: 0.1371998775 | H55: 0 | I55: 0.1260272491 | J55: 0 | K55: 0.09730203603
A56: 4.9. CUNDI - DATA | B56: 0.9261723733 | C56: 0.147242401 | D56: 0.1225393343 | E56: 0.2731001344 | F56: 0 | G56: 0.2860860676 | H56: 0 | I56: 0.2197437703 | J56: 0 | K56: 0.1225393343
A57: 3.2. AUMENTANDO CAPACIDADES COMPETITIVAS2 | B57: 2.923317042 | C57: 0.4743539104 | D57: 0.4743539104 | E57: 0.8809323076 | F57: 0 | G57: 0.7832514306 | H57: 0 | I57: 0.7847793936 | J57: 0 | K57: 0.4743539104
A58: Total general | B58: 100 | C58: 16.12621933 | D58: 12.31118703 | E58: 31.29148933 | F58: 0 | G58: 28.34198698 | H58: 0 | I58: 24.24030437 | J58: 0 | K58: 12.31118703 | N58: =+M58=L58 -> TRUE
A64: ENTIDADES
A66: Programas | B66: Suma de Ponderador Meta | C66: Suma de Ponderador 2016_aj | D66: Suma de Avance Ponderado 2016 | E66: Suma de Ponderador 2017_aj | F66: Suma de Avance Ponderado 2017 | G66: Suma de Ponderador 2018_aj | H66: Suma de Avance Ponderado 2018 | I66: Suma de Ponderador 2019_aj | J66: Suma de Avance Ponderado 2019
A67: BENEFICENCIA | B67: 1.122965642 | C67: 0.2807414105 | D67: 0.2807414105 | E67: 0.2807414105 | F67: 0 | G67: 0.2807414105 | H67: 0 | I67: 0.2807414105 | J67: 0
A68: CORPORACION SOCIAL DE CUNDINAMARCA | B68: 0.4285985533 | C68: 0.009582640145 | D68: 0.009582640145 | E68: 0.1084036166 | F68: 0 | G68: 0.132360217 | H68: 0 | I68: 0.1782520796 | J68: 0
A69: DESPACHO GOBERNADOR | B69: 0.4065295709 | C69: 0.1141919682 | D69: 0.108104812 | E69: 0.1338557943 | F69: 0 | G69: 0.1261197122 | H69: 0 | I69: 0.03236209624 | J69: 0
A70: EPC | B70: 7.503733439 | C70: 0.755697295 | D70: 0.4939370704 | E70: 2.239424242 | F70: 0 | G70: 2.280563799 | H70: 0 | I70: 2.228048103 | J70: 0
A71: ICCU | B71: 2.836302539 | C71: 0.5450910698 | D71: 0.4710145687 | E71: 0.6907485314 | F71: 0 | G71: 0.697158878 | H71: 0 | I71: 0.9033040595 | J71: 0
A72: IDACO | B72: 0.3488942185 | C72: 0.0662932478 | D72: 0.06314950131 | E72: 0.1073412133 | F72: 0 | G72: 0.1004712612 | H72: 0 | I72: 0.0747884962 | J72: 0
A73: IDECUT | B73: 4.889808043 | C73: 0.9391670529 | D73: 0.8914523283 | E73: 1.131403337 | F73: 0 | G73: 1.333910287 | H73: 0 | I73: 1.485327366 | J73: 0
A74: INDEPORTES | B74: 5.575524412 | C74: 1.198149671 | D74: 0.9898095408 | E74: 1.520791898 | F74: 0 | G74: 1.456214785 | H74: 0 | I74: 1.400368058 | J74: 0
A75: SECRETARIA DE AGRICULTURA | B75: 4.802834947 | C75: 0.4571882497 | D75: 0.42830684 | E75: 1.622642364 | F75: 0 | G75: 1.479254345 | H75: 0 | I75: 1.243749989 | J75: 0
A76: SECRETARIA DE COMPETITIVIDAD | B76: 1.747422672 | C76: 0.2894110755 | D76: 0.2894110755 | E76: 0.4480761599 | F76: 0 | G76: 0.5587734193 | H76: 0 | I76: 0.4511620173 | J76: 0
A77: SECRETARIA DE COOPERACIÓN | B77: 0.4499872429 | C77: 0.09478087462 | D77: 0.08437877226 | E77: 0.1181267881 | F77: 0 | G77: 0.1160535592 | H77: 0 | I77: 0.121026021 | J77: 0
A78: SECRETARIA DE CTeI | B78: 2.500962637 | C78: 0.2260406152 | D78: 0.2260406152 | E78: 1.291833776 | F78: 0 | G78: 0.5050500482 | H78: 0 | I78: 0.4780381977 | J78: 0
A79: SECRETARIA DE DESARROLLO SOCIAL | B79: 8.178232894 | C79: 1.450138162 | D79: 1.154764392 | E79: 2.688940157 | F79: 0 | G79: 2.419063036 | H79: 0 | I79: 1.620091539 | J79: 0
A80: SECRETARIA DE EDUCACIÓN | B80: 24.82272075 | C80: 3.81560191 | D80: 1.621928066 | E80: 8.354207095 | F80: 0 | G80: 6.910544718 | H80: 0 | I80: 5.742367025 | J80: 0
A81: SECRETARIA DE GOBIERNO | B81: 5.541766178 | C81: 1.254115842 | D81: 1.24664482 | E81: 1.731475746 | F81: 0 | G81: 1.311384751 | H81: 0 | I81: 1.244789839 | J81: 0
A82: SECRETARIA DE HACIENDA | B82: 0.3152992805 | C82: 0.07333867429 | D82: 0.07333867429 | E82: 0.07333867429 | F82: 0 | G82: 0.09528325764 | H82: 0 | I82: 0.07333867429 | J82: 0
A83: SECRETARIA DE INTEGRACION REGIONAL | B83: 0.2548900342 | C83: 0.05766617339 | D83: 0.05541931928 | E83: 0.06044006736 | F83: 0 | G83: 0.06510945553 | H83: 0 | I83: 0.07167433791 | J83: 0
A84: SECRETARIA DE LA FUNCION PÚBLICA | B84: 0.2339317242 | C84: 0.02072715212 | D84: 0.02072715212 | E84: 0.09623871001 | F84: 0 | G84: 0.09623871001 | H84: 0 | I84: 0.02072715212 | J84: 0
A85: SECRETARIA DE LAS TIC | B85: 1.797175078 | C85: 0.2801714302 | D85: 0.2801714302 | E85: 0.4389728668 | F85: 0 | G85: 0.4966675017 | H85: 0 | I85: 0.5813632791 | J85: 0
A86: SECRETARÍA DE MINAS Y ENERGÍA | B86: 1.15278789 | C86: 0.09092473619 | D86: 0.08830319285 | E86: 0.3426119308 | F86: 0 | G86: 0.3528140602 | H86: 0 | I86: 0.3664371628 | J86: 0
A87: SECRETARIA DE PLANEACIÓN | B87: 5.233224915 | C87: 0.6144717354 | D87: 0.5073183289 | E87: 1.949555542 | F87: 0 | G87: 1.617193152 | H87: 0 | I87: 1.052004486 | J87: 0
A88: SECRETARIA DE PRENSA | B88: 0.3042037046 | C88: 0.1687143951 | D88: 0.1645689646 | E88: 0.1354893096 | F88: 0 | G88: 0 | H88: 0 | I88: 0 | J88: 0
A89: SECRETARIA DE SALUD | B89: 6.628438276 | C89: 1.154145614 | D89: 0.9893913834 | E89: 1.962968967 | F89: 0 | G89: 2.00119809 | H89: 0 | I89: 1.510125606 | J89: 0
A90: SECRETARIA DE TRANSPORTE Y MOVILIDAD | B90: 1.227069419 | C90: 0.2085026252 | D90: 0.1653398991 | E90: 0.2549134991 | F90: 0 | G90: 0.3731390558 | H90: 0 | I90: 0.390514239 | J90: 0
A91: SECRETARIA DEL AMBIENTE | B91: 6.03696076 | C91: 1.150686628 | D91: 1.07246597 | E91: 1.709580066 | F91: 0 | G91: 1.834841972 | H91: 0 | I91: 1.341852094 | J91: 0
A92: SECRETARIA GENERAL | B92: 0.5242659591 | C92: 0.0320458338 | D92: 0.0320458338 | E92: 0.1671990399 | F92: 0 | G92: 0.1863278897 | H92: 0 | I92: 0.1386931956 | J92: 0
A93: SECRETARIA JURÍDICA | B93: 0.4191661989 | C93: 0.06390229797 | D93: 0.01931452093 | E93: 0.1161131466 | F93: 0 | G93: 0.1249690599 | H93: 0 | I93: 0.1141816945 | J93: 0
A94: UAE DE VIVIENDA | B94: 1.593414525 | C94: 0.2711881849 | D94: 0.2087717559 | E94: 0.5120281266 | F94: 0 | G94: 0.4110886754 | H94: 0 | I94: 0.3991095377 | J94: 0
A95: UNIDAD ADMINISTRATIVA ESPECIAL PARA LA GESTION DEL RIESGO DE DESASTRES. | B95: 2.510892707 | C95: 0.3005007781 | D95: 0.1317021672 | E95: 0.8505042556 | F95: 0 | G95: 0.8217364665 | H95: 0 | I95: 0.5381512065 | J95: 0
A96: UNIDAD DE PENSIONES | B96: 0.1048101266 | C96: 0.01624556962 | D96: 0.01624556962 | E96: 0.02672658228 | F96: 0 | G96: 0.03091898734 | H96: 0 | I96: 0.03091898734 | J96: 0
A97: UNIVERSIDAD DE CUNDINAMARCA | B97: 0.5071856657 | C97: 0.1267964164 | D97: 0.1267964164 | E97: 0.1267964164 | F97: 0 | G97: 0.1267964164 | H97: 0 | I97: 0.1267964164 | J97: 0
A98: Total general | B98: 100 | C98: 16.12621933 | D98: 12.31118703 | E98: 31.29148933 | F98: 0 | G98: 28.34198698 | H98: 0 | I98: 24.24030437 | J98: 0

Sheet Instructivo (hidden)
C3: INSTRUCTIVO PARA ACTUALIZAR LAS METAS DE PRODUCTO
C6: 1. Descripción del Archivo
C8: 1.1. Hoja 1 "Meta de Producto" = Muestra la información de la meta de producto consignada en la base de datos del PDD, esta información no debe ser modificada.
C9: La información puede ser consultada por entidad y por número de meta.
C10: 1.2. Hoja 2 "Datos_Producto" = Esta hoja contiene la información de las metas de producto definidas en el PDD.
C12: En esta hoja se debe realizar la actualización de variables y el registro de la nueva información solicitada en sus respectivos campos o variables. La información aquí registrda será el insumo para la evaluación y seguimiento del PDD.
C14: 2. Proceso de Diligenciamiento
C16: 2.1. En la Hoja 2 "Datos_Producto", en este archivo se filtra la entidad correspondiente a las metas a actualizar.
C18: Variables que deben revisarse y si es el caso se actualizan:
D20: Curso de Vida
D21: Grupos Poblacionales
D22: ODS
D23: Líneas transversales
D24: Otras Líneas transversales
C26: Variables que deben diligenciarse:
C28: Alcance de la Meta: Se debe describir que se pretende hacer con la ejecución de la meta durante los 4 años.
C29: Principales actividades para el logro de meta: Se deben mencionar las actividades o acciones más importantes que se van a desarrollar para el logro del alcance de meta.
C30: Se requiere Plan de Trabajo: De acuerdo a la naturaleza de la meta se debe definir si está, requiere un plan de trabajo especifico para su ejecución y seguimiento. Se contesta Si o No.
C31: Plan de trabajo 1….10: Se debe registrar de manera consecutiva las etapas o capitulos, que componen el plan de trabajo formulado.
C32: P1 ………10: Se debe registrar el valor del ponderador de las etapas o capítulos, programados en el plan de trabajo.
C33: Funcionario responsable: Definir y registrar el funcionario encargado de la ejecución de la meta.
C34: Proyecto moño: Relacionar el proyecto moño que pueda impactar con la ejacución de la meta (definidos por el sr. Gobernador)
C35: Entidades cooperantes: Relacionar las entidades que colaboraran con la ejecución y logro de meta.
C38: 3. Recomendaciones
C40: No modifique el formato de las hojas ( No inserte ni elimine columnas y filas)
C41: El nombre de indicador, la unidad de medida, línea base y programación física, solo se podrán actualizar previa autorización de la secretaria de planeación.
C42: La información debe registrarse en este archivo, el cual se remitirá a la dirección de seguimiento y evaluación de la secretaria de planeación.

Sheet Datos_Prog (hidden)
B2: OBJETIVOS
B5: 1 | C5: 2 | D5: 3 | E5: 4 | F5: 5 | G5: 6 | H5: 7 | I5: 8 | J5: 9 | K5: 10 | L5: 11 | M5: 12 | N5: 13 | O5: 14 | P5: 15 | Q5: 16 | R5: 17 | S5: 18 | T5: 19 | U5: 20 | V5: 21 | W5: 22 | X5: 23 | Y5: 24 | Z5: 25 | AA5: 26 | AB5: 27 | AC5: 28 | AD5: 29 | AE5: 30 | AF5: 31 | AG5: 32 | AH5: 33 | AI5: 34 | AJ5: 35 | AK5: 36 | AL5: 37 | AM5: 38 | AN5: 39 | AO5: 40 | AP5: 41 | AQ5: 42 | AR5: 43 | AS5: 44 | AT5: 45 | AU5: 46 | AV5: 47 | AW5: 48 | AX5: 49 | DD5: 50 | DE5: 51 | DF5: 52 | DG5: 53 | DH5: 54 | DI5: 55 | DJ5: 56 | DK5: 57 | DL5: 58 | DM5: 59 | DN5: 60 | DO5: 61 | DP5: 62 | DQ5: 63 | DR5: 64 | DS5: 65 | DT5: 66 | DU5: 67 | DV5: 68 | DW5: 69 | DX5: 70 | DY5: 71 | DZ5: 72 | EA5: 73 | EB5: 74 | EC5: 75 | ED5: 76 | EE5: 77 | EF5: 78 | EG5: 79 | EH5: 80 | EI5: 81 | EJ5: 82 | EK5: 83 | EL5: 84 | EM5: 85 | EN5: 86 | EO5: 87 | EP5: 88 | EQ5: 89 | ER5: 90 | ES5: 91 | ET5: 92 | EU5: 93 | EV5: 94 | EW5: 95 | EX5: 96 | EY5: 97 | EZ5: 98 | FA5: 99 | FB5: 100 | FC5: 101 | FD5: 102 | FE5: 103 | FF5: 104 | FG5: 105 | FH5: 106 | FI5: 107 | FJ5: 108 | FK5: 109 | FL5: 110 | FM5: 111 | FN5: 112
A6: 1 | B6: OBJETIVO | C6: NOMBRE | D6: OBJETIVO2 | E6: PONDERADOR META PRODUCTO CUATRIENIO (%) | F6: PONDERADOR META PRODUCTO 2016 (%) | G6: AVANCE PONDERADO 2016 | H6: PONDERADOR META PRODUCTO 2017 (%) | I6: AVANCE PONDERADO 2017 | J6: PONDERADOR META PRODUCTO 2018 (%) | K6: AVANCE PONDERADO 2018 | L6: PONDERADOR META PRODUCTO 2019 (%) | M6: AVANCE PONDERADO 2019 | N6: AVANCE PONDERADO DEL CUATRENIO | O6: Inv. 2016 | P6: Inv. 2017 | Q6: Inv. 2018 | R6: Inv. 2019 | S6: Inv. TOTAL | T6: LOGRO1 | U6: LOGRO2 | V6: LOGRO3 | W6: LOGRO4 | X6: LOGRO5
A7: 2 | B7: EJE_1 | C7: 1-CUNDINAMARCA 2036 | D7: MEJORAR CONDICIONES Y OPORTUNIDADES DE VIDA, COHESIÓN SOCIO CULTURAL Y EQUIDAD PARA EL DESARROLLO INTEGRAL DEL SER HUMANO Y DE SUS TERRITORIOS. | E7: 39.72 | F7: 5.632473397 | G7: 3.640243593 | H7: 13.82940127 | I7: 0 | J7: 11.2964773 | K7: 0 | L7: 8.96164803 | M7: 0 | N7: 3.640243593 | T7: LOGRO 1 | U7: LOGRO 2 | V7: LOGRO 3 | W7: LOGRO 4 | X7: LOGRO 5
A8: 3 | B8: EJE_2 | C8: 2-TEJIDO SOCIAL | D8: RESTABLECER LA RELACIÓN ARMÓNICA DEL SER HUMANO CON EL AMBIENTE Y SU ENTORNO. | E8: 24.84 | F8: 4.898720186 | G8: 4.250105877 | H8: 7.44110817 | I8: 0 | J8: 6.774015917 | K8: 0 | L8: 5.726155728 | M8: 0 | N8: 4.250105877 | T8: LOGRO 2 | U8: LOGRO 3 | V8: LOGRO 4 | W8: LOGRO 5 | X8: LOGRO 6
A9: 4 | B9: EJE_3 | C9: 3-COMPETITIVIDAD SOSTENIBLE | D9: SER COMPETITIVOS Y SUSTENTABLES A PARTIR DE POTENCIALIDADES, ARTICULACIÓN REGIONAL, GESTIÓN DEL CONOCIMIENTO, INNOVACIÓN PRODUCTIVA Y SOCIAL | E9: 23.36 | F9: 3.422435453 | G9: 2.736866983 | H9: 6.531897229 | I9: 0 | J9: 6.853457486 | K9: 0 | L9: 6.552209831 | M9: 0 | N9: 2.736866983 | T9: LOGRO 3 | U9: LOGRO 4 | V9: LOGRO 5 | W9: LOGRO 6 | X9: LOGRO 7
A10: 5 | B10: EJE_4 | C10: 4-INTEGRACIÓN Y GOBERNANZA | D10: GARANTIZAR CON BUEN GOBIERNO Y TRANSPARENCIA, GERENCIA EFECTIVA POR RESULTADOS DEL DESARROLLO, SEGURIDAD, CONVIVENCIA, PARTICIPACIÓN REAL, CORRESPONSABILIDAD DE LA SOCIEDAD CIVIL Y FORTALECIMIENTO DE LA IDENTIDAD CUNDINAMARQUESA. | E10: 12.08 | F10: 2.176387801 | G10: 2.045397957 | H10: 3.507131341 | I10: 0 | J10: 3.407113176 | K10: 0 | L10: 2.989367681 | M10: 0 | N10: 2.045397957 | T10: LOGRO 4 | U10: LOGRO 5 | V10: LOGRO 6 | W10: LOGRO 7 | X10: LOGRO 8
B11: PDD | C11: PDD | E11: 100 | F11: 16.13001684 | G11: 12.67261441 | H11: 31.30953801 | I11: 0 | J11: 28.33106388 | K11: 0 | L11: 24.22938127 | M11: 0 | N11: 12.67261441
B17: PROGRAMAS
A18: 21
B22: 1 | C22: 2 | D22: 3 | E22: 4 | F22: 5 | G22: 6 | H22: 7 | I22: 8 | J22: 9 | K22: 10 | L22: 11 | M22: 12 | N22: 13 | O22: 14 | P22: 15 | Q22: 16 | R22: 17 | S22: 18 | T22: 19 | U22: 20 | V22: 21 | W22: 22 | X22: 23 | Y22: 24 | Z22: 25 | AA22: 26 | AB22: 27 | AC22: 28 | AD22: 29 | AE22: 30 | AF22: 31 | AG22: 32 | AH22: 33 | AI22: 34 | AJ22: 35 | AK22: 36 | AL22: 37 | AM22: 38 | AN22: 39 | AO22: 40 | AP22: 41 | AQ22: 42 | AR22: 43 | AS22: 44 | AT22: 45 | AU22: 46 | AV22: 47 | AW22: 48 | AX22: 49 | AY22: 50 | AZ22: 51 | BA22: 52 | BB22: 53 | BC22: 54 | BD22: 55 | BE22: 56 | BF22: 57 | BG22: 58 | BH22: 59 | BI22: 60 | BJ22: 61 | BK22: 62 | BL22: 63 | BM22: 64 | BN22: 65 | BO22: 66 | BP22: 67 | BQ22: 68 | BR22: 69 | BS22: 70 | BT22: 71 | BU22: 72 | BV22: 73 | BW22: 74 | BX22: 75 | BY22: 76 | BZ22: 77 | CA22: 78 | CB22: 79 | CC22: 80 | CD22: 81 | CE22: 82 | CF22: 83 | CG22: 84 | CH22: 85 | CI22: 86 | CJ22: 87 | CK22: 88 | CL22: 89 | CM22: 90 | CN22: 91 | CO22: 92 | CP22: 93 | CQ22: 94 | CR22: 95 | CS22: 96 | CT22: 97 | CU22: 98 | CV22: 99 | CW22: 100 | CX22: 101 | CY22: 102 | CZ22: 103 | DA22: 104 | DB22: 105 | DC22: 106 | DD22: 107 | DE22: 108 | DF22: 109 | DG22: 110 | DH22: 111 | DI22: 112 | DJ22: 113 | DK22: 114 | DL22: 115 | DM22: 116 | DN22: 117 | DO22: 118 | DP22: 119 | DQ22: 120 | DR22: 121 | DS22: 122 | DT22: 123 | DU22: 124 | DV22: 125 | DW22: 126 | DX22: 127 | DY22: 128 | DZ22: 129 | EA22: 130 | EB22: 131 | EC22: 132 | ED22: 133 | EE22: 134 | EF22: 135 | EG22: 136
B23: PROGRAMAS | C23: OBJETIVOS | D23: META1 | E23: META2 | F23: META3 | G23: META4 | H23: META5 | I23: META6 | J23: META7 | K23: ENTIDAD 1 | L23: ENTIDAD 2 | M23: ENTIDAD 3 | N23: ENTIDAD 4 | O23: ENTIDAD 5 | P23: ENTIDAD 6 | Q23: ENTIDAD 7 | R23: ENTIDAD 8 | S23: ENTIDAD 9 | T23: Sub-Prog_1 | U23: M1 | V23: M2 | W23: M3 | X23: M4 | Y23: M5 | Z23: M6 | AA23: M7 | AB23: M8 | AC23: M9 | AD23: M10 | AE23: M11 | AF23: M12 | AG23: M13 | AH23: M14 | AI23: M15 | AJ23: M16 | AK23: M17 | AM23: Sub-Prog_2 | AN23: M1 | AO23: M2 | AP23: M3 | AQ23: M4 | AR23: M5 | AS23: M6 | AT23: M7 | AU23: M8 | AV23: M9 | AW23: M10 | AX23: M11 | AY23: M12 | AZ23: M13 | BA23: M14 | BB23: M15 | BC23: M16 | BD23: M17 | BE23: M18 | BF23: M19 | BG23: M20 | BH23: M21 | BI23: M22 | BJ23: M23 | BK23: M24 | BL23: Sub-prog_3 | BM23: M1 | BN23: M2 | BO23: M3 | BP23: M4 | BQ23: M5 | BR23: M6 | BS23: M7 | BT23: M8 | BU23: M9 | BV23: M10 | BW23: M11 | BX23: M12 | BY23: M13 | CA23: Sub-prog_4 | CB23: M1 | CC23: M2 | CD23: M3 | CE23: M4 | CF23: M5 | CG23: M6 | CH23: M7 | CI23: M8 | CK23: Sub-prog_5 | CL23: M1 | CR23: Ponderador Meta | CS23: Ponderador 2016_aj | CT23: Avance Ponderado 2016 | CU23: Ponderador 2017_aj | CV23: Avance Ponderado 2017 | CW23: Ponderador 2018_aj | CX23: Avance Ponderado 2018 | CY23: Ponderador 2019_aj | CZ23: Avance Ponderado 2019 | DA23: Avance Ponderado 2016-2019 | DI23: Inv. 2016 | DJ23: Inv. 2017 | DK23: Inv. 2018 | DL23: Inv. 2019 | DM23: Inv. 2020 | DN23: LOGRO 1 | DO23: LOGRO 2 | DP23: LOGRO 3 | DQ23: LOGRO 4 | DR23: LOGRO 5 | DS23: LOGRO 6 | DT23: LOGRO 7 | DU23: LOGRO 8 | DV23: LOGRO 9 | DW23: LOGRO 10
B24: 1.1. GENERACION 2036 | C24: Formar la generación cundinamarquesa que en el año 2036 serán los ciudadanos del nuevo liderazgo; ciudadanos felices creativos, críticos y con prospectiva global, cuyo proyecto de vida se encuentra enmarcado en la cultura, el deporte y en valores como el respeto a la familia y al medio ambiente y la paz. | D24: Generar transformación curricular en el 100% de las IED. | K24: EDUCACIÓN | T24: 1.1.1. CALIDAD EN LA EDUCACIÓN PARA EL NUEVO LIDERAZGO | U24: 100 | V24: 101 | W24: 102 | X24: 103 | CR24: 1.911490063 | CS24: 0.1612223252 | CT24: 0 | CU24: 0.5846623278 | CV24: 0 | CW24: 0.604067927 | CX24: 0 | CY24: 0.5615374827 | CZ24: 0 | DA24: 0 | DI24: 2141000000 | DJ24: 6292646674 | DK24: 5283706745 | DL24: 5632646674
B25: 1.2. CALIDAD 10 | C25: Garantizar los niveles de calidad en la administración del sistema de educativo. | D25: Aumentar del 1% al 6% de estudiantes graduados del sector oficial con nivel de inglés B1 y B+ | E25: Aumentar en 2 puntos porcentuales al final del cuatrienio la clasificación de las IED que se encuentran en los niveles A+, A y B en pruebas SABER 11 | K25: EDUCACIÓN | T25: 1.2.1. CUNDINAMARCA BILINGÜE | U25: 104 | V25: 105 | AM25: 1.2.2.. PENSAMIENTO MATEMÁTICO Y LECTO ESCRITURA | AN25: 106 | BL25: 1.2.3. SISTEMAS DE APRENDIZAJE INNOVADORES | BM25: 107 | BN25: 108 | BO25: 109 | BP25: 110 | BQ25: 111 | CA25: 1.2.4. MAESTROS QUE DEJAN HUELLA | CB25: 112 | CC25: 113 | CD25: 114 | CE25: 115 | CF25: 116 | CR25: 5.461789723 | CS25: 0.5171474231 | CT25: 0 | CU25: 2.450313223 | CV25: 0 | CW25: 1.338877153 | CX25: 0 | CY25: 1.155451923 | CZ25: 0 | DA25: 0 | DI25: 2857360000 | DJ25: 8427580000 | DK25: 10459670000 | DL25: 13294870000
B26: 1.3. CUNDINAMARCA MÁS PROFESIONAL | C26: Vincular a mas estudiantes cundinamarqueses en el sistema de Educación Superior | D26: Aumentar la tasa de transición a educación superior de 32,6 a 33% en el periodo de gobierno | K26: EDUCACIÓN | L26: UDEC | T26: 1.3.1. 4X1 OPCION: MAS EQUIDAD | U26: 117 | V26: 118 | W26: 119 | X26: 120 | Y26: 121 | Z26: 122 | AA26: 123 | AM26: 1.3.2. FORMACIÓN EN ÁREAS ESTRATEGICAS | AN26: 124 | AO26: 125 | AP26: 126 | AQ26: 127 | AR26: 128 | CR26: 4.684650396 | CS26: 0.3252688409 | CT26: 0.1267964164 | CU26: 1.486781315 | CV26: 0 | CW26: 1.647446033 | CX26: 0 | CY26: 1.225154208 | CZ26: 0 | DA26: 0.1267964164 | DI26: 15860650000 | DJ26: 22472857255 | DK26: 47421495895 | DL26: 48982617260
B27: 1.4. UNIDOS PODEMOS LOGRAR MÁS EDUCACIÓN | C27: Garantizar el acceso y permanencia de los estudiantes en el sistema educativo. | D27: Aumentar del 5,14% al 40% el porcentaje de la matricula en jornada única escolar. (61.398 ni nos y niñas) | E27: Aumentar la Cobertura Neta en grado transición en 0,5 puntos porcentuales | F27: Mantener la cobertura Bruta total (de transición a grado 11°) en el 89% | G27: Reducir en el cuatrienio la tasa de analfabetismo del 3,3 al 2,9% | K27: EDUCACIÓN | T27: 1.4.1. MAS Y MEJOR EDUCACIÓN | U27: 129 | V27: 130 | W27: 131 | X27: 132 | Y27: 133 | Z27: 134 | AA27: 135 | AB27: 136 | AC27: 137 | AD27: 138 | AE27: 139 | AF27: 140 | AG27: 141 | AH27: 142 | AI27: 143 | AJ27: 144 | AK27: 145 | AM27: 1.4.2. JUNTOS POR LA PRIMERA INFANCIA. | AN27: 146 | AO27: 147 | BL27: 1.4.3. INSTITUCIONES EDUCATIVAS PARA EL NUEVO LIDERAZGO | BM27: 148 | BN27: 149 | BO27: 150 | BP27: 151 | BQ27: 152 | BR27: 153 | CR27: 11.78388631 | CS27: 2.659638304 | CT27: 1.621928066 | CU27: 3.521944859 | CV27: 0 | CW27: 3.009648235 | CX27: 0 | CY27: 2.592654917 | CZ27: 0 | DA27: 1.621928066 | DI27: 6.41901203e+11 | DJ27: 6.740967213e+11 | DK27: 7.35586139e+11 | DL27: 8.023131817e+11
B28: 1.5. CUNDINAMARCA AVANZADA E INNOVADORA | C28: Desarrollo de la creatividad e innovación de la población Cundinamarquesa, a través de la investigación y generación de conocimiento. | D28: Aumentar mínimo en 65 cupos la oferta de los cundinamarqueses que acceden al programa de formación en alto nivel | E28: Implementar una estrategia para estimular la investigación en adolescentes y generar procesos innovadores en diferentes áreas del conocimiento | F28: Lograr la transformación de la estructura educativa de las 61 IED de 4 micro regiones de Cundinamarca en el periodo de Gobierno | K28: CTeI | L28: EDUCACIÓN | T28: 1.5.1. CAPITAL HUMANO CON VISIÓN DE FUTURO | U28: 158 | V28: 159 | AM28: 1.5.2. INNOVACIÓN EDUCATIVA | AN28: 154 | AO28: 155 | AP28: 156 | AQ28: 157 | CR28: 2.294606117 | CS28: 0.1791900202 | CT28: 0.08238845492 | CU28: 1.063940745 | CV28: 0 | CW28: 0.5772061138 | CX28: 0 | CY28: 0.4742692381 | CZ28: 0 | DA28: 0.08238845492 | DI28: 1.626406667e+10 | DJ28: 2771933333 | DK28: 1.571733333e+10 | DL28: 1435466667
B29: 1.6. CUNDINAMARCA ORDENADA Y SOTENIBLE | C29: Garantizar el uso racional del suelo para el desarrollo de actividades productivas y económicas, armonizadas en materia ambiental, social y cultural. | D29: 116 municipios con acciones de gestión terriorial que permitan la construcción de un modelo de Ordenamiento Territorial para el Departamento con enfoque regional, durante el periodo de Gobierno | E29: Contar con un Plan de ordenamiento territorial departamental (POTD) en donde se articulen las políticas y estrategias de ordenamiento físico territorial | K29: PLANEACIÓN | T29: 1.6.1. POTENCIANDO TERRITORIOS | U29: 160 | V29: 161 | W29: 162 | X29: 163 | Y29: 164 | Z29: 165 | AM29: 1.6.2. MODELANDO EL TERRITORIO DEL FUTURO | AN29: 166 | AO29: 167 | AP29: 168 | CR29: 3.660735249 | CS29: 0.398601143 | CT29: 0.3441333724 | CU29: 1.429846514 | CV29: 0 | CW29: 1.122802881 | CX29: 0 | CY29: 0.7094847105 | CZ29: 0 | DA29: 0.3441333724 | DI29: 250000000 | DJ29: 14700000000 | DK29: 18150000000 | DL29: 16600000000
B30: 1.7. ESFUERZOS UNIDOS RIESGOS REDUCIDOS | C30: Integrar la gestión del riesgo en la planeación del territorio en los 116 municipios del departamento con acciones encaminadas al conocimiento, reducción y manejo con el fin de adaptar a los cundinamarqueses a la cultura del riesgo y resiliencia | D30: Implementar la gestión del riesgo en las 15 provincias del Departamento de Cundinamarca | K30: EPC | L30: UAEGRD | T30: 1.7.1. TODOS SOMOS RESILIENTES | U30: 174 | V30: 175 | W30: 176 | X30: 177 | AM30: 1.7.2. MÁS ORDEN, TERRITORIO SEGURO. | AN30: 171 | AO30: 172 | AP30: 173 | BL30: 1.7.3. ATENCIÓN OPORTUNA ANTE EL RIESGO | BM30: 174 | BN30: 175 | BO30: 176 | BP30: 177 | CR30: 2.931315004 | CS30: 0.4090583093 | CT30: 0.2402596984 | CU30: 0.9521578729 | CV30: 0 | CW30: 0.9233900838 | CX30: 0 | CY30: 0.6467087377 | CZ30: 0 | DA30: 0.2402596984 | DI30: 2846549407 | DJ30: 7684145653 | DK30: 12018190002 | DL30: 1.190919087e+10
B31: 1.8. CUNDINAMARCA OFERTA NATURAL EN ALIANZA POR EL AGUA - GOBERNANZA VITAL | C31: Integrar la gestión del riesgo en la planeación del territorio en los 116 municipios del departamento con acciones encaminadas al conocimiento, reducción y manejo con el fin de adaptar a los cundinamarqueses a la cultura del riesgo y resiliencia | D31: Adoptar un Plan de abastecimiento regional del agua | E31: Desarrollar 3 estrategias de Adaptación o Mitigación al Cambio Climático | F31: Generar 7 acciones de importancia estratégica regional para contribuir a la protección o conservación o preservación o recuperación de la Estructura Ecológica departamental | K31: EPC | L31: CTeI | M31: SALUD | N31: AMBIENTE | T31: 1.8.1. PLANIFICACIÓN AMBIENTAL DEL TERRITORIO | U31: 178 | AM31: 1.8.2. SEMBREMOS AGUA PARA COSECHAR VIDA | AN31: 179 | AO31: 180 | AP31: 181 | AQ31: 182 | AR31: 183 | AS31: 184 | AT31: 185 | AU31: 186 | AV31: 187 | AW31: 188 | AX31: 189 | AY31: 190 | AZ31: 191 | BA31: 192 | BL31: 1.8.3. ACCIÓN POR EL CLIMA | BM31: 193 | BN31: 194 | BO31: 195 | CA31: 1.8.4. ACCION VERDE | CB31: 196 | CC31: 197 | CK31: 1.8.5. CUNDINAMARCA BIODIVERSA | CL31: 198 | CR31: 6.991527134 | CS31: 0.9823470316 | CT31: 0.906174205 | CU31: 2.339754416 | CV31: 0 | CW31: 2.073038874 | CX31: 0 | CY31: 1.596386813 | CZ31: 0 | DA31: 0.906174205 | DI31: 1.619343835e+10 | DJ31: 24146065700 | DK31: 2.33842465e+10 | DL31: 18518856100
B32: 2.1. FAMILIAS UNIDAS Y FELICES | C32: Lograr familias reconocidas social, económica, política y culturalmente como agentes interlocutores activos, con oportunidades de paz interna y externa, con seguridad económica, como sujeto colectivo de derechos y garante de los derechos de sus integrantes; autogestionaria, generadora de ingresos y actora del desarrollo; formadora de sus integrantes en los principios éticos, en la convivencia pacífica, en la aceptación de normas, límites y el manejo adecuado de los conflictos; basada en la diversidad en su constitución y desde el punto de vista étnico y cultural; fundada en el respeto mutuo, el afecto, el amor, la confianza, la solidaridad, la comunicación intergeneracional, asertiva y con autonomía para construir su proyecto de vida y perseguir el alcance de la felicidad de sus integrantes de manera individual y colectiva. | D32: Incrementar a 30,000 familias el goce de los servicios deportivos, recreativos y actividad física, contribuyendo a la reconstrucción del núcleo familiar y al desarrollo de valores en un ambiente de convivencia pacífica | E32: Reducir en 22% (3306 personas) la Población Pobre No afiliada del Departamento. | F32: Reducir la desnutrición infantil con el aumento en 4.000 el número de familias beneficiadas con los programas de seguridad alimentaria y nutricional en el periodo de gobierno. | G32: Reducir la violencia intrafamiliar en 380 casos en el departamento a fín de mantener la integración familiar durante el periodo de Gobierno | K32: CORSOCUN | L32: INDEPORTES | M32: D. SOCIAL | N32: GOBIERNO | O32: SALUD | T32: 2.1.1. FAMILIA FORMADORA | U32: 212 | V32: 213 | W32: 214 | X32: 215 | Y32: 216 | Z32: 217 | AA32: 218 | AB32: 219 | AM32: 2.1.2. FAMILIA PROTECTORA | AN32: 208 | AO32: 209 | AP32: 210 | AQ32: 211 | AR32: 220 | BL32: 2.1.3. JUGUEMOS JUNTOS | BM32: 199 | BN32: 200 | BO32: 201 | BP32: 202 | BQ32: 203 | BR32: 204 | BS32: 205 | CA32: 2.1.4. FAMILIAS BIEN NUTRIDAS | CB32: 206 | CC32: 207 | CR32: 4.088218807 | CS32: 0.6630854782 | CT32: 0.6077522067 | CU32: 1.233831137 | CV32: 0 | CW32: 1.170648001 | CX32: 0 | CY32: 1.020654191 | CZ32: 0 | DA32: 0.6077522067 | DI32: 1.114948427e+11 | DJ32: 2.344367227e+11 | DK32: 2.451506669e+11 | DL32: 2.456364244e+11
B33: 2.2. MUJER | C33: Promocionar la participación activa e igualitaria de las mujeres del departamento en los programas de deportivos, de actividad física y recreación, protegiendo su salud física y mental a través de la inclusión en los programas del desarrollo institucional de la equidad de género | D33: 10.000 mujeres participando en programas del deporte, la actividad física la recreación y los hábitos de vida saludable | E33: Disminuir en un 10% la proporción de incremento de violencia de género en el departamento de Cundinamarca. | F33: Lograr que el 3% de las mujeres del departamento se empoderen de su rol de mujer | G33: Reducir a 38,2 la razón de mortalidad materna en Cundinamarca | K33: INDEPORTES | L33: D. SOCIAL | M33: GOBIERNO | N33: SALUD | T33: 2.2.1. MUJERES CUNDINAMARQUESAS CON IGUALDAD DE OPORTUNIDADES | U33: 221 | V33: 222 | W33: 223 | X33: 224 | Y33: 225 | Z33: 226 | AA33: 227 | AB33: 228 | AC33: 229 | AM33: 2.2.2. LUCHA CONTRA LA VIOLENCIA HACIA LAS MUJERES EN CUNDINAMARCA | AN33: 230 | AO33: 231 | AP33: 232 | AQ33: 233 | AR33: 234 | AS33: 235 | AT33: 236 | CR33: 2.249674503 | CS33: 0.3037874606 | CT33: 0.2785207337 | CU33: 0.698947843 | CV33: 0 | CW33: 0.6796512632 | CX33: 0 | CY33: 0.5672879359 | CZ33: 0 | DA33: 0.2785207337 | DI33: 1517434311 | DJ33: 2187249095 | DK33: 2300505688 | DL33: 2719851506
B34: 2.3. MIS PRIMEROS PASOS | C34: Garantizar el derecho al pleno desarrollo de las niñas y niños desde su nacimiento hasta los seis años de edad colocando como centro siempre a las mujeres gestantes, concibiéndolos como sujetos de derecho, únicos y singulares, activos en su propio desarrollo, interlocutores válidos, integrales, y reconocer al Estado, la familia y la sociedad como garantes de sus derechos de tal manera que esos seres que comienzan la vida tengan las condiciones necesarias para un desarrollo óptimo y para que vivan a plenitud desde el momento mismo en que son concebidos. | D34: Aumentar en un 3% las madres gestantes y lactantes beneficiadas con el paquete alimentario. | E34: Disminuir a 8/1000 nacidos vivos la tasa de mortalidad infantil Departamental en menores de un año, en coordinación con los otros sectores de la administración Departamental | F34: Disminuir a 9/1000 nacidos vivos la tasa de mortalidad Departamental en menores de 5 años, en coordinación con los otros sectores de la administración Departamental | G34: Disminuir en un 15% la prevalencia de desnutrición aguda en menores de 5 años. | H34: Estimular el desarrollo motor de 40.000 niños y niñas de primera infancia con acciones orientadas a la protección y, el respeto por los derechos humanos y la construcción de la paz, garantizando sus destrezas con el desarrollo motriz y la estimulación temprana al deporte y la recreación para tener niños más alegres y felices en el departamento | I34: Implementar en los 116 municipios del Departamento el Consejo Departamental de Niños y Niñas y de Adolescentes | J34: Reducir a 2 por 100.000 nacidos vivos NV la mortalidad evitable por y asociada a desnutrición en menores de 5 años | K34: INDEPORTES | L34: D. SOCIAL | M34: SALUD | T34: 2.3.1. TODOS POR LA VIDA | U34: 237 | V34: 238 | W34: 239 | X34: 240 | Y34: 241 | Z34: 242 | AA34: 243 | AB34: 244 | AC34: 245 | CR34: 1.843535262 | CS34: 0.3702748967 | CT34: 0.3181787827 | CU34: 0.5359806575 | CV34: 0 | CW34: 0.5368280806 | CX34: 0 | CY34: 0.4004516275 | CZ34: 0 | DA34: 0.3181787827 | DI34: 14561776125 | DJ34: 1.527776127e+10 | DK34: 1.616702095e+10 | DL34: 1.686913814e+10
B35: 2.4. TEMPRANAS SONRISAS | C35: Fomentar y promover el desarrollo integral de los niños y niñas mediante la promoción social, potenciando su participación activa con buenos hábitos de convivencia, respeto, participación, comunicación y preparación para su paso hacia la adolescencia | D35: Fomentar la participación en programas de irradiación deportiva, recreación y actividad física a 35000 niños y niñas s entre 5 a 11 años como parte de su desarrollo integral | E35: Fortalecer e Implementar en un 80% el plan departamental de erradicación de trabajo infantil durante el periodo de gobierno | K35: BENEFICENCIA | L35: INDEPORTES | M35: D. SOCIAL | N35: SALUD | T35: 2.4.1. INFANCIA CON SALUD Y NUTRICIÓN | U35: 246 | AM35: 2.4.2 INFANCIA CON DESARROLLO CULTURAL, DEPORTIVO, RECREATIVO Y PARTICIPATIVO | AN35: 247 | AO35: 248 | AP35: 249 | AQ35: 250 | BL35: 2.4.3. INFANCIA EN AMBIENTES PROTECTORES | BM35: 251 | BN35: 252 | CR35: 1.451121157 | CS35: 0.271242679 | CT35: 0.2555094625 | CU35: 0.4312670757 | CV35: 0 | CW35: 0.3959105545 | CX35: 0 | CY35: 0.352700848 | CZ35: 0 | DA35: 0.2555094625 | DI35: 203000000 | DJ35: 464100000 | DK35: 416000000 | DL35: 442200000
B36: 2.5. ADOLESCENTES CAMBIOS CON SEGURIDAD | C36: Fortalecer y apoyar el desarrollo y participación de los adolescentes a través de acciones integradas y coordinadas de promoción, protección, recuperación social y formación contribuyendo así a unas mejores oportunidades de proyecto de vida, en especial a las mujeres jóvenes del departamento | D36: Disminuir a 18 la proporción de adolescentes alguna vez madres o actualmente embarazadas entre los 10 y 19 años. | E36: Motivar la sana ocupación del tiempo libre en 45.000 adolescentes mediante proceso de formación a talentos deportivos contribuyendo a la construcción de un proyecto de vida a largo plazo | K36: BENEFICENCIA | L36: INDEPORTES | M36: D. SOCIAL | N36: SALUD | T36: 2.5.1. ADOLESCENCIA CON DESARROLLO CULTURAL, DEPORTIVO, RECREATIVO Y PARTICIPATIVO | U36: 253 | V36: 254 | W36: 255 | X36: 256 | Y36: 257 | Z36: 258 | AA36: 259 | AM36: 2.5.2. ADOLESCENCIA EN AMBIENTES PROTECTORES | AN36: 260 | AO36: 261 | BL36: 2.5.3. EMBARAZO EN ADOLESCENTES | BM36: 262 | BN36: 263 | CR36: 1.867866184 | CS36: 0.5653724092 | CT36: 0.4147610793 | CU36: 0.4535749409 | CV36: 0 | CW36: 0.4509930797 | CX36: 0 | CY36: 0.3979257546 | CZ36: 0 | DA36: 0.4147610793 | DI36: 6208161672 | DJ36: 6930100000 | DK36: 7162040320 | DL36: 7305270160
B37: 2.6. JOVENES POR CUNDINAMARCA | C37: Crear las condiciones culturales, económicas, financieras, sociales y ambientales en el departamento a través de la interacción entre entidades públicas y privadas, la sociedad civil con miras a promover la plena realización de las potencialidades, capacidades, participación y empoderamiento de los jóvenes de tal manera que les permita hacer realidad de manera autónoma, responsable y digna sus proyectos de vida individual y colectivo. | D37: Contribuir en la reducción del índice de drogadicción, embarazos no deseados y alcoholismo juvenil, mediante la vinculación de 600.000 jóvenes del departamento en programas deportivos, recreativos y de actividad física que le brinden un entorno de vida y uso saludable del tiempo libre | E37: Implementar en un 40% la política pública de juventud del Departamento de Cundinamarca | K37: INDEPORTES | L37: D. SOCIAL | M37: SALUD | T37: 2.6.1. JÓVENES CON SALUD | U37: 264 | AM37: 2.6.2. JÓVENES CON DESARROLLO CULTURAL, DEPORTIVO, RECREATIVO Y PARTICIPATIVO | AN37: 265 | AO37: 266 | AP37: 267 | BL37: 2.6.3 JÓVENES PRODUCTIVOS Y EMPRENDEDORES | BM37: 268 | CA37: 2.6.4. JÓVENES LIDERAN | CB37: 269 | CC37: 270 | CD37: 271 | CE37: 272 | CF37: 273 | CG37: 274 | CH37: 275 | CI37: 276 | CR37: 1.897188065 | CS37: 0.289975414 | CT37: 0.2497562489 | CU37: 0.6713779693 | CV37: 0 | CW37: 0.5492725158 | CX37: 0 | CY37: 0.386562166 | CZ37: 0 | DA37: 0.2497562489 | DI37: 4497102551 | DJ37: 7643801150 | DK37: 7684801389 | DL37: 7726180496
B38: 2.7. ADULTEZ Y PLENITUD | C38: Contribuir, consolidar y fortalecer a la población adulta mediante estrategias, alianzas y participación social, que permitan un desarrollo integral en el individuo tanto en el aspecto económico, productivo y familiar. | D38: Fortalecer el proceso vital del 100% de las personas mayores a través de la inclusión de programas de actividad física, recreación y hábitos de vida saludable. | K38: INDEPORTES | L38: SALUD | T38: 2.7.1. ADULTEZ CON SALUD, DEPORTE Y RECREACION | U38: 277 | V38: 278 | W38: 279 | CR38: 0.4710216998 | CS38: 0.05150045208 | CT38: 0.05150045208 | CU38: 0.1544202532 | CV38: 0 | CW38: 0.1552905515 | CX38: 0 | CY38: 0.109810443 | CZ38: 0 | DA38: 0.05150045208 | DI38: 7717783278 | DJ38: 9375561605 | DK38: 9679877612 | DL38: 9995363613
B39: 2.8. ENVEJECIMIENTO ACTIVO Y VEJEZ | C39: Contribuir a las condiciones de desarrollo social, económico y cultural de las personas mayores para que alcancen una vejez digna, saludable e integrada, dentro del marco de la promoción, prevención y restitución de los derechos humanos con el objetivo de ampliar la esperanza de vida saludable, la productividad y la calidad de vida en la vejez | D39: Disminuir en 5,500 adultos mayores los índices de abandono social | E39: Fortalecer el proceso vital de 100% de las personas mayores a través de la inclusión de programas de actividad física, recreación y hábitos de vida saludable | K39: BENEFICENCIA | L39: INDEPORTES | M39: D. SOCIAL | N39: SALUD | O39: PENSIONES | T39: 2.8.1. ENVEJECIMIENTO Y VEJEZ CON SALUD, RECREACION, DEPORTE Y NUTRICIÓN | U39: 280 | V39: 281 | AM39: 2.8.2. ENVEJECIMIENTO Y VEJEZ CON ATENCIÓN Y PROTECCIÓN | AN39: 282 | AO39: 283 | AP39: 284 | AQ39: 285 | AR39: 286 | AS39: 287 | AT39: 288 | AU39: 289 | CR39: 1.766799277 | CS39: 0.3730211121 | CT39: 0.2625025769 | CU39: 0.5157937161 | CV39: 0 | CW39: 0.4598294756 | CX39: 0 | CY39: 0.4181549729 | CZ39: 0 | DA39: 0.2625025769 | DI39: 8716600900 | DJ39: 8615686493 | DK39: 9094796035 | DL39: 9430916242
B40: 2.9. LOS MÁS CAPACES¡ | C40: Asegurar el goce de los derechos y el cumplimiento de los deberes de las personas con discapacidad, sus familias y cuidadores, generando productividad y entornos felices mediante estrategias deportivas, recreativas y saludables. | D40: Incluir al 100% de las personas con discapacidad en espacios recreativos, deportivos y de actividad física que faciliten la inclusión en los eventos y escenarios del departamento durante el cuatrienio | E40: Potencializar habilidades y destrezas en el 5% de las personas con discapacidad como usuarios de programas de salud, nutrición atención y protección | K40: BENEFICENCIA | L40: INDEPORTES | M40: D. SOCIAL | N40: SALUD | T40: 2.9.1. DISPAPACIDAD, ATENCIÓN Y PROTECCIÓN | U40: 290 | V40: 291 | W40: 292 | X40: 293 | Y40: 294 | Z40: 295 | AA40: 296 | AB40: 297 | AC40: 298 | AD40: 299 | CR40: 1.617070524 | CS40: 0.4097809908 | CT40: 0.351803587 | CU40: 0.4403366278 | CV40: 0 | CW40: 0.4089629087 | CX40: 0 | CY40: 0.3579899971 | CZ40: 0 | DA40: 0.351803587 | DI40: 3719905062 | DJ40: 4917506258 | DK40: 5416972918 | DL40: 6299173349
B41: 2.10 PREVENCIÓN DE CONSUMO DE SUSTANCIAS PSICOACTIVAS | C41: Reducir la incidencia y prevalencia del consumo de sustancias psicoactivas en el departamento y mitigar el impacto negativo del consumo sobre el individuo, la familia, la comunidad y la sociedad, a través de una estrategia integrada, participativa, corresponsable, efectiva y eficaz frente al consumo de sustancias psicoactivas y su impacto, a partir de un marco común de referencia ético, filosófico, conceptual, operativo y de gestión | D41: Contribuir en la reducción del índice de drogadicción, embarazos no deseados y alcoholismo juvenil, mediante la vinculación de 600.000 jóvenes del departamento en programas deportivos, recreativos y de actividad física que le brinden un entorno de vida y uso saludable del tiempo libre. | K41: INDEPORTES | L41: D. SOCIAL | M41: SALUD | T41: 2.10.1. PREVENCIÓN Y MITIGACIÓN | U41: 300 | V41: 301 | W41: 302 | X41: 303 | CR41: 0.6906238698 | CS41: 0.1512099052 | CT41: 0.1105344518 | CU41: 0.2143648906 | CV41: 0 | CW41: 0.2332681455 | CX41: 0 | CY41: 0.09178092848 | CZ41: 0 | DA41: 0.1105344518 | DI41: 976569775.4 | DJ41: 1147126140 | DK41: 1165761800 | DL41: 1183485831
B42: 2.11 VÍCTIMAS DEL CONFLICTO ARMADO: OPORTUNIDADES PARA LA PAZ | C42: Buscar la restitución y garantía de los derechos a las víctimas del conflicto armado. Dar cumplimiento a la ley 1448 del 2011 y decreto reglamentario 4800 cuya finalidad es la implementación de mecanismos de asistencia, atención y reparación integral a las víctimas de que trata el artículo 3° de la Ley 1448 de 2011, para la materialización de sus derechos constitucionales. | D42: 39.681 víctimas atendidas por año de forma intersectorial en articulación con el gobierno nacional | E42: Incluir a 157.411 personas vca por medio de la inclusión de programas de actividad física, deporte, recreación y hábitos de vida saludable. | K42: BENEFICENCIA | L42: IDECUT | M42: INDEPORTES | N42: AGRICULTURA | O42: COMPETITIVIDAD | P42: GOBIERNO | Q42: SALUD | T42: 2.11.1. ATENCIÓN Y ASISTENCIA | U42: 304 | V42: 305 | W42: 306 | X42: 307 | Y42: 308 | Z42: 309 | AA42: 310 | AB42: 311 | AC42: 312 | AD42: 313 | AE42: 314 | AF42: 315 | AG42: 316 | AH42: 317 | AM42: 2.11.2. REPARACIÓN INTEGRAL | AN42: 318 | AO42: 319 | BL42: 2.11.3. VERDAD Y JUSTICIA | BM42: 320 | BN42: 321 | CR42: 2.899746835 | CS42: 0.6286334926 | CT42: 0.6286334926 | CU42: 1.03804805 | CV42: 0 | CW42: 0.6082641436 | CX42: 0 | CY42: 0.6248011496 | CZ42: 0 | DA42: 0.6286334926 | DI42: 1.774267517e+10 | DJ42: 1.764396413e+10 | DK42: 1.868442204e+10 | DL42: 1.951229946e+10
B43: 2.12 CUNDINAMARCA DIVERSA | C43: Reconocer y respetar la diversidad cultural como característica esencial de la humanidad, patrimonio común que debe valorarse y preservarse en provecho de todos, toda vez que y nutre las capacidades y los valores humanos, y constituye, por lo tanto, uno de los principales motores del desarrollo sostenible de las comunidades, los pueblos y las naciones. | D43: Lograr que 10 comunidades étnicas asentadas en el departamento de Cundinamarca adquieran empoderamiento social y organizativo. | E43: Sensibilizar a los 116 municipios sobre el reconocimiento de los derechos de la comunidad LGTBI | K43: INDEPORTES | L43: D. SOCIAL | T43: 2.12.1. CUNDINAMARCA INDÍGENA | U43: 322 | V43: 323 | W43: 324 | X43: 325 | Y43: 326 | Z43: 327 | AM43: 2.12.2. CUNDINAMARCA AFRO | AN43: 328 | AO43: 329 | AP43: 330 | BL43: 2.12.3. CUNDINAMARCA ROOM | BM43: 331 | CA43: 2.12.4. CUNDINAMARCA MULTICOLOR | CB43: 332 | CC43: 333 | CR43: 1.188471971 | CS43: 0.2304367089 | CT43: 0.1263232369 | CU43: 0.3938905967 | CV43: 0 | CW43: 0.3719927667 | CX43: 0 | CY43: 0.1921518987 | CZ43: 0 | DA43: 0.1263232369 | DI43: 3274972766 | DJ43: 4378020546 | DK43: 1.029425104e+10 | DL43: 1.676313708e+10
B44: 2.13 CULTURA PARA EL NUEVO LIDERAZGO | C44: Brindar las oportunidades de acceso a la vida cultural de todos los cundinamarqueses en igualdad de oportunidades | D44: Identificar una manifestación constitutiva del Patrimonio Cultural Inmaterial del Departamento que refleje las relaciones entre las diferentes identidades cundinamarquesas | E44: Mantener el 15% de la población cundinamarquesa vinculada a la vida cultural en el cuatrienio | K44: IDECUT | T44: 2.13.1. NUEVAS REALIDADES PRESERVANDO EL PATRIMONIO | U44: 334 | V44: 335 | W44: 336 | AM44: 2.13.2. EXPRESIONES | AN44: 337 | AO44: 338 | AP44: 339 | AQ44: 340 | AR44: 341 | AS44: 342 | AT44: 343 | AU44: 344 | AV44: 345 | AW44: 346 | AX44: 347 | AY44: 348 | BL44: 2.13.3 CUNDINAMARCA DIVERSAMENTE CULTURAL E INCLUYENTE | BM44: 349 | BN44: 350 | BO44: 351 | BP44: 352 | CA44: 2.13.4. EQUIPAMENTO SOCIAL PARA EL DESARROLLO CULTURAL | CB44: 353 | CR44: 2.808661844 | CS44: 0.5903991863 | CT44: 0.5816026221 | CU44: 0.6592744123 | CV44: 0 | CW44: 0.7531044304 | CX44: 0 | CY44: 0.8058838156 | CZ44: 0 | DA44: 0.5816026221 | DI44: 3436000000 | DJ44: 1588251760 | DK44: 1622160732 | DL44: 1641378482
B45: 3.1. VÍA A LA COMPETITIVIDAD | C45: Priorizar e intervenir la infraestructura requerida como sustento a la apuesta de desarrollo del departamento acercándolo a la modernidad, la innovación y el desarrollo integral sostenible | D45: Intervenir el 25% de la infraestructura vial del departamento, garantizando la continua prestación del servicio vial (En Cundinamarca hay un total de 21,600 Km de vía) | E45: Optimizar las condiciones de transporte en 3 corredores viales en el departamento | F45: Reducir en un 10% la mortalidad en accidentes de tránsito durante el periodo de Gobierno. | K45: ICCU | L45: MOVILIADAD | T45: 3.1.1. INFRAESTRUCTURA LOGISTICA Y DE TRANSPORTE | U45: 354 | V45: 355 | W45: 356 | X45: 357 | Y45: 358 | Z45: 359 | AA45: 360 | AB45: 361 | AC45: 362 | AD45: 363 | AE45: 364 | AF45: 365 | AG45: 366 | AH45: 367 | AM45: 3.1.2. VIDAS SEGURAS | AN45: 368 | AO45: 369 | AP45: 370 | CR45: 3.578702877 | CS45: 0.5890642502 | CT45: 0.4844678749 | CU45: 0.7964686846 | CV45: 0 | CW45: 1.032279501 | CX45: 0 | CY45: 1.160890441 | CZ45: 0 | DA45: 0.4844678749 | DI45: 79627246098 | DJ45: 140629935269 | DK45: 165359507591 | DL45: 154521712729
B46: 3.2. AUMENTANDO CAPACIDADES COMPETITIVAS | C46: Crear herramientas que permitan mejorar las capacidades competitivas per cápita e impulsar emprendimientos cooperados dinámicos en busca de generar oferta de servicios, así como la productividad empresarial laboral de la economía mediante procesos que apoyen la diversificación y transformación productiva, la innovación, el emprendimiento, y la asociatividad y que permitan un crecimiento sostenido e incluyente, la generación de ingresos y empleo en el marco de una política de trabajo digno y decente. | D46: Mantener a Cundinamarca en los 5 primeros puestos del pilar de Innovación y dinámica empresarial, del índice departamental de competitividad, durante el periodo de gobierno. | K46: COMPETITIVIDAD | L46: CTeI | M46: MINAS | N46: SALUD | O46: AMBIENTE | T46: 3.2.1. CUNDINAMARCA POTENCIADOR DE EMPRENDIMIENTO Y DESARROLLO EMPRESARIAL | U46: 371 | V46: 372 | W46: 373 | X46: 374 | Y46: 375 | Z46: 376 | AA46: 377 | AB46: 378 | AM46: 3.2.2. DESARROLLO COMPETITIVO | AN46: 379 | AO46: 380 | AP46: 381 | AQ46: 382 | AR46: 383 | AS46: 384 | AT46: 385 | AU46: 386 | AV46: 387 | AW46: 388 | CR46: 2.696832484 | CS46: 0.2619122464 | CT46: 0.2330308367 | CU46: 0.831556992 | CV46: 0 | CW46: 0.9350464847 | CX46: 0 | CY46: 0.6683167605 | CZ46: 0 | DA46: 0.2330308367 | DI46: 24798181887 | DJ46: 3.14087262e+10 | DK46: 2.036258301e+10 | DL46: 2.963165368e+10
B47: 3.3. RURALIDAD CON ENFOQUE TERRITORIAL | C47: Contribuir a expandir las oportunidades, a elevar el bienestar y a disminuir la pobreza multidimensional de los habitantes rurales | D47: Intervenir en un 10% las fincas productoras del departamento (total 159.798 fincas) | K47: AGRICULTURA | L47: CTeI | M47: SALUD | N47: AMBIENTE | T47: 3.3.1. GOBERNACION A LA FINCA | U47: 389 | V47: 390 | W47: 391 | AM47: 3.3.2. CAMPO MODERNO Y CAPAZ | AN47: 392 | AO47: 393 | AP47: 394 | AQ47: 395 | AR47: 396 | AS47: 397 | AT47: 398 | AU47: 399 | AV47: 400 | AW47: 401 | CR47: 2.258057221 | CS47: 0.2184798709 | CT47: 0.2184798709 | CU47: 0.7584164727 | CV47: 0 | CW47: 0.7184466647 | CX47: 0 | CY47: 0.562714213 | CZ47: 0 | DA47: 0.2184798709 | DI47: 8014649103 | DJ47: 1.409907095e+10 | DK47: 1.439121884e+10 | DL47: 1.50680189e+10
B48: 3.4. DESARROLLO AGROPECUARIO CON TRANSFORMACIÓN | C48: Identificar nuevas oportunidades de producción y comercialización para el campesino, generando cadenas de valor y asociatividad solidaria y cooperativa | D48: Incrementar en un 2% la agroindustria del sector agropecuario en el departamento | E48: Intervenir en un 5% el área cultivada (265.843 hectáeas totales) | K48: AGRICULTURA | T48: 3.4.1. FORTALECIMIENTO DE LAS CADENAS PRODUCTIVAS | U48: 402 | V48: 403 | W48: 404 | X48: 405 | Y48: 406 | Z48: 407 | AA48: 408 | AB48: 409 | AC48: 410 | AM48: 3.4.2. ORDENAMIENTO PRODUCTIVO | AN48: 411 | AO48: 412 | CR48: 0.5554117243 | CS48: 0.09639479037 | CT48: 0.09639479037 | CU48: 0.1552684331 | CV48: 0 | CW48: 0.1953815021 | CX48: 0 | CY48: 0.1083669987 | CZ48: 0 | DA48: 0.09639479037 | DI48: 5890916283 | DJ48: 20722282650 | DK48: 23664682650 | DL48: 18650240680
B49: 3.5. CUNDINAMARCA HACIA LAS CADENAS GLOBALES DE VALOR | C49: Facilitar las condiciones para que los bienes y servicios cundinamarqueses con potencial exportador y con capacidad de agregación de valor mejoren su competitividad y logren su inserción en las cadenas globales de valor, en la perspectiva de ampliación y diversificación de la oferta exportable, la producción de bienes y servicios de talla mundial, y el acceso a nuevos mercados. | D49: Mantener a Cundinamarca dentro de los 5 primeros puestos del pilar de sofisticación y diversificación del índice Departamental de Competitividad | K49: COMPETITIVIDAD | T49: 3.5.1 CUNDINAMARCA DIVERSIFICADA Y SOFISTICADA | U49: 413 | V49: 414 | W49: 415 | X49: 416 | CR49: 1.842115552 | CS49: 0.289010205 | CT49: 0.2561792008 | CU49: 0.4123712631 | CV49: 0 | CW49: 0.5210481952 | CX49: 0 | CY49: 0.619685889 | CZ49: 0 | DA49: 0.2561792008 | DI49: 305000000 | DJ49: 400000000 | DK49: 980000000 | DL49: 965000000
B50: 3.6. DE TOUR POR CUNDINAMARCA | C50: Promover el turismo en Cundinamarca como fuente de conocimiento y dinamizador económico | D50: Dinamizar el 25% de los municipios del Departamento de Cundinamarca para el desarrollo de la actividad turística | K50: IDECUT | T50: 3.6.1. CUNDINAMARCA CON TURISMO PLANIFICADO | U50: 417 | V50: 418 | W50: 419 | X50: 420 | AM50: 3.6.2. TURISMO COMPETITIVO Y SOSTENIBLE | AN50: 421 | AO50: 422 | AP50: 423 | BL50: 3.6.3. CUNDINAMARCA UN DESTINO INTERNACIONAL | BM50: 424 | BN50: 425 | BO50: 426 | CR50: 0.710309883 | CS50: 0.07448688347 | CT50: 0.05017219243 | CU50: 0.3337715901 | CV50: 0 | CW50: 0.2128461152 | CX50: 0 | CY50: 0.08920529416 | CZ50: 0 | DA50: 0.05017219243 | DI50: 2562020000 | DJ50: 2770000000 | DK50: 6370000000 | DL50: 5850000000
B51: 3.7. INNOVACIÓN VERDE | C51: Crear e impulsar soluciones sostenibles que hagan un mejor uso de los recursos, reduzcan los efectos secundarios negativos de economía sobre el medio ambiente y creen beneficios económicos y ventajas competitivas ahora y hacia futuro. | D51: Aumentar en un 7% los emprendimientos aceptados ante las ventanillas de negocios verdes regionales (de 75 presentados solo 55 fueron aceptados) | K51: EPC | L51: AMBIENTE | T51: 3.7.1. OPORTUNIDADES VERDES HACIA LA COMPETITIVIDAD | U51: 427 | V51: 428 | W51: 429 | X51: 430 | Y51: 431 | CR51: 8.795253216 | CS51: 1.385964005 | CT51: 0.9019421121 | CU51: 2.374034583 | CV51: 0 | CW51: 2.46608069 | CX51: 0 | CY51: 2.569173939 | CZ51: 0 | DA51: 0.9019421121 | DI51: 836625621.1 | DJ51: 1280000000 | DK51: 1320000000 | DL51: 1350000000
B52: 3.8. CUNDINAMARCA, HÁBITAT AMABLE | C52: Mejorar las condiciones de habitabilidad del entorno y las viviendas de las familias cundinamarquesas con énfasis en la construcción y mejoramiento de sus viviendas y en la accesibilidad a los servicios públicos, sociales y comunitarios para su desarrollo integral. | D52: Al finalizar el cuatrienio el proyecto de Reubicación parcial de Utica se habrá desarrollado en el 100% de las etapas previstas. | E52: Aumentar en 2% la cobertura del servicio de gas domiciliario | F52: Disminuir en 0.04 kg/día el índice per cápita de residuos sólidos dispuestos técnicamente. | G52: Disminuir en 412 usuarios el déficit de electrificación rural | H52: Incrementar en 2,2 % la cobertura en alcantarillado (saneamiento básico) rural | I52: Incrementar en 5,5 % la cobertura de acueducto rural | J52: Mantener en 95,71% la cobertura del servicio de alcantarillado urbano | K52: EPC | L52: ICCU | M52: EDUCACIÓN | N52: MINAS | O52: SALUD | P52: AMBIENTE | Q52: VIVIENDA | T52: 3.8.1. ENTORNOS AMABLES CON TECHOS DIGNOS | U52: 432 | V52: 433 | W52: 434 | X52: 435 | Y52: 436 | Z52: 437 | AA52: 438 | AB52: 439 | AC52: 440 | AD52: 441 | AM52: 3.8.2. SERVICIOS PÚBLICOS PARA TODOS | AN52: 442 | AO52: 443 | AP52: 444 | AQ52: 445 | AR52: 446 | AS52: 447 | AT52: 448 | AU52: 449 | AV52: 450 | AW52: 451 | AX52: 452 | AY52: 453 | AZ52: 454 | BA52: 455 | BB52: 456 | BC52: 457 | BD52: 458 | BE52: 459 | BF52: 460 | BG52: 461 | BH52: 462 | BI52: 463 | BJ52: 464 | BK52: 465 | BL52: 3.8.3. CUNDINAMARCA LIMPIA | BM52: 466 | BN52: 467 | BO52: 468 | BP52: 469 | BQ52: 470 | CA52: 3.8.4. TODOS POR UTICA | CB52: 471 | CC52: 472 | CD52: 473 | CE52: 474 | CR52: 0.3898862071 | CS52: 0.1324534368 | CT52: 0.1324534368 | CU52: 0.1094917589 | CV52: 0 | CW52: 0.08599071286 | CX52: 0 | CY52: 0.06195029852 | CZ52: 0 | DA52: 0.1324534368 | DI52: 1.426077718e+11 | DJ52: 147044923320 | DK52: 1.511116369e+11 | DL52: 1.622128715e+11
B53: 4.1. NUEVO LIDERAZGO | C53: Establecer y aplicar los principios, valores y prácticas del nuevo liderazgo para el desarrollo de la gestión pública del gobierno de Cundinamarca en el periodo 2016-2019, y en general del movimiento social gestado en virtud de la necesidad imperante de reconstruir el tejido social. | D53: Posicionar la plataforma ideológica del nuevo liderazgo en 25% de los funcionarios de las administraciones públicas del departamento y líderes de las juntas de acción comunal. | K53: DESPACHO | L53: GOBIERNO | T53: 4.1.1. CULTURA DEL NUEVO LIDERAZGO | U53: 475 | V53: 476 | W53: 477 | X53: 478 | CR53: 1.302805531 | CS53: 0.227798294 | CT53: 0.1926616979 | CU53: 0.4249427392 | CV53: 0 | CW53: 0.3476929331 | CX53: 0 | CY53: 0.3023715652 | CZ53: 0 | DA53: 0.1926616979 | DI53: 2.19111658e+10 | DJ53: 1.023628209e+10 | DK53: 1.051111858e+10 | DL53: 1.093541828e+10
B54: 4.2. REDES DE LA PARTICIPACIÓN CIUDADANA PARA LA GESTIÓN LOCAL | C54: Reconocer, fortalecer y dinamizar las organizaciones comunitarias, asociación de grupos de ciudadanos, empresarios y otros grupos relevantes en los diferentes aspectos del bienestar del cundinamarques. | D54: Al finalizar el cuatrienio el 80% de las organizaciones comunales del departamento han participado en el desarrollo de sus comunidades. | E54: Incrementar en 50% el ejercicio de los mecanismos de participación ciudadana en el departamento con relación al balance final del cuatrienio anterior | F54: Lograr que los 116 municipios del departamento obtengan anualmente un índice de desempeño integral superior al 60%. | K54: DESPACHO | L54: IDACO | M54: IDECUT | N54: D. SOCIAL | O54: GOBIERNO | P54: PLANEACIÓN | T54: 4.2.1. INSTANCIAS TERRITORIALES DE PARTICIPACIÓN | U54: 479 | V54: 480 | W54: 481 | X54: 482 | Y54: 483 | Z54: 484 | AM54: 4.2.2. ORGANIZACIONES DE LA SOCIEDAD CIVIL (CONTROL SOCIAL, PARTICIPACIÓN CIUDADANAY CONSTRUCCIÓN DE TEJIDO SOCIAL) | AN54: 485 | AO54: 486 | AP54: 487 | AQ54: 488 | AR54: 493 | BL54: 4.2.3. ORGANISMOS DE PARTICIPACIÓN COMUNITARIA | BM54: 489 | BN54: 490 | BO54: 491 | BP54: 492 | CR54: 0.8907281727 | CS54: 0.07861215492 | CT54: 0.06658803747 | CU54: 0.2900737572 | CV54: 0 | CW54: 0.3030840505 | CX54: 0 | CY54: 0.2189582101 | CZ54: 0 | DA54: 0.06658803747 | DI54: 235600000 | DJ54: 1367334600 | DK54: 3192997800 | DL54: 4949067600
B55: 4.3. MUNICIPIOS MODELO | C55: Promover la planeación concertada (nación - departamento - municipio - comunidades), como forma de entender la relación entre actores locales y otros actores públicos para mejorar las capacidades de los gobiernos locales mediante la formación especializada e intercambio de experiencias exitosas. | D55: Aumentar de 62.61 a 71.61 puntos el índice de gestión de proyectos de regalías de departamento durante el cuatrienio. | E55: Lograr que los 116 municipios del departamento obtengan anualmente un índice de desempeño fiscal superior al 65%. | F55: Lograr que los 116 municipios del departamento obtengan anualmente un índice de desempeño integral superior al 60%. | K55: GOBIERNO | L55: PLANEACIÓN | T55: 4.3.1. GOBERNANZA TERRITORIAL | U55: 494 | V55: 495 | W55: 496 | X55: 497 | Y55: 498 | Z55: 499 | AA55: 500 | AB55: 501 | AC55: 502 | AD55: 503 | CR55: 2.668794203 | CS55: 0.6680325723 | CT55: 0.6569678175 | CU55: 0.6783623902 | CV55: 0 | CW55: 0.6799039352 | CX55: 0 | CY55: 0.6424953055 | CZ55: 0 | DA55: 0.6569678175 | DI55: 5199630340 | DJ55: 3889443281 | DK55: 6575200148 | DL55: 7704784571
B56: 4.4. CON TODA SEGURIDAD | C56: Garantizar la seguridad y convivencia pacifica y mejorar la percepción de seguridad de los cundinamarqueses en el marco del pazconflicto, mediante el acceso a la justicia, respeto de los derechos humanos, respeto a la vida, cumplimiento voluntario de las normas y resolución pacifica de los conflictos, lo que permitirá que cundinamrca sea un territorio atractivo para la vida, la inversión y el desarrollo. | D56: Reducción de 2 puntos en la tasa de homicidios en el departamento en relación con el dato de cierre 2015 | E56: Disminución del 20% (2169 delitos) en el número de casos total de la sumatoria de delitos de alto impacto en el departamento (acceso carnal y sexual violento, inducción a la prostitución, delitos relacionados con la protección de la información y los datos, entre otros). Al finalizar el cuatrienio. | F56: Disminución del 24% (1412 casos) de casos de violencia intrafamiliar en el departamento durante el cuatrienio | G56: Disminución del 32% (283 casos) en las violencias contra los niños, niñas y adolescentes del departamento en el cuatrienio | H56: Disminuir el 40% (1258 casos) del porcentaje relacionado al número de casos de violencia contra las mujeres | I56: Reducción del 27% (565 hurtos ) el número de casos de hurto de la totalidad de modalidades, en el departamento al finalizar el cuatrienio. | J56: Reducir en un 48% (952 casos) el número de casos de contravencionales que afectan la convivencia en Cundinamarca al finalizar el cuatrienio. | K56: GOBIERNO | L56: SALUD | T56: 4.4.1. CUNDINAMARCA TERRITORIO SEGURO | U56: 504 | V56: 505 | W56: 506 | X56: 507 | Y56: 508 | Z56: 509 | AA56: 510 | AB56: 511 | AC56: 512 | AD56: 513 | AE56: 514 | AM56: 4.4.2. SERVICIO DE JUSTICIA CON ENFOQUE SISTÉMICO Y TERRITORIAL | AN56: 515 | AO56: 516 | AP56: 517 | AQ56: 518 | AR56: 519 | BL56: 4.4.3. GARANTÍA DE DERECHOS HUMANOS Y CONVIVENCIA | BM56: 520 | BN56: 521 | BO56: 522 | BP56: 523 | BQ56: 525 | BR56: 526 | BS56: 527 | BT56: 528 | BU56: 529 | BV56: 530 | BW56: 531 | BX56: 532 | BY56: 533 | BZ56: 534 | CA56: 4.4.4. CULTURA CIUDADANA POR LA VIDA Y LA PAZ: UNIDOS PODEMOS MÁS | CB56: 535 | CC56: 536 | CD56: 537 | CE56: 538 | CF56: 539 | CR56: 0.7048772771 | CS56: 0.152447048 | CT56: 0.1397980915 | CU56: 0.1785668555 | CV56: 0 | CW56: 0.1811630147 | CX56: 0 | CY56: 0.1927003589 | CZ56: 0 | DA56: 0.1397980915 | DI56: 4635753980 | DJ56: 7381309431 | DK56: 1.649263604e+10 | DL56: 2.358968355e+10
B57: 4.5. CUNDINAMARCA INTEGRADA PUEDE MÁS | C57: Consolidar la integración regional, nacional e internacional del departamento | D57: Aumentar la cantidad de proyectos ejecutados con impacto regional con respecto al cuatrienio anterior | E57: Incrementar en un 60% los recursos financieros o técnicos que ingresan al departamento a través de la gestión en fondos internacionales, fondos nacionales y responsabilidad social empresarial, para la ejecución de proyectos. | K57: COOPERACIÓN | L57: INTEGRACIÓN | T57: 4.5.1. DINÁMICA GLOBAL | U57: 540 | V57: 541 | W57: 542 | X57: 543 | Y57: 544 | Z57: 545 | AA57: 546 | AB57: 547 | AM57: 4.5.2. DINÁMICA REGIONAL | AN57: 548 | AO57: 549 | AP57: 550 | CR57: 2.958820228 | CS57: 0.4372603734 | CT57: 0.3778538384 | CU57: 0.9803609184 | CV57: 0 | CW57: 0.8751217187 | CX57: 0 | CY57: 0.666077217 | CZ57: 0 | DA57: 0.3778538384 | DI57: 690049125 | DJ57: 13241000000 | DK57: 12983000000 | DL57: 15986000000
B58: 4.6. CUNDINAMARCA A SU SERVICIO | C58: Una administración departamental eficiente, capaz y efectiva, más cerca al ciudadano en trámites, servicios y de respaldo directo a los municipios, con criterios de oportunidad, pertinencia y calidad. | D58: Incrementar de 72 a 90 puntos el índice de transparencia departamental, al finalizar el cuatrienio. | E58: Incrementar del 75.6 a 90 puntos el índice de gobierno abierto IGA, al finalizar el cuatrienio. | F58: Incrementar del 80% al 85% el índice de satisfacción de los usuarios de la Gobernación de Cundinamarca durante el cuatrienio. | G58: Disminuir en el 10% la actividad judicial desplegada en contra del departamento con ocasión de los actos proferidos en el periodo de gobierno. | K58: EDUCACIÓN | L58: F. PÚBLICA | M58: PLANEACIÓN | N58: PRENSA | O58: SALUD | P58: GENERAL | Q58: JURÍDICA | T58: 4.6.1. GESTIÓN PÚBLICA EFICIENTE, MODERNA AL SERVICIO DEL CIUDADANO | U58: 551 | V58: 552 | W58: 553 | X58: 554 | Y58: 555 | Z58: 556 | AA58: 557 | AB58: 558 | AC58: 559 | AD58: 560 | AM58: 4.6.2. BUENAS PRÁCTICAS DE GOBIERNO | AN58: 561 | AO58: 562 | AP58: 563 | AQ58: 564 | AR58: 565 | AS58: 566 | AT58: 567 | AU58: 568 | AV58: 569 | AW58: 570 | AX58: 571 | AY58: 572 | AZ58: 573 | BA58: 574 | BB58: 575 | BC58: 576 | BD58: 577 | BL58: 4.6.3. CUNDINAMARCA, TERRITORIO LEGAL Y CON AUTORIDAD | BM58: 578 | BN58: 579 | BO58: 580 | BP58: 581 | BQ58: 582 | BR58: 583 | BS58: 584 | BT58: 585 | CR58: 1.754950247 | CS58: 0.257029963 | CT58: 0.2509428068 | CU58: 0.428005712 | CV58: 0 | CW58: 0.5108708661 | CX58: 0 | CY58: 0.5590437064 | CZ58: 0 | DA58: 0.2509428068 | DI58: 2484700000 | DJ58: 2863960160 | DK58: 2862758566 | DL58: 2930891309
B59: 4.7. CUNDINAMARCA: REVOLUCIÓN DIGITAL | C59: Apropiar el uso de las tic por parte de los cundinamarqueses, permitiendo su participación efectiva en los procesos y dinámicas de desarrollo del departamento. | D59: Ascender del 59% al 100% en el índice nacional de gobierno en línea de las gobernaciones | K59: DESPACHO | L59: TIC | T59: 4.7.1. INFRAESTRUCTURA TIC | U59: 586 | V59: 587 | W59: 588 | X59: 589 | Y59: 590 | Z59: 591 | AA59: 592 | AB59: 593 | AC59: 594 | AD59: 595 | AE59: 596 | AM59: 4.7.2. APLICATIVOS PARA EL DESARROLLO | AN59: 597 | AO59: 598 | AP59: 599 | AQ59: 600 | BL59: 4.7.3. CUNDINAMARCA EN LÍNEA | BM59: 601 | BN59: 602 | BO59: 603 | BP59: 604 | BQ59: 605 | BR59: 606 | BS59: 607 | BT59: 608 | BU59: 609 | BV59: 610 | CR59: 0.4829657601 | CS59: 0.1044833393 | CT59: 0.09730203603 | CU59: 0.1152552942 | CV59: 0 | CW59: 0.1371998775 | CX59: 0 | CY59: 0.1260272491 | CZ59: 0 | DA59: 0.09730203603 | DI59: 3.856889087e+10 | DJ59: 4.504193364e+10 | DK59: 4.765599173e+10 | DL59: 5.281649029e+10
B60: 4.8. FINANZAS SANAS TERRITORIOS VIABLES | C60: Lograr un manejo eficiente y responsable de sus recursos, que garanticen sostenibilidad fiscal en el largo plazo y permita financiar los proyectos de desarrollo que requiere Cundinamarca. | D60: Mantener el incremento de los ingresos corrientes anual y en el periodo de gobierno, por encima del índice de inflación | E60: Mantener la calificación AA+ con perspectiva estable de la deuda pública. | K60: HACIENDA | L60: TIC | M60: MOVILIDAD | T60: 4.8.1. EFICIENCIA FISCAL | U60: 611 | V60: 612 | W60: 613 | X60: 614 | Y60: 615 | CR60: 0.9261723733 | CS60: 0.147242401 | CT60: 0.1225393343 | CU60: 0.2731001344 | CV60: 0 | CW60: 0.2860860676 | CX60: 0 | CY60: 0.2197437703 | CZ60: 0 | DA60: 0.1225393343 | DI60: 21748885669 | DJ60: 1.615538872e+10 | DK60: 2.075278985e+10 | DL60: 2.243832578e+10
B61: 4.9. CUNDI - DATA | C61: Implementar un sistema de gestión de la información que permita producir estadísticas oficiales, su análisis y difusión, atendiendo los estándares de calidad establecidos que soporten las decisiones de gobierno. | D61: Al finalizar el cuatrienio, el 50% de los sectores de inversión dispondrán de información geoespacial y estadística en la plataforma única del Sistema de Información Geográfica Regional. | E61: El 100% de las entidades concertan y ejecutan las recomendaciones resultantes del seguimiento y evaluación del plan departamental de desarrollo. | K61: GOBIERNO | L61: TIC | M61: PLANEACIÓN | N61: SALUD | O61: UAEGRD | T61: 4.9.1. ESTADÍSTICAS Y PLATAFORMAS DE INFORMACIÓN | U61: 616 | V61: 617 | W61: 618 | X61: 619 | Y61: 620 | Z61: 621 | AA61: 622 | AM61: 4.9.2. SEGUIMIENTO Y EVALUACIÓN PLAN DE DESARROLLO | AN61: 623 | AO61: 624 | AP61: 625 | AQ61: 626 | AR61: 627 | CR61: 2.923317042 | CS61: 0.4743539104 | CT61: 0.4743539104 | CU61: 0.8809323076 | CV61: 0 | CW61: 0.7832514306 | CX61: 0 | CY61: 0.7847793936 | CZ61: 0 | DA61: 0.4743539104 | DI61: 5273200000 | DJ61: 7262880000 | DK61: 9315530000 | DL61: 7837590000
CR62: 100 | CS62: 16.12621933 | CT62: 12.31118703 | CU62: 31.29148933 | CV62: 0 | CW62: 28.34198698 | CX62: 0 | CY62: 24.24030437 | CZ62: 0 | DA62: 12.31118703
B65: ARREGLOS
B69: TODOS | C69: 1-CUNDINAMARCA 2036 | D69: 2-TEJIDO SOCIAL | E69: 3-COMPETITIVIDAD SOSTENIBLE | F69: 4-INTEGRACIÓN Y GOBERNANZA
B70: 1.1. GENERACION 2036 | C70: 1.1. GENERACION 2036 | D70: 2.1. FAMILIAS UNIDAS Y FELICES | E70: 3.1. VÍA A LA COMPETITIVIDAD | F70: 4.1. NUEVO LIDERAZGO
B71: 1.2. CALIDAD 10 | C71: 1.2. CALIDAD 10 | D71: 2.2. MUJER | E71: 3.2. AUMENTANDO CAPACIDADES COMPETITIVAS | F71: 4.2. REDES DE LA PARTICIPACIÓN CIUDADANA PARA LA GESTIÓN LOCAL
B72: 1.3. CUNDINAMARCA MÁS PROFESIONAL | C72: 1.3. CUNDINAMARCA MÁS PROFESIONAL | D72: 2.3. MIS PRIMEROS PASOS | E72: 3.3. RURALIDAD CON ENFOQUE TERRITORIAL | F72: 4.3. MUNICIPIOS MODELO
B73: 1.4. UNIDOS PODEMOS LOGRAR MÁS EDUCACIÓN | C73: 1.4. UNIDOS PODEMOS LOGRAR MÁS EDUCACIÓN | D73: 2.4. TEMPRANAS SONRISAS | E73: 3.4. DESARROLLO AGROPECUARIO CON TRANSFORMACIÓN | F73: 4.4. CON TODA SEGURIDAD
B74: 1.5. CUNDINAMARCA AVANZADA E INNOVADORA | C74: 1.5. CUNDINAMARCA AVANZADA E INNOVADORA | D74: 2.5. ADOLESCENTES CAMBIOS CON SEGURIDAD | E74: 3.5. CUNDINAMARCA HACIA LAS CADENAS GLOBALES DE VALOR | F74: 4.5. CUNDINAMARCA INTEGRADA PUEDE MÁS
B75: 1.6. CUNDINAMARCA ORDENADA Y SOTENIBLE | C75: 1.6. CUNDINAMARCA ORDENADA Y SOTENIBLE | D75: 2.6. JOVENES POR CUNDINAMARCA | E75: 3.6. DE TOUR POR CUNDINAMARCA | F75: 4.6. CUNDINAMARCA A SU SERVICIO
B76: 1.7. ESFUERZOS UNIDOS RIESGOS REDUCIDOS | C76: 1.7. ESFUERZOS UNIDOS RIESGOS REDUCIDOS | D76: 2.7. ADULTEZ Y PLENITUD | E76: 3.7. INNOVACIÓN VERDE | F76: 4.7. CUNDINAMARCA: REVOLUCIÓN DIGITAL
B77: 1.8. CUNDINAMARCA OFERTA NATURAL EN ALIANZA POR EL AGUA - GOBERNANZA VITAL | C77: 1.8. CUNDINAMARCA OFERTA NATURAL EN ALIANZA POR EL AGUA - GOBERNANZA VITAL | D77: 2.8. ENVEJECIMIENTO ACTIVO Y VEJEZ | E77: 3.8. CUNDINAMARCA, HÁBITAT AMABLE | F77: 4.8. FINANZAS SANAS TERRITORIOS VIABLES
B78: 2.1. FAMILIAS UNIDAS Y FELICES | D78: 2.9. LOS MÁS CAPACES¡ | F78: 4.9. CUNDI - DATA
B79: 2.2. MUJER | D79: 2.10 PREVENCIÓN DE CONSUMO DE SUSTANCIAS PSICOACTIVAS
B80: 2.3. MIS PRIMEROS PASOS | D80: 2.11 VÍCTIMAS DEL CONFLICTO ARMADO: OPORTUNIDADES PARA LA PAZ
B81: 2.4. TEMPRANAS SONRISAS | D81: 2.12 CUNDINAMARCA DIVERSA
B82: 2.5. ADOLESCENTES CAMBIOS CON SEGURIDAD | D82: 2.13 CULTURA PARA EL NUEVO LIDERAZGO
B83: 2.6. JOVENES POR CUNDINAMARCA
B84: 2.7. ADULTEZ Y PLENITUD
B85: 2.8. ENVEJECIMIENTO ACTIVO Y VEJEZ
B86: 2.9. LOS MÁS CAPACES¡
B87: 2.10 PREVENCIÓN DE CONSUMO DE SUSTANCIAS PSICOACTIVAS
B88: 2.11 VÍCTIMAS DEL CONFLICTO ARMADO: OPORTUNIDADES PARA LA PAZ
B89: 2.12 CUNDINAMARCA DIVERSA | C89: EJE_1 | D89: EJE_2 | E89: EJE_3 | F89: EJE_4
B90: 2.13 CULTURA PARA EL NUEVO LIDERAZGO | C90: 1.1. GENERACION 2036 | D90: 2.1. FAMILIAS UNIDAS Y FELICES | E90: 3.1. VÍA A LA COMPETITIVIDAD | F90: 4.1. NUEVO LIDERAZGO
B91: 3.1. VÍA A LA COMPETITIVIDAD | C91: 1.2. CALIDAD 10 | D91: 2.2. MUJER | E91: 3.2. AUMENTANDO CAPACIDADES COMPETITIVAS | F91: 4.2. REDES DE LA PARTICIPACIÓN CIUDADANA PARA LA GESTIÓN LOCAL
B92: 3.2. AUMENTANDO CAPACIDADES COMPETITIVAS | C92: 1.3. CUNDINAMARCA MÁS PROFESIONAL | D92: 2.3. MIS PRIMEROS PASOS | E92: 3.3. RURALIDAD CON ENFOQUE TERRITORIAL | F92: 4.3. MUNICIPIOS MODELO
B93: 3.3. RURALIDAD CON ENFOQUE TERRITORIAL | C93: 1.4. UNIDOS PODEMOS LOGRAR MÁS EDUCACIÓN | D93: 2.4. TEMPRANAS SONRISAS | E93: 3.4. DESARROLLO AGROPECUARIO CON TRANSFORMACIÓN | F93: 4.4. CON TODA SEGURIDAD
B94: 3.4. DESARROLLO AGROPECUARIO CON TRANSFORMACIÓN | C94: 1.5. CUNDINAMARCA AVANZADA E INNOVADORA | D94: 2.5. ADOLESCENTES CAMBIOS CON SEGURIDAD | E94: 3.5. CUNDINAMARCA HACIA LAS CADENAS GLOBALES DE VALOR | F94: 4.5. CUNDINAMARCA INTEGRADA PUEDE MÁS
B95: 3.5. CUNDINAMARCA HACIA LAS CADENAS GLOBALES DE VALOR | C95: 1.6. CUNDINAMARCA ORDENADA Y SOTENIBLE | D95: 2.6. JOVENES POR CUNDINAMARCA | E95: 3.6. DE TOUR POR CUNDINAMARCA | F95: 4.6. CUNDINAMARCA A SU SERVICIO
B96: 3.6. DE TOUR POR CUNDINAMARCA | C96: 1.7. ESFUERZOS UNIDOS RIESGOS REDUCIDOS | D96: 2.7. ADULTEZ Y PLENITUD | E96: 3.7. INNOVACIÓN VERDE | F96: 4.7. CUNDINAMARCA: REVOLUCIÓN DIGITAL
B97: 3.7. INNOVACIÓN VERDE | C97: 1.8. CUNDINAMARCA OFERTA NATURAL EN ALIANZA POR EL AGUA - GOBERNANZA VITAL | D97: 2.8. ENVEJECIMIENTO ACTIVO Y VEJEZ | E97: 3.8. CUNDINAMARCA, HÁBITAT AMABLE | F97: 4.8. FINANZAS SANAS TERRITORIOS VIABLES
B98: 3.8. CUNDINAMARCA, HÁBITAT AMABLE | D98: 2.9. LOS MÁS CAPACES¡ | F98: 4.9. CUNDI - DATA
B99: 4.1. NUEVO LIDERAZGO | D99: 2.10 PREVENCIÓN DE CONSUMO DE SUSTANCIAS PSICOACTIVAS
B100: 4.2. REDES DE LA PARTICIPACIÓN CIUDADANA PARA LA GESTIÓN LOCAL | D100: 2.11 VÍCTIMAS DEL CONFLICTO ARMADO: OPORTUNIDADES PARA LA PAZ
B101: 4.3. MUNICIPIOS MODELO | D101: 2.12 CUNDINAMARCA DIVERSA
B102: 4.4. CON TODA SEGURIDAD | D102: 2.13 CULTURA PARA EL NUEVO LIDERAZGO
B103: 4.5. CUNDINAMARCA INTEGRADA PUEDE MÁS
B104: 4.6. CUNDINAMARCA A SU SERVICIO
B105: 4.7. CUNDINAMARCA: REVOLUCIÓN DIGITAL
B106: 4.8. FINANZAS SANAS TERRITORIOS VIABLES
B107: 4.9. CUNDI - DATA
B114: ENTIDADES
B116: 1 | C116: 2 | D116: 3 | E116: 4 | F116: 5 | G116: 6 | H116: 7 | I116: 8 | J116: 9 | K116: 10 | L116: 11 | M116: 12
B117: NOMBRE ENTIDAD | C117: PONDERADOR META DE PRODUCTO CUATRIENIO (%) | D117: PONDERADOR META DE PRODUCTO 2016 (%) | E117: AVANCE PONDERADO 2016 | F117: PONDERADOR META DE PRODUCTO 2017 (%) | G117: AVANCE PONDERADO 2017 | H117: PONDERADOR META DE PRODUCTO 2018 (%) | I117: AVANCE PONDERADO 2018 | J117: PONDERADOR META DE PRODUCTO 2019 (%) | K117: AVANCE PONDERADO 2019 | L117: AVANCE PONDERADO DEL CUATRENIO | M117: ALIAS
B118: BENEFICENCIA DE CUNDINAMARCA | C118: 1.122965642 | D118: 0.2807414105 | E118: 0.2807414105 | F118: 0.2807414105 | G118: 0 | H118: 0.2807414105 | I118: 0 | J118: 0.2807414105 | K118: 0
B119: CORPORACIÓN SOCIAL DE CUNDINAMARCA | C119: 0.4285985533 | D119: 0.009582640145 | E119: 0.009582640145 | F119: 0.1084036166 | G119: 0 | H119: 0.132360217 | I119: 0 | J119: 0.1782520796 | K119: 0
B120: DESPACHO DEL GOBERNADOR | C120: 0.4065295709 | D120: 0.1141919682 | E120: 0.108104812 | F120: 0.1338557943 | G120: 0 | H120: 0.1261197122 | I120: 0 | J120: 0.03236209624 | K120: 0
B121: EMPRESAS PÚBLICAS DE CUNDINAMARCA | C121: 7.503733439 | D121: 0.755697295 | E121: 0.4939370704 | F121: 2.239424242 | G121: 0 | H121: 2.280563799 | I121: 0 | J121: 2.228048103 | K121: 0
B122: INSTITUTO DE INFRAESTUCTURA Y CONCESIONES DE CUNDINAMARCA | C122: 2.836302539 | D122: 0.5450910698 | E122: 0.4710145687 | F122: 0.6907485314 | G122: 0 | H122: 0.697158878 | I122: 0 | J122: 0.9033040595 | K122: 0
B123: INSTITUTO DE ACCIÓN COMUNAL | C123: 0.3488942185 | D123: 0.0662932478 | E123: 0.06314950131 | F123: 0.1073412133 | G123: 0 | H123: 0.1004712612 | I123: 0 | J123: 0.0747884962 | K123: 0
B124: INSTITUTO DEPARTAMENTAL DE CULTURA Y TURISMO | C124: 4.889808043 | D124: 0.9391670529 | E124: 0.8914523283 | F124: 1.131403337 | G124: 0 | H124: 1.333910287 | I124: 0 | J124: 1.485327366 | K124: 0
B125: INSTITUTO DE DEPORTES | C125: 5.575524412 | D125: 1.198149671 | E125: 0.9898095408 | F125: 1.520791898 | G125: 0 | H125: 1.456214785 | I125: 0 | J125: 1.400368058 | K125: 0
B126: SECRETARIA DE AGRICULTURA | C126: 4.802834947 | D126: 0.4571882497 | E126: 0.42830684 | F126: 1.622642364 | G126: 0 | H126: 1.479254345 | I126: 0 | J126: 1.243749989 | K126: 0
B127: SECRETARIA DE COMPETITIVIDAD | C127: 1.747422672 | D127: 0.2894110755 | E127: 0.2894110755 | F127: 0.4480761599 | G127: 0 | H127: 0.5587734193 | I127: 0 | J127: 0.4511620173 | K127: 0
B128: SECRETARIA DE COOPERACIÓN Y ENLACE INSTITUCIONAL | C128: 0.4499872429 | D128: 0.09478087462 | E128: 0.08437877226 | F128: 0.1181267881 | G128: 0 | H128: 0.1160535592 | I128: 0 | J128: 0.121026021 | K128: 0
B129: SECRETARIA DE CIENCIA Y TECNOLOGÍA | C129: 2.500962637 | D129: 0.2260406152 | E129: 0.2260406152 | F129: 1.291833776 | G129: 0 | H129: 0.5050500482 | I129: 0 | J129: 0.4780381977 | K129: 0
B130: SECRETARIA DE DESARROLLO SOCIAL | C130: 8.178232894 | D130: 1.450138162 | E130: 1.154764392 | F130: 2.688940157 | G130: 0 | H130: 2.419063036 | I130: 0 | J130: 1.620091539 | K130: 0
B131: SECRETARIA DE EDUCACIÓN | C131: 24.82272075 | D131: 3.81560191 | E131: 1.621928066 | F131: 8.354207095 | G131: 0 | H131: 6.910544718 | I131: 0 | J131: 5.742367025 | K131: 0
B132: SECRETARIA DE GOBIERNO | C132: 5.541766178 | D132: 1.254115842 | E132: 1.24664482 | F132: 1.731475746 | G132: 0 | H132: 1.311384751 | I132: 0 | J132: 1.244789839 | K132: 0
B133: SECRETARIA DE HACIENDA | C133: 0.3152992805 | D133: 0.07333867429 | E133: 0.07333867429 | F133: 0.07333867429 | G133: 0 | H133: 0.09528325764 | I133: 0 | J133: 0.07333867429 | K133: 0
B134: SECRETARIA DE INTEGRACIÓN REGIONAL | C134: 0.2548900342 | D134: 0.05766617339 | E134: 0.05541931928 | F134: 0.06044006736 | G134: 0 | H134: 0.06510945553 | I134: 0 | J134: 0.07167433791 | K134: 0
B135: SECRETARIA DE FUNCIÓN PÚBLICA | C135: 0.2339317242 | D135: 0.02072715212 | E135: 0.02072715212 | F135: 0.09623871001 | G135: 0 | H135: 0.09623871001 | I135: 0 | J135: 0.02072715212 | K135: 0
B136: SECRETARIA DE LAS TICS | C136: 1.797175078 | D136: 0.2801714302 | E136: 0.2801714302 | F136: 0.4389728668 | G136: 0 | H136: 0.4966675017 | I136: 0 | J136: 0.5813632791 | K136: 0
B137: SECRETARIA DE MINAS Y ENERGÍA | C137: 1.15278789 | D137: 0.09092473619 | E137: 0.08830319285 | F137: 0.3426119308 | G137: 0 | H137: 0.3528140602 | I137: 0 | J137: 0.3664371628 | K137: 0
B138: SECRETARIA DE PLANEACIÓN | C138: 5.233224915 | D138: 0.6144717354 | E138: 0.5073183289 | F138: 1.949555542 | G138: 0 | H138: 1.617193152 | I138: 0 | J138: 1.052004486 | K138: 0
B139: SECRETARIA DE PRENSA | C139: 0.3042037046 | D139: 0.1687143951 | E139: 0.1645689646 | F139: 0.1354893096 | G139: 0 | H139: 0 | I139: 0 | J139: 0 | K139: 0
B140: SECRETARIA DE SALUD | C140: 6.628438276 | D140: 1.154145614 | E140: 0.9893913834 | F140: 1.962968967 | G140: 0 | H140: 2.00119809 | I140: 0 | J140: 1.510125606 | K140: 0
B141: SECRETARIA DE TRANSPORTE Y MOVILIDAD | C141: 1.227069419 | D141: 0.2085026252 | E141: 0.1653398991 | F141: 0.2549134991 | G141: 0 | H141: 0.3731390558 | I141: 0 | J141: 0.390514239 | K141: 0
B142: SECRETARIA DEL AMBIENTE | C142: 6.03696076 | D142: 1.150686628 | E142: 1.07246597 | F142: 1.709580066 | G142: 0 | H142: 1.834841972 | I142: 0 | J142: 1.341852094 | K142: 0
B143: SECRETARIA GENERAL | C143: 0.5242659591 | D143: 0.0320458338 | E143: 0.0320458338 | F143: 0.1671990399 | G143: 0 | H143: 0.1863278897 | I143: 0 | J143: 0.1386931956 | K143: 0
B144: SECRETARIA JURÍDICA | C144: 0.4191661989 | D144: 0.06390229797 | E144: 0.01931452093 | F144: 0.1161131466 | G144: 0 | H144: 0.1249690599 | I144: 0 | J144: 0.1141816945 | K144: 0
B145: UAE DE VIVIENDA | C145: 1.593414525 | D145: 0.2711881849 | E145: 0.2087717559 | F145: 0.5120281266 | G145: 0 | H145: 0.4110886754 | I145: 0 | J145: 0.3991095377 | K145: 0
B146: UNIDAD ADMINISTRATIVA ESPECIAL PARA LA GESTION DEL RIESGO DE DESASTRES. | C146: 2.510892707 | D146: 0.3005007781 | E146: 0.1317021672 | F146: 0.8505042556 | G146: 0 | H146: 0.8217364665 | I146: 0 | J146: 0.5381512065 | K146: 0
B147: UNIDAD DE PENSIONES | C147: 0.1048101266 | D147: 0.01624556962 | E147: 0.01624556962 | F147: 0.02672658228 | G147: 0 | H147: 0.03091898734 | I147: 0 | J147: 0.03091898734 | K147: 0
B148: UNIVERSIDAD DE CUNDINAMARCA | C148: 0.5071856657 | D148: 0.1267964164 | E148: 0.1267964164 | F148: 0.1267964164 | G148: 0 | H148: 0.1267964164 | I148: 0 | J148: 0.1267964164 | K148: 0
B149: Total general | C149: 100 | D149: 16.12621933 | E149: 12.31118703 | F149: 31.29148933 | G149: 0 | H149: 28.34198698 | I149: 0 | J149: 24.24030437 | K149: 0
B162: NOMBRE ENTIDAD | C162: NOMBRE CORTO
B163: BENEFICENCIA DE CUNDINAMARCA | C163: BENEFICENCIA.
B164: CORPORACIÓN SOCIAL DE CUNDINAMARCA | C164: CORSOCUN.
B165: DESPACHO DEL GOBERNADOR | C165: D_GOBERNADOR.
B166: EMPRESAS PÚBLICAS DE CUNDINAMARCA | C166: EPC.
B167: INSTITUTO DE INFRAESTUCTURA Y CONCESIONES DE CUNDINAMARCA | C167: ICCU.
B168: INSTITUTO DE ACCIÓN COMUNAL | C168: IDACO.
B169: INSTITUTO DEPARTAMENTAL DE CULTURA Y TURISMO | C169: IDECUT.
B170: INSTITUTO DE DEPORTES | C170: INDEPORTES.
B171: SECRETARIA DE AGRICULTURA | C171: AGRICULTURA.
B172: SECRETARIA DE COMPETITIVIDAD | C172: COMPETITIVIDAD.
B173: SECRETARIA DE COOPERACIÓN Y ENLACE INSTITUCIONAL | C173: COOPERACION.
B174: SECRETARIA DE CIENCIA Y TECNOLOGÍA | C174: CIENCIA_Y_TECNOLOGIA.
B175: SECRETARIA DE DESARROLLO SOCIAL | C175: DESARROLLO_SOCIAL.
B176: SECRETARIA DE EDUCACIÓN | C176: EDUCACION.
B177: SECRETARIA DE GOBIERNO | C177: GOBIERNO.
B178: SECRETARIA DE HACIENDA | C178: HACIENDA.
B179: SECRETARIA DE INTEGRACIÓN REGIONAL | C179: INTEGRACION_REGIONAL.
B180: SECRETARIA DE FUNCIÓN PÚBLICA | C180: FUNCION_PUBLICA.
B181: SECRETARIA DE LAS TICS | C181: TIC.
B182: SECRETARIA DE MINAS Y ENERGÍA | C182: MINAS.
B183: SECRETARIA DE PLANEACIÓN | C183: PLANEACION.
B184: SECRETARIA DE PRENSA | C184: PRENSA.
B185: SECRETARIA DE SALUD | C185: SALUD.
B186: SECRETARIA DE TRANSPORTE Y MOVILIDAD | C186: MOVILIDAD.
B187: SECRETARIA DEL AMBIENTE | C187: AMBIENTE.
B188: SECRETARIA GENERAL | C188: GENERAL.
B189: SECRETARIA JURÍDICA | C189: S_JURÍDICA.
B190: UAE DE VIVIENDA | C190: VIVIENDA.
B191: UNIDAD ADMINISTRATIVA ESPECIAL PARA LA GESTION DEL RIESGO DE DESASTRES. | C191: UAEGRDC.
B192: UNIDAD DE PENSIONES | C192: PENSIONES.
B193: UNIVERSIDAD DE CUNDINAMARCA | C193: UDEC.

Sheet Meta de Producto
B1: SECRETARIA DE PLANEACIÓN DE CUNDINAMARCA
B2: Dirección de Seguimiento y Evaluación
E3: SELECCIONE LA ENTIDAD | M3: TODAS. | R3: =+T4 -> 
E4: PLAN INDICATIVO | M4: BUSQUE LA META | O4: 160 | T4: =IF(#REF!/H25<100,#REF!/H25,100%)*100 -> 
B6: ENTIDAD RESPONSABLE: | E6: =VLOOKUP($O$4,Datos_Producto!$D$4:$IW$531,2,FALSE) -> SECRETARIA DE PLANEACIÓN
B8: 1. INFORMACIÓN GENERAL | Q8: Volver
B9: Meta de Producto: | D9: =VLOOKUP($O$4,Datos_Producto!$D$4:$IW$531,1,FALSE) -> 160 | E9: =VLOOKUP($O$4,Datos_Producto!$D$4:$IW$531,15,FALSE) -> ADOPTAR LAS DIRECTRICES DE ORDENAMIENTO TERRITORIAL DEPARTAMENTAL DURANTE EL PERIODO DE GOBIERNO. | O9: Ponderador | P9: =VLOOKUP($O$4,Datos_Producto!$D$4:$IW$531,22,FALSE) -> 0.3885696633
B10: Eje Estrategico: | D10: =VLOOKUP($O$4,Datos_Producto!$D$4:$IW$531,3,FALSE) -> 1. CUNDINAMARCA 2036 | J10: Programa: | K10: =VLOOKUP($O$4,Datos_Producto!$D$4:$IW$531,4,FALSE) -> 1.6. CUNDINAMARCA ORDENADA Y SOTENIBLE
B11: Subprograma: | D11: =VLOOKUP($O$4,Datos_Producto!$D$4:$IW$531,11,FALSE) -> 1.6.1. POTenciando Territorios
B12: Meta de Resultado: | D12: =VLOOKUP($O$4,Datos_Producto!$D$4:$IW$531,6,FALSE) -> 13 | E12: =VLOOKUP($O$4,Datos_Producto!$D$4:$IW$531,7,FALSE) -> Contar con un Plan de ordenamiento territorial departamental (POTD) en donde se articulen las políticas y estrategias de ordenamiento físico territorial
B14: 2. CARACTERISTICAS DEL INDICADOR
B16: Nombre del indicador: | D16: =VLOOKUP($O$4,Datos_Producto!$D$4:$IW$531,17,FALSE) -> Directrices de Ordenamiento | L16: Tipo | M16: =VLOOKUP($O$4,Datos_Producto!$D$4:$IW$531,16,FALSE) -> Incremento | N16: Unidad Medida | O16: =VLOOKUP($O$4,Datos_Producto!$D$4:$IW$531,18,FALSE) -> Número | R16: =VLOOKUP($O$4,Datos_Producto!$D$4:$IW$531,9,FALSE) -> 0
B17: Indicador Base | D17: =VLOOKUP($O$4,Datos_Producto!$D$4:$IW$531,19,FALSE) -> 0 | F17: Programado Cuatrienio | I17: =VLOOKUP($O$4,Datos_Producto!$D$4:$IW$531,20,FALSE) -> 1 | J17: Indicador Esperado | L17: =IF($M$16="MANTENIMIENTO",D17,IF($M$16="REDUCCIÓN",I17,D17+I17)) -> 1 | M17: Fuente
B19: 3. PROGRAMACIÓN Y EJECUCIÓN DE LA META
B20: PROGRAMACIÓN FÍSICA | I20: EJECUCIÓN FÍSICA | M20: EJECUCIÓN FINANCIERA En Millones ($)
B21: Año | D21: Programado | E21: Progr. Acumulada | G21: % Progr. | H21: % Acumulado | I21: Ejecutado | J21: % Ejec. | K21: Ejec. Acumulado | L21: % Ejec_ Cuatrienio | M21: Inversión Programada P.I | N21: Inversión Ejecutada | O21: Inversión Acumulada
B22: 2016 | D22: =VLOOKUP($O$4,Datos_Producto!$D$4:$IW$531,52,FALSE) -> 0 | E22: =+D22 -> 0 | G22: =VLOOKUP($O$4,Datos_Producto!$D$4:$IW$531,53,FALSE)*100 -> 0 | H22: =IF($M$16="MANTENIMIENTO",G22,IF($M$16="REDUCCIÓN",G22,G22)) -> 0 | I22: =VLOOKUP($O$4,Datos_Producto!$D$4:$IW$531,54,FALSE) -> 0 | J22: =VLOOKUP($O$4,Datos_Producto!$D$4:$IW$531,60,FALSE) -> 0 | K22: =IF($M$16="MANTENIMIENTO",I22,I22) -> 0 | M22: =VLOOKUP($O$4,Datos_Producto!$D$4:$IW$531,64,FALSE)/1000000 -> 500 | N22: =VLOOKUP($O$4,Datos_Producto!$D$4:$IW$531,74,FALSE)/1000000 -> 0 | O22: =+N22 -> 0
B23: 2017 | D23: =VLOOKUP($O$4,Datos_Producto!$D$4:$IW$531,86,FALSE) -> 0.7 | E23: =IF($M$16="MANTENIMIENTO",D23,IF($M$16="REDUCCIÓN",D23,E22+D23)) -> 0.7 | G23: =VLOOKUP($O$4,Datos_Producto!$D$4:$IW$531,87,FALSE)*100 -> 70 | H23: =IF($M$16="MANTENIMIENTO",G23,IF($M$16="REDUCCIÓN",G23,G22+G23)) -> 70 | I23: =VLOOKUP($O$4,Datos_Producto!$D$4:$IW$531,88,FALSE) -> 0 | J23: =VLOOKUP($O$4,Datos_Producto!$D$4:$IW$531,94,FALSE) -> 0 | M23: =VLOOKUP($O$4,Datos_Producto!$D$4:$IW$531,98,FALSE)/1000000 -> 100 | N23: =VLOOKUP($O$4,Datos_Producto!$D$4:$IW$531,108,FALSE)/1000000 -> 0 | O23: =+N22+N23 -> 0 | Q23: =IF($M$16="MANTENIMIENTO",O23,IF($M$16="REDUCCIÓN",O23,O22+O23)) -> 0
B24: 2018 | D24: =VLOOKUP($O$4,Datos_Producto!$D$4:$IW$531,120,FALSE) -> 0.2 | E24: =IF($M16="MANTENIMIENTO",D24,IF($M$16="REDUCCIÓN",D24,E23+D24)) -> 0.9 | G24: =VLOOKUP($O$4,Datos_Producto!$D$4:$IW$531,121,FALSE)*100 -> 20 | H24: =IF($M$16="MANTENIMIENTO",G24,IF($M$16="REDUCCIÓN",G24,G22+G23+G24)) -> 90 | I24: =VLOOKUP($O$4,Datos_Producto!$D$4:$IW$531,122,FALSE) -> 0 | J24: =VLOOKUP($O$4,Datos_Producto!$D$4:$IW$531,128,FALSE) -> 0 | M24: =VLOOKUP($O$4,Datos_Producto!$D$4:$IW$531,132,FALSE)/1000000 -> 100 | N24: =VLOOKUP($O$4,Datos_Producto!$D$4:$IW$531,142,FALSE)/1000000 -> 0 | O24: =+N22+N23+N24 -> 0
B25: 2019 | D25: =VLOOKUP($O$4,Datos_Producto!$D$4:$IW$531,154,FALSE) -> 0.1 | E25: =IF($M$16="MANTENIMIENTO",D25,IF($M$16="REDUCCIÓN",D25,E24+D25)) -> 1 | G25: =VLOOKUP($O$4,Datos_Producto!$D$4:$IW$531,155,FALSE)*100 -> 10 | H25: =IF($M$16="MANTENIMIENTO",G25,IF($M$16="REDUCCIÓN",G25,G22+G23+G24+G25)) -> 100 | I25: =VLOOKUP($O$4,Datos_Producto!$D$4:$IW$531,156,FALSE) -> 0 | J25: =VLOOKUP($O$4,Datos_Producto!$D$4:$IW$531,162,FALSE) -> 0 | M25: =VLOOKUP($O$4,Datos_Producto!$D$4:$IW$531,166,FALSE)/1000000 -> 100 | N25: =VLOOKUP($O$4,Datos_Producto!$D$4:$IW$531,176,FALSE)/1000000 -> 0 | O25: =+N22+N23+N24+N25 -> 0
B26: ACUMULADO CUATRIENIO | I26: =SUM(I22:I25) -> 0 | M26: =SUM(M22:M25) -> 800 | N26: =SUM(N22:N25) -> 0 | O26: =SUM(O22:P25) -> 0
B27: Logros más relevantes según las Actividades Ejecutadas | I27: Ejecución Física | M27: Ejecución Financiera
B28: =UPPER(VLOOKUP($O$4,Datos_Producto!$D$4:$IW$531,248,FALSE)) -> DILIGENCIAR LOGROS
I40: Fecha de actualización: | M40: Fecha de actualización:
B42: 4. INFORMACIÓN COMPLEMENTARIA
R43: 1
I44: Proyecto Asociado: | K44: =VLOOKUP($O$4,Datos_Producto!$D$4:$IW$531,242,FALSE) -> 297183: Construcción del Ordenamiento del Territorio del Departamento de Cundinamarca
B45: Sector Inversión FUT: | D45: =VLOOKUP($O$4,Datos_Producto!$D$4:$IW$531,13,FALSE) -> A.17 Fortalecimiento institucional
B48: Proyecto Moño a Impactar: | E48: =VLOOKUP($O$4,Datos_Producto!$D$4:$IW$531,243,FALSE) -> CONSTRUCCION DEL ORDENAMIENTO DEL TERRITORIO DEL DEPARTAMENTO DE CUNDINAMARCA SPC 297183/ 2016
B51: Cursos de Vida | F51: ODS Asociado | L51: Grupos Poblacionales
B52: Primera infancia | D52: =VLOOKUP($O$4,Datos_Producto!$D$4:$IW$531,23,FALSE) -> ü | F52: =VLOOKUP($O$4,Datos_Producto!$D$4:$IW$531,39,FALSE) -> 11. Ciudades y comunidades sostenibles | L52: Mujer | M52: =VLOOKUP($O$4,Datos_Producto!$D$4:$IW$531,29,FALSE) -> ü | N52: Etnias | O52: =VLOOKUP($O$4,Datos_Producto!$D$4:$IW$531,35,FALSE) -> ü
B53: Infancia | D53: =VLOOKUP($O$4,Datos_Producto!$D$4:$IW$531,24,FALSE) -> ü | F53: =VLOOKUP($O$4,Datos_Producto!$D$4:$IW$531,40,FALSE) -> 13 Accion por el clima | L53: Discapacidad | M53: =VLOOKUP($O$4,Datos_Producto!$D$4:$IW$531,30,FALSE) -> ü | N53: Raizales | O53: =VLOOKUP($O$4,Datos_Producto!$D$4:$IW$531,36,FALSE) -> ü
B54: Adolescencia | D54: =VLOOKUP($O$4,Datos_Producto!$D$4:$IW$531,25,FALSE) -> ü | F54: =VLOOKUP($O$4,Datos_Producto!$D$4:$IW$531,41,FALSE) -> 0 | L54: Afrodescendientes | M54: =VLOOKUP($O$4,Datos_Producto!$D$4:$IW$531,31,FALSE) -> ü | N54: Room | O54: =VLOOKUP($O$4,Datos_Producto!$D$4:$IW$531,37,FALSE) -> ü
B55: Juventud | D55: =VLOOKUP($O$4,Datos_Producto!$D$4:$IW$531,26,FALSE) -> ü | F55: =VLOOKUP($O$4,Datos_Producto!$D$4:$IW$531,42,FALSE) -> 0 | L55: Mujer rural | M55: =VLOOKUP($O$4,Datos_Producto!$D$4:$IW$531,32,FALSE) -> ü | N55: Religión y Culto | O55: =VLOOKUP($O$4,Datos_Producto!$D$4:$IW$531,38,FALSE) -> ü
B56: Adultos | D56: =VLOOKUP($O$4,Datos_Producto!$D$4:$IW$531,27,FALSE) -> ü | F56: =VLOOKUP($O$4,Datos_Producto!$D$4:$IW$531,43,FALSE) -> 0 | L56: LGTBI | M56: =VLOOKUP($O$4,Datos_Producto!$D$4:$IW$531,33,FALSE) -> ü
B57: Adulto mayor | D57: =VLOOKUP($O$4,Datos_Producto!$D$4:$IW$531,28,FALSE) -> ü | L57: VCA | M57: =VLOOKUP($O$4,Datos_Producto!$D$4:$IW$531,34,FALSE) -> ü
B59: Ejes Transversales
B60: CTeI | D60: =VLOOKUP($O$4,Datos_Producto!$D$4:$IW$531,44,FALSE) -> û | F60: Paz Conflicto | I60: =VLOOKUP($O$4,Datos_Producto!$D$4:$IW$531,47,FALSE) -> û | K60: Funcionario Responsable: | M60: =VLOOKUP($O$4,Datos_Producto!$D$4:$IW$531,241,FALSE) -> ROBERTO GONZALEZ CUBILLOS
B61: Dinamicas globales | D61: =VLOOKUP($O$4,Datos_Producto!$D$4:$IW$531,45,FALSE) -> ü | F61: Cambio Climatico | I61: =VLOOKUP($O$4,Datos_Producto!$D$4:$IW$531,48,FALSE) -> ü
B62: Nuevo Liderazgo | D62: =VLOOKUP($O$4,Datos_Producto!$D$4:$IW$531,46,FALSE) -> û | F62: Seguridad Alimentaria | I62: =VLOOKUP($O$4,Datos_Producto!$D$4:$IW$531,49,FALSE) -> û
B65: PLAN DE EJECUCIÓN DE LA META
B66: Alcance de la Meta (que se pretende hacer ?) | K66: Principales acciones, actuaciones, procedimientos, procesos o etapas
B67: =VLOOKUP($O$4,Datos_Producto!$D$4:$IW$531,218,FALSE) -> LOGRAR LA ADOPCIÓN DE LAS DIRECTRICES DE ORDENAMIENTO TERRITORIAL COMO INSTRUMENTO DE PLANIFICACION PARA EL DEPARTAMENTO | K67: =VLOOKUP($O$4,Datos_Producto!$D$4:$IW$531,219,FALSE) -> AJUSTE DEL DOCUMENTO PROPUESTO DE DIRECTRICES DE ORDENAMIENTO TERRITORIAL ELEVARLAS A ORDENANZA DEPARTAMENTAL CUMPLIENDO CON LOS REQUISITOS PREVIOS SOCIALIZACION DE LAS DIRECTRICES DE ORDENAMIENTO TERRITORIAL A TODAS LAS ENTIDADES TERRITORIALES A NIVEL NACIONAL, REGIONAL Y MUNICIPAL
B74: Entidades Cooperantes
B75: =VLOOKUP($O$4,Datos_Producto!$D$4:$IW$531,244,FALSE) -> 0
B76: =VLOOKUP($O$4,Datos_Producto!$D$4:$IW$531,245,FALSE) -> 0
B77: =VLOOKUP($O$4,Datos_Producto!$D$4:$IW$531,246,FALSE) -> 0
B78: =VLOOKUP($O$4,Datos_Producto!$D$4:$IW$531,247,FALSE) -> 0
D80: Se requiere Plan de Trabajo para su Seguimiento | J80: =VLOOKUP($O$4,Datos_Producto!$D$4:$IW$531,220,FALSE) -> Si
D82: No. | E82: Actividad y/o Componente | L82: Ponderado
D83: 1 | E83: =VLOOKUP($O$4,Datos_Producto!$D$4:$IW$531,221,FALSE) -> AJUSTE DEL DOCUMENTO PROPUESTO DE DIRECTRICES DE ORDENAMIENTO TERRITORIAL | L83: =VLOOKUP($O$4,Datos_Producto!$D$4:$IW$531,222,FALSE) -> 20
D84: 2 | E84: =VLOOKUP($O$4,Datos_Producto!$D$4:$IW$531,223,FALSE) -> ELEVARLAS A ORDENANZA DEPARTAMENTAL CUMPLIENDO CON LOS REQUISITOS PREVIOS | L84: =VLOOKUP($O$4,Datos_Producto!$D$4:$IW$531,224,FALSE) -> 50
D85: 3 | E85: =VLOOKUP($O$4,Datos_Producto!$D$4:$IW$531,225,FALSE) -> SOCIALIZACION DE LAS DIRECTRICES DE ORDENAMIENTO TERRITORIAL A TODAS LAS ENTIDADES TERRITORIALES A NIVEL NACIONAL, REGIONAL Y MUNICIPAL | L85: =VLOOKUP($O$4,Datos_Producto!$D$4:$IW$531,226,FALSE) -> 30
D86: 4 | E86: =VLOOKUP($O$4,Datos_Producto!$D$4:$IW$531,227,FALSE) -> 0 | L86: =VLOOKUP($O$4,Datos_Producto!$D$4:$IW$531,228,FALSE) -> 0
D87: 5 | E87: =VLOOKUP($O$4,Datos_Producto!$D$4:$IW$531,229,FALSE) -> 0 | L87: =VLOOKUP($O$4,Datos_Producto!$D$4:$IW$531,230,FALSE) -> 0
D88: 6 | E88: =VLOOKUP($O$4,Datos_Producto!$D$4:$IW$531,231,FALSE) -> 0 | L88: =VLOOKUP($O$4,Datos_Producto!$D$4:$IW$531,232,FALSE) -> 0
D89: 7 | E89: =VLOOKUP($O$4,Datos_Producto!$D$4:$IW$531,233,FALSE) -> 0 | L89: =VLOOKUP($O$4,Datos_Producto!$D$4:$IW$531,234,FALSE) -> 0
D90: 8 | E90: =VLOOKUP($O$4,Datos_Producto!$D$4:$IW$531,235,FALSE) -> 0 | L90: =VLOOKUP($O$4,Datos_Producto!$D$4:$IW$531,236,FALSE) -> 0
D91: 9 | E91: =VLOOKUP($O$4,Datos_Producto!$D$4:$IW$531,237,FALSE) -> 0 | L91: =VLOOKUP($O$4,Datos_Producto!$D$4:$IW$531,238,FALSE) -> 0
D92: 10 | E92: =VLOOKUP($O$4,Datos_Producto!$D$4:$IW$531,239,FALSE) -> 0 | L92: =VLOOKUP($O$4,Datos_Producto!$D$4:$IW$531,240,FALSE) -> 0
D93: SUMATORIA DE PONDERADOS | L93: =SUM(L83:L92) -> 100

Sheet Hoja1 (hidden)
B2: SECRETARIA DE PLANEACIÓN DE CUNDINAMARCA
B3: METAS PLAN DE DESARROLLO DEPARTAMENTAL "UNIDOS PODEMOS MÁS"
B5: Sector / Meta Producto | C5: Linea Base | D5: V/Programado | E5: Recursos 2016-2019
B7: A.1 EDUCACIÓN | E7: 3.420238446e+12
B8: 101. IMPLEMENTAR UN PROGRAMA EN 283 IED OFICIALES DESDE LA EDUCACIÓN PARA LA FORMACIÓN DE NIÑOS Y JÓVENES PARA APOYAR LA GESTIÓN DEL RIESGO. | C8: 0 | D8: 283 | E8: 300000093
B9: 102. IMPLEMENTAR UN PROYECTO DE FORTALECIMIENTO DE COMPETENCIAS PARA EL 100% DE LAS IED (283) DURANTE EL PERIODO DE GOBIERNO. | C9: 0 | D9: 1 | E9: 3200000000
B10: 103. EVALUACIÓN, SEGUIMIENTO Y SOSTENIMIENTO DE LAS 57 REDES DE APRENDIZAJE DOCENTE QUE SE ENCUENTRAN VINCULADAS AL OBSERVATORIO EDUCATIVO DEL DEPARTAMENTO Y QUE ACTUALMENTE ADELANTAN INVESTIGACIÓN EN TEMAS DE AMBIENTE, CTEI, | C10: 57 | D10: 57 | E10: 2330000000
B11: 104. ELABORAR E IMPLEMENTAR EN 140 DE LAS IED EL PLAN DEPARTAMENTAL DE BILINGÜISMO DURANTE EL PERIODO DE GOBIERNO. | C11: 0 | D11: 140 | E11: 5500000000
B12: 105. IMPLEMENTAR 10 INSTITUCIONES EDUCATIVAS BILINGÜES EN EL CUATRIENIO. | C12: 0 | D12: 10 | E12: 3300000000
B13: 106. IMPLEMENTAR UN PROYECTO DE FORTALECIMIENTO DE COMPETENCIAS EN PENSAMIENTO LÓGICO MATEMÁTICO Y LECTOESCRITURA, QUE BENEFICIE A 9000 ESTUDIANTES DURANTE EL PERIODO DE GOBIERNO. | C13: 0 | D13: 9000 | E13: 1980000000
B14: 107. IMPLEMENTAR MODELOS EDUCATIVOS INNOVADORES Y EDUCACIÓN VIRTUAL PARA 22.000 ESTUDIANTES DE LAS IED QUE PERMITAN LA TRANSFORMACIÓN DE LAS METODOLOGÍAS DE ENSEÑANZA Y AUTONOMÍA DEL APRENDIZAJE, PARA EL DESARROLLO DEL PENSAMIENTO CRÍTICO, CREATIVO Y PERCEPTIVO. | C14: 0 | D14: 22000 | E14: 5500000000
B15: 108. IMPLEMENTAR 15 AMBIENTES EDUCATIVOS INTERDISCIPLINARIOS DESTINADOS A MEJORAR LAS CAPACIDADES DE INVESTIGACIÓN DE LOS ESTUDIANTES DE LAS IED DEL DEPARTAMENTO EN CIENCIAS Y TECNOLOGÍA DURANTE EL PERIODO DE GOBIERNO. | C15: 0 | D15: 15 | E15: 6660000000
B16: 109. BENEFICIAR A 3.120 ESTUDIANTES DE LOS GRADOS 10° Y 11°, DURANTE EL PERIODO DE GOBIERNO, CON ESTRATEGIAS DE NIVELACIÓN Y FORMACIÓN DE COMPETENCIAS BÁSICAS Y ORIENTACIÓN VOCACIONAL, PRIORIZANDO LOS MUNICIPIOS DE MÁS BAJA TASA DE TRANSICIÓN. | C16: 0 | D16: 3120 | E16: 1725360000
B17: 110. IMPLEMENTAR EL PROGRAMA ESCUELA AMIGA DEL AMBIENTE EN 40 IED OFICIALES EN ALIANZA CON LA CAR DESDE LA EDUCACIÓN PARA LA FORMACIÓN DE NIÑOS DEFENSORES DEL AGUA, ECO ESCUELAS Y EL DESARROLLO DE PROMOTORES AMBIENTALES PARA SER ARTICULADOS CON LOS PRAES. | C17: 0 | D17: 40 | E17: 800000000
B18: 111. REALIZAR SALIDAS PEDAGÓGICAS Y RECREATIVAS A 21.000 ESTUDIANTES CON EL FIN DE FORTALECER COMPETENCIAS BÁSICAS, CIUDADANAS, CIENCIA Y TECNOLOGÍA, CONOCIMIENTO, REGIONES, ENTRE OTRAS. | C18: 20000 | D18: 21000 | E18: 625000000
B19: 112. IMPARTIR PROGRAMAS DE FORMACIÓN DIRIGIDOS AL FORTALECIMIENTO DE LA LABOR DOCENTE Y ACTUALIZACIÓN DISCIPLINAR A 3.000 DOCENTES Y DIRECTIVOS DOCENTES DE LAS 283 IED. | C19: 0 | D19: 3000 | E19: 1800000000
B20: 113. IMPLEMENTAR ANUALMENTE, DURANTE EL PERIODO DE GOBIERNO, UN PROGRAMA INNOVADOR DE RECONOCIMIENTO A LA GESTIÓN INTEGRAL DE LA COMUNIDAD EDUCATIVA DEL DEPARTAMENTO (PLAN DE INCENTIVOS BIENESTAR). | C20: 0 | D20: 1 | E20: 4000000000
B21: 114. IMPLEMENTAR EL PROGRAMA EDUCATIVO "NI UN MINUTO MENOS DE CLASE" A TRAVÉS DE LOS CENTROS DE PENSAMIENTO PROVINCIAL DURANTE EL PERIODO DE GOBIERNO. | C21: 0 | D21: 1 | E21: 3100000000
B22: 115. FORMULAR, IMPLEMENTAR Y EJECUTAR UN PLAN ANUAL DE ASISTENCIA TÉCNICA EN LAS IED GARANTIZANDO LA ARTICULACIÓN AL SISTEMA DE GESTIÓN DE CALIDAD DE LA SECRETARÍA DE EDUCACIÓN DE CUNDINAMARCA DURANTE EL PERIODO DE GOBIERNO. | C22: 0 | D22: 4 | E22: 765000000
B23: 116. FORMULAR Y EJECUTAR EL PLAN OPERATIVO ANUAL DE INSPECCIÓN Y VIGILANCIA QUE GARANTICE EL CONTROL EN 715 ESTABLECIMIENTOS EDUCATIVOS (283 IED OFICIALES, 336 ESTABLECIMIENTOS EDUCATIVOS PRIVADOS Y 96 CENTROS DE FORMACIÓN PARA EL DESARROLLO HUMANO) DURANTE EL PERIODO DE GOBIERNO. | C23: 0 | D23: 715 | E23: 194120000
B24: 117. BENEFICIAR 5.153 ESTUDIANTES CON SUBSIDIOS PARA ACCESO A LA EDUCACIÓN SUPERIOR DURANTE EL PERIODO DE GOBIERNO. | C24: 3496 | D24: 5153 | E24: 150399134275
B25: 118. BENEFICIAR A 400 ESTUDIANTES DEL MUNICIPIO DE SOACHA CON BECAS DEL 100% EN LA UNIVERSIDAD DE CUNDINAMARCA. | C25: 0 | D25: 400 | E25: 2400000000
B26: 119. ELABORAR EL ESTUDIO DE LA APERTURA DE LA FACULTAD DE CIENCIAS DE LA SALUD PARA FOMENTAR EL INGRESO DE JÓVENES CUNDINAMARQUESES A PROGRAMAS EN FORMACIÓN EN SALUD EN EL CUATRIENIO. | C26: 0 | D26: 1 | E26: 2000000000
B27: 120. ELABORAR UN ESTUDIO PARA LA CREACIÓN DE UNA INSTITUCIÓN EDUCATIVA UNIVERSITARIA DEPARTAMENTAL DE CARÁCTER PÚBLICO A TRAVÉS DE ALIANZAS ESTRATÉGICAS. | C27: 0 | D27: 1 | E27: 1000000000
B28: 121. DESARROLLAR 3 CONVENIOS CON UNIVERSIDADES DE ALTA ACREDITACIÓN DENTRO DEL PROCESO DE REGIONALIZACIÓN DE LA EDUCACIÓN SUPERIOR EN EL DEPARTAMENTO. | C28: 0 | D28: 3 | E28: 600000000
B29: 122. ARTICULAR LAS 9 NORMALES SUPERIORES DEL DEPARTAMENTO CON INSTITUCIONES UNIVERSITARIAS CON ACREDITACIÓN DE ALTA CALIDAD PARA QUE LOS ESTUDIANTES DE GRADOS 10° Y 11° INICIEN PROGRAMAS DE EDUCACIÓN SUPERIOR. | C29: 0 | D29: 9 | E29: 1800000000
B30: 123. ARTICULAR LAS INSTITUCIONES EDUCATIVAS DEL DEPARTAMENTO CON INSTITUCIONES UNIVERSITARIAS PARA LA REALIZACIÓN DE PROGRAMAS DE EDUCACIÓN SUPERIOR QUE BENEFICIEN A 35 INSTITUCIONES EDUCATIVAS DEPARTAMENTALES DURANTE EL CUATRIENIO. | C30: 0 | D30: 35 | E30: 3575000000
B31: 124. ENTREGAR A 5.000 JÓVENES UN SUBSIDIO PARA LA INSCRIPCIÓN Y GASTOS ASOCIADOS A LA PRESENTACIÓN DE EXÁMENES DE INGRESO A UNIVERSIDADES PÚBLICAS EN EL CUATRIENIO. | C31: 0 | D31: 5000 | E31: 950000000
B32: 125. OTORGAR SUBSIDIOS DE TRANSPORTE O ALOJAMIENTO A 505 ESTUDIANTES DE EDUCACIÓN SUPERIOR DURANTE EL PERIODO DE GOBIERNO. | C32: 0 | D32: 505 | E32: 2760799665
B33: 126. FORTALECER CON RECURSOS TÉCNICOS Y PEDAGÓGICOS A LOS 6 CERES QUE FUNCIONAN EN IED DURANTE EL PERIODO DE GOBIERNO. | C33: 11 | D33: 6 | E33: 1200000000
B34: 127. PRODUCIR CONTENIDOS EN 3 ÁREAS DEL CENTRO DE INNOVACIÓN EDUCATIVA REGIONAL (CIER) DURANTE EL PERIODO DE GOBIERNO. | C34: 3 | D34: 3 | E34: 600000000
B35: 129. IMPLEMENTAR DURANTE EL CUATRIENIO 4 MODELOS FLEXIBLES CON COMPONENTES PEDAGÓGICOS Y SOCIALES PARA ADULTOS DURANTE EL PERIODO DE GOBIERNO. | C35: 2 | D35: 4 | E35: 4059300000
B36: 130. FORTALECER LOS MODELOS DE EDUCACIÓN RURAL EN 500 SEDES EDUCATIVAS DURANTE EL CUATRIENIO. | C36: 221 | D36: 500 | E36: 1305000000
B37: 131. ALFABETIZAR A 7.754 PERSONAS JÓVENES ADULTOS Y ADULTOS MAYORES DURANTE EL CUATRIENIO. | C37: 6554 | D37: 7754 | E37: 3784819409
B38: 132. IMPLEMENTAR UN PROGRAMA DE ENTORNOS EDUCATIVOS SEGUROS Y PACÍFICOS DURANTE EL PERIODO DE GOBIERNO. | C38: 0 | D38: 1 | E38: 2200000000
B39: 133. AUMENTAR EN 50 EL NÚMERO DE IED INTERVENIDAS EN PROCESOS DE EDUCACIÓN INCLUSIVA DURANTE EL PERIODO DE GOBIERNO. | C39: 121 | D39: 50 | E39: 7665300000
B40: 134. BRINDAR COMPLEMENTO NUTRICIONAL O ALMUERZO A 185.000 NIÑAS, NIÑOS Y ADOLESCENTES ANUALMENTE, PRIORIZANDO LOS ESTUDIANTES DE JORNADA ÚNICA. | C40: 162142 | D40: 185000 | E40: 213431823220
B41: 135. LOGRAR EN EL CUATRIENIO LA PERMANENCIA DE 265.136 NIÑOS, NIÑAS Y ADOLESCENTES MEDIANTE ESTRATEGIAS DE TRANSPORTE ESCOLAR, ALOJAMIENTO, ADQUISICIÓN DE BUSES, ENTRE OTROS. | C41: 53958 | D41: 265136 | E41: 86513420321
B42: 136. REALIZAR 1 CAMPAÑA EN EL 100% (283) INSTITUCIONES DEL DEPARTAMENTO PARA DISMINUIR LA DESERCIÓN DE LOS ESTUDIANTES DE LOS GRADOS 5° Y 9° EN LA TRANSICIÓN A LA EDUCACIÓN BÁSICA Y MEDIA. | C42: 0 | D42: 100 | E42: 600000000
B43: 137. DOTAR LAS 141 INSTITUCIONES EDUCATIVAS CON AMBIENTES ESCOLARES DURANTE EL PERIODO DE GOBIERNO. | C43: 0 | D43: 141 | E43: 1.3148955e+10
B44: 138. INTERVENIR 1.028 AULAS EDUCATIVAS CON INFRAESTRUCTURA Y SERVICIOS COMPLEMENTARIOS. | C44: 0 | D44: 1028 | E44: 83876000000
B45: 139. COFINANCIAR LA INFRAESTRUCTURA EDUCATIVA DEL MUNICIPIO DE SOACHA A TRAVÉS DE LA FIRMA DE 3 CONVENIOS, DURANTE EL CUATRIENIO. | C45: 0 | D45: 3 | E45: 3000000000
B46: 140. FORTALECER LA INFRAESTRUCTURA TECNOLÓGICA DE LAS INSTITUCIONES EDUCATIVAS OFICIALES DEL DEPARTAMENTO, ADQUIRIENDO 30.000 EQUIPOS DE CÓMPUTO PARA EL USO Y APROPIACIÓN DE LAS TIC EN EL AULA EDUCATIVA. | C46: 45196 | D46: 30000 | E46: 9000000000
B47: 141. GARANTIZAR LA CONECTIVIDAD A INTERNET DE 1.200 SEDES EDUCATIVAS OFICIALES DEL DEPARTAMENTO EN LOS MUNICIPIOS NO CERTIFICADOS. | C47: 200 | D47: 1200 | E47: 9289514290
B48: 142. EJECUTAR UN PLAN QUE PERMITA LA ACTUALIZACIÓN, MANTENIMIENTO, AMPLIACIÓN Y SEGUIMIENTO ANUAL A LA INFRAESTRUCTURA TECNOLÓGICA EXISTENTE EN LAS DIFERENTES DEPENDENCIAS DE LA SECRETARIA DE EDUCACIÓN DE CUNDINAMARCA Y LAS IED. | C48: 0 | D48: 1 | E48: 300000000
B49: 143. SUMINISTRAR EL SERVICIO DE ENERGÍA ELÉCTRICA ALTERNATIVA A 23 SEDES EDUCATIVAS RURALES DEL DEPARTAMENTO QUE NO CUENTAN CON EL SERVICIO. | C49: 0 | D49: 23 | E49: 1918800000
B50: 144. IMPLEMENTAR EL PROGRAMA "PINTANDO DE COLORES LA ESCUELA" EN 900 ESCUELAS RURALES DEL DEPARTAMENTO DURANTE EL PERIODO DE GOBIERNO. | C50: 0 | D50: 900 | E50: 765500000
B51: 145. CONSTRUIR UN PLAN DE INFRAESTRUCTURA EDUCATIVA A LAS 283 IED DURANTE EL PERIODO DE GOBIERNO. | C51: 0 | D51: 1 | E51: 1000000000
B52: 146. GARANTIZAR LA EDUCACIÓN INICIAL A 1.500 NIÑOS EN LOS GRADOS DE PRE JARDÍN, JARDÍN O TRANSICIÓN DURANTE EL PERIODO DE GOBIERNO. | C52: 14987 | D52: 1500 | E52: 638000000
B53: 147. MANTENER DURANTE EL PERIODO DE GOBIERNO, LA ATENCIÓN EDUCATIVA INTEGRAL DE 2.200 NIÑOS CON EL USO DE 90 AULAS ESPECIALIZADAS EN PRIMERA INFANCIA, EN 51 MUNICIPIOS NO CERTIFICADOS DEL DEPARTAMENTO DE CUNDINAMARCA. | C53: 2200 | D53: 2200 | E53: 3000000000
B54: 148. GARANTIZAR LA PRESTACIÓN DEL SERVICIO EDUCATIVO EN LOS 109 MUNICIPIOS NO CERTIFICADOS DEL DEPARTAMENTO DE CUNDINAMARCA DURANTE EL CUATRIENIO. | C54: 109 | D54: 109 | E54: 2.368996824e+12
B55: 149. GARANTIZAR ANUALMENTE EL PAGO DEL 100% DE LA NÓMINA DE PENSIONADOS Y SUSTITUTOS DEL MAGISTERIO DURANTE EL PERIODO DE GOBIERNO. | C55: 100 | D55: 100 | E55: 2.895159824e+11
B56: 150. CONTRATAR 601 PUNTOS ANUALES DE ASEO PARA LAS IED DURANTE EL PERIODO DE GOBIERNO. | C56: 601 | D56: 601 | E56: 3.779701274e+10
B57: 151. CONTRATAR 152 PUNTOS ANUALES DE VIGILANCIA PARA LAS IED DURANTE EL PERIODO DE GOBIERNO. | C57: 152 | D57: 152 | E57: 3.640511774e+10
B58: 152. GARANTIZAR EL PAGO EN EL 70% DEL COSTO ANUAL DE LOS SERVICIOS PÚBLICOS DE LAS 283 IED DURANTE EL PERIODO DE GOBIERNO | C58: 283 | D58: 283 | E58: 10115862900
B59: 153. LOGRAR LA REORGANIZACIÓN INSTITUCIONAL DEL 100% DE LAS IED DEL DEPARTAMENTO DE CUNDINAMARCA EN EL PERIODO DE GOBIERNO. | C59: 0 | D59: 283 | E59: 500000000
B60: 154. DESARROLLAR SEIS (6) PROYECTOS DE INVESTIGACIÓN APLICADA EN 4 MICRO REGIONES DEL DEPARTAMENTO DE CUNDINAMARCA, EN EL MARCO DE LA TRANSFORMACIÓN DEL SISTEMA EDUCATIVO, DURANTE EL CUATRIENIO. | C60: 0 | D60: 6 | E60: 7000000000
B61: 155. INCREMENTAR EN 40 EL NÚMERO DE IED CON PROYECTOS DE INVESTIGACIÓN DESARROLLADOS POR ESTUDIANTES, DURANTE EL CUATRIENIO. | C61: 0 | D61: 40 | E61: 104000000
B62: 156. APOYAR 100 PROYECTOS EDUCATIVOS EN LAS ÁREAS DE INVESTIGACIÓN Y EMPRENDIMIENTO CON ESTUDIANTES DE LAS IED "ESCUELAS EMPRENDEDORAS", DURANTE EL CUATRIENIO. | C62: 0 | D62: 100 | E62: 436800000
B63: 157. IMPLEMENTAR EN 60 IED UN PROGRAMA DE EMISORAS ESCOLARES DURANTE EL PERIODO DE GOBIERNO. | C63: 0 | D63: 60 | E63: 648000000
B64: 237. BENEFICIAR A 12.000 NIÑOS Y NIÑAS MENORES DE 5 AÑOS CON RIESGO DE DESNUTRICIÓN CON COMPLEMENTOS NUTRICIONALES DURANTE EL PERIODO DE GOBIERNO. | C64: 4000 | D64: 12000 | E64: 11000000000
B65: 473. CONSTRUIR LA INFRAESTRUCTURA DE 1 INSTITUCIÓN EDUCATIVA URBANA DEL MUNICIPIO DE ÚTICA. | C65: 0 | D65: 1 | E65: 1600000000
B66: 561. AUMENTAR DE 4 A 6 LOS PROCESOS CERTIFICADOS PARA LA PRESTACIÓN DEL SERVICIO EDUCATIVO EN EL MARCO DEL PROCESO DE MODERNIZACIÓN DE LAS SECRETARIAS DE EDUCACIÓN ESTABLECIDO POR EL MINISTERIO DE EDUCACIÓN. | C66: 4 | D66: 2 | E66: 1558000000
B67: A.2 SALUD | E67: 8.668054528e+11
B68: 187. ELABORAR 25 MAPAS DE RIESGO DE FUENTES DE ABASTECIMIENTO DE LOS SISTEMAS DE ACUEDUCTO UBICADOS EN LA JURISDICCIÓN DE LOS MUNICIPIOS CUENCA DEL RÍO BOGOTÁ DE RESPONSABILIDAD DEPARTAMENTAL. | C68: 0 | D68: 25 | E68: 510000000
B69: 208. COFINANCIAR EN LOS 116 MUNICIPIOS DEL DEPARTAMENTO EL RÉGIMEN SUBSIDIADO, REALIZANDO EL SEGUIMIENTO Y LA ASISTENCIA TÉCNICA PARA GESTIONAR EL ASEGURAMIENTO EN EL DEPARTAMENTO. | C69: 116 | D69: 116 | E69: 3.503299547e+11
B70: 209. CUBRIR AL 100% LA PROVISIÓN DE LOS SERVICIOS DE SALUD DE LA POBLACIÓN A CARGO DEL DEPARTAMENTO. | C70: 100 | D70: 100 | E70: 2.72297193e+11
B71: 210. IMPLEMENTAR LA ATENCIÓN PRIMARIA EN SALUD COMO ESTRATEGIA PARA EL DESARROLLO DEL PLAN DE INTERVENCIONES COLECTIVAS DEL DEPARTAMENTO DE CUNDINAMARCA EN 15 TERRITORIOS DEFINIDOS. | C71: 15 | D71: 15 | E71: 1.110582361e+10
B72: 211. AUMENTAR A 86% EL PORCENTAJE DEL ÉXITO TERAPÉUTICO EN PERSONAS CON TUBERCULOSIS PULMONAR EN CASOS NUEVOS TB BK POSITIVOS. | C72: 84 | D72: 86 | E72: 2182761169
B73: 223. IMPLEMENTAR EN LAS 15 CABECERAS PROVINCIALES LA RUTA DE ATENCIÓN INTEGRAL PARA LA MATERNIDAD SEGURA, SALUDABLE Y FELIZ. | C73: 0 | D73: 15 | E73: 5798065200
B74: 224. IMPLEMENTAR EL 100% DEL PLAN DE ACCIÓN DEL COMPONENTE DE SALUD DE LA POLÍTICA PUBLICA "MUJER EQUIDAD DE GÉNERO E IGUALDAD DE OPORTUNIDADES DEL DEPARTAMENTO DE CUNDINAMARCA". | C74: 0 | D74: 100 | E74: 909750000
B75: 238. BENEFICIAR A 4.200 MADRES GESTANTES Y LACTANTES CON BAJO PESO CON COMPLEMENTOS NUTRICIONALES DURANTE EL PERIODO DE GOBIERNO. | C75: 2100 | D75: 4200 | E75: 3900000000
B76: 240. MANTENER LA COBERTURA DEL 95% EN LOS INMUNOBIOLÓGICOS QUE HACEN PARTE DEL ESQUEMA NACIONAL, EN LAS POBLACIONES OBJETO EN CUNDINAMARCA. | C76: 95 | D76: 95 | E76: 3376987526
B77: 241. REDUCIR UN PUNTO PORCENTUAL EL BAJO PESO AL NACER. | C77: 11.3 | D77: 1 | E77: 908948656
B78: 242. IMPLEMENTAR EN 36 MUNICIPIOS LAS ACCIONES DE POLÍTICA DE CERO A SIEMPRE PARA LA ATENCIÓN INTEGRAL A LA PRIMERA INFANCIA EN LAS COMPETENCIAS DEL SECTOR SALUD. | C78: 10 | D78: 36 | E78: 1070100723
B79: 243. DISMINUIR UN PUNTO PORCENTUAL LA PREVALENCIA DE DESNUTRICIÓN AGUDA EN MENORES 5 AÑOS. | C79: 4.2 | D79: 1 | E79: 1218003282
B80: 246. IMPLEMENTAR EN 75 INSTITUCIONES EDUCATIVAS PÚBLICAS ACCIONES DE PROMOCIÓN DE LA SALUD Y PREVENCIÓN DE LA ENFERMEDAD DE ACUERDO A LOS COMPONENTES ESTABLECIDOS EN LA ESTRATEGIA DE ENTORNOS SALUDABLES ESCOLARES EN COORDINACIÓN CON LA SECRETARIA DE EDUCACIÓN. | C80: 10 | D80: 75 | E80: 2829799169
B81: 261. IMPLEMENTAR LA ESTRATEGIA "ADOLESCENTE PIENSA Y ACTÚA POSITIVAMENTE" EN 10 MUNICIPIOS PRIORIZADOS PARA FOMENTAR HABILIDADES HACIA LA CONSTRUCCIÓN DE UN PROYECTO DE VIDA PARA LA TOMA DE DECISIONES ACERTADAS EN LOS ADOLESCENTES. | C81: 0 | D81: 10 | E81: 899171930.2
B82: 263. NOTIFICAR EL 100% DE LAS SITUACIONES DE EMBARAZO EN MENORES DE 15 AÑOS IDENTIFICADAS Y LAS ACCIONES PARA EL INMEDIATO RESTABLECIMIENTO DE SUS DERECHOS, EN EL MARCO DE CERO TOLERANCIAS. | C82: 0 | D82: 100 | E82: 869132561.3
B83: 264. IMPLEMENTAR 4 SERVICIOS AMIGABLES DE SALUD (SAS) DE MANERA TRANSECTORIAL PARA ADOLESCENTES Y JÓVENES EN ESPACIOS EDUCATIVOS Y MEJORAR LA CALIDAD Y COBERTURA DE LOS MISMOS EN LOS 37 MUNICIPIOS. | C83: 37 | D83: 4 | E83: 2156388057
B84: 277. IDENTIFICAR TEMPRANAMENTE Y CANALIZAR EFECTIVAMENTE PERSONAS CON HTA Y DIABETES EN 10 MUNICIPIOS DEL DEPARTAMENTO PARA DISMINUIR LAS COMPLICACIONES POR ESTAS PATOLOGÍAS. | C84: 0 | D84: 10 | E84: 1523035241
B85: 278. INCREMENTAR LAS COBERTURAS DE DETECCIÓN TEMPRANA EN 2 PUNTOS PORCENTUALES A TRAVÉS DE PROCESOS DE TAMIZACIÓN PARA CÁNCER DE MAMA. | C85: 0 | D85: 2 | E85: 1649908305
B86: 287. IMPLEMENTAR EN LOS 116 MUNICIPIOS LOS CRITERIOS DE ATENCIÓN INTEGRAL (BASADOS EN LA LEY 1276 DE 2009) EN LOS CENTROS DE PROMOCIÓN Y PROTECCIÓN SOCIAL QUE PRESTAN SERVICIOS A LAS PERSONAS MAYORES. | C86: 0 | D86: 116 | E86: 537206622
B87: 290. IMPLEMENTAR EN LOS 116 MUNICIPIOS DEL DEPARTAMENTO LA POLÍTICA PÚBLICA PARA LA INCLUSIÓN DE LAS PERSONAS CON DISCAPACIDAD DURANTE EL PERIODO DE GOBIERNO. | C87: 0 | D87: 116 | E87: 627025175
B88: 300. IMPLEMENTAR PROGRAMAS DE PROMOCIÓN, PREVENCIÓN Y MITIGACIÓN DEL CONSUMO DE SUSTANCIAS PSICOACTIVAS EN 20 MUNICIPIOS DEL DEPARTAMENTO, DIRIGIDO A ADOLESCENTES. | C88: 0 | D88: 20 | E88: 4993790974
B89: 313. IMPLEMENTAR EL PROGRAMA DE ATENCIÓN PSICOSOCIAL (PAPSIVI) A VÍCTIMAS DEL CONFLICTO ARMADO (VCA) EN LOS MUNICIPIOS PRIORIZADOS DEL DEPARTAMENTO, DE ACUERDO A LOS CRITERIOS DEFINIDOS POR MINSALUD. | C89: 1 | D89: 1 | E89: 513807362.7
B90: 388. AUMENTAR LA COBERTURA EN 7 MUNICIPIOS CON LA IMPLEMENTACIÓN DE "ENTORNOS LABORALES SALUDABLES" MANTENIENDO LOS EXISTENTES, BASADOS EN EL FOMENTO DE LA SEGURIDAD Y SALUD DE LOS TRABAJADORES PARA LA PREVENCIÓN DE ENFERMEDADES LABORALES Y ACCIDENTES DE TRABAJO. | C90: 53 | D90: 7 | E90: 2570201730
B91: 390. IMPLEMENTAR EN 21 MUNICIPIOS LA POLÍTICA PÚBLICA DE SEGURIDAD ALIMENTARIA Y NUTRICIONAL DEL DEPARTAMENTO EN LOS COMPONENTES DE CONSUMO Y APROVECHAMIENTO BIOLÓGICO. | C91: 15 | D91: 21 | E91: 1220091123
B92: 460. GARANTIZAR AL 100% LA VIGILANCIA DE LA CALIDAD DEL AGUA PARA CONSUMO HUMANO DE TODOS LOS ACUEDUCTOS INSCRITOS EN EL DEPARTAMENTO. | C92: 100 | D92: 100 | E92: 1.004142053e+10
B93: 514. RESPONDER AL 100% DE LAS EMERGENCIAS EN SALUD Y DESASTRES CON OPORTUNIDAD EN ARTICULACIÓN CON LA UNIDAD ADMINISTRATIVA ESPECIAL PARA LA GESTIÓN DEL RIESGO EN DESASTRES. | C93: 0 | D93: 0 | E93: 2658553714
B94: 530. ADOPTAR Y ADAPTAR EL 100% DE LA POLÍTICA DE SALUD MENTAL Y SUSTANCIA PSICOACTIVAS - SPA DEPARTAMENTAL, CONFORME A LOS LINEAMIENTOS Y DESARROLLOS TÉCNICOS DEFINIDOS POR EL MINISTERIO DE SALUD Y PROTECCIÓN SOCIAL. | C94: 0 | D94: 100 | E94: 2819847518
B95: 554. LOGRAR LA INTEGRACIÓN AL 100% DE LA RED PÚBLICA DE PRESTADORES DE SERVICIOS DE SALUD EN EL CONTEXTO DEL MODELO INTEGRAL DE ATENCIÓN EN SALUD DEL DEPARTAMENTO DURANTE EL CUATRIENIO. | C95: 0 | D95: 100 | E95: 2530285267
B96: 555. APOYAR LA GESTIÓN DEL 100% DE EMPRESAS SOCIALES DEL ESTADO, Y DE LA EAPB CONVIDA Y CREACIÓN DE ESES DEL ORDEN DEPARTAMENTAL DE ACUERDO A LOS RESULTADOS OBTENIDOS EN LA RED INTEGRADA DE SERVICIOS DE SALUD EN EL MARCO DE LA ATENCIÓN PRIMARIA EN SALUD. | C96: 0 | D96: 100 | E96: 7.354902167e+10
B97: 556. APOYAR LA GESTIÓN DE LA EMPRESA SOCIAL DEL ESTADO MARIO GAITÁN YANGUAS DE ACUERDO A LOS RESULTADOS OBTENIDOS EN LA RED INTEGRADA DE SERVICIOS DE SALUD EN EL MARCO DE LA ATENCIÓN PRIMARIA EN SALUD. | C97: 0 | D97: 1 | E97: 200000000
B98: 557. ESTANDARIZAR UN PROGRAMA DE HUMANIZACIÓN EN LA PRESTACIÓN DEL SERVICIO DE SALUD EN CUNDINAMARCA BAJO LOS LINEAMIENTOS DEL MIN. SALUD, APOYADA EN EL SISTEMA DE GESTIÓN DE CALIDAD. | C98: 0 | D98: 1 | E98: 3316562626
B99: 568. IMPLEMENTAR EL PLAN DEPARTAMENTAL DE MEJORAMIENTO DE LA CALIDAD EN EL 100% DE LA RED PÚBLICA DE PRESTADORES DE SERVICIOS DE SALUD EN CUNDINAMARCA. | C99: 0 | D99: 100 | E99: 4.191812952e+10
B100: 569. IMPLEMENTAR UN SISTEMA ARTICULADO DE VIGILANCIA Y CONTROL EN EL SISTEMA GENERAL DE SEGURIDAD SOCIAL SALUD, QUE PERMITA COORDINAR LAS ASEGURADORAS, SALUD PÚBLICA Y PRESTADORES DE SERVICIOS EN SALUD EN EL DEPARTAMENTO DE CUNDINAMARCA. | C100: 0 | D100: 1 | E100: 1.000408751e+10
B101: 570. RESPALDAR EL PROCESO DE PLANEACIÓN ESTRATÉGICA EN EL 100% DE LAS ENTIDADES (116 MUNICIPIOS, LA RED PÚBLICA DE PRESTACIÓN DE SERVICIOS Y LA SECRETARÍA DE SALUD) EN EL MARCO DEL SISTEMA INTEGRADO DE GESTIÓN Y CONTROL DEL DEPARTAMENTO. | C101: 0 | D101: 100 | E101: 2650178755
B102: 571. IMPLEMENTAR EL 100% DEL PLAN DE ACCIÓN DE LA POLÍTICA INTEGRAL DE SALUD AMBIENTAL (PISA) PARA EL DEPARTAMENTO. | C102: 0 | D102: 100 | E102: 3753552030
B103: 572. CERTIFICAR EN NORMA ISO IEC 17025 EL LABORATORIO DE SALUD PÚBLICA DEL DEPARTAMENTO EN PRUEBAS AMBIENTALES. | C103: 0 | D103: 1 | E103: 1.172890704e+10
B104: 573. IMPLEMENTAR AL 100% LA ESTRATEGIA DE GESTIÓN INTEGRAL PARA LA PROMOCIÓN DE LA SALUD, PREVENCIÓN Y CONTROL DE LAS ENFERMEDADES TRANSMITIDAS POR VECTORES (ETV) Y ZOONOSIS. | C104: 0 | D104: 100 | E104: 1.369276055e+10
B105: 620. REALIZAR EN COOPERACIÓN LA FASE III DEL PROYECTO DE INVESTIGACIÓN DE MEDICAMENTOS EN EL DEPARTAMENTO. | C105: 0 | D105: 1 | E105: 4900000000
B106: 621. IMPLEMENTAR EN EL 50% EL PLAN DE ACCIÓN DE LA POLÍTICA PÚBLICA DEL MANEJO DE LA INFORMACIÓN EN EL SECTOR SALUD DE CUNDINAMARCA, COMO HERRAMIENTA DE SOPORTE EN LA TOMA DE DECISIONES INTELIGENTES E INFORMADAS. | C106: 0 | D106: 50 | E106: 9045000000
B107: A.3 APSB | E107: 1.193704885e+12
B108: 177. ATENDER EL 100% DE LAS SOLICITUDES DE EMERGENCIAS PRESENTADAS DURANTE EL CUATRIENIO EN AGUA POTABLE Y SANEAMIENTO BÁSICO QUE CUMPLAN CON EL PROTOCOLO ESTABLECIDO. | C108: 100 | D108: 100 | E108: 9000000000
B109: 185. APOYAR DURANTE EL CUATRIENIO LA FORMULACIÓN O IMPLEMENTACIÓN DE LOS PLANES DE USO EFICIENTE Y AHORRO DEL AGUA, EN EL 40% DE LOS MUNICIPIOS DEL DEPARTAMENTO EN COORDINACIÓN CON EL GESTOR DEL PLAN DEPARTAMENTAL DE AGUA, CON PRELACIÓN EN LOS MUNICIPIOS DE LA CUENCA DEL RÍO BOGOTÁ. | C109: 0 | D109: 46 | E109: 460000000
B110: 188. FORMULAR UN PLAN DE ABASTECIMIENTO REGIONAL DEL AGUA A ESCALA 1:100.000 DURANTE EL CUATRIENIO. | C110: 0 | D110: 1 | E110: 5000000000
B111: 189. COFINANCIAR LOS ESTUDIOS DE PRE O FACTIBILIDAD DE CUATRO (4) EMBALSES DURANTE EL PERIODO DE GOBIERNO. | C111: 1 | D111: 4 | E111: 1e+10
B112: 190. COFINANCIAR LA CONSTRUCCIÓN DEL EMBALSE CALANDAIMA DURANTE EL PERIODO DE GOBIERNO. | C112: 0 | D112: 1 | E112: 2.7e+10
B113: 191. ESTRUCTURAR Y EJECUTAR DURANTE EL CUATRIENIO OCHO (8) PROYECTOS DE APROVECHAMIENTO DE AGUAS SUBTERRÁNEAS, CON PRELACIÓN EN LOS MUNICIPIOS DE LA CUENCA DEL RÍO BOGOTÁ. | C113: 0 | D113: 8 | E113: 1.834484432e+10
B114: 192. ACTUALIZAR EL DIAGNÓSTICO DE AGUA POTABLE Y SANEAMIENTO BÁSICO EN ZONAS RURALES DEL DEPARTAMENTO EN EL CUATRIENIO. | C114: 1 | D114: 1 | E114: 1205637935
B115: 427. INNOVAR EN EL ABASTECIMIENTO DE AGUA POTABLE EN ZONAS RURALES APARTADAS CON 1 PROYECTO DE INVESTIGACIÓN. | C115: 0 | D115: 100 | E115: 4000000000
B116: 442. CONECTAR 136.000 NUEVOS HABITANTES AL SERVICIO DE ACUEDUCTO EN ZONAS URBANAS. | C116: 1813443.49 | D116: 136000 | E116: 2.195338105e+11
B117: 443. ESTRUCTURAR 2 ACUEDUCTOS REGIONALES. | C117: 3 | D117: 2 | E117: 4000000000
B118: 444. CONSTRUIR 3.000 CONEXIONES INTRADOMICILIARIAS DE ACUEDUCTO O ALCANTARILLADO. | C118: 877 | D118: 3000 | E118: 9000000000
B119: 445. CONECTAR 136.000 NUEVOS HABITANTES AL SERVICIO DE ALCANTARILLADO EN ZONAS URBANAS, DE ACUERDO CON LO PRIORIZADO EN LOS PLANES DE ACCIÓN DE LOS MUNICIPIOS DE LA CUENCA DE RÍO BOGOTÁ Y DEMÁS MUNICIPIOS PARA EL APOYO A PSMV O PMAA. | C119: 1759398.646 | D119: 136000 | E119: 1.812579563e+11
B120: 446. PARTICIPAR A TRAVÉS DE ACOMPAÑAMIENTO O COFINANCIACIÓN EN EL PROCESO DE CONSTRUCCIÓN U OPTIMIZACIÓN DE 17 PLANTAS DE TRATAMIENTO DE AGUAS RESIDUALES - PTAR EN CASCOS URBANOS O CENTROS POBLADOS, CON PRIORIDAD EN LOS MUNICIPIOS DE LA CUENCA DE RÍO BOGOTÁ. | C120: 73 | D120: 17 | E120: 9.962443321e+10
B121: 447. COFINANCIAR EL APORTE DEL MUNICIPIO DE SOACHA PARA LA CONSTRUCCIÓN DE LA PTAR CANOAS DURANTE EL CUATRIENIO, EN CUMPLIMIENTO DE LA SENTENCIA DEL RÍO BOGOTÁ. | C121: 0 | D121: 100 | E121: 15949941749
B122: 448. BENEFICIAR 10.000 HABITANTES DEL MUNICIPIO DE SOACHA CON LA CONSTRUCCIÓN DE REDES DE ALCANTARILLADO. | C122: 0 | D122: 10000 | E122: 16000000000
B123: 449. CONECTAR 50.000 NUEVAS PERSONAS AL SERVICIO DE ACUEDUCTO EN LA ZONA RURAL. | C123: 469106 | D123: 50000 | E123: 1.517946966e+11
B124: 450. CONSTRUIR 50 PLANTAS DE TRATAMIENTO DE AGUA POTABLE - PTAP EN ACUEDUCTOS VEREDALES. | C124: 88 | D124: 50 | E124: 1.25e+10
B125: 451. CONSTRUIR 300 PLANTAS DE TRATAMIENTO DE AGUA POTABLE PTAP EN ESCUELAS RURALES EN EL MARCO DEL PROGRAMA AGUA, VIDA Y SABER “JUANA LAVERDE CASTAÑEDA”. | C125: 54 | D125: 300 | E125: 9000000000
B126: 452. CONECTAR 5.000 NUEVAS PERSONAS DE LA ZONA RURAL AL SERVICIO DE ALCANTARILLADO, DE ACUERDO CON LO PRIORIZANDO EN LOS PLANES DE ACCIÓN DE LOS MUNICIPIOS DE LA CUENCA DEL RÍO BOGOTÁ, Y DEMÁS MUNICIPIOS, EN AL APOYO A PSMV O PMAA. | C126: 192252.6116 | D126: 5000 | E126: 5.497342021e+10
B127: 453. CONSTRUIR 3.000 UNIDADES SANITARIAS EN ZONAS RURALES. | C127: 5721 | D127: 3000 | E127: 2.7e+10
B128: 454. CONFORMAR UNA EMPRESA REGIONAL DE ACUEDUCTO Y ALCANTARILLADO. | C128: 3 | D128: 1 | E128: 1500000000
B129: 455. IMPLEMENTAR UN SISTEMA DE TELEMETRÍA. | C129: 0 | D129: 1 | E129: 4000000000
B130: 456. IMPLEMENTAR 5 MÓDULOS DE FORMACIÓN DENTRO DEL PROYECTO DENOMINADO "ESCUELA DEL AGUA". | C130: 0 | D130: 5 | E130: 3000000000
B131: 457. FORTALECER Y GENERAR CAPACIDADES EN 72 PRESTADORES DIRECTOS DE SERVICIOS PÚBLICOS DENTRO DEL PROCESO DE CERTIFICACIÓN. | C131: 0 | D131: 72 | E131: 2000000000
B132: 458. FORTALECER INSTITUCIONALMENTE 300 COMUNIDADES ORGANIZADAS DE ACUEDUCTO EN LA ZONA RURAL DENTRO DEL PROGRAMA "AGUA A LA VEREDA". | C132: 40 | D132: 300 | E132: 1.8e+10
B133: 459. IMPLEMENTAR UN SISTEMA DE INFORMACIÓN GEOGRÁFICA DE AGUA Y SANEAMIENTO. | C133: 0 | D133: 1 | E133: 1500000000
B134: 461. GARANTIZAR EL 100% DE LA TRANSFERENCIA ANUAL DE RECURSOS, PARA LA IMPLEMENTACIÓN DEL PLAN DEPARTAMENTAL DE AGUA Y SANEAMIENTO BÁSICO PAP-PDA DE CUNDINAMARCA DURANTE EL PERIODO DE GOBIERNO. | C134: 100 | D134: 100 | E134: 271460143946
B135: 463. ADMINISTRAR LOS RECURSOS DEL SGP - APSB DEL 100% DE LOS MUNICIPIOS DESCERTIFICADOS PARA ASEGURAR LA PRESTACIÓN DE LOS SERVICIOS DE AGUA POTABLE Y SANEAMIENTO BÁSICO. | C135: 100 | D135: 100 | E135: 0
B136: 466. COFINANCIAR 1 PLANTA DE APROVECHAMIENTO DE RESIDUOS SÓLIDOS PARA LA ZONA NORTE DEL DEPARTAMENTO. | C136: 16 | D136: 1 | E136: 9000000000
B137: 467. ENTREGAR 10 VEHÍCULOS COMPACTADORES A LOS MUNICIPIOS. | C137: 54 | D137: 10 | E137: 4000000000
B138: 472. CONSTRUCCIÓN DE REDES DE ACUEDUCTO Y ALCANTARILLADO PARA LA REUBICACIÓN PARCIAL DEL MUNICIPIO DE ÚTICA. | C138: 0 | D138: 100 | E138: 3600000000
B139: A.4 DEPORTE Y RECREACIÓN | E139: 112482236545
B140: 199. VINCULAR 50.000 FAMILIAS AL PROGRAMA LÚDICO RECREATIVO PARA LA COHESIÓN SOCIAL DONDE SE REALIZARÁN INTEGRALMENTE LOS EVENTOS DE ACTIVIDAD FÍSICA, HÁBITOS DE VIDA SALUDABLE, RECREACIÓN Y DEPORTE PRIORIZANDO MUJERES CABEZAS DE HOGAR EN EL DEPARTAMENTO DE CUNDINAMARCA, DURANTE EL PERIODO DE GOBIERNO. | C140: 0 | D140: 50000 | E140: 4005965323
B141: 200. LIDERAR EN LOS 116 MUNICIPIOS LA REALIZACIÓN DE 2 "JUEGOS DEPORTIVOS COMUNALES DEPARTAMENTALES" DURANTE EL PERIODO DE GOBIERNO. | C141: 0 | D141: 2 | E141: 1650000000
B142: 201. LIDERAR EN 40 MUNICIPIOS, LA REALIZACIÓN DE LOS JUEGOS CAMPESINOS RECREATIVOS DURANTE EL PERIODO DE GOBIERNO. | C142: 0 | D142: 40 | E142: 405000000
B143: 202. DOTAR O MANTENER 250 "PARQUES BIOSALUDABLES" INVOLUCRANDO ELEMENTOS RECREATIVOS PARA LAS PERSONAS CON DISCAPACIDAD, DURANTE EL PERIODO DE GOBIERNO. | C143: 53 | D143: 250 | E143: 6499999920
B144: 203. COFINANCIAR LA CONSTRUCCIÓN Y TERMINACIÓN DE 58 ESCENARIOS Y ENTORNOS DEPORTIVOS AMIGABLES Y SEGUROS EN EL CUATRIENIO. | C144: 0 | D144: 58 | E144: 18821493080
B145: 204. COFINANCIAR Y PONER EN MARCHA UN CENTRO DE ALTO RENDIMIENTO DEPORTIVO EN EL MUNICIPIO DE SOACHA. | C145: 0 | D145: 1 | E145: 1000000000
B146: 205. IMPLEMENTAR EN LOS 116 MUNICIPIOS EL PROGRAMA FORMACIÓN DEPORTIVA, RECREACIÓN Y ADMINISTRACIÓN CON 580 ENTRENADORES Y PERSONAL DE APOYO, QUE PROMUEVAN LA CALIDAD DEPORTIVA, CONVENCIONAL Y PARALÍMPICA DE CUNDINAMARCA. | C146: 0 | D146: 116 | E146: 9390000671
B147: 221. FOMENTAR EL DEPORTE, LA RECREACIÓN Y LA ACTIVIDAD FÍSICA EN ESTE GÉNERO A TRAVÉS DE CUARENTA 40 "CARRERAS ATLÉTICAS RECREATIVAS Y/O COMPETITIVAS DE LA MUJER" EN EL CUATRIENIO. | C147: 0 | D147: 40 | E147: 318362700
B148: 222. INSTITUCIONALIZAR EN LOS 116 MUNICIPIOS EL PROGRAMA "HEROÍNAS DE CUNDINAMARCA" COMO ESPACIO DE RECONOCIMIENTO AL MÉRITO DEPORTIVO Y PROMOCIÓN DE EQUIDAD DE GENERO. | C148: 0 | D148: 116 | E148: 318362700
B149: 244. DOTAR O MANTENER 200 PARQUES INFANTILES PARA NIÑOS Y NIÑAS DE 0 A 5 AÑOS EN EL DEPARTAMENTO DURANTE EL PERIODO DE GOBIERNO. | C149: 94 | D149: 200 | E149: 1058545400
B150: 245. IMPLEMENTAR UN PROGRAMA DE MATROGIMNASIA CON DOTACIÓN DE PARQUES, CAPACITACIÓN Y FESTIVALES PARA HABILIDADES Y DESTREZAS DEPORTIVAS DURANTE EL PERIODO DE GOBIERNO. | C150: 0 | D150: 1 | E150: 1698000000
B151: 247. DOTAR O MANTENER 160 PARQUES INFANTILES PARA LA RECREACIÓN DE LOS NIÑOS Y NIÑAS DE 6 A 11 AÑOS EN LOS MUNICIPIOS DEL DEPARTAMENTO EN EL CUATRIENIO. | C151: 80 | D151: 160 | E151: 996725400
B152: 248. GARANTIZAR EN LOS 116 MUNICIPIOS LOS PROCESOS DE IRRADIACIÓN DEPORTIVA EN LAS ESCUELAS DE FORMACIÓN A TRAVÉS DE LA REALIZACIÓN DE LOS FESTIVALES ANUALES EN EL DEPARTAMENTO DURANTE EL CUATRIENIO | C152: 0 | D152: 116 | E152: 3804563527
B153: 249. LIDERAR ANUALMENTE EN LOS 116 MUNICIPIOS LOS "JUEGOS INTERCOLEGIADOS DE NIÑOS Y NIÑAS DE 6 A 11 AÑOS" EN EL DEPARTAMENTO. | C153: 0 | D153: 116 | E153: 9890361000
B154: 250. IMPLEMENTAR UN PROGRAMA "TALENTO Y RESERVA DEPORTIVA” EN LOS 116 MUNICIPIOS DEL DEPARTAMENTO, CON EL FIN DE IDENTIFICAR HABILIDADES Y DESTREZAS SOBRESALIENTES EN NIÑOS Y NIÑAS DE 6 A 11 AÑOS. | C154: 0 | D154: 116 | E154: 3173216200
B155: 253. REALIZAR ANUALMENTE 14 "CAMPAMENTOS JUVENILES DE RECREACIÓN", EN EL DEPARTAMENTO DURANTE EL PERIODO DE GOBIERNO. | C155: 0 | D155: 56 | E155: 1173631001
B156: 254. FORMAR A 6.000 ADOLESCENTES DE GRADOS 10 Y 11 DE LAS INSTITUCIONES EDUCATIVAS PARA QUE REALICEN SU SERVICIO SOCIAL ANUALMENTE EN RECREACIÓN EN LOS MUNICIPIOS DEL DEPARTAMENTO. | C156: 0 | D156: 6000 | E156: 180000000
B157: 255. FORTALECER EN LOS 116 MUNICIPIOS DEL DEPARTAMENTO EL PROGRAMA “DEPORTE DE ALTOS LOGROS PARA ADOLESCENTES” QUE PERMITA IDENTIFICAR, RETENER Y POTENCIALIZAR EL TALENTO DEPORTIVO, LOGRANDO SU PARTICIPACIÓN EN CICLO OLÍMPICO. | C157: 116 | D157: 116 | E157: 5324615600
B158: 256. FOMENTAR EL DEPORTE ASOCIATIVO A TRAVÉS DE LA CAPACITACIÓN Y EL FORTALECIMIENTO DEPORTIVO Y ADMINISTRATIVO DE LAS 54 LIGAS ASOCIADAS A 200 CLUBES Y 116 ESCUELAS DE FORMACIÓN DEPORTIVAS DE CUNDINAMARCA. | C158: 54 | D158: 54 | E158: 752725400
B159: 257. GARANTIZAR EN LOS 116 MUNICIPIOS LOS PROCESOS DE FUNDAMENTACIÓN DEPORTIVA EN LAS ESCUELAS DE FORMACIÓN PARA ADOLESCENTES, POR MEDIO DE LA REALIZACIÓN DE LOS FESTIVALES ANUALES CON MIRAS AL CRECIMIENTO Y POSICIONAMIENTO DEPORTIVO, DURANTE EL CUATRIENIO. | C159: 0 | D159: 116 | E159: 5125558603
B160: 258. BENEFICIAR ANUALMENTE A LOS 116 MUNICIPIOS CON LOS "JUEGOS INTERCOLEGIADOS" DE LAS INSTITUCIONES EDUCATIVAS DURANTE EL PERIODO DE GOBIERNO. | C160: 0 | D160: 116 | E160: 7639805600
B161: 259. APOYAR LA REALIZACIÓN DE 5 DEPORTES EXTREMOS Y 1 DE NUEVA TENDENCIA DEPORTIVA O ACTIVIDAD MASIVA DE GRAN IMPACTO DEPORTIVO EN EL DEPARTAMENTO COMO EL TRIATLÓN CUNDINAMARCA UNIDA. | C161: 0 | D161: 6 | E161: 418362700
B162: 265. BENEFICIAR A 600 JÓVENES DEL DEPARTAMENTO EN ESPECIALIDADES DEPORTIVAS A TRAVÉS DEL PROGRAMA DEPORTE DE ALTOS LOGROS CON MIRAS A PARTICIPAR EN LOS JUEGOS DEPARTAMENTALES, NACIONALES, OLÍMPICOS Y PARALÍMPICOS DURANTE EL CUATRIENIO. | C162: 0 | D162: 600 | E162: 8230000080
B163: 266. IMPLEMENTAR EN LOS 116 MUNICIPIOS DEL DEPARTAMENTO EL PROGRAMA PARA LA PRÁCTICA DEL DEPORTE MEDIANTE LOS PROCESOS DE ESPECIALIZACIÓN EN LAS ESCUELAS DE FORMACIÓN. | C163: 0 | D163: 116 | E163: 1114269450
B164: 267. MEJORAR 116 ESCENARIOS DEPORTIVOS INSTALADOS, PARA FOMENTAR LA PRÁCTICA DEL DEPORTE, LA RECREACIÓN, LA ACTIVIDAD FÍSICA Y LOS HÁBITOS DE VIDA SALUDABLE EN LA POBLACIÓN JOVEN DEL DEPARTAMENTO EN EL CUATRIENIO. | C164: 0 | D164: 116 | E164: 8200000000
B165: 279. BENEFICIAR ANUALMENTE A 50 ADULTOS DE CUNDINAMARCA EN ESPECIALIDADES DEPORTIVAS A TRAVÉS DEL PROGRAMA DEPORTE DE ALTOS LOGROS DURANTE EN EL CUATRIENIO | C165: 0 | D165: 200 | E165: 1500000000
B166: 281. VINCULAR A 10.000 PERSONAS MAYORES AL PROGRAMA "NUEVO COMIENZO", A TRAVÉS DE LA RECREACIÓN Y LOS HÁBITOS DE VIDA SALUDABLE EN EL DEPARTAMENTO DE CUNDINAMARCA EN EL CUATRIENIO. | C166: 0 | D166: 10000 | E166: 1245660640
B167: 292. DESARROLLAR ANUALMENTE EN 12 PROVINCIAS EL PROGRAMA DE DEPORTE DE ALTOS LOGROS PARA LA PRÁCTICA Y LA COMPETENCIA A LA POBLACIÓN CON DISCAPACIDAD DURANTE EL CUATRIENIO. | C167: 0 | D167: 12 | E167: 3084376550
B168: 293. LIDERAR Y APOYAR 10 EVENTOS ANUALES DEL "DÍA BLANCO", PARA LA POBLACIÓN EN CONDICIÓN DE DISCAPACIDAD, PARA FOMENTAR LA ACTIVIDAD FÍSICA Y HÁBITOS DE VIDA SALUDABLE EN EL DEPARTAMENTO EN EL CUATRIENIO. | C168: 0 | D168: 40 | E168: 598635000
B169: 303. VINCULAR A 60.000 JÓVENES EN ACTIVIDADES RECREO DEPORTIVAS COMO PREVENCIÓN DEL CONSUMO DE DROGAS Y ALCOHOL MEDIANTE EL USO DEL TIEMPO LIBRE. | C169: 0 | D169: 1 | E169: 2264000000
B170: 314. REALIZAR 40 EVENTOS RECREO DEPORTIVOS EN EL CUATRIENIO CON LA POBLACIÓN VCA EN LOS MUNICIPIOS MÁS BENEFICIADOS CON EL POSTCONFLICTO EN EL DEPARTAMENTO. | C170: 0 | D170: 40 | E170: 1000000000
B171: 327. REALIZAR 20 EVENTOS DE INTEGRACIÓN PARA LA POBLACIÓN DIVERSA MEDIANTE ACTIVIDAD FÍSICA, EL DEPORTE Y HÁBITOS DE VIDA SALUDABLE EN EL DEPARTAMENTO DURANTE EL CUATRIENIO. | C171: 0 | D171: 20 | E171: 400000000
B172: 439. REALIZAR 20 INTERVENCIONES DEL ESPACIO PÚBLICO MUNICIPAL EN EL CUATRIENIO TENDIENTES AL MEJORAMIENTO DEL ENCUENTRO CIUDADANO. | C172: 10 | D172: 20 | E172: 1200000000
B173: A.5 CULTURA | E173: 30804631152
B174: 315. IMPLEMENTAR UNA (1) ESCUELA TALLER DE ARTES Y OFICIOS EN EL CUATRIENIO PARA APORTAR A LA RESTITUCIÓN DE LOS DERECHOS CULTURALES DE LA POBLACIÓN VCA A TRAVÉS DEL ARTE. | C174: 0 | D174: 1 | E174: 80000000
B175: 334. FORMULAR UNA (1) POLÍTICA PÚBLICA EN EL CUATRIENIO QUE PERMITA LA APROPIACIÓN SOCIAL DEL PATRIMONIO CULTURAL, GENERANDO EL RECONOCIMIENTO DE LAS IDENTIDADES QUE CONFLUYEN EN EL DEPARTAMENTO. | C175: 0 | D175: 1 | E175: 115000000
B176: 335. IMPLEMENTAR 12 PROYECTOS QUE FOMENTEN LA APROPIACIÓN SOCIAL DE LAS IDENTIDADES CUNDINAMARQUESAS EN EL CUATRIENIO. | C176: 0 | D176: 12 | E176: 2232004250
B177: 336. PRESERVAR Y SALVAGUARDAR 8 BIENES O MANIFESTACIONES QUE CONSTITUYAN EL PATRIMONIO CULTURAL MATERIAL E INMATERIAL DEL DEPARTAMENTO EN EL CUATRIENIO. | C177: 8 | D177: 8 | E177: 6696012750
B178: 337. FORMULAR UNA (1) POLÍTICA PÚBLICA EN EL CUATRIENIO QUE PERMITA EL DESARROLLO DE LOS PROCESOS DE FORMACIÓN ARTÍSTICA EN EL DEPARTAMENTO. | C178: 0 | D178: 1 | E178: 115000000
B179: 338. COOPERAR EN OCHENTA (80) PROCESOS DE FORMACIÓN ARTÍSTICA MUNICIPAL ANUALMENTE DURANTE EL PERIODO DE GOBIERNO. | C179: 80 | D179: 80 | E179: 3680000000
B180: 339. IMPLEMENTAR DIEZ (10) PROCESOS DE FORMACIÓN ARTÍSTICA INTEGRAL DIRIGIDOS A LA PRIMERA INFANCIA EN EL CUATRIENIO. | C180: 0 | D180: 10 | E180: 460000000
B181: 340. IMPLEMENTAR DIEZ (10) PROCESOS PROVINCIALES DE FORMACIÓN LITERARIA DIRIGIDOS A ADOLESCENTES EN EL CUATRIENIO. | C181: 0 | D181: 10 | E181: 460000000
B182: 341. REALIZAR SIETE (7) ENCUENTROS DE SOCIALIZACIÓN DE LOS RESULTADOS DE LOS PROCESOS DE FORMACIÓN ARTÍSTICA ANUALMENTE. | C182: 5 | D182: 7 | E182: 1400000000
B183: 342. IMPLEMENTAR (1) PROGRAMA DE FORMACIÓN DIRIGIDO A LOS CREADORES Y GESTORES CULTURALES DEL DEPARTAMENTO EN EL CUATRIENIO. | C183: 0 | D183: 1 | E183: 80000000
B184: 343. POSICIONAR (2) EVENTOS TRADICIONALES DEL DEPARTAMENTO CON ALCANCE NACIONAL EN EL CUATRIENIO. | C184: 0 | D184: 2 | E184: 600000000
B185: 344. COOPERAR EN LA REALIZACIÓN DE OCHENTA (80) EVENTOS TRADICIONALES Y DE TRAYECTORIA CULTURAL ANUALMENTE. | C185: 80 | D185: 80 | E185: 3900000000
B186: 345. DISEÑAR Y EJECUTAR UN (1) PORTAFOLIO DE ESTÍMULOS ANUAL DEL SECTOR CULTURA. | C186: 0 | D186: 1 | E186: 640000000
B187: 346. ACOMPAÑAR ANUALMENTE QUINCE (15) PROCESOS BANDÍSTICOS MUNICIPALES A TRAVÉS DE LA BANDA SINFÓNICA JUVENIL DE CUNDINAMARCA COMO APORTE A LA RECONSTRUCCIÓN DE TEJIDO SOCIAL. | C187: 0 | D187: 60 | E187: 1800000000
B188: 347. ACOMPAÑAR CINCO (5) PROCESOS CORALES DEL DEPARTAMENTO ANUALMENTE DESDE LA DIRECCIÓN DEL ORFEÓN DE CUNDINAMARCA. | C188: 0 | D188: 5 | E188: 200000000
B189: 348. DINAMIZAR EL 81% DE LAS BIBLIOTECAS PÚBLICAS MUNICIPALES COMO ESPACIOS CULTURALES E INNOVADORES QUE PROMUEVEN LAS PRÁCTICAS LECTORAS Y ESCRITORAS EN EL CUATRIENIO. | C189: 64 | D189: 81 | E189: 1666555152
B190: 349. DISEÑAR E IMPLEMENTAR UN (1) LABORATORIO DE EMPRENDIMIENTO CULTURAL PARA JÓVENES EN EL CUATRIENIO. | C190: 0 | D190: 1 | E190: 100000000
B191: 350. IMPLEMENTAR UN (1) PROGRAMA DE INICIATIVAS DE EMPRENDIMIENTO CULTURAL EN EL CUATRIENIO. | C191: 0 | D191: 1 | E191: 50000000
B192: 351. IMPLEMENTAR UN (1) PROGRAMA QUE PERMITA LA REALIZACIÓN DE INVESTIGACIONES CON ENFOQUE DIFERENCIAL DE LAS PRÁCTICAS ARTÍSTICAS Y CULTURALES DE LOS GRUPOS POBLACIONALES Y DE INTERÉS EN EL CUATRIENIO. | C192: 0 | D192: 1 | E192: 50000000
B193: 352. IMPLEMENTAR UN (1) PROGRAMA QUE PERMITA LA PARTICIPACIÓN DE LA POBLACIÓN CON DISCAPACIDAD EN LA VIDA CULTURAL EN EL CUATRIENIO. | C193: 0 | D193: 1 | E193: 61000000
B194: 353. COOPERAR EN EL DESARROLLO DE SEIS (6) ESPACIOS DE INFRAESTRUCTURA ARTÍSTICA Y CULTURAL EN EL CUATRIENIO. | C194: 0 | D194: 6 | E194: 3300000000
B195: 479. IMPLEMENTAR UN (1) MODELO DE GESTIÓN PÚBLICA DE LA CULTURA QUE FOMENTE LA PARTICIPACIÓN CIUDADANA EN EL CUATRIENIO. | C195: 0 | D195: 1 | E195: 3119059000
B196: A.6 SERVICIOS PÚBLICOS | E196: 8065458713
B197: 464. CONECTAR 2.000 USUARIOS AL SERVICIO DE ENERGÍA ELÉCTRICA, MEDIANTE LA IMPLEMENTACIÓN DE REDES ELÉCTRICAS O ENERGÍAS ALTERNATIVAS. | C197: 0 | D197: 2000 | E197: 4796998113
B198: 465. CONECTAR 7.253 USUARIOS AL SERVICIO DE GAS DOMICILIARIO DURANTE EL CUATRIENIO. | C198: 32879 | D198: 7253 | E198: 3168460600
B199: 474. CONSTRUIR LA RED ELÉCTRICA PARA REUBICACIÓN PARCIAL EN EL PREDIO "LA ESPERANZA", MUNICIPIO DE ÚTICA. | C199: 0 | D199: 100 | E199: 100000000
B200: A.7 VIVIENDA | C200: 19570 | D200: 41607 | E200: 636556068000
B201: 432. APOYAR LA CONSTRUCCIÓN Y ADQUISICIÓN DE 20.000 UNIDADES DE VIVIENDA DE INTERÉS SOCIAL Y PRIORITARIO URBANA EN EL DEPARTAMENTO. | C201: 5500 | D201: 20000 | E201: 482850068000
B202: 433. APOYAR LA ADQUISICIÓN DE 3.500 UNIDADES DE VIVIENDA RURAL EN EL DEPARTAMENTO. | C202: 5380 | D202: 3500 | E202: 78660000000
B203: 434. APOYAR LA TERMINACIÓN DE 7 PROYECTOS DE VIVIENDA INCONCLUSOS DE INICIATIVA COMUNITARIA EN EL DEPARTAMENTO | C203: 0 | D203: 7 | E203: 6125000000
... 349 more rows

Sheet sectores fut (hidden)
G1: INVERSIÓN SECTORIAL
G2: PLAN DE DESARROLLO DEPARTAMENTAL "UNIDOS PODEMOS MÁS"
A3: Etiquetas de fila | B3: Suma de Recursos Programados 2016-2019 | C3: Cuenta de No. Meta de Producto
A4: A.1 Educación | B4: 3.420238446e+12 | C4: 59
A5: A.2 Salud | B5: 8.668054528e+11 | C5: 39 | G5: NOMBRE SECTOR | H5: Recursos 2016-2019 | I5: % | J5: No. Metas
A6: A.3 APSB | B6: 1.193704885e+12 | C6: 31 | G6: A.1 Educación | H6: 3.420238446e+12 | I6: =+H6/$H$24 -> 0.4250152464 | J6: 59
A7: A.4 Deporte y Recreación | B7: 112482236545 | C7: 33 | G7: A.2 Salud | H7: 8.668054528e+11 | I7: 0.1077134062 | J7: 39
A8: A.5 Cultura | B8: 30804631152 | C8: 22 | G8: A.3 APSB (Agua Potable y Saneamiento Básico) | H8: 1.193704885e+12 | I8: 0.1483354987 | J8: 31
A9: A.6 Servicios Públicos | B9: 8065458713 | C9: 3 | G9: A.4 Deporte y Recreación | H9: 112482236545 | I9: 0.01397758263 | J9: 33
A10: A.7 Vivienda | B10: 636556068000 | C10: 7 | G10: A.5 Cultura | H10: 30804631152 | I10: 0.003827931329 | J10: 22
A11: A.8 Agropecuario | B11: 101575322263 | C11: 16 | G11: A.6 Servicios Públicos (Energía, Gas) | H11: 8065458713 | I11: 0.001002252614 | J11: 3
A12: A.9 Transporte | B12: 615489401687 | C12: 18 | G12: A.7 Vivienda | H12: 636556068000 | I12: 0.07910151247 | J12: 7
A13: A.10 Ambiental | B13: 41386781068 | C13: 27 | G13: A.8 Agropecuario | H13: 101575322263 | I13: 0.0126222371 | J13: 16
A14: A.11 Centros de Reclusión | B14: 1507600000 | C14: 1 | G14: A.9 Transporte | H14: 615489401687 | I14: 0.07648366739 | J14: 18
A15: A.12 Prevención y atención de desastres | B15: 2.460255131e+10 | C15: 10 | G15: A.10 Ambiental | H15: 41386781068 | I15: 0.005142920071 | J15: 27
A16: A.13 Promoción del desarrollo | B16: 149891060878 | C16: 42 | G16: A.11 Centros de Reclusión | H16: 1507600000 | I16: 0.0001873416125 | J16: 1
A17: A.14 Atención a grupos vulnerables - promoción social | B17: 2.241033661e+11 | C17: 79 | G17: A.12 Prevención y atención de desastres | H17: 2.460255131e+10 | I17: 0.003057231117 | J17: 10
A18: A.15 Equipamiento | B18: 23909578512 | C18: 7 | G18: A.13 Promoción del desarrollo | H18: 149891060878 | I18: 0.0186261827 | J18: 42
A19: A.16 Desarrollo comunitario | B19: 26419624000 | C19: 12 | G19: A.14 Atención a grupos vulnerables - promoción social | H19: 2.241033661e+11 | I19: 0.02784815996 | J19: 79
A20: A.17 Fortalecimiento institucional | B20: 5.198611939e+11 | C20: 89 | G20: A.15 Equipamiento | H20: 23909578512 | I20: 0.002971118991 | J20: 7
A21: A.18 Justicia y seguridad | B21: 49927526086 | C21: 32 | G21: A.16 Desarrollo comunitario | H21: 26419624000 | I21: 0.003283029292 | J21: 12
A22: Total general | B22: 8.047331184e+12 | C22: 527 | G22: A.17 Fortalecimiento institucional | H22: 5.198611939e+11 | I22: 0.06460044728 | J22: 89
G23: A.18 Justicia y seguridad | H23: 49927526086 | I23: 0.006204234043 | J23: 32
G24: TOTAL GENERAL | H24: 8.047331184e+12 | J24: 527

Sheet Hoja3 (hidden)
A1: Eje Estrategico | B1: 4. INTEGRACIÓN Y GOBERNANZA
A3: Etiquetas de fila
A4: 4.1. NUEVO LIDERAZGO
A5: 4.1.1. CULTURA DEL NUEVO LIDERAZGO
A6: 475
A7: 476
A8: 477
A9: 478
A10: 4.2. REDES DE LA PARTICIPACIÓN CIUDADANA PARA LA GESTIÓN LOCAL
A11: 4.2.1. INSTANCIAS TERRITORIALES DE PARTICIPACIÓN
A12: 479
A13: 480
A14: 481
A15: 482
A16: 483
A17: 484
A18: 4.2.2. ORGANIZACIONES DE LA SOCIEDAD CIVIL (CONTROL SOCIAL, PARTICIPACIÓN CIUDADANAY CONSTRUCCIÓN DE TEJIDO SOCIAL)
A19: 485
A20: 486
A21: 487
A22: 488
A23: 493
A24: 4.2.3. ORGANISMOS DE PARTICIPACIÓN COMUNITARIA
A25: 489
A26: 490
A27: 491
A28: 492
A29: 4.3. MUNICIPIOS MODELO
A30: 4.3.1. GOBERNANZA TERRITORIAL
A31: 494
A32: 495
A33: 496
A34: 497
A35: 498
A36: 499
A37: 500
A38: 501
A39: 502
A40: 503
A41: 4.4. CON TODA SEGURIDAD
A42: 4.4.1. CUNDINAMARCA TERRITORIO SEGURO
A43: 504
A44: 505
A45: 506
A46: 507
A47: 508
A48: 509
A49: 510
A50: 511
A51: 512
A52: 513
A53: 514
A54: 4.4.2. SERVICIO DE JUSTICIA CON ENFOQUE SISTÉMICO Y TERRITORIAL
A55: 515
A56: 516
A57: 517
A58: 518
A59: 519
A60: 4.4.3. GARANTÍA DE DERECHOS HUMANOS Y CONVIVENCIA
A61: 520
A62: 521
A63: 522
A64: 523
A65: 525
A66: 526
A67: 527
A68: 528
A69: 529
A70: 530
A71: 531
A72: 532
A73: 533
A74: 534
A75: 4.4.4. CULTURA CIUDADANA POR LA VIDA Y LA PAZ: UNIDOS PODEMOS MÁS
A76: 535
A77: 536
A78: 537
A79: 538
A80: 539
A81: 4.5. CUNDINAMARCA INTEGRADA PUEDE MÁS
A82: 4.5.1. DINÁMICA GLOBAL
A83: 540
A84: 541
A85: 542
A86: 543
A87: 544
A88: 545
A89: 546
A90: 547
A91: 4.5.2. DINÁMICA REGIONAL
A92: 548
A93: 549
A94: 550
A95: 4.6. CUNDINAMARCA A SU SERVICIO
A96: 4.6.1. GESTIÓN PÚBLICA EFICIENTE, MODERNA AL SERVICIO DEL CIUDADANO
A97: 551
A98: 552
A99: 553
A100: 554
A101: 555
A102: 556
A103: 557
A104: 558
A105: 559
A106: 560
A107: 4.6.2. BUENAS PRÁCTICAS DE GOBIERNO
A108: 561
A109: 562
A110: 563
A111: 564
A112: 565
A113: 566
A114: 567
A115: 568
A116: 569
A117: 570
A118: 571
A119: 572
A120: 573
A121: 574
A122: 575
A123: 576
A124: 577
A125: 4.6.3. CUNDINAMARCA, TERRITORIO LEGAL Y CON AUTORIDAD
A126: 578
A127: 579
A128: 580
A129: 581
A130: 582
A131: 583
A132: 584
A133: 585
A134: 4.7. CUNDINAMARCA: REVOLUCIÓN DIGITAL
A135: 4.7.1. INFRAESTRUCTURA TIC
A136: 586
A137: 587
A138: 588
A139: 589
A140: 590
A141: 591
A142: 592
A143: 593
A144: 594
A145: 595
A146: 596
A147: 4.7.2. APLICATIVOS PARA EL DESARROLLO
A148: 597
A149: 598
A150: 599
A151: 600
A152: 4.7.3. CUNDINAMARCA EN LÍNEA
A153: 601
A154: 602
A155: 603
A156: 604
A157: 605
A158: 606
A159: 607
A160: 608
A161: 609
A162: 610
A163: 4.8. FINANZAS SANAS TERRITORIOS VIABLES
A164: 4.8.1. EFICIENCIA FISCAL
A165: 611
A166: 612
A167: 613
A168: 614
A169: 615
A170: 4.9. CUNDI - DATA
A171: 4.9.1. ESTADÍSTICAS Y PLATAFORMAS DE INFORMACIÓN
A172: 616
A173: 617
A174: 618
A175: 619
A176: 620
A177: 621
A178: 622
A179: 4.9.2. SEGUIMIENTO Y EVALUACIÓN PLAN DE DESARROLLO
A180: 623
A181: 624
A182: 625
A183: 626
A184: 627
A185: Total general

Sheet Hoja4 (hidden)
A1: EJE ESTRATEGICO | B1: 3. COMPETITIVIDAD SOSTENIBLE
D2: PROGRAMAS | E2: Metas de Resultado | F2: Metas de Producto | G2: % Participación en el Plan
A3: Etiquetas de fila | B3: Cuenta de No. Meta | D3: 4.1. Nuevo liderazgo | E3: 1 | F3: 4 | G3: 0.39
A4: 3.1. VÍA A LA COMPETITIVIDAD | B4: 3 | D4: 4.2. Redes de la participación ciudadana | E4: 2 | F4: 15 | G4: 1.3
A5: 3.2. AUMENTANDO CAPACIDAES COMPETITIVAS | B5: 1 | D5: 4.3. Municipios modelo | E5: 3 | F5: 10 | G5: 0.89
A6: 3.3. RURALIDAD CON ENFOQUE TERRITORIAL | B6: 1 | D6: 4.4. Con toda seguridad | E6: 8 | F6: 35 | G6: 2.67
A7: 3.4. DESARROLLO AGROPECUARIO CON TRANSFORMACIÓN | B7: 2 | D7: 4.5. Cundinamarca integrada puede más | E7: 2 | F7: 11 | G7: 0.7
A8: 3.5. CUNDINAMARCA HACIA LAS CADENAS GLOBALES DE VALOR | B8: 1 | D8: 4.6. Cundinamarca a su servicio | E8: 4 | F8: 35 | G8: 2.96
A9: 3.6. DE TOUR POR CUNDINAMARCA | B9: 1 | D9: 4.7. Cundinamarca: revolución digital | E9: 1 | F9: 25 | G9: 1.75
A10: 3.7. INNOVACIÓN VERDE | B10: 1 | D10: 4.8. Finanzas sanas territorios viables | E10: 2 | F10: 5 | G10: 0.48
A11: 3.8. CUNDINAMARCA, HÁBITAT AMABLE | B11: 11 | D11: 4.9. Cundi – Data | E11: 2 | F11: 12 | G11: 0.93
A12: Total general | B12: 21 | D12: TOTALES | E12: 25 | F12: 152 | G12: 12.08
D15: PROGRAMAS | E15: Metas de Resultado | F15: Metas de Producto | G15: % Participación en el Plan
D16: 1.1. GENERACION 2036 | E16: 1 | F16: 4 | G16: 1.911490063
D17: 1.2. CALIDAD 10 | E17: 2 | F17: 13 | G17: 5.461789723
D18: 1.3. CUNDINAMARCA MÁS PROFESIONAL | E18: 1 | F18: 12 | G18: 4.684650396
D19: 1.4. UNIDOS PODEMOS LOGRAR MÁS EDUCACIÓN | E19: 4 | F19: 25 | G19: 11.78388631
D20: 1.5. CUNDINAMARCA AVANZADA E INNOVADORA | E20: 3 | F20: 6 | G20: 2.294606117
D21: 1.6. CUNDINAMARCA ORDENADA Y SOTENIBLE | E21: 2 | F21: 9 | G21: 3.660735249
D22: 1.7. ESFUERZOS UNIDOS RIESGOS REDUCIDOS | E22: 1 | F22: 9 | G22: 2.931315004
D23: 1.8. CUNDINAMARCA OFERTA NATURAL EN ALIANZA POR EL AGUA - GOBERNANZA VITAL | E23: 3 | F23: 21 | G23: 6.991527134
D24: TOTALES | E24: =SUM(E16:E23) -> 17 | F24: =SUM(F16:F23) -> 99 | G24: 39.72
D27: PROGRAMAS | E27: Metas de Resultado | F27: Metas de Producto | G27: % Participación en el Plan
D28: 2.1. FAMILIAS UNIDAS Y FELICES | E28: 4 | F28: 22 | G28: 4.088218807
D29: 2.2. MUJER | E29: 3 | F29: 16 | G29: 2.249674503
D30: 2.3. MIS PRIMEROS PASOS | E30: 5 | F30: 9 | G30: 1.843535262
D31: 2.4. TEMPRANAS SONRISAS | E31: 2 | F31: 7 | G31: 1.451121157
D32: 2.5. ADOLESCENTES CAMBIOS CON SEGURIDAD | E32: 2 | F32: 11 | G32: 1.867866184
D33: 2.6. JOVENES POR CUNDINAMARCA | E33: 2 | F33: 13 | G33: 1.897188065
D34: 2.7. ADULTEZ Y PLENITUD | E34: 1 | F34: 3 | G34: 0.4710216998
D35: 2.8. ENVEJECIMIENTO ACTIVO Y VEJEZ | E35: 1 | F35: 10 | G35: 1.766799277
D36: 2.9. LOS MÁS CAPACES¡ | E36: 2 | F36: 10 | G36: 1.617070524
D37: 2.10. PREVENCIÓN DE CONSUMO DE SUSTANCIAS PSICOACTIVAS | E37: 1 | F37: 4 | G37: 0.6906238698
D38: 2.11. VÍCTIMAS DEL CONFLICTO ARMADO: OPORTUNIDADES PARA LA PAZ | E38: 2 | F38: 18 | G38: 2.899746835
D39: 2.12. CUNDINAMARCA DIVERSA | E39: 2 | F39: 12 | G39: 1.188471971
D40: 2.13. CULTURA PARA EL NUEVO LIDERAZGO | E40: 2 | F40: 20 | G40: 2.808661844
D41: TOTALES | E41: =SUM(E28:E40) -> 29 | F41: =SUM(F28:F40) -> 155 | G41: =SUM(G28:G40) -> 24.84
D45: PROGRAMAS | E45: Metas de Resultado | F45: Metas de Producto | G45: % Participación en el Plan
D46: 3.1. VÍA A LA COMPETITIVIDAD | E46: 3 | F46: 17 | G46: 3.578702877
D47: 3.2. AUMENTANDO CAPACIDAES COMPETITIVAS | E47: 1 | F47: 18 | G47: 2.923317042
D48: 3.3. RURALIDAD CON ENFOQUE TERRITORIAL | E48: 1 | F48: 13 | G48: 2.696832484
D49: 3.4. DESARROLLO AGROPECUARIO CON TRANSFORMACIÓN | E49: 2 | F49: 11 | G49: 2.258057221
D50: 3.5. CUNDINAMARCA HACIA LAS CADENAS GLOBALES DE VALOR | E50: 1 | F50: 4 | G50: 0.5554117243
D51: 3.6. DE TOUR POR CUNDINAMARCA | E51: 1 | F51: 10 | G51: 1.842115552
D52: 3.7. INNOVACIÓN VERDE | E52: 1 | F52: 5 | G52: 0.710309883
D53: 3.8. CUNDINAMARCA, HÁBITAT AMABLE | E53: 11 | F53: 43 | G53: 8.795253216
D54: TOTALES | E54: =SUM(E46:E53) -> 21 | F54: =SUM(F46:F53) -> 121 | G54: 23.36

Sheet Datos_Producto (hidden)
D2: 1 | E2: 2 | F2: 3 | G2: 4 | H2: 5 | I2: 6 | J2: 7 | K2: 8 | L2: 9 | M2: 10 | N2: 11 | O2: 12 | P2: 13 | Q2: 14 | R2: 15 | S2: 16 | T2: 17 | U2: 18 | V2: 19 | W2: 20 | X2: 21 | Y2: 22 | Z2: 23 | AA2: 24 | AB2: 25 | AC2: 26 | AD2: 27 | AE2: 28 | AF2: 29 | AG2: 30 | AH2: 31 | AI2: 32 | AJ2: 33 | AK2: 34 | AL2: 35 | AM2: 36 | AN2: 37 | AO2: 38 | AP2: 39 | AQ2: 40 | AR2: 41 | AS2: 42 | AT2: 43 | AU2: 44 | AV2: 45 | AW2: 46 | AX2: 47 | AY2: 48 | AZ2: 49 | BA2: 50 | BB2: 51 | BC2: 52 | BD2: 53 | BE2: 54 | BF2: 55 | BG2: 56 | BH2: 57 | BI2: 58 | BJ2: 59 | BK2: 60 | BL2: 61 | BM2: 62 | BN2: 63 | BO2: 64 | BP2: 65 | BQ2: 66 | BR2: 67 | BS2: 68 | BT2: 69 | BU2: 70 | BV2: 71 | BW2: 72 | BX2: 73 | BY2: 74 | BZ2: 75 | CA2: 76 | CB2: 77 | CC2: 78 | CD2: 79 | CE2: 80 | CF2: 81 | CG2: 82 | CH2: 83 | CI2: 84 | CJ2: 85 | CK2: 86 | CL2: 87 | CM2: 88 | CN2: 89 | CO2: 90 | CP2: 91 | CQ2: 92 | CR2: 93 | CS2: 94 | CT2: 95 | CU2: 96 | CV2: 97 | CW2: 98 | CX2: 99 | CY2: 100 | CZ2: 101 | DA2: 102 | DB2: 103 | DC2: 104 | DD2: 105 | DE2: 106 | DF2: 107 | DG2: 108 | DH2: 109 | DI2: 110 | DJ2: 111 | DK2: 112 | DL2: 113 | DM2: 114 | DN2: 115 | DO2: 116 | DP2: 117 | DQ2: 118 | DR2: 119 | DS2: 120 | DT2: 121 | DU2: 122 | DV2: 123 | DW2: 124 | DX2: 125 | DY2: 126 | DZ2: 127 | EA2: 128 | EB2: 129 | EC2: 130 | ED2: 131 | EE2: 132 | EF2: 133 | EG2: 134 | EH2: 135 | EI2: 136 | EJ2: 137 | EK2: 138 | EL2: 139 | EM2: 140 | EN2: 141 | EO2: 142 | EP2: 143 | EQ2: 144 | ER2: 145 | ES2: 146 | ET2: 147 | EU2: 148 | EV2: 149 | EW2: 150 | EX2: 151 | EY2: 152 | EZ2: 153 | FA2: 154 | FB2: 155 | FC2: 156 | FD2: 157 | FE2: 158 | FF2: 159 | FG2: 160 | FH2: 161 | FI2: 162 | FJ2: 163 | FK2: 164 | FL2: 165 | FM2: 166 | FN2: 167 | FO2: 168 | FP2: 169 | FQ2: 170 | FR2: 171 | FS2: 172 | FT2: 173 | FU2: 174 | FV2: 175 | FW2: 176 | FX2: 177 | FY2: 178 | FZ2: 179 | GA2: 180 | GB2: 181 | GC2: 182 | GD2: 183 | GE2: 184 | GF2: 185 | GG2: 186 | GH2: 187 | GI2: 188 | GJ2: 189 | GK2: 190 | GL2: 191 | GM2: 192 | GN2: 193 | GO2: 194 | GP2: 195 | GQ2: 196 | GR2: 197 | GS2: 198 | GT2: 199 | GU2: 200 | GV2: 201 | GW2: 202 | GX2: 203 | GY2: 204 | GZ2: 205 | HA2: 206 | HB2: 207 | HC2: 208 | HD2: 209 | HE2: 210 | HF2: 211 | HG2: 212 | HH2: 213 | HI2: 214 | HJ2: 215 | HK2: 216 | HL2: 217 | HM2: 218 | HN2: 219 | HO2: 220 | HP2: 221 | HQ2: 222 | HR2: 223 | HS2: 224 | HT2: 225 | HU2: 226 | HV2: 227 | HW2: 228 | HX2: 229 | HY2: 230 | HZ2: 231 | IA2: 232 | IB2: 233 | IC2: 234 | ID2: 235 | IE2: 236 | IF2: 237 | IG2: 238 | IH2: 239 | II2: 240 | IJ2: 241 | IK2: 242 | IL2: 243 | IM2: 244 | IN2: 245 | IO2: 246 | IP2: 247 | IQ2: 248 | IR2: 249 | IS2: 250 | IT2: 251 | IU2: 252 | IV2: 253 | IW2: 254
E3: INFORMACIÓN DE ORIGEN | O3: INFORMACIÓN DE LA META DE PRODUCTO | Z3: CURSOS DE VIDA | AF3: GRUPOS POBLACIONALES | AP3: ODS | AU3: LINEAS TRANSVERSALES | AY3: OTROS TRANSVERSALES | BA3: AÑO (1) 2016 -PROGRAMACION FÍSICA | BE3: AÑO (1) 2016 -EJECUCIÓN FÍSICA | BO3: AÑO (1) 2016 -PROGRAMACION FINANCIERA | BY3: AÑO (1) 2016 -EJECUCIÓN FINANCIERA | CI3: AÑO (2) 2017 -PROGRAMACION FÍSICA | CM3: AÑO (1) 2017 -EJECUCIÓN FÍSICA | CW3: AÑO (1) 2017 -PROGRAMACION FINANCIERA | DG3: AÑO (1) 2017 -EJECUCIÓN FINANCIERA | DQ3: AÑO (3) 2018 -PROGRAMACION FÍSICA | DU3: AÑO (1) 2018 -EJECUCIÓN FÍSICA | EE3: AÑO (1) 2018 -PROGRAMACION FINANCIERA | EO3: AÑO (1) 2018 -EJECUCIÓN FINANCIERA | EY3: AÑO (4) 2019 -PROGRAMACION FÍSICA | FC3: AÑO (1) 2019 -EJECUCIÓN FÍSICA | FM3: AÑO (1) 2019 -PROGRAMACION FINANCIERA | FW3: AÑO (1) 2019 -EJECUCIÓN FINANCIERA | GG3: PROGRAMADO FÍSICO 2016-2019 | GK3: EJECUTADO FÍSICO 2016-2019 | GQ3: PROGRAMADO FINANCIERO 2016-2019 | HA3: EJECUTADO FINANCIERO 2016-2019 | IR3: CALIFICACION INICIAL | IZ3: PONDERACIÓN DE CRITERIOS | JE3: CALIFICACION X % PONDERACION CRITERIO
B4: 1 | D4: No. Meta de Producto | E4: Entidad | F4: Eje Estrategico | G4: Programa | H4: Objetivo Programa | I4: No. Meta de Resultado | J4: Nombre Meta Resultado | K4: NOMBRE INDICADOR (META DE RESULTADO) | L4: LINEA BASE INDICADOR | M4: META ESPERADA 2019 | N4: Subprograma | O4: Código FUT | P4: Sector Inversión FUT | Q4: Meta Moño | R4: Meta de Producto | S4: Tipo de Meta | T4: Indicador | U4: Unidad | V4: Linea Base del Producto | W4: Valor Programado Cuatrienio | X4: Valor Esperado al Final Cuatrienio | Y4: Ponderador Meta | Z4: Primera infancia | AA4: Infancia | AB4: Adolescencia | AC4: Juventud | AD4: Adultos | AE4: Adulto mayor | AF4: Mujer | AG4: Discapacidad | AH4: Afrodescendientes | AI4: Mujer rural | AJ4: LGTBI | AK4: VCA | AL4: ETNIAS | AM4: RAIZALES | AN4: ROOM | AO4: RELIGION Y CULTO | AP4: Opcion 1 ODS | AQ4: Opcion 2 ODS | AR4: Opcion 3 ODS | AS4: Opcion 4 ODS | AT4: Opcion 5 ODS | AU4: CTeI | AV4: dinamicas globales | AW4: Nuevo Liderazgo | AX4: Paz Conflicto | AY4: Cambio Climatico | AZ4: Seguridad Alimentaria | BA4: Ponderador 2016 | BB4: Ponderador 2016_aj | BC4: Programado 2016 | BD4: % Programado 2016 | BE4: Ejecutado Meta 2016 | BF4: Ejecutado Trim 1 2016 | BG4: (Enero - Agosto. 30) Ejecutado Trim 2 2016 | BH4: (Enero - Sept. 30) Ejecutado Trim 3 2016. | BI4: Ejecutado Trim 4 2016 | BJ4: Avance Físico 2016 | BK4: % de Avance 2016 | BL4: Avance Ponderado 2016 | BM4: % Avance Real 2016 | BN4: Avance Ponderado Real 2016 | BO4: Rec. ($) Programados 2016 | BP4: Central 2016 | BQ4: SGP 2016 | BR4: Aportes Transf. Cof. Nacion 2016 | BS4: Aportes Transf. Cof. Mpios 2016 | BT4: SGR 2016 | BU4: Descentralizada 2016 | BV4: Otros Ingresos 2016 | BW4: Rec. Gest. que no Ingresan al Depto 2016 | BX4: Fuentes 2016 | BY4: Rec. ($) Ejecutados 2016 | BZ4: Ejecutado Central 2016 | CA4: Ejecutado SGP 2016 | CB4: Transf. Cof. Nacion 2016 | CC4: Aportes Cof. Mpios 2016 | CD4: Ejecutado SGR 2016 | CE4: Descentr 2016 | CF4: Otros Ingresos 2016 | CG4: Rec. Gest. que no Ingresan al Depto 2016 | CH4: Fuentes 2016 | CI4: Ponderador 2017 | CJ4: Ponderador 2017_aj | CK4: Programado 2017 | CL4: % Programado 2017 | CM4: Ejecutado Meta 2017 | CN4: Ejecutado Trim 1 2017 | CO4: Ejecutado Trim 2 2017 | CP4: Ejecutado Trim 3 2017 | CQ4: Ejecutado Trim 4 2017 | CR4: Avance Físico 2017 | CS4: % de Avance 2017 | CT4: Avance Ponderado 2017 | CU4: % Avance Real 2017 | CV4: Avance Ponderado Real 2017 | CW4: Rec. ($) Programados 2017 | CX4: Central 2017 | CY4: SGP 2017 | CZ4: Aportes Transf. Cof. Nacion 2017 | DA4: Aportes Transf. Cof. Mpios 2017 | DB4: SGR 2017 | DC4: Descentralizada 2017 | DD4: Otros Ingresos 2017 | DE4: Rec. Gest. que no Ingresan al Depto 2017 | DF4: Fuentes 2017 | DG4: Rec. ($) Ejecutados 2017 | DH4: Ejecutado Central 2017 | DI4: Ejecutado SGP 2017 | DJ4: Transf. Cof. Nacion 2017 | DK4: Aportes Cof. Mpios 2017 | DL4: Ejecutado SGR 2017 | DM4: Descentr 2017 | DN4: Otros Ingresos 2017 | DO4: Rec. Gest. que no Ingresan al Depto 2017 | DP4: Fuentes 2017 | DQ4: Ponderador 2018 | DR4: Ponderador 2018_aj | DS4: Programado 2018 | DT4: % Programado 2018 | DU4: Ejecutado Meta 2018 | DV4: Ejecutado Trim 1 2018 | DW4: Ejecutado Trim 2 2018 | DX4: Ejecutado Trim 3 2018 | DY4: Ejecutado Trim 4 2018 | DZ4: Avance Físico 2018 | EA4: % de Avance 2018 | EB4: Avance Ponderado 2018 | EC4: % Avance Real 2018 | ED4: Avance Ponderado Real 2018 | EE4: Rec. ($) Programados 2018 | EF4: Central 2018 | EG4: SGP 2018 | EH4: Aportes Transf. Cof. Nacion 2018 | EI4: Aportes Transf. Cof. Mpios 2018 | EJ4: SGR 2018 | EK4: Descentralizada 2018 | EL4: Otros Ingresos 2018 | EM4: Rec. Gest. que no Ingresan al Depto 2018 | EN4: Fuentes 2018 | EO4: Rec. ($) Ejecutados 2018 | EP4: Ejecutado Central 2018 | EQ4: Ejecutado SGP 2018 | ER4: Transf. Cof. Nacion 2018 | ES4: Aportes Cof. Mpios 2018 | ET4: Ejecutado SGR 2018 | EU4: Descentr 2018 | EV4: Otros Ingresos 2018 | EW4: Rec. Gest. que no Ingresan al Depto 2018 | EX4: Fuentes 2018 | EY4: Ponderador 2019 | EZ4: Ponderador 2019_aj | FA4: Programado 2019 | FB4: % Programado 2019 | FC4: Ejecutado Meta 2019 | FD4: Ejecutado Trim 1 2019 | FE4: Ejecutado Trim 2 2019 | FF4: Ejecutado Trim 3 2019 | FG4: Ejecutado Trim 4 2019 | FH4: Avance Físico 2019 | FI4: % de Avance 2019 | FJ4: Avance Ponderado 2019 | FK4: % Avance Real 2019 | FL4: Avance Ponderado Real 2019 | FM4: Rec. ($) Programados 2019 | FN4: Central 2019 | FO4: SGP 2019 | FP4: Aportes Transf. Cof. Nacion 2019 | FQ4: Aportes Transf. Cof. Mpios 2019 | FR4: SGR 2019 | FS4: Descentralizada 2019 | FT4: Otros Ingresos 2019 | FU4: Rec. Gest. que no Ingresan al Depto 2019 | FV4: Fuentes 2019 | FW4: Rec. ($) Ejecutados 2019 | FX4: Ejecutado Central 2019 | FY4: Ejecutado SGP 2019 | FZ4: Transf. Cof. Nacion 2019 | GA4: Aportes Cof. Mpios 2019 | GB4: Ejecutado SGR 2019 | GC4: Descentr 2019 | GD4: Otros Ingresos 2019 | GE4: Rec. Gest. que no Ingresan al Depto 2019 | GF4: Fuentes 2019 | GG4: Ponderador 2016-2019 | GH4: Ponderador 2016-2019_aj | GI4: Programado Físico 2016-2019 | GJ4: % Progr. Físico 2016-2019 | GK4: Ejecutado Meta 2016-2019 | GL4: Avance Físico Meta_2016-2019 | GM4: % de Avance 2016-2019 | GN4: Avance Ponderado 2016-2019 | GO4: % Avance Real 2016-2019 | GP4: Avance Ponderado Real 2016-2019 | GQ4: Recursos Programados 2016-2019 | GR4: Central 2016-2019 | GS4: SGP 2016-2019 | GT4: Aportes Transf. Cof. Nacion 2016-2019 | GU4: Aportes Transf. Cof. Mpios 2019-2019 | GV4: SGR 2016-2019 | GW4: Descentr 2016-2019 | GX4: Otros Ingresos 2016-2019 | GY4: Rec. Gest. que no Ingresan al Depto 2016-2019 | GZ4: Fuentes 2016-2019 | HA4: Recursos Ejecutados 2016-2019 | HB4: Ejecutado Central 2016-2019 | HC4: Ejecutado SGP 2016-2019 | HD4: Transf. Cof. Nacion 2016-2019 | HE4: Aportes Cof. Mpios 2016-2019 | HF4: Ejecutado sgr 2016-2019 | HG4: Descentr 2016-2019 | HH4: Otros Ingresos 2016-2019 | HI4: R. Gestionados no Entran al Depto 2016-2019 | HJ4: Fuentes 2016-2019 | HK4: Control Programación | HL4: Control Ponderador | HM4: ALCANCE DE LA META QUE VA A REALIZAR | HN4: PRINCIPALES ACTIVIDADES PARA EL LOGRO DE LA META | HO4: REQUIERE PT | HP4: Ac_PLAN DE TRABAJO_1 | HQ4: P1 | HR4: PLAN DE TRABAJO_2 | HS4: P2 | HT4: PLAN DE TRABAJO_3 | HU4: P3 | HV4: PLAN DE TRABAJO_4 | HW4: P4 | HX4: PLAN DE TRABAJO_5 | HY4: P5 | HZ4: PLAN DE TRABAJO_6 | IA4: P6 | IB4: PLAN DE TRABAJO_7 | IC4: P7 | ID4: PLAN DE TRABAJO_8 | IE4: P8 | IF4: PLAN DE TRABAJO_9 | IG4: P9 | IH4: PLAN DE TRABAJO_10 | II4: P10 | IJ4: Funcionario Responsable | IK4: Proyecto Banco | IL4: Proyecto Moño a Impactar | IM4: Entidad Cooperante 1 | IN4: Entidad Cooperante 2 | IO4: Entidad Cooperante 3 | IP4: Entidad Cooperante 4 | IQ4: LOGROS MÁS RELEVANTES | IR4: NIVEL DE IMPACTO CON EL PROGRAMA DE GOBIERNO | IS4: INVERSIÓN INICIAL | IT4: GOBERNABILIDAD PARA SU EJECUCIÓN | IU4: NIVEL APORTE A LA DISMINUCIÓN DE LA POBREZA (IPM) | IV4: NIVEL BENEFICIO EN TERRIORIO (MPIOS, PERSONAS) | IW4: TIPO DE META | IX4: SUMA DE CRITERIOS DE CALIFICACION | IY4: PESO % ACORDE CON LOS CRITERIOS DE CALIFICACIÓN | IZ4: NIVEL DE IMPACTO CON EL PROGRAMA DE GOBIERNO | JA4: INVERSIÓN INICIAL | JB4: GOBERNABILIDAD PARA SU EJECUCIÓN | JC4: NIVEL APORTE A LA DISMINUCIÓN DE LA POBREZA (IPM) | JD4: NIVEL BENEFICIO EN TERRIORIO (MPIOS, PERSONAS) | JE4: NIVEL DE IMPACTO CON EL PROGRAMA DE GOBIERNO | JF4: INVERSIÓN INICIAL | JG4: GOBERNABILIDAD PARA SU EJECUCIÓN | JH4: NIVEL APORTE A LA DISMINUCIÓN DE LA POBREZA (IPM) | JI4: NIVEL BENEFICIO EN TERRIORIO (MPIOS, PERSONAS) | JJ4: TOTAL | JK4: PONDERACION POR META FRENTE EL 100% | JL4: DATO REFERENCIA 100%= VALOR SUMA TOTAL (CALIFICACION X % PONDERACION CRITERIO)
B5: 2 | D5: 100 | E5: SECRETARIA DE EDUCACIÓN | F5: 1. CUNDINAMARCA 2036 | G5: 1.1. GENERACION 2036 | I5: 1 | J5: Generar transformación curricular en el 100% de las IED. | K5: Instituciones educativas con innovaciones curriculares | L5: 0 | M5: 100 | N5: 1.1.1. CALIDAD EN LA EDUCACIÓN PARA EL NUEVO LIDERAZGO | O5: A.17 | P5: A.17 Fortalecimiento institucional | R5: DISEÑAR E IMPLEMENTAR UN PROYECTO DE INNOVACIÓN CURRICULAR AL 100% DE LAS IED (283), CON ENFOQUE DE PSICOLOGÍA POSITIVA QUE INVOLUCRE LA FELICIDAD, EL PENSAMIENTO CRÍTICO, PERCEPTIVO Y CREATIVO, LA INTELIGENCIA EMOCIONAL, ENTRE OTROS. | S5: Incremento | T5: Instituciones con innovaciones curriculares | U5: Número | V5: 0 | W5: 283 | Y5: 0.6544331171 | Z5: û | AA5: ü | AB5: ü | AC5: ü | AD5: ü | AE5: û | AF5: ü | AG5: ü | AH5: ü | AI5: ü | AJ5: ü | AK5: ü | AL5: ü | AM5: ü | AN5: ü | AO5: ü | AP5: 4. Educación de calidad | AU5: ü | AV5: ü | AW5: û | AX5: û | AY5: û | AZ5: û | BA5: =+$Y5*BD5 -> 0 | BB5: =+$Y5*BD5 -> 0 | BC5: 0 | BD5: =IF($S5="Mantenimiento",0.25,(IF($W5>0,BC5/$W5," "))) -> 0 | BE5: 0 | BH5: 0 | BJ5: =+IF($S5="Incremento",(+BE5),IF($S5="Mantenimiento",(+BE5)/4,)) -> 0 | BK5: =IF(BC5=0,0,(IF((BE5*100/BC5)<100,(BE5*100/BC5),100))) -> 0 | BL5: =+(BK5*BA5)/100 -> 0 | BM5: =+IF(BE5>BC5,100,BL5) -> 0 | BN5: =+(BK5*BA5)/100 -> 0 | BO5: =SUM(BP5:BV5) -> 2737000000 | BP5: 2737000000 | BY5: =SUM(BZ5:CF5) -> 0 | CI5: =+Y5*CL5 -> 0.2196860287 | CJ5: =+$Y5*CL5 -> 0.2196860287 | CK5: 95 | CL5: =IF($S5="Mantenimiento",0.25,(IF($W5>0,CK5/$W5," "))) -> 0.3356890459 | CM5: =SUM(CN5:CQ5) -> 0 | CR5: =+IF($S5="Incremento",(+CM5),IF($S5="Mantenimiento",(+CM5)/4,)) -> 0 | CS5: =IF(CK5=0,0,(IF((CM5*100/CK5)<100,(CM5*100/CK5),100))) -> 0 | CT5: =+(CS5*CI5)/100 -> 0 | CU5: =+IF(CM5>CK5,100,CT5) -> 0 | CV5: =+(CS5*CI5)/100 -> 0 | CW5: =SUM(CX5:DD5) -> 5223539840 | CX5: 5223539840 | DG5: =SUM(DH5:DN5) -> 0 | DQ5: =+$Y5*DT5 -> 0.2381859048 | DR5: =+$Y5*DT5 -> 0.2381859048 | DS5: 103 | DT5: =IF($S5="Mantenimiento",0.25,(IF($W5>0,DS5/$W5," "))) -> 0.3639575972 | DU5: =SUM(DV5:DY5) -> 0 | DZ5: =+IF($S5="Incremento",(+DU5),IF($S5="Mantenimiento",(+DU5)/4,)) -> 0 | EA5: =IF(DS5=0,0,(IF((DU5*100/DS5)<100,(DU5*100/DS5),100))) -> 0 | EB5: =+(EA5*DQ5)/100 -> 0 | EC5: =+IF(DU5>DS5,100,EB5) -> 0 | ED5: =+(EA5*DQ5)/100 -> 0 | EE5: =SUM(EF5:EL5) -> 4135000000 | EF5: 4135000000 | EO5: =SUM(EP5:EV5) -> 0 | EY5: =+$Y5*FB5 -> 0.1965611836 | EZ5: =+$Y5*FB5 -> 0.1965611836 | FA5: 85 | FB5: =IF($S5="Mantenimiento",0.25,(IF($W5>0,FA5/$W5," "))) -> 0.3003533569 | FC5: =SUM(FD5:FG5) -> 0 | FH5: =+IF($S5="Incremento",(+FC5),IF($S5="Mantenimiento",(+FC5)/4,)) -> 0 | FI5: =IF(FA5=0,0,(IF((FC5*100/FA5)<100,(FC5*100/FA5),100))) -> 0 | FJ5: =+(FI5*EY5)/100 -> 0 | FK5: =+IF(FC5>FA5,100,FJ5) -> 0 | FL5: =+(FI5*EY5)/100 -> 0 | FM5: =SUM(FN5:FT5) -> 7095000000 | FN5: 7095000000 | GG5: =+BA5+CI5+DQ5+EY5 -> 0.6544331171 | GH5: =+BB5+CJ5+DR5+EZ5 -> 0.6544331171 | GI5: =+BC5+CK5+DS5+FA5 -> 283 | GJ5: =+BD5+CL5+DT5+FB5 -> 1 | GK5: =+BE5+CM5+DU5+FC5 -> 0 | GL5: =+BJ5+CR5+DZ5+FH5 -> 0 | GM5: =+BK5+CS5+EA5+FI5 -> 0 | GN5: =+BL5+CT5+EB5+FJ5 -> 0 | GO5: =+BM5+CU5+EC5+FK5 -> 0 | GP5: =+BN5+CV5+ED5+FL5 -> 0 | GQ5: =+BO5+CW5+EE5+FM5 -> 19190539840 | GR5: =+BP5+CX5+EF5+FN5 -> 19190539840 | GS5: =+BQ5+CY5+EG5+FO5 -> 0 | GT5: =+BR5+CZ5+EH5+FP5 -> 0 | GU5: =+BS5+DA5+EI5+FQ5 -> 0 | GV5: =+BT5+DB5+EJ5+FR5 -> 0 | GW5: =+BU5+DC5+EK5+FS5 -> 0 | GX5: =+BV5+DD5+EL5+FT5 -> 0 | GY5: =+BW5+DE5+EM5+FU5 -> 0 | GZ5: =+BX5+DF5+EN5+FV5 -> 0 | HA5: =+BY5+DG5+EO5+FW5 -> 0 | HB5: =+BZ5+DH5+EP5+FX5 -> 0 | HC5: =+CA5+DI5+EQ5+FY5 -> 0 | HD5: =+CB5+DJ5+ER5+FZ5 -> 0 | HE5: =+CC5+DK5+ES5+GA5 -> 0 | HF5: =+CD5+DL5+ET5+GB5 -> 0 | HG5: =+CE5+DM5+EU5+GC5 -> 0 | HH5: =+CF5+DN5+EV5+GD5 -> 0 | HI5: =+CG5+DO5+EW5+GE5 -> 0 | HJ5: =+CH5+DP5+EX5+GF5 -> 0 | HK5: =+BD5+CL5+DT5+FB5 -> 1 | HL5: =+Y5-BA5-CI5-DQ5-EY5 -> 0 | HM5: A través de la realización del proyecto de innovación, con enfoque de psicología positiva que involucre la felicidad, el pensamiento crítico, perceptivo, creativo y la inteligencia emocional, se pretende disminuir los riesgos en los estudiantes, fortalecer las herramientas pedagógicas en los docentes y propiciar espacios de participación de la comunidad educativa. | HN5: En el desarrollo del diseño e implementación del proyecto de innovación curricular se realizará un proceso de diseño, diagnostico, construcción de la metodología y fase de implementación, por fases. | HO5: si | HP5: Diseño de la propuesta de desarrollo. | HR5: Diagnóstico | HT5: Construcción de la metodología | HV5: Fase 1 de implemenatción | HX5: Fase 2 de Implementación | IJ5: SANDRA MILENA GUTIERREZ HURTADO Y NUBIA LICHT PARDO | IK5: 297084: Implementación de proyecto de Innovación para la transformación del currículo educativo con enfoque de psicología positiva, que involucre la felicidad y la gestión del riesgo, de las Instituciones Educativas de Cundinamarca | IL5: si | IM5: UNIVERSIDADES PÚBLICAS Y PRIVADAS | IN5: FUNDACIONES | IO5: EMPRESARIOS | IQ5: DILIGENCIAR LOGROS | IR5: 5 | IS5: =IF(GQ5<500000000,1,IF(GQ5<2500000000,2,IF(GQ5<1000000000,3,IF(GQ5<10000000000,4,IF(GQ5>10000000001,5))))) -> 5 | IT5: 3 | IU5: 5 | IV5: 5 | IW5: I2 | IX5: =IR5+IS5+IT5+IU5+IV5 -> 23 | IY5: =(IX5*100%)/7543.5 -> 0.003048982568 | IZ5: 0.18 | JA5: 0.45 | JB5: 0.1 | JC5: 0.15 | JD5: 0.12 | JE5: =IR5*IZ5 -> 0.9 | JF5: =IS5*JA5 -> 2.25 | JG5: =IT5*JB5 -> 0.3 | JH5: =IU5*JC5 -> 0.75 | JI5: =IV5*JD5 -> 0.6 | JJ5: =JE5+JF5+JG5+JH5+JI5 -> 4.8 | JK5: =(JJ5*100%)/JL5 -> 0.003294531078 | JL5: 1456.96
B6: 3 | D6: 101 | E6: SECRETARIA DE EDUCACIÓN | F6: 1. CUNDINAMARCA 2036 | G6: 1.1. GENERACION 2036 | I6: 1 | J6: Generar transformación curricular en el 100% de las IED. | K6: Instituciones educativas con innovaciones curriculares | L6: 0 | M6: 100 | N6: 1.1.1. CALIDAD EN LA EDUCACIÓN PARA EL NUEVO LIDERAZGO | O6: A.1 | P6: A.1 Educación | R6: IMPLEMENTAR UN PROGRAMA EN 283 IED OFICIALES DESDE LA EDUCACIÓN PARA LA FORMACIÓN DE NIÑOS Y JÓVENES PARA APOYAR LA GESTIÓN DEL RIESGO. | S6: Incremento | T6: Instituciones Educativas con programa implementado | U6: Número | V6: 0 | W6: 283 | X6: =IF($S6="M",$W6,(IF($S6="I",($V6+$W6),IF($S6="R",($V6-$W6)," ")))) ->  | Y6: 0.2563196375 | Z6: û | AA6: ü | AB6: ü | AC6: ü | AD6: ü | AE6: û | AF6: ü | AG6: ü | AH6: ü | AI6: ü | AJ6: ü | AK6: ü | AL6: ü | AM6: ü | AN6: ü | AO6: ü | AP6: 4. Educación de calidad | AQ6: 12. Producción y consumo responsables | AR6: 13. Acción por el clima | AU6: û | AV6: û | AW6: û | AX6: û | AY6: û | AZ6: û | BA6: 0 | BB6: =+$Y6*BD6 -> 0 | BC6: 0 | BD6: =IF($S6="Mantenimiento",0.25,(IF($W6>0,BC6/$W6," "))) -> 0 | BE6: 0 | BH6: 0 | BJ6: =+IF($S6="Incremento",(+BE6),IF($S6="Mantenimiento",(+BE6)/4,)) -> 0 | BK6: 0 | BL6: 0 | BM6: 0 | BN6: 0 | BO6: 0 | BY6: 0 | CI6: 0.08513797147 | CJ6: 0.08513797147 | CK6: 94 | CL6: =IF($S6="Mantenimiento",0.25,(IF($W6>0,CK6/$W6," "))) -> 0.332155477 | CM6: 0 | CR6: 0 | CS6: 0 | CT6: 0 | CU6: 0 | CV6: 0 | CW6: 99646674 | CX6: 99646674 | DG6: 0 | DQ6: 0.08604369458 | DR6: 0.08604369458 | DS6: 95 | DT6: =IF($S6="Mantenimiento",0.25,(IF($W6>0,DS6/$W6," "))) -> 0.3356890459 | DU6: 0 | DZ6: 0 | EA6: 0 | EB6: 0 | EC6: 0 | ED6: 0 | EE6: 100706745 | EF6: 100706745 | EO6: 0 | EY6: 0.08513797147 | EZ6: 0.08513797147 | FA6: 94 | FB6: =IF($S6="Mantenimiento",0.25,(IF($W6>0,FA6/$W6," "))) -> 0.332155477 | FC6: 0 | FH6: 0 | FI6: 0 | FJ6: 0 | FK6: 0 | FL6: 0 | FM6: 99646674 | FN6: 99646674 | GG6: 0.2563196375 | GH6: 0.2563196375 | GI6: 283 | GJ6: 1 | GK6: 0 | GL6: 0 | GM6: 0 | GN6: 0 | GO6: 0 | GP6: 0 | GQ6: 300000093 | GR6: 300000093 | GS6: 0 | GT6: 0 | GU6: 0 | GV6: 0 | GW6: 0 | GX6: 0 | GY6: 0 | GZ6: 0 | HA6: 0 | HB6: 0 | HC6: 0 | HD6: 0 | HE6: 0 | HF6: 0 | HG6: 0 | HH6: 0 | HI6: 0 | HJ6: 0 | HK6: 1 | HL6: 0 | HM6: TÉCNICA LOS PROYECTOS AMBIENTALES ESCOLARES – PRAES- BAJO EL ENFOQUE DE GESTIÓN AMBIENTAL INTEGRAL PARA LA TRANSFORMACIÓN EN ESCUELAS ECOEFICIENTES, DONDE TODA LA COMUNIDAD EDUCATIVA ESTE COMPROMETIDA EN LA MEJORA AMBIENTAL DE SU ENTORNO, REDUCIENDO SUS IMPACTOS NEGATIVOS Y DESARROLLANDO COMPETENCIAS PARA PROMOVER HÁBITOS AMIGABLES CON EL AMBIENTE. | HN6: CONTRATO Y/O CONVENIOS CON ENTIDADES PUBLICAS Y/O PRIVADAS ELABORACION DE CRITERIOS TECNICOS IMPLEMENTACION DEL PROGRAMA EVALUACION DE RESULTADOS | HO6: No | HP6: DIAGNÓSTICO | HR6: ELABORACIÓN DEL PROGRAMA | HT6: IMPLEMENTACIÓN DEL PROGRAMA | HV6: EVALUACIÓN Y SEGUIMIENTO | IJ6: GLADYS ELSA MORALES VARGAS | IK6: 297084: Implementación de proyecto de Innovación para la transformación del currículo educativo con enfoque de psicología positiva, que involucre la felicidad y la gestión del riesgo, de las Instituciones Educativas de Cundinamarca | IL6: si | IQ6: DILIGENCIAR LOGROS | IR6: 1 | IS6: 1 | IT6: 5 | IU6: 1 | IV6: 5 | IW6: I2 | IX6: 13 | IY6: 0.001723337973 | IZ6: 0.18 | JA6: 0.45 | JB6: 0.1 | JC6: 0.15 | JD6: 0.12 | JE6: 0.18 | JF6: 0.45 | JG6: 0.5 | JH6: 0.15 | JI6: 0.6 | JJ6: 1.88 | JK6: 0.001290358006 | JL6: 1456.96
B7: 4 | D7: 102 | E7: SECRETARIA DE EDUCACIÓN | F7: 1. CUNDINAMARCA 2036 | G7: 1.1. GENERACION 2036 | I7: 1 | J7: Generar transformación curricular en el 100% de las IED. | K7: Instituciones educativas con innovaciones curriculares | L7: 0 | M7: 100 | N7: 1.1.1. CALIDAD EN LA EDUCACIÓN PARA EL NUEVO LIDERAZGO | O7: A.1 | P7: A.1 Educación | R7: IMPLEMENTAR UN PROYECTO DE FORTALECIMIENTO DE COMPETENCIAS PARA EL 100% DE LAS IED (283) DURANTE EL PERIODO DE GOBIERNO. | S7: Incremento | T7: IED con proyecto implementado | U7: Número | V7: 0 | W7: 1 | Y7: 0.5930800124 | Z7: û | AA7: ü | AB7: ü | AC7: ü | AD7: ü | AE7: û | AF7: ü | AG7: ü | AH7: ü | AI7: ü | AJ7: ü | AK7: ü | AL7: ü | AM7: ü | AN7: ü | AO7: ü | AP7: 4. Educación de calidad | AU7: û | AV7: û | AW7: û | AX7: û | AY7: û | AZ7: û | BA7: 0.05930800124 | BB7: =+Y7*BD7 -> 0.05930800124 | BC7: 0.1 | BD7: =IF($S7="Mantenimiento",0.25,(IF($W7>0,BC7/$W7," "))) -> 0.1 | BE7: 0 | BG7: 2 | BH7: 0 | BJ7: =+IF(S7="Incremento",(+BE7),IF(S7="Mantenimiento",(+BE7)/4,)) -> 0 | BK7: 0 | BL7: 0 | BM7: 0 | BN7: 0 | BO7: 686000000 | BP7: 686000000 | BY7: 0 | CI7: 0.1779240037 | CJ7: 0.1779240037 | CK7: 0.3 | CL7: =IF($S7="Mantenimiento",0.25,(IF($W7>0,CK7/$W7," "))) -> 0.3 | CM7: 0 | CR7: 0 | CS7: 0 | CT7: 0 | CU7: 0 | CV7: 0 | CW7: 738000000 | CX7: 738000000 | DG7: 0 | DQ7: 0.1779240037 | DR7: 0.1779240037 | DS7: 0.3 | DT7: =IF($S7="Mantenimiento",0.25,(IF($W7>0,DS7/$W7," "))) -> 0.3 | DU7: 0 | DZ7: 0 | EA7: 0 | EB7: 0 | EC7: 0 | ED7: 0 | EE7: 988000000 | EF7: 988000000 | EO7: 0 | EY7: 0.1779240037 | EZ7: 0.1779240037 | FA7: 0.3 | FB7: =IF($S7="Mantenimiento",0.25,(IF($W7>0,FA7/$W7," "))) -> 0.3 | FC7: 0 | FH7: 0 | FI7: 0 | FJ7: 0 | FK7: 0 | FL7: 0 | FM7: 788000000 | FN7: 788000000 | GG7: 0.5930800124 | GH7: 0.5930800124 | GI7: 1 | GJ7: 1 | GK7: 0 | GL7: 0 | GM7: 0 | GN7: 0 | GO7: 0 | GP7: 0 | GQ7: 3200000000 | GR7: 3200000000 | GS7: 0 | GT7: 0 | GU7: 0 | GV7: 0 | GW7: 0 | GX7: 0 | GY7: 0 | GZ7: 0 | HA7: 0 | HB7: 0 | HC7: 0 | HD7: 0 | HE7: 0 | HF7: 0 | HG7: 0 | HH7: 0 | HI7: 0 | HJ7: 0 | HK7: 1 | HL7: 0 | HM7: DESARROLLAR COMPETENCIAS EN LOS DOCENTES Y ESTUDIANTES QUE LE PERMITAN MEJORAR LOS RESULTADOS DE EN LAS PRUEBAS SABER | HN7: HACER CONTRATCIÓN DE PROFESIONALES PARA EL ANÁLISIS DE RESULTADOS ADELANTAR LICITACIONES PÚBLICAS PARA LO PROVISIÓN DE BIENES Y SERVICOS RELACIONADOS CON ELDEL MANEJO DE LA PRUEBAS SABER | HO7: No | HP7: DIAGNÓSTICO | HR7: ELABORACIÓN DEL PROGRAMA | HT7: DESARROLLO DEL PROGRAMA | HV7: EVALUACIÓN Y SEGUIMIENTO | IJ7: GLADYS ELSA MORALES VARGAS | IK7: 297084: Implementación de proyecto de Innovación para la transformación del currículo educativo con enfoque de psicología positiva, que involucre la felicidad y la gestión del riesgo, de las Instituciones Educativas de Cundinamarca | IL7: si | IQ7: DILIGENCIAR LOGROS | IR7: 5 | IS7: 4 | IT7: 3 | IU7: 5 | IV7: 5 | IW7: I2 | IX7: 22 | IY7: 0.002916418108 | IZ7: 0.18 | JA7: 0.45 | JB7: 0.1 | JC7: 0.15 | JD7: 0.12 | JE7: 0.9 | JF7: 1.8 | JG7: 0.3 | JH7: 0.75 | JI7: 0.6 | JJ7: 4.35 | JK7: 0.00298566879 | JL7: 1456.96
B8: 5 | D8: 103 | E8: SECRETARIA DE EDUCACIÓN | F8: 1. CUNDINAMARCA 2036 | G8: 1.1. GENERACION 2036 | I8: 1 | J8: Generar transformación curricular en el 100% de las IED. | K8: Instituciones educativas con innovaciones curriculares | L8: 0 | M8: 100 | N8: 1.1.1. CALIDAD EN LA EDUCACIÓN PARA EL NUEVO LIDERAZGO | O8: A.1 | P8: A.1 Educación | R8: EVALUACIÓN, SEGUIMIENTO Y SOSTENIMIENTO DE LAS 57 REDES DE APRENDIZAJE DOCENTE QUE SE ENCUENTRAN VINCULADAS AL OBSERVATORIO EDUCATIVO DEL DEPARTAMENTO Y QUE ACTUALMENTE ADELANTAN INVESTIGACIÓN EN TEMAS DE AMBIENTE, CTEI, | S8: Mantenimiento | T8: Redes de aprendizaje docente con evaluación, seguimiento y sostenimiento | U8: Número | V8: 57 | W8: 57 | Y8: 0.4076572959 | Z8: ü | AA8: ü | AB8: ü | AC8: ü | AD8: ü | AE8: ü | AF8: ü | AG8: ü | AH8: ü | AI8: ü | AJ8: ü | AK8: ü | AL8: ü | AM8: ü | AN8: ü | AO8: ü | AP8: 4. Educación de calidad | AQ8: 10. Reducción de las desigualdades | AR8: 8. Trabajo decente y crecimiento económico | AS8: 1. Fin de la pobreza | AT8: 6. Agua limpia y saneamiento | AU8: ü | AV8: û | AW8: û | AX8: ü | AY8: ü | AZ8: ü | BA8: 0.101914324 | BB8: 0.101914324 | BC8: 0 | BD8: =IF($S8="Mantenimiento",0.25,(IF($X8>0,BC8/$W8," "))) -> 0.25 | BE8: 0 | BG8: 0 | BH8: 0 | BJ8: 0 | BK8: 0 | BL8: 0 | BM8: 0 | BN8: 0 | BO8: 80000000 | BP8: 80000000 | BY8: 0 | CI8: 0.101914324 | CJ8: 0.101914324 | CK8: 57 | CL8: =IF($S8="Mantenimiento",0.25,(IF($X8>0,CK8/$W8," "))) -> 0.25 | CM8: 0 | CR8: 0 | CS8: 0 | CT8: 0 | CU8: 0 | CV8: 0 | CW8: 1200000000 | CX8: 390000000 | DB8: 810000000 | DG8: 0 | DQ8: 0.101914324 | DR8: 0.101914324 | DS8: 57 | DT8: =IF($S8="Mantenimiento",0.25,(IF($X8>0,DS8/$W8," "))) -> 0.25 | DU8: 0 | DZ8: 0 | EA8: 0 | EB8: 0 | EC8: 0 | ED8: 0 | EE8: 600000000 | EF8: 0 | EG8: 0 | EJ8: 600000000 | EO8: 0 | EY8: 0.101914324 | EZ8: 0.101914324 | FA8: 57 | FB8: =IF($S8="Mantenimiento",0.25,(IF($X8>0,FA8/$W8," "))) -> 0.25 | FC8: 0 | FH8: 0 | FI8: 0 | FJ8: 0 | FK8: 0 | FL8: 0 | FM8: 450000000 | FN8: 0 | FR8: 450000000 | GG8: 0.4076572959 | GH8: 0.4076572959 | GI8: 171 | GJ8: 1 | GK8: 0 | GL8: 0 | GM8: 0 | GN8: 0 | GO8: 0 | GP8: 0 | GQ8: 2330000000 | GR8: 470000000 | GS8: 0 | GT8: 0 | GU8: 0 | GV8: 1860000000 | GW8: 0 | GX8: 0 | GY8: 0 | GZ8: 0 | HA8: 0 | HB8: 0 | HC8: 0 | HD8: 0 | HE8: 0 | HF8: 0 | HG8: 0 | HH8: 0 | HI8: 0 | HJ8: 0 | HK8: 1 | HL8: 0 | HM8: FORTALECIMIENTO DE LAS 57 REDES DE APRENDIZAJE QUE FORMAN PARTE DEL OBSERVATORIO DE REDES EDUCATIVAS DEL DEPARTAMENTO. | HN8: 1- DIAGNOSTICO DEL ESTADO DE LAS REDES DE APRENDIZAJE . 2- CONFORMACIÓN DEL EQUIPO DEL OBSERVATORIO DE REDES SOCIALES EDUCATIVAS. 3- ADQUISICIÓN DE HERRAMIENTAS TÉCNOLOGICAS PARA EL FUNCIONAMIENTO DEL OBSERVATORIO DE REDES EDUCATIVAS. 4 - IMPLANTACIÓN DEL OBSERVATORIO DE REDES EN LA SECRETARÍA. 5- FORMACIÓN DE LOS GESTORES DE REDES DE APRENDIZAJE. 6- SUSCRIPCIÓN DE ALIANZAS CON UNIVERSIDADES PARA EL DESARROLO DE LAS ACCIONES DE FORTALECIMIENTO DE LAS REDES DE APRENDIZAJE. 7- ESTRUCTURACIÓN E IMPLEMENTACIÓN DE ESTRATEGIAS DE PROMOCIÓN Y FORTALECIMIENTO DEL USO Y APROVECHAMIENTO DE LAS REDES DE APRENDIZAJE. 7- EVALUACIÓN Y SEGUIMIENTO AL DESARROLLO DE LAS ESTRATEGIAS Y RESULTADOS DEL PROGRAMA. | HO8: No | IJ8: MAURICIO ROMERO | IK8: 297105: Fortalecimiento y sostenimiento redes educativas de Cundinamarca. Cundinamarca | IM8: 1- INSTITUCIONES EDUCATIVAS DE LOS MUNICIPIOS DEL DEPARTAMENTO. . | IN8: 2- INSTITUCIONES DE EDUCACIÓN SUPERIOR | IO8: 3- CIER-CENTRO | IQ8: DILIGENCIAR LOGROS | IR8: 3 | IS8: 2 | IT8: 5 | IU8: 3 | IV8: 5 | IW8: MA | IX8: 18 | IY8: 0.00238616027 | IZ8: 0.18 | JA8: 0.45 | JB8: 0.1 | JC8: 0.15 | JD8: 0.12 | JE8: 0.54 | JF8: 0.9 | JG8: 0.5 | JH8: 0.45 | JI8: 0.6 | JJ8: 2.99 | JK8: 0.002052218318 | JL8: 1456.96
B9: 6 | D9: 104 | E9: SECRETARIA DE EDUCACIÓN | F9: 1. CUNDINAMARCA 2036 | G9: 1.2. CALIDAD 10 | I9: 2 | J9: Aumentar del 1% al 6% de estudiantes graduados del sector oficial con nivel de inglés B1 Y B+ | K9: Pruebas saber | L9: 1 | M9: 6 | N9: 1.2.1. CUNDINAMARCA BILINGÜE | O9: A.1 | P9: A.1 Educación | R9: ELABORAR E IMPLEMENTAR EN 140 DE LAS IED EL PLAN DEPARTAMENTAL DE BILINGÜISMO DURANTE EL PERIODO DE GOBIERNO. | S9: Incremento | T9: IED con plan de Bilingüismo implementado. | U9: Número | V9: 0 | W9: 140 | Y9: 0.5153660797 | Z9: û | AA9: û | AB9: û | AC9: û | AD9: ü | AE9: û | AF9: ü | AG9: ü | AH9: ü | AI9: ü | AJ9: ü | AK9: ü | AL9: ü | AM9: ü | AN9: ü | AO9: ü | AP9: 4. Educación de calidad | AU9: û | AV9: û | AW9: û | AX9: û | AY9: û | AZ9: û | BA9: 0.03681186284 | BB9: 0.03681186284 | BC9: 10 | BD9: =IF($S9="Mantenimiento",0.25,(IF($W9>0,BC9/$W9," "))) -> 0.07142857143 | BE9: 0 | BH9: 0 | BJ9: 0 | BK9: 0 | BL9: 0 | BM9: 0 | BN9: 0 | BO9: 800000000 | BP9: 800000000 | BY9: 0 | CI9: 0.1803781279 | CJ9: 0.1803781279 | CK9: 49 | CL9: =IF($S9="Mantenimiento",0.25,(IF($W9>0,CK9/$W9," "))) -> 0.35 | CM9: 0 | CR9: 0 | CS9: 0 | CT9: 0 | CU9: 0 | CV9: 0 | CW9: 1500000000 | CX9: 1500000000 | DG9: 0 | DQ9: 0.1472474513 | DR9: 0.1472474513 | DS9: 40 | DT9: =IF($S9="Mantenimiento",0.25,(IF($W9>0,DS9/$W9," "))) -> 0.2857142857 | DU9: 0 | DZ9: 0 | EA9: 0 | EB9: 0 | EC9: 0 | ED9: 0 | EE9: 1500000000 | EF9: 1500000000 | EO9: 0 | EY9: 0.1509286376 | EZ9: 0.1509286376 | FA9: 41 | FB9: =IF($S9="Mantenimiento",0.25,(IF($W9>0,FA9/$W9," "))) -> 0.2928571429 | FC9: 0 | FH9: 0 | FI9: 0 | FJ9: 0 | FK9: 0 | FL9: 0 | FM9: 1700000000 | FN9: 1700000000 | GG9: 0.5153660797 | GH9: 0.5153660797 | GI9: 140 | GJ9: 1 | GK9: 0 | GL9: 0 | GM9: 0 | GN9: 0 | GO9: 0 | GP9: 0 | GQ9: 5500000000 | GR9: 5500000000 | GS9: 0 | GT9: 0 | GU9: 0 | GV9: 0 | GW9: 0 | GX9: 0 | GY9: 0 | GZ9: 0 | HA9: 0 | HB9: 0 | HC9: 0 | HD9: 0 | HE9: 0 | HF9: 0 | HG9: 0 | HH9: 0 | HI9: 0 | HJ9: 0 | HK9: 1 | HL9: 0 | HM9: SE ESPERA ELABORAR EL PLAN DE BILINGÜISMO PARA LAS 283 IED NO CERTIFICADAS DEL DEPARTAMENTO, CON EL FIN DE INTEGRAR EN EL MISMO LAS LÍNEAS DE ACCIÓN QUE PERMITAN FORTALECER LAS HABILIDADES COMUNICATIVAS TANTO DE DOCENTES COMO DE ESTUDIANTES. EL PLAN SE IMPLEMENTARÁ EN 140 IED DURANTE EL CUATRIENIO, ES DECIR, SE COORDINARÁ CON LAS COMUNIDADES EDUCATIVAS FOCALIZADAS POR LA SECRETARÍA DE EDUCACIÓN, LA PUESTA EN MARCHA DE LAS ACCIONES QUE HACEN PARTE DEL PLAN Y QUE CONTRIBUIRÁN AL APRENDIZAJE SIGNIFICATIVO DEL INGLÉS Y A MEJORAR LOS RESULTADOS DE LOS ESTUDIANTES A CORTO, MEDIANO Y LARGO PLAZO. SE BUSCA QUE LAS ACTIVIDADES QUE SE ESTABLEZCAN EN EL PLAN DE BILINGÜISMO PARA LAS IED BENEFICIEN A LOS ESTUDIANTES DE EDUCACIÓN BÁSICA (PRIMARIA Y SECUNDARIA) Y MEDIA DE LAS 140 IED DONDE SE IMPLEMENTE: LOS DOCENTES DE INGLÉS DEL DEPARTAMENTO, SE VERÁN BENEFICIADOS CON LOS TALLERES Y LAS OPORTUNIDADES DE FORMACIÓN QUE SE BRINDEN YA SEA DESDE EL MEN Y/O DESDE LA SECRETARÍA. | HN9: PROMOCIÓN, CONVOCATORIA Y APOYO PARA QUE LOS DOCENTES Y ESTUDIANTES DE LAS IED DE LOS MUNICIPIOS NO CERTIFICADOS DEL DEPARTAMENTO PARTICIPEN EN LAS ACTIVIDADES PROGRAMADAS POR EL MEN EN EL MARCO DEL PROGRAMA COLOMBIA BILINGÜE. CONTRATACIÓN DE PROFESIONALES DE APOYO PARA ELABORAR E IMPLEMENTAR EL PLAN DE BILINGÜISMO EN LAS 140 IED FOCALIZADAS POR LA SECRETARÍA DE EDUCACIÓN CON EL FIN DE HACER ACOMPAÑAMIENTO EFECTIVO Y EVALUAR EL IMPACTO DE LAS ACCIONES QUE SE LLEVEN A CABO. BRINDAR ALTERNATIVAS DE FORMACIÓN EN LENGUA, CURRÍCULO Y METODOLOGÍA PARA LA ENSEÑANZA DEL INGLÉS, EN CONVENIO CON LA UNIVERSIDADES PÚBLICAS Y/O PRIVADAS, ENTIDADES COMO EL CENTRO COLOMBO AMERICANO Y/O COLEGIOS BILINGÜES QUE QUIERAN VINCULARSE A LAS INICIATIVAS DE LA SECRETARÍA. ADELANTAR EN LAS IED LA REVISIÓN Y AJUSTE DEL CURRÍCULO SUGERIDO PARA BÁSICA SECUNDARIA. SE ESPERA FOCALIZAR A UN NÚMERO DE INSTITUCIONES PARA DOTARLAS CON MATERIAL DIDÁCTICO QUE FAVOREZCA EL APRENDIZAJE DE LA LENGUA EXTRANJERA. | HO9: SI | HP9: ELABORACIÓN DEL PLAN | HQ9: 10 | HR9: DIFUSIÓN DEL PLAN | HS9: 10 | HT9: IMPLEMENTACIÓN EN LAS IED FOCALIZADAS | HU9: 50 | HV9: ACOMPAÑAMIENTO | HW9: 20 | HX9: EVALUACIÓN | HY9: 10 | IJ9: CLAUDIA HELENA AMAYA RABE | IK9: 297111: Fortalecimiento de las habilidades comunicativas en lengua extranjera - Inglés- en las Instituciones Educativas de los municipios no certificados de Cundinamarca | IL9: si | IM9: MEN | IQ9: DILIGENCIAR LOGROS | IR9: 5 | IS9: 4 | IT9: 3 | IU9: 2 | IV9: 4 | IW9: I2 | IX9: 18 | IY9: 0.00238616027 | IZ9: 0.18 | JA9: 0.45 | JB9: 0.1 | JC9: 0.15 | JD9: 0.12 | JE9: 0.9 | JF9: 1.8 | JG9: 0.3 | JH9: 0.3 | JI9: 0.48 | JJ9: 3.78 | JK9: 0.002594443224 | JL9: 1456.96
B10: 7 | D10: 105 | E10: SECRETARIA DE EDUCACIÓN | F10: 1. CUNDINAMARCA 2036 | G10: 1.2. CALIDAD 10 | I10: 2 | J10: Aumentar del 1% al 6% de estudiantes graduados del sector oficial con nivel de inglés B1 Y B+ | K10: Pruebas saber | L10: 1 | M10: 6 | N10: 1.2.1. CUNDINAMARCA BILINGÜE | O10: A.1 | P10: A.1 Educación | R10: IMPLEMENTAR 10 INSTITUCIONES EDUCATIVAS BILINGÜES EN EL CUATRIENIO. | S10: Incremento | T10: IED con bilingüismo implementado | U10: Número | V10: 0 | W10: 10 | Y10: 0.4826444238 | Z10: û | AA10: ü | AB10: ü | AC10: ü | AD10: ü | AE10: û | AF10: ü | AG10: ü | AH10: ü | AI10: ü | AJ10: ü | AK10: ü | AL10: ü | AM10: ü | AN10: ü | AO10: ü | AP10: 4. Educación de calidad | AU10: û | AV10: û | AW10: û | AX10: û | AY10: û | AZ10: û | BA10: 0 | BB10: 0 | BC10: 0 | BD10: 0 | BE10: 0 | BH10: 0 | BJ10: 0 | BK10: 0 | BL10: 0 | BM10: 0 | BN10: 0 | BO10: 600000000 | BP10: 600000000 | BY10: 0 | CI10: 0.2413222119 | CJ10: 0.2413222119 | CK10: 5 | CL10: 0.5 | CM10: 0 | CR10: 0 | CS10: 0 | CT10: 0 | CU10: 0 | CV10: 0 | CW10: 600000000 | CX10: 600000000 | DG10: 0 | DQ10: 0.1447933272 | DR10: 0.1447933272 | DS10: 3 | DT10: 0.3 | DU10: 0 | DZ10: 0 | EA10: 0 | EB10: 0 | EC10: 0 | ED10: 0 | EE10: 900000000 | EF10: 900000000 | EO10: 0 | EY10: 0.09652888477 | EZ10: 0.09652888477 | FA10: 2 | FB10: 0.2 | FC10: 0 | FH10: 0 | FI10: 0 | FJ10: 0 | FK10: 0 | FL10: 0 | FM10: 1200000000 | FN10: 1200000000 | GG10: 0.4826444238 | GH10: 0.4826444238 | GI10: 10 | GJ10: 1 | GK10: 0 | GL10: 0 | GM10: 0 | GN10: 0 | GO10: 0 | GP10: 0 | GQ10: 3300000000 | GR10: 3300000000 | GS10: 0 | GT10: 0 | GU10: 0 | GV10: 0 | GW10: 0 | GX10: 0 | GY10: 0 | GZ10: 0 | HA10: 0 | HB10: 0 | HC10: 0 | HD10: 0 | HE10: 0 | HF10: 0 | HG10: 0 | HH10: 0 | HI10: 0 | HJ10: 0 | HK10: 1 | HL10: 0 | HM10: SE ESPERA IMPLEMENTAR 10 INSTITUCIONES EDUCATIVAS BILINGÜES DURANTE EL CUATRIENIO. ESTE PROCESO IMPLICA EL ANÁLISIS DE LAS CONDICIONES DE LAS IED FOCALIZADAS POR LA SECRETARÍA PARA DISEÑAR UN PLAN DE TRABAJO QUE PERMITA DURANTE EL CUATRIENIO HACER LOS AJUSTES NECESARIOS EN TÉRMINOS DE DISEÑO CURRICULAR, PREPARACIÓN DE DOCENTES, DOTACIÓN DE ESPACIOS Y MATERIAL ADECUADO PARA QUE EL APRENDIZAJE DEL INGLÉS SEA UNA HERRAMIENTA QUE PERMITA ACCEDER A DISTINTAS ÁREAS DEL CONOCIMIENTO DESDE LA BÁSICA PRIMARIA. ASÍ MISMO ES NECESARIO GENERAR ESTRATEGIAS QUE INVOLUCREN A TODA LA COMUNIDAD EDUCATIVA QUE SERÁ BENEFICIADA CON LA IMPLEMENTACIÓN DE LA ESTRATEGIA. | HN10: FOCALIZAR LAS 10 IED QUE HARÁN PARTE DE LA IMPLEMENTACIÓN. HACER EL ESTUDIO DE CASO, DIAGNÓSTICO INICIAL QUE PERMITIRÁ ESTABLECER LAS CARACTERÍSTICAS DE LA COMUNIDAD EDUCATIVA CON EL FIN DE ESTABLECER EL PLAN DE TRABAJO PARA INICIAR LA TRANSICIÓN HACIA EL BILINGÜISMO. REVISAR Y AJUSTAR EL CURRÍCULO A PARTIR DEL GRADO EN EL QUE INICIE LA IMPLEMENTACIÓN. FORMAR DOCENTES DE PRIMARIA Y DE OTRAS ÁREAS QUE CONTRIBUIRÁN AL PROCESO EN LA IED. DOTAR AMBIENTES QUE FAVOREZCAN EL APRENDIZAJE DEL IDIOMA Y DE OTRAS ÁREAS DEL CONOCIMIENTO A TRAVÉS DEL IDIOMA. | HO10: No | HP10: FOCALIZAR LAS IED PARA LA TRANSICIÓN HACIA EL BILIGÜISMO | HQ10: 10 | HR10: DIAGNÓSTICO Y ESTUDIO DE CASO | HS10: 10 | HT10: INICIO DE LA IMPLEMEMTACIÓN | HU10: 40 | HV10: SEGUIMIENTO Y EVALUACIÓN | HW10: 40 | IJ10: CLAUDIA HELENA AMAYA RABE | IK10: 297111: Fortalecimiento de las habilidades comunicativas en lengua extranjera - Inglés- en las Instituciones Educativas de los municipios no certificados de Cundinamarca | IL10: SI | IM10: MEN | IQ10: DILIGENCIAR LOGROS | IR10: 5 | IS10: 4 | IT10: 3 | IU10: 2 | IV10: 2 | IW10: I2 | IX10: 16 | IY10: 0.002121031351 | IZ10: 0.18 | JA10: 0.45 | JB10: 0.1 | JC10: 0.15 | JD10: 0.12 | JE10: 0.9 | JF10: 1.8 | JG10: 0.3 | JH10: 0.3 | JI10: 0.24 | JJ10: 3.54 | JK10: 0.00242971667 | JL10: 1456.96
B11: 8 | D11: 106 | E11: SECRETARIA DE EDUCACIÓN | F11: 1. CUNDINAMARCA 2036 | G11: 1.2. CALIDAD 10 | I11: 3 | J11: Aumentar en 2 puntos porcentuales al final del cuatrienio la clasificación de las IED que se encuentran en los niveles A+, A y B en pruebas SABER 11 | K11: Pruebas saber | L11: 46.2 | M11: 48.2 | N11: 1.2.2.. PENSAMIENTO MATEMÁTICO Y LECTO ESCRITURA | O11: A.1 | P11: A.1 Educación | R11: IMPLEMENTAR UN PROYECTO DE FORTALECIMIENTO DE COMPETENCIAS EN PENSAMIENTO LÓGICO MATEMÁTICO Y LECTOESCRITURA, QUE BENEFICIE A 9000 ESTUDIANTES DURANTE EL PERIODO DE GOBIERNO. | S11: Incremento | T11: Estudiantes beneficiados con fortalecimiento de sus competencias educativas | U11: Número | V11: 0 | W11: 9000 | Y11: 0.4076572959 | Z11: û | AA11: ü | AB11: ü | AC11: ü | AD11: ü | AE11: û | AF11: ü | AG11: ü | AH11: ü | AI11: ü | AJ11: ü | AK11: ü | AL11: ü | AM11: ü | AN11: ü | AO11: ü | AP11: 4. Educación de calidad | AU11: û | AV11: û | AW11: û | AX11: û | AY11: û | AZ11: û | BA11: 0.04271342555 | BB11: 0.04271342555 | BC11: 943 | BD11: 0.1047777778 | BE11: 0 | BG11: 196 | BH11: 0 | BJ11: 0 | BK11: 0 | BL11: 0 | BM11: 0 | BN11: 0 | BO11: 330000000 | BP11: 330000000 | BY11: 0 | CI11: 0.1132381377 | CJ11: 0.1132381377 | CK11: 2500 | CL11: 0.2777777778 | CM11: 0 | CR11: 0 | CS11: 0 | CT11: 0 | CU11: 0 | CV11: 0 | CW11: 550000000 | CX11: 550000000 | DG11: 0 | DQ11: 0.1258755139 | DR11: 0.1258755139 | DS11: 2779 | DT11: 0.3087777778 | DU11: 0 | DZ11: 0 | EA11: 0 | EB11: 0 | EC11: 0 | ED11: 0 | EE11: 550000000 | EF11: 550000000 | EO11: 0 | EY11: 0.1258302187 | EZ11: 0.1258302187 | FA11: 2778 | FB11: 0.3086666667 | FC11: 0 | FH11: 0 | FI11: 0 | FJ11: 0 | FK11: 0 | FL11: 0 | FM11: 550000000 | FN11: 550000000 | GG11: 0.4076572959 | GH11: 0.4076572959 | GI11: 9000 | GJ11: 1 | GK11: 0 | GL11: 0 | GM11: 0 | GN11: 0 | GO11: 0 | GP11: 0 | GQ11: 1980000000 | GR11: 1980000000 | GS11: 0 | GT11: 0 | GU11: 0 | GV11: 0 | GW11: 0 | GX11: 0 | GY11: 0 | GZ11: 0 | HA11: 0 | HB11: 0 | HC11: 0 | HD11: 0 | HE11: 0 | HF11: 0 | HG11: 0 | HH11: 0 | HI11: 0 | HJ11: 0 | HK11: 1 | HL11: 0 | HM11: IMPLEMENTAR PROGRAMAS DE FORMACIÓN EN LENGUAJE Y MATEMÁTICAS ENFOCADOS A ORIENTAR LA PRÁCTICA DOCENTE, SABERES DISCIPLINARES, LA INVESTIGACIÓN Y LOS ESCENARIOS DE PRÁCTICA, LA FORMACIÓN ASOCIADA A EXPERIENCIAS DE TRABAJO COLECTIVO, LA FORMACIÓN CON INCIDENCIA EN EL AULA, LA ESCUELA Y LA COMUNIDAD. IMPLEMENTACIÓN DE PROCESOS PEDAGÓGICOS INNOVADORES QUE CON EL USO DE TECNOLOGÍAS DE INFORMACIÓN Y COMUNICACIONES MEJOREN LAS COMPETENCIAS BÁSICAS DE LOS ESTUDIANTES. DESARROLLO DE PROGRAMAS DE LECTOESCRITURA Y MATEMÁTICAS QUE PERMITAN GENERAR CAPACIDAD INSTALADA EN LOS MUNICIPIOS, ESPECÍFICAMENTE CAPACIDADES EN DOCENTES Y ESTUDIANTES PARA SU POSTERIOR DESARROLLO. | HN11: CELEBRAR CONVENIOS, CONTRATOS CON UNIVERSIDADES, FUNDACIONES E INSTITUCIONES DE EDUCACIÓN SUPERIOR PARA LA IMPLEMENTACIÓN DE PROGRAMAS DE FORMACIÓN. SOCIALIZACIÓN DE ACTIVIDADES CON DOCENTES Y DIRECTIVOS DOCENTES ARTICULACIÓN CON EL PROGRAMA TODOS A APRENDER ACOMPAÑAMIENTO Y SEGUIMIENTO PROGRAMAS DE GESTIÓN CON EL SECTOR PRIVADO | HO11: No | HP11: FOCALIZAR LAS IED | HR11: IMPLEMENTACIÓN DEL PROCESO | HT11: SEGUIMIENTO | IJ11: NUBIA LICHPARDO | IK11: 297116: Fortalecimiento de las competencias en pensamiento lógico matemático y lecto-escritura de los estudiantes oficiales del Departamento de Cundinamarca | IL11: si | IM11: FUNDACIONES | IN11: EMPRESARIOS POR LA EDUCACIÓN | IO11: UNIVERSIDADES PÚBLICAS Y PRIVADAS | IP11: MINISTERIO DE EDUCACIÓN NACIONAL | IQ11: DILIGENCIAR LOGROS | IR11: 5 | IS11: 2 | IT11: 5 | IU11: 3 | IV11: 2 | IW11: I2 | IX11: 17 | IY11: 0.002253595811 | IZ11: 0.18 | JA11: 0.45 | JB11: 0.1 | JC11: 0.15 | JD11: 0.12 | JE11: 0.9 | JF11: 0.9 | JG11: 0.5 | JH11: 0.45 | JI11: 0.24 | JJ11: 2.99 | JK11: 0.002052218318 | JL11: 1456.96
B12: 9 | D12: 107 | E12: SECRETARIA DE EDUCACIÓN | F12: 1. CUNDINAMARCA 2036 | G12: 1.2. CALIDAD 10 | I12: 3 | J12: Aumentar en 2 puntos porcentuales al final del cuatrienio la clasificación de las IED que se encuentran en los niveles A+, A y B en pruebas SABER 11 | K12: Pruebas saber | L12: 46.2 | M12: 48.2 | N12: 1.2.3. SISTEMAS DE APRENDIZAJE INNOVADORES | O12: A.1 | P12: A.1 Educación | R12: IMPLEMENTAR MODELOS EDUCATIVOS INNOVADORES Y EDUCACIÓN VIRTUAL PARA 22.000 ESTUDIANTES DE LAS IED QUE PERMITAN LA TRANSFORMACIÓN DE LAS METODOLOGÍAS DE ENSEÑANZA Y AUTONOMÍA DEL APRENDIZAJE, PARA EL DESARROLLO DEL PENSAMIENTO CRÍTICO, CREATIVO Y PERCEPTIVO. | S12: Incremento | T12: Estudiantes con modelos innovadores implementados | U12: Número | V12: 0 | W12: 22000 | Y12: 0.4758274122 | Z12: û | AA12: ü | AB12: ü | AC12: ü | AD12: û | AE12: û | AF12: ü | AG12: ü | AH12: ü | AI12: ü | AJ12: ü | AK12: ü | AL12: ü | AM12: ü | AN12: ü | AO12: ü | AP12: 4. Educación de calidad | AU12: ü | AV12: û | AW12: û | AX12: û | AY12: û | AZ12: û | BA12: 0.09912350137 | BB12: 0.09912350137 | BC12: 4583 | BD12: 0.2083181818 | BE12: 0 | BG12: 0 | BH12: 0 | BJ12: 0 | BK12: 0 | BL12: 0 | BM12: 0 | BN12: 0 | BO12: 397000000 | BP12: 397000000 | BY12: 0 | CI12: 0.2312521223 | CJ12: 0.2312521223 | CK12: 10692 | CL12: 0.486 | CM12: 0 | CR12: 0 | CS12: 0 | CT12: 0 | CU12: 0 | CV12: 0 | CW12: 634500000 | CX12: 634500000 | DG12: 0 | DQ12: 0.07273670851 | DR12: 0.07273670851 | DS12: 3363 | DT12: 0.1528636364 | DU12: 0 | DZ12: 0 | EA12: 0 | EB12: 0 | EC12: 0 | ED12: 0 | EE12: 1334250000 | EF12: 1334250000 | EO12: 0 | EY12: 0.07271507999 | EZ12: 0.07271507999 | FA12: 3362 | FB12: 0.1528181818 | FC12: 0 | FH12: 0 | FI12: 0 | FJ12: 0 | FK12: 0 | FL12: 0 | FM12: 3134250000 | FN12: 3134250000 | GG12: 0.4758274122 | GH12: 0.4758274122 | GI12: 22000 | GJ12: 1 | GK12: 0 | GL12: 0 | GM12: 0 | GN12: 0 | GO12: 0 | GP12: 0 | GQ12: 5500000000 | GR12: 5500000000 | GS12: 0 | GT12: 0 | GU12: 0 | GV12: 0 | GW12: 0 | GX12: 0 | GY12: 0 | GZ12: 0 | HA12: 0 | HB12: 0 | HC12: 0 | HD12: 0 | HE12: 0 | HF12: 0 | HG12: 0 | HH12: 0 | HI12: 0 | HJ12: 0 | HK12: 1 | HL12: 0 | HM12: Generar transformación en los procesos de enseñanza y aprendizaje de las Instituciones Educativas focalizadas para mejorar la calidad educativa. | HN12: Elaboración diagnostico pedagógico Formación, acompañamiento e implementación de modelos educativos innovadores presenciales y/o virtuales Acompañamiento in situ, seguimiento, socialización Actualizar los currículos y mejorar las practicas pedagógicas los docentes de las instituciones educativas oficiales de Cundinamarca de manera que incidan de manera efectiva en el aprendizaje de los estudiantes. Promover la reestructuración de los PEI de manera que respondan a los retos de la educación actual | HO12: No | HP12: Proceso de Diagnóstico | HR12: Procesos de formación y socialización | HT12: implementación y puesta en marcha de los modelos pedagógicos. | IJ12: SANDRA MILENA GUTIERREZ HURTADO | IK12: 297100: Implementación de modelos pedagógicos innovadores y ambientes de aprendizaje adecuados para mejorar la calidad educativa en las IED oficiales Cundinamarca | IL12: INNOVACIÓN CURRICULAR | IQ12: DILIGENCIAR LOGROS | IR12: 5 | IS12: 4 | IT12: 1 | IU12: 3 | IV12: 2 | IW12: I2 | IX12: 15 | IY12: 0.001988466892 | IZ12: 0.18 | JA12: 0.45 | JB12: 0.1 | JC12: 0.15 | JD12: 0.12 | JE12: 0.9 | JF12: 1.8 | JG12: 0.1 | JH12: 0.45 | JI12: 0.24 | JJ12: 3.49 | JK12: 0.002395398638 | JL12: 1456.96
B13: 10 | D13: 108 | E13: SECRETARIA DE EDUCACIÓN | F13: 1. CUNDINAMARCA 2036 | G13: 1.2. CALIDAD 10 | I13: 3 | J13: Aumentar en 2 puntos porcentuales al final del cuatrienio la clasificación de las IED que se encuentran en los niveles A+, A y B en pruebas SABER 11 | K13: Pruebas saber | L13: 46.2 | M13: 48.2 | N13: 1.2.3. SISTEMAS DE APRENDIZAJE INNOVADORES | O13: A.1 | P13: A.1 Educación | R13: IMPLEMENTAR 15 AMBIENTES EDUCATIVOS INTERDISCIPLINARIOS DESTINADOS A MEJORAR LAS CAPACIDADES DE INVESTIGACIÓN DE LOS ESTUDIANTES DE LAS IED DEL DEPARTAMENTO EN CIENCIAS Y TECNOLOGÍA DURANTE EL PERIODO DE GOBIERNO. | S13: Incremento | T13: Ambientes educativos implementados | U13: Número | V13: 0 | W13: 15 | Y13: 0.5303635053 | Z13: ü | AA13: ü | AB13: ü | AC13: ü | AD13: ü | AE13: ü | AF13: ü | AG13: ü | AH13: ü | AI13: ü | AJ13: ü | AK13: ü | AL13: ü | AM13: ü | AN13: ü | AO13: ü | AP13: 4. Educación de calidad | AU13: ü | AV13: û | AW13: û | AX13: û | AY13: û | AZ13: û | BA13: 0.1060727011 | BB13: 0.1060727011 | BC13: 3 | BD13: 0.2 | BE13: 0 | BG13: 0 | BH13: 0 | BJ13: 0 | BK13: 0 | BL13: 0 | BM13: 0 | BN13: 0 | BO13: 1660000000 | BP13: 1660000000 | BY13: 0 | CI13: 0.07071513404 | CJ13: 0.07071513404 | CK13: 2 | CL13: 0.1333333333 | CM13: 0 | CR13: 0 | CS13: 0 | CT13: 0 | CU13: 0 | CV13: 0 | CW13: 1600000000 | CX13: 400000000 | DB13: 1200000000 | DG13: 0 | DQ13: 0.1767878351 | DR13: 0.1767878351 | DS13: 5 | DT13: 0.3333333333 | DU13: 0 | DZ13: 0 | EA13: 0 | EB13: 0 | EC13: 0 | ED13: 0 | EE13: 1600000000 | EF13: 400000000 | EJ13: 1200000000 | EO13: 0 | EY13: 0.1767878351 | EZ13: 0.1767878351 | FA13: 5 | FB13: 0.3333333333 | FC13: 0 | FH13: 0 | FI13: 0 | FJ13: 0 | FK13: 0 | FL13: 0 | FM13: 1800000000 | FN13: 600000000 | FR13: 1200000000 | GG13: 0.5303635053 | GH13: 0.5303635053 | GI13: 15 | GJ13: 1 | GK13: 0 | GL13: 0 | GM13: 0 | GN13: 0 | GO13: 0 | GP13: 0 | GQ13: 6660000000 | GR13: 3060000000 | GS13: 0 | GT13: 0 | GU13: 0 | GV13: 3600000000 | GW13: 0 | GX13: 0 | GY13: 0 | GZ13: 0 | HA13: 0 | HB13: 0 | HC13: 0 | HD13: 0 | HE13: 0 | HF13: 0 | HG13: 0 | HH13: 0 | HI13: 0 | HJ13: 0 | HK13: 1 | HL13: 0 | HM13: BRINDAR HERRAMIENTAS TECNOLOGICAS PARA INCENTIVAR LA INVESTIGACION EN LOS ESTUDIANTES EN EL APROVECHAMIENTO DE LA CIENCIA | HN13: 1. LICITACION . 2. RECEPCION DE PROPUESTAS. 3. SOLICITUD DE COTIZACIONES. 4. PROCESO DE VISADO POR PARTE DE LA SECRETARIA DE LAS TIC. 5. FORMULACION DE PLIEGOS. 6. FIRMA DEL CONTRATO. | HO13: No | HP13: SE REALIZA FOCALIZACIÓN PARA PRIORIZAR LAS IED CON LA NECESIDAD INSATISFECHA | HR13: ELABORACIÓN DEL CORRESPONDIENTE CONVENIO | HT13: EJECUCIÓN Y DESARROLLO DEL MISMO | HV13: EVALUACIÓN DEL DESEMPEÑO Y MEDICIÓN DEL IMPACTO | HX13: ELABORACIÓN DE LOS PLANES DE MEJORAMIENTO | IJ13: PABLO CESAR CAJAMARCA MARTINEZ | IK13: 297100: Implementación de modelos pedagógicos innovadores y ambientes de aprendizaje adecuados para mejorar la calidad educativa en las IED oficiales Cundinamarca | IL13: si | IQ13: DILIGENCIAR LOGROS | IR13: 5 | IS13: 4 | IT13: 5 | IU13: 3 | IV13: 2 | IW13: I2 | IX13: 19 | IY13: 0.00251872473 | IZ13: 0.18 | JA13: 0.45 | JB13: 0.1 | JC13: 0.15 | JD13: 0.12 | JE13: 0.9 | JF13: 1.8 | JG13: 0.5 | JH13: 0.45 | JI13: 0.24 | JJ13: 3.89 | JK13: 0.002669942895 | JL13: 1456.96
B14: 11 | D14: 109 | E14: SECRETARIA DE EDUCACIÓN | F14: 1. CUNDINAMARCA 2036 | G14: 1.2. CALIDAD 10 | I14: 3 | J14: Aumentar en 2 puntos porcentuales al final del cuatrienio la clasificación de las IED que se encuentran en los niveles A+, A y B en pruebas SABER 11 | K14: Pruebas saber | L14: 46.2 | M14: 48.2 | N14: 1.2.3. SISTEMAS DE APRENDIZAJE INNOVADORES | O14: A.1 | P14: A.1 Educación | R14: BENEFICIAR A 3.120 ESTUDIANTES DE LOS GRADOS 10° Y 11°, DURANTE EL PERIODO DE GOBIERNO, CON ESTRATEGIAS DE NIVELACIÓN Y FORMACIÓN DE COMPETENCIAS BÁSICAS Y ORIENTACIÓN VOCACIONAL, PRIORIZANDO LOS MUNICIPIOS DE MÁS BAJA TASA DE TRANSICIÓN. | S14: Incremento | T14: Estudiantes beneficiados con estrategias de competencias básicas | U14: Número | V14: 0 | W14: 3120 | Y14: 0.3803892493 | Z14: ü | AA14: ü | AB14: ü | AC14: ü | AD14: ü | AE14: ü | AF14: ü | AG14: ü | AH14: ü | AI14: ü | AJ14: ü | AK14: ü | AL14: ü | AM14: ü | AN14: ü | AO14: ü | AP14: 4. Educación de calidad | AU14: ü | AV14: û | AW14: û | AX14: û | AY14: û | AZ14: û | BA14: 0 | BB14: 0 | BC14: 0 | BD14: 0 | BE14: 0 | BG14: 0 | BH14: 0 | BJ14: 0 | BK14: 0 | BL14: 0 | BM14: 0 | BN14: 0 | BO14: 66360000 | BP14: 66360000 | BY14: 0 | CI14: 0.1365499869 | CJ14: 0.1365499869 | CK14: 1120 | CL14: 0.358974359 | CM14: 0 | CR14: 0 | CS14: 0 | CT14: 0 | CU14: 0 | CV14: 0 | CW14: 553000000 | CX14: 553000000 | DG14: 0 | DQ14: 0.1219196312 | DR14: 0.1219196312 | DS14: 1000 | DT14: 0.3205128205 | DU14: 0 | DZ14: 0 | EA14: 0 | EB14: 0 | EC14: 0 | ED14: 0 | EE14: 553000000 | EF14: 553000000 | EO14: 0 | EY14: 0.1219196312 | EZ14: 0.1219196312 | FA14: 1000 | FB14: 0.3205128205 | FC14: 0 | FH14: 0 | FI14: 0 | FJ14: 0 | FK14: 0 | FL14: 0 | FM14: 553000000 | FN14: 553000000 | GG14: 0.3803892493 | GH14: 0.3803892493 | GI14: 3120 | GJ14: 1 | GK14: 0 | GL14: 0 | GM14: 0 | GN14: 0 | GO14: 0 | GP14: 0 | GQ14: 1725360000 | GR14: 1725360000 | GS14: 0 | GT14: 0 | GU14: 0 | GV14: 0 | GW14: 0 | GX14: 0 | GY14: 0 | GZ14: 0 | HA14: 0 | HB14: 0 | HC14: 0 | HD14: 0 | HE14: 0 | HF14: 0 | HG14: 0 | HH14: 0 | HI14: 0 | HJ14: 0 | HK14: 1 | HL14: 0 | HM14: FOCALIZAR A LOS ESTUDIANTES DE LAS INSTITUCIONES EDUCATIVAS DEPARTAMENTALES QUE SE ENCUENTRAN EN GRADOS 10 Y 11 EN COMPETENCIAS BASICAS | HN14: REALIZAR CONVENIOS CON INSTITUCIONES DE EDUCACIÓN SUPERIOR PARA FORTALECER LAS COMPETENCIAS BÁSICAS DE LOS ESTUDIANTES | HO14: NO | IJ14: INGRID CAROLINA CARDENAS QUINTERO | IK14: 297100: Implementación de modelos pedagógicos innovadores y ambientes de aprendizaje adecuados para mejorar la calidad educativa en las IED oficiales Cundinamarca | IL14: NO | IM14: UNIVERSIDADES | IQ14: DILIGENCIAR LOGROS | IR14: 5 | IS14: 2 | IT14: 3 | IU14: 3 | IV14: 2 | IW14: IN | IX14: 15 | IY14: 0.001988466892 | IZ14: 0.18 | JA14: 0.45 | JB14: 0.1 | JC14: 0.15 | JD14: 0.12 | JE14: 0.9 | JF14: 0.9 | JG14: 0.3 | JH14: 0.45 | JI14: 0.24 | JJ14: 2.79 | JK14: 0.001914946189 | JL14: 1456.96
B15: 12 | D15: 110 | E15: SECRETARIA DE EDUCACIÓN | F15: 1. CUNDINAMARCA 2036 | G15: 1.2. CALIDAD 10 | I15: 3 | J15: Aumentar en 2 puntos porcentuales al final del cuatrienio la clasificación de las IED que se encuentran en los niveles A+, A y B en pruebas SABER 11 | K15: Pruebas saber | L15: 46.2 | M15: 48.2 | N15: 1.2.3. SISTEMAS DE APRENDIZAJE INNOVADORES | O15: A.1 | P15: A.1 Educación | R15: IMPLEMENTAR EL PROGRAMA ESCUELA AMIGA DEL AMBIENTE EN 40 IED OFICIALES EN ALIANZA CON LA CAR DESDE LA EDUCACIÓN PARA LA FORMACIÓN DE NIÑOS DEFENSORES DEL AGUA, ECO ESCUELAS Y EL DESARROLLO DE PROMOTORES AMBIENTALES PARA SER ARTICULADOS CON LOS PRAES. | S15: Incremento | T15: Instituciones Educativas con el programa ESCUELA AMIGA implementado | U15: Número | V15: 0 | W15: 40 | Y15: 0.3176727423 | Z15: û | AA15: ü | AB15: ü | AC15: ü | AD15: û | AE15: û | AF15: ü | AG15: ü | AH15: ü | AI15: ü | AJ15: ü | AK15: ü | AL15: ü | AM15: ü | AN15: ü | AO15: ü | AP15: 4. Educación de calidad | AU15: ü | AV15: û | AW15: û | AX15: û | AY15: û | AZ15: û | BA15: 0 | BB15: 0 | BC15: 0 | BD15: 0 | BE15: 0 | BG15: 0 | BH15: 0 | BJ15: 0 | BK15: 0 | BL15: 0 | BM15: 0 | BN15: 0 | BO15: 200000000 | BP15: 200000000 | BY15: 0 | CI15: 0.1191272783 | CJ15: 0.1191272783 | CK15: 15 | CL15: 0.375 | CM15: 0 | CR15: 0 | CS15: 0 | CT15: 0 | CU15: 0 | CV15: 0 | CW15: 200000000 | CX15: 200000000 | DG15: 0 | DQ15: 0.1191272783 | DR15: 0.1191272783 | DS15: 15 | DT15: 0.375 | DU15: 0 | DZ15: 0 | EA15: 0 | EB15: 0 | EC15: 0 | ED15: 0 | EE15: 200000000 | EF15: 200000000 | EO15: 0 | EY15: 0.07941818556 | EZ15: 0.07941818556 | FA15: 10 | FB15: 0.25 | FC15: 0 | FH15: 0 | FI15: 0 | FJ15: 0 | FK15: 0 | FL15: 0 | FM15: 200000000 | FN15: 200000000 | GG15: 0.3176727423 | GH15: 0.3176727423 | GI15: 40 | GJ15: 1 | GK15: 0 | GL15: 0 | GM15: 0 | GN15: 0 | GO15: 0 | GP15: 0 | GQ15: 800000000 | GR15: 800000000 | GS15: 0 | GT15: 0 | GU15: 0 | GV15: 0 | GW15: 0 | GX15: 0 | GY15: 0 | GZ15: 0 | HA15: 0 | HB15: 0 | HC15: 0 | HD15: 0 | HE15: 0 | HF15: 0 | HG15: 0 | HH15: 0 | HI15: 0 | HJ15: 0 | HK15: 1 | HL15: 0 | HM15: FORTALECER DESDE LA DIMENSIÓN PEDAGÓGICA Y TÉCNICA LOS PROYECTOS AMBIENTALES ESCOLARES – PRAES- BAJO EL ENFOQUE DE GESTIÓN AMBIENTAL INTEGRAL PARA LA TRANSFORMACIÓN EN ESCUELAS ECOEFICIENTES, DONDE TODA LA COMUNIDAD EDUCATIVA ESTE COMPROMETIDA EN LA MEJORA AMBIENTAL DE SU ENTORNO, REDUCIENDO SUS IMPACTOS NEGATIVOS Y DESARROLLANDO COMPETENCIAS PARA PROMOVER HÁBITOS AMIGABLES CON EL AMBIENTE. | HN15: CONVENIO CON LA CAR IMPLEMENTACION DEL PROYECTO EVALUACION DE RESULTADOS | HO15: No | HP15: DIAGNÓSTICO | HQ15: 10 | HR15: PRIORIZACIÓN DE COMPONENTES AMBIENTALES | HS15: 10 | HT15: FORMACIÓN EN ECOEFICIENCIA | HU15: 20 | HV15: IMPLEMENTACIÓN DE COMPONENTES AMBIENTALES | HW15: 40 | HX15: SEGUIMIENTO Y EVALUACIÓN DE RESULTADOS | HY15: 20 | IJ15: JASLEYDI RUEDA RODRIGUEZ | IK15: 297141: Fortalecimiento de la cultura ambiental en la comunidad educativa y el buen uso y aprovechamiento del tiempo libre de los estudiantes de las instituciones educativas del departamento Cundinamarca | IL15: si | IM15: CORPORACION AUTONOMA REGIONAL DE CUNDINAMARCA - CAR | IQ15: DILIGENCIAR LOGROS | IR15: 3 | IS15: 2 | IT15: 5 | IU15: 1 | IV15: 2 | IW15: I2 | IX15: 13 | IY15: 0.001723337973 | IZ15: 0.18 | JA15: 0.45 | JB15: 0.1 | JC15: 0.15 | JD15: 0.12 | JE15: 0.54 | JF15: 0.9 | JG15: 0.5 | JH15: 0.15 | JI15: 0.24 | JJ15: 2.33 | JK15: 0.001599220294 | JL15: 1456.96
B16: 13 | D16: 111 | E16: SECRETARIA DE EDUCACIÓN | F16: 1. CUNDINAMARCA 2036 | G16: 1.2. CALIDAD 10 | I16: 3 | J16: Aumentar en 2 puntos porcentuales al final del cuatrienio la clasificación de las IED que se encuentran en los niveles A+, A y B en pruebas SABER 11 | K16: Pruebas saber | L16: 46.2 | M16: 48.2 | N16: 1.2.3. SISTEMAS DE APRENDIZAJE INNOVADORES | O16: A.1 | P16: A.1 Educación | R16: REALIZAR SALIDAS PEDAGÓGICAS Y RECREATIVAS A 21.000 ESTUDIANTES CON EL FIN DE FORTALECER COMPETENCIAS BÁSICAS, CIUDADANAS, CIENCIA Y TECNOLOGÍA, CONOCIMIENTO, REGIONES, ENTRE OTRAS. | S16: Incremento | T16: Número de Estudiantes en las salidas pedagógicas | U16: Número | V16: 20000 | W16: 21000 | Y16: 0.2685902585 | Z16: û | AA16: ü | AB16: ü | AC16: ü | AD16: ü | AE16: û | AF16: ü | AG16: ü | AH16: ü | AI16: ü | AJ16: ü | AK16: ü | AL16: ü | AM16: ü | AN16: ü | AO16: ü | AP16: 4. Educación de calidad | AU16: û | AV16: û | AW16: û | AX16: û | AY16: û | AZ16: û | BA16: 0 | BB16: 0 | BC16: 0 | BD16: 0 | BE16: 0 | BG16: 0 | BH16: 0 | BJ16: 0 | BK16: 0 | BL16: 0 | BM16: 0 | BN16: 0 | BO16: 100000000 | BP16: 100000000 | BY16: 0 | CI16: 0.08953008616 | CJ16: 0.08953008616 | CK16: 7000 | CL16: 0.3333333333 | CM16: 0 | CR16: 0 | CS16: 0 | CT16: 0 | CU16: 0 | CV16: 0 | CW16: 175000000 | CX16: 175000000 | DG16: 0 | DQ16: 0.08953008616 | DR16: 0.08953008616 | DS16: 7000 | DT16: 0.3333333333 | DU16: 0 | DZ16: 0 | EA16: 0 | EB16: 0 | EC16: 0 | ED16: 0 | EE16: 175000000 | EF16: 175000000 | EO16: 0 | EY16: 0.08953008616 | EZ16: 0.08953008616 | FA16: 7000 | FB16: 0.3333333333 | FC16: 0 | FH16: 0 | FI16: 0 | FJ16: 0 | FK16: 0 | FL16: 0 | FM16: 175000000 | FN16: 175000000 | GG16: 0.2685902585 | GH16: 0.2685902585 | GI16: 21000 | GJ16: 1 | GK16: 0 | GL16: 0 | GM16: 0 | GN16: 0 | GO16: 0 | GP16: 0 | GQ16: 625000000 | GR16: 625000000 | GS16: 0 | GT16: 0 | GU16: 0 | GV16: 0 | GW16: 0 | GX16: 0 | GY16: 0 | GZ16: 0 | HA16: 0 | HB16: 0 | HC16: 0 | HD16: 0 | HE16: 0 | HF16: 0 | HG16: 0 | HH16: 0 | HI16: 0 | HJ16: 0 | HK16: 1 | HL16: 0 | HM16: SE LOGRARA QUE LOS ESTUDIANTES HAGAN BUEN USO DEL TIEMPO LIBRE Y APROVECEN LAS JORNADAS EXTRAESCOLARES | HN16: IMPLEMENTACION DEL PROYECTO | HO16: No | IJ16: LUZ MARINA GONGORA RIOS | IK16: 297141: Fortalecimiento de la cultura ambiental en la comunidad educativa y el buen uso y aprovechamiento del tiempo libre de los estudiantes de las instituciones educativas del departamento Cundinamarca | IQ16: DILIGENCIAR LOGROS | IR16: 1 | IS16: 2 | IT16: 5 | IU16: 1 | IV16: 2 | IW16: IN | IX16: 11 | IY16: 0.001458209054 | IZ16: 0.18 | JA16: 0.45 | JB16: 0.1 | JC16: 0.15 | JD16: 0.12 | JE16: 0.18 | JF16: 0.9 | JG16: 0.5 | JH16: 0.15 | JI16: 0.24 | JJ16: 1.97 | JK16: 0.001352130463 | JL16: 1456.96
B17: 14 | D17: 112 | E17: SECRETARIA DE EDUCACIÓN | F17: 1. CUNDINAMARCA 2036 | G17: 1.2. CALIDAD 10 | I17: 3 | J17: Aumentar en 2 puntos porcentuales al final del cuatrienio la clasificación de las IED que se encuentran en los niveles A+, A y B en pruebas SABER 11 | K17: Pruebas saber | L17: 46.2 | M17: 48.2 | N17: 1.2.4. MAESTROS QUE DEJAN HUELLA | O17: A.1 | P17: A.1 Educación | R17: IMPARTIR PROGRAMAS DE FORMACIÓN DIRIGIDOS AL FORTALECIMIENTO DE LA LABOR DOCENTE Y ACTUALIZACIÓN DISCIPLINAR A 3.000 DOCENTES Y DIRECTIVOS DOCENTES DE LAS 283 IED. | S17: Incremento | T17: Docentes y Directivos formados | U17: Número | V17: 0 | W17: 3000 | Y17: 0.4567397796 | Z17: û | AA17: ü | AB17: ü | AC17: ü | AD17: ü | AE17: û | AF17: ü | AG17: ü | AH17: ü | AI17: ü | AJ17: ü | AK17: ü | AL17: ü | AM17: ü | AN17: ü | AO17: ü | AP17: 4. Educación de calidad | AQ17: 3. Salud y bienestar | AU17: û | AV17: û | AW17: ü | AX17: û | AY17: û | AZ17: û | BA17: 0.07612329661 | BB17: 0.07612329661 | BC17: 500 | BD17: 0.1666666667 | BE17: 0 | BG17: 1381 | BH17: 0 | BJ17: 0 | BK17: 0 | BL17: 0 | BM17: 0 | BN17: 0 | BO17: 900000000 | BP17: 900000000 | BY17: 0 | CI17: 0.09134795593 | CJ17: 0.09134795593 | CK17: 600 | CL17: 0.2 | CM17: 0 | CR17: 0 | CS17: 0 | CT17: 0 | CU17: 0 | CV17: 0 | CW17: 300000000 | CX17: 300000000 | DG17: 0 | DQ17: 0.1674712525 | DR17: 0.1674712525 | DS17: 1100 | DT17: 0.3666666667 | DU17: 0 | DZ17: 0 | EA17: 0 | EB17: 0 | EC17: 0 | ED17: 0 | EE17: 300000000 | EF17: 300000000 | EO17: 0 | EY17: 0.1217972746 | EZ17: 0.1217972746 | FA17: 800 | FB17: 0.2666666667 | FC17: 0 | FH17: 0 | FI17: 0 | FJ17: 0 | FK17: 0 | FL17: 0 | FM17: 300000000 | FN17: 300000000 | GG17: 0.4567397796 | GH17: 0.4567397796 | GI17: 3000 | GJ17: 1 | GK17: 0 | GL17: 0 | GM17: 0 | GN17: 0 | GO17: 0 | GP17: 0 | GQ17: 1800000000 | GR17: 1800000000 | GS17: 0 | GT17: 0 | GU17: 0 | GV17: 0 | GW17: 0 | GX17: 0 | GY17: 0 | GZ17: 0 | HA17: 0 | HB17: 0 | HC17: 0 | HD17: 0 | HE17: 0 | HF17: 0 | HG17: 0 | HH17: 0 | HI17: 0 | HJ17: 0 | HK17: 1 | HL17: 0 | HM17: DESARROLLAR PROGRAMAS DE FORMACIÓN INTEGRAL ORIENTADA A FORTALECER LA PRÁCTICA DOCENTE Y A MEJORAR LOS APRENDIZAJES DE LOS ESTUDIANTES, DE TAL MANERA QUE SE REALICEN LOS FINES FUNDAMENTALES DE LA EDUCACIÓN CON LA MEJOR CALIDAD POSIBLE. | HN17: EVALUACION DE RESULTADOS | HO17: No | HP17: FOCALIZACIÓN DE DOCENTES | HR17: FORMACIÓN A TRAVÉS DE UNA ENTIDAD PUBLICA O PRIVADA | HT17: SEGUIMIENTO Y ANALISIS DE RESULTADOS | IJ17: NUBIA LICHPARDO | IK17: 297117: Formación de docentes y directivos docentes oficiales del Departamento Cundinamarca | IL17: si | IM17: FUNDACIONES | IN17: EMPRESARIOS POR LA EDUCACIÓN | IO17: UNIVERSIDADES PÚBLICAS Y PRIVADAS | IP17: MINISTERIO DE EDUCACIÓN NACIONAL | IQ17: DILIGENCIAR LOGROS | IR17: 5 | IS17: 2 | IT17: 5 | IU17: 3 | IV17: 5 | IW17: IN | IX17: 20 | IY17: 0.002651289189 | IZ17: 0.18 | JA17: 0.45 | JB17: 0.1 | JC17: 0.15 | JD17: 0.12 | JE17: 0.9 | JF17: 0.9 | JG17: 0.5 | JH17: 0.45 | JI17: 0.6 | JJ17: 3.35 | JK17: 0.002299308148 | JL17: 1456.96
B18: 15 | D18: 113 | E18: SECRETARIA DE EDUCACIÓN | F18: 1. CUNDINAMARCA 2036 | G18: 1.2. CALIDAD 10 | I18: 3 | J18: Aumentar en 2 puntos porcentuales al final del cuatrienio la clasificación de las IED que se encuentran en los niveles A+, A y B en pruebas SABER 11 | K18: Pruebas saber | L18: 46.2 | M18: 48.2 | N18: 1.2.4. MAESTROS QUE DEJAN HUELLA | O18: A.1 | P18: A.1 Educación | R18: IMPLEMENTAR ANUALMENTE, DURANTE EL PERIODO DE GOBIERNO, UN PROGRAMA INNOVADOR DE RECONOCIMIENTO A LA GESTIÓN INTEGRAL DE LA COMUNIDAD EDUCATIVA DEL DEPARTAMENTO (PLAN DE INCENTIVOS BIENESTAR). | S18: Incremento | T18: Programa innovador | U18: Número | V18: 0 | W18: 1 | Y18: 0.4240181238 | Z18: û | AA18: ü | AB18: ü | AC18: ü | AD18: ü | AE18: û | AF18: ü | AG18: ü | AH18: ü | AI18: ü | AJ18: ü | AK18: ü | AL18: ü | AM18: ü | AN18: ü | AO18: ü | AP18: 4. Educación de calidad | AU18: û | AV18: û | AW18: û | AX18: û | AY18: û | AZ18: û | BA18: 0 | BB18: 0 | BC18: 0 | BD18: 0 | BE18: 0 | BG18: 0 | BH18: 0.015 | BJ18: 0 | BK18: 0 | BL18: 0 | BM18: 0 | BN18: 0 | BO18: 500000000 | BP18: 500000000 | BY18: 0 | CI18: 0.4240181238 | CJ18: 0.4240181238 | CK18: 1 | CL18: 1 | CM18: 0 | CR18: 0 | CS18: 0 | CT18: 0 | CU18: 0 | CV18: 0 | CW18: 1200000000 | CX18: 1200000000 | DG18: 0 | DQ18: 0 | DR18: 0 | DS18: 0 | DT18: 0 | DU18: 0 | DZ18: 0 | EA18: 0 | EB18: 0 | EC18: 0 | ED18: 0 | EE18: 1200000000 | EF18: 1200000000 | EO18: 0 | EY18: 0 | EZ18: 0 | FA18: 0 | FB18: 0 | FC18: 0 | FH18: 0 | FI18: 0 | FJ18: 0 | FK18: 0 | FL18: 0 | FM18: 1100000000 | FN18: 1100000000 | GG18: 0.4240181238 | GH18: 0.4240181238 | GI18: 1 | GJ18: 1 | GK18: 0 | GL18: 0 | GM18: 0 | GN18: 0 | GO18: 0 | GP18: 0 | GQ18: 4000000000 | GR18: 4000000000 | GS18: 0 | GT18: 0 | GU18: 0 | GV18: 0 | GW18: 0 | GX18: 0 | GY18: 0 | GZ18: 0 | HA18: 0 | HB18: 0 | HC18: 0 | HD18: 0 | HE18: 0 | HF18: 0 | HG18: 0 | HH18: 0 | HI18: 0 | HJ18: 0 | HK18: 1 | HL18: 0 | HM18: BRINDAR A LA COMUNIDAD EDUCATIVA DEL DEPARTAMENTO ACTIVIDADES QUE LES PERMITAN ELEVAR SU CALIDAD DE VIDA Y GENERAR UN CLIMA LABORAL SATISFACTORIO. | HN18: ELABORACIÓN DE CONTRATOS O CONVENIOS CON ENTIDAD PÚBLICA O PRIVADA PARA: - APLICACIÓN DE LA BATERIA DE RIESGOS PSICOSOCIAL E INTERVENCIÓN PARA PERSONAL ADMINISTRATIVO. - PRACTICAR EXAMES DE INGRESO Y EGRESO, PERIODICOS OCUPACIONALES, DE LABORATORIO E INTERVENCIÓN OSTEOMUSCULAR Y CARDIOVASCULAR. - ADQUISICION DE MATERIAL PUBLICITARIO PARA IMPLEMENTAR EL PLAN DE ESTIMULOS E INCENTIVOS PARA LOS DOCENTES, DIRECTIVOS DOCENTES, PERSONAL ADMINISTRATIVO Y COMUNIDAD EDUCATIVA, FOROS, EVENTOS Y LOGÍSTICA PARA LA DIVULGACIÓN DE CAMPAÑAS EDUCATIVAS EN LAS IED DE LOS MUNICIPIOS NO CERTTIFICADOS DEL DEPARTAMENTO. - REALIZACIÓN DE INDUCCIÓN, REINDUCCIÓN Y BIENESTAR EN SALUD OCUPACIONAL; CAPACITACIÓN EN SEGURIDAD SOCIAL, SEÑALIZACIÓN EN AREAS DE TRABAJO Y DOTACIÓN DE BOTIQUINES; ACTIVIDADES DE RECREACIÓN, DEPORTE Y CULTURA; CARACTERIZACIÓN DEL PERFIL MOTIVACIONAL. iMPLEMENTAR EL PLAN DE INCENTIVOS MEDIANTE ORDENANZA DEPARTAMENTAL Y SU REGLAMENTACION | HO18: SI | HP18: ESTUDIOS PREVIOS | HQ18: 20 | HR18: SELECCIÓN DE PROPONENTES | HS18: 20 | HT18: EJECUCIÓN | HU18: 20 | HV18: VERIFICACIÓN | HW18: 20 | HX18: SEGUIMIENTO | IA18: 20 | IJ18: JAHN ACOSTA OLAYA | IK18: 297151: Implementación del Plan de Bienestar, Estímulos e Incentivos de los docentes, directivos docentes, personal administrativo y comunidad educativa de las de las Instituciones Educativas de los municipios no certificados Cundinamarca | IM18: colsubsidio | IN18: cootradecun | IO18: canapro | IP18: codema | IQ18: DILIGENCIAR LOGROS | IR18: 3 | IS18: 4 | IT18: 5 | IU18: 1 | IV18: 1 | IW18: IN | IX18: 14 | IY18: 0.001855902433 | IZ18: 0.18 | JA18: 0.45 | JB18: 0.1 | JC18: 0.15 | JD18: 0.12 | JE18: 0.54 | JF18: 1.8 | JG18: 0.5 | JH18: 0.15 | JI18: 0.12 | JJ18: 3.11 | JK18: 0.002134581595 | JL18: 1456.96
B19: 16 | D19: 114 | E19: SECRETARIA DE EDUCACIÓN | F19: 1. CUNDINAMARCA 2036 | G19: 1.2. CALIDAD 10 | I19: 3 | J19: Aumentar en 2 puntos porcentuales al final del cuatrienio la clasificación de las IED que se encuentran en los niveles A+, A y B en pruebas SABER 11 | K19: Pruebas saber | L19: 46.2 | M19: 48.2 | N19: 1.2.4. MAESTROS QUE DEJAN HUELLA | O19: A.1 | P19: A.1 Educación | R19: IMPLEMENTAR EL PROGRAMA EDUCATIVO "NI UN MINUTO MENOS DE CLASE" A TRAVÉS DE LOS CENTROS DE PENSAMIENTO PROVINCIAL DURANTE EL PERIODO DE GOBIERNO. | S19: Incremento | T19: Plan implementado | U19: Número | V19: 0 | W19: 1 | Y19: 0.5794459891 | Z19: ü | AA19: ü | AB19: ü | AC19: ü | AD19: ü | AE19: ü | AF19: ü | AG19: ü | AH19: ü | AI19: ü | AJ19: ü | AK19: ü | AL19: ü | AM19: ü | AN19: ü | AO19: ü | AP19: 4. Educación de calidad | AU19: û | AV19: û | AW19: û | AX19: û | AY19: û | AZ19: û | BA19: 0 | BB19: 0 | BC19: 0 | BD19: 0 | BE19: 0 | BG19: 0 | BH19: 0 | BJ19: 0 | BK19: 0 | BL19: 0 | BM19: 0 | BN19: 0 | BO19: 1464000000 | BP19: 1464000000 | BY19: 0 | CI19: 0.5794459891 | CJ19: 0.5794459891 | CK19: 1 | CL19: 1 | CM19: 0 | CR19: 0 | CS19: 0 | CT19: 0 | CU19: 0 | CV19: 0 | CW19: 536000000 | CX19: 536000000 | DG19: 0 | DQ19: 0 | DR19: 0 | DS19: 0 | DT19: 0 | DU19: 0 | DZ19: 0 | EA19: 0 | EB19: 0 | EC19: 0 | ED19: 0 | EE19: 500000000 | EF19: 500000000 | EO19: 0 | EY19: 0 | EZ19: 0 | FA19: 0 | FB19: 0 | FC19: 0 | FH19: 0 | FI19: 0 | FJ19: 0 | FK19: 0 | FL19: 0 | FM19: 600000000 | FN19: 600000000 | GG19: 0.5794459891 | GH19: 0.5794459891 | GI19: 1 | GJ19: 1 | GK19: 0 | GL19: 0 | GM19: 0 | GN19: 0 | GO19: 0 | GP19: 0 | GQ19: 3100000000 | GR19: 3100000000 | GS19: 0 | GT19: 0 | GU19: 0 | GV19: 0 | GW19: 0 | GX19: 0 | GY19: 0 | GZ19: 0 | HA19: 0 | HB19: 0 | HC19: 0 | HD19: 0 | HE19: 0 | HF19: 0 | HG19: 0 | HH19: 0 | HI19: 0 | HJ19: 0 | HK19: 1 | HL19: 0 | HM19: DISMINUIR EL NUMERO DE ESTUDIANTES SIN CLASE POR AUSENCIA DE DOCENTE EN EL AULA, EVITANDO LA DESESCOLARIZACIÓN DE LOS NIÑOS EN LAS INSTITUCIONES EDUCATIVAS DEL DEPARTAMENTO DE CUNDINAMARCA. | HN19: CONTRATAR PROFESIONALES QUE ESTÉN DISPONIBLES PARA CUANDO SE GENEREN LAS VACANTES TEMPORALES Y DISPUESTOS A TRASLADARSE A CUALQUIER MUNICIPIO DE CUNDINAMARCA. REALIZACIÓN DE TALLERES, FOROS, CAPACITACIONES, EVENTOS, SEMINARIOS, DIPLOMADOS CON TEMÁTICAS DE AUTOESTIMA Y SUPERACION PERSONAL. REALIZACIÓN CONVENIOS CON INSTITUCIONES DE EDUCACIÓN SUPERIOR PARA PRESTAR EL SERVICIO DE PROYECTO DE GRADO EN LAS INSTITUCIONES EDUCATIVAS DE CUNDINAMARCA. | HO19: SI | HP19: DIAGNOSTICO | HR19: CONVOCAR | HT19: SELECCIONAR | HV19: VERIFICAR | HX19: NOMBRAR | HZ19: SEGUIMIENTO | IJ19: SANDRA BEATRIZ JEREZ PINEDA | IK19: 297178: Implementación del programa ni un minuto menos sin clase en las IED del departamento de Cundinamarca | IM19: UNIVERSIDAD NACIONAL | IN19: UNIVERSIDAD PEDAGOGICA | IO19: UNIVERSIDAD ESAP | IP19: MINISTERIO DE EDUCACION | IQ19: DILIGENCIAR LOGROS | IR19: 5 | IS19: 4 | IT19: 5 | IU19: 3 | IV19: 5 | IW19: IN | IX19: 22 | IY19: 0.002916418108 | IZ19: 0.18 | JA19: 0.45 | JB19: 0.1 | JC19: 0.15 | JD19: 0.12 | JE19: 0.9 | JF19: 1.8 | JG19: 0.5 | JH19: 0.45 | JI19: 0.6 | JJ19: 4.25 | JK19: 0.002917032726 | JL19: 1456.96
